Workbook

Sheet Examples (hidden)
B2: IPART colour codes for models, spreadsheets and information requests
B3: NB ALWAYS DESCRIBE THE COLOUR CODE USED IN YOUR MODEL
B4: Note: If you use the formats for the inputs provided in this template, input cells will always be unprotected even when you protect the worksheet
H5: use this column cell to "paint" input cells for numbers (NOT for percentages)
I6: use this column cell to "paint" input cells for percentages (NOT numbers)
B7: Models and spreadsheets
G8: numbers | H8: %
B9: Inputs | G9: 4232 | H9: 0.08
B10: Inputs with default values, default values are shown in italics next to or below | G10: 34345 | H10: 0.08
B11: Hard-coded values used that should not be changed, eg credit ratings or '1' at the start of an index series.
B12: Key outputs
B13: Links from other files (green)
B14: Error check (check =0)
B15: Error warnings, messages and unusual calculation assumptions
B16: Indicate change in formula across row with a double red line
B17: Note: You can combine options for inputs, eg: | E17: Inputs can be links to other files
E18: You can drawn attention to unusual inputs
H20: use this column cell to "paint" input cells for numbers (NOT for percentages)
B21: Information Requests | I21: use this column cell to "paint" input cells for percentages (NOT numbers)
G22: numbers | H22: %
B23: Inputs for historical years (actual values) | G23: 234 | H23: 0.24
B24: Forecast inputs | G24: 6667 | H24: 0.05
B25: Error warnings and messages
B26: Error check (check =0)
B28: QA notes - annotation or documenation by QA staff
A31: User Instructions - IPART CHARTS
B33: Blue | C33: Mid Grey | D33: Pale Blue | E33: Green | F33: Charcoal | G33: Orange | H33: Purple | I33: Pink | L33: Blue | M33: Mid Grey | N33: Pale Blue | O33: Green | P33: Charcoal | Q33: Orange | S33: X value | T33: 1st Y value | U33: 2nd Y value | X33: Black | Y33: Red 100% | Z33: Red 70% | AA33: Grey 40%
A34: 1975-76 | B34: 36.19 | C34: 36.88 | D34: 21.56 | E34: 5.36 | F34: 3.01 | G34: 10 | H34: 3.01 | I34: 10 | K34: 1975-76 | L34: 33.19 | M34: 36.88 | N34: 21.56 | O34: 5.36 | P34: 3.01 | Q34: 10 | S34: 1.8 | T34: 10 | U34: 17 | W34: 1975-76 | X34: 33.19 | Y34: 36.88 | Z34: 21.56 | AA34: 5.36
A35: 1983-84 | B35: 39.39 | C35: 32.02 | D35: 21.6 | E35: 7.01 | F35: 3.36 | G35: 12 | H35: 3.36 | I35: 12 | K35: 1983-84 | L35: 39.39 | M35: 32.02 | N35: 21.6 | O35: 7.01 | P35: 3.36 | Q35: 12 | S35: 2.3 | T35: 12 | U35: 9 | W35: 1983-84 | X35: 39.39 | Y35: 32.02 | Z35: 21.6 | AA35: 7.01
A36: 1988-89 | B36: 42.78 | C36: 29.91 | D36: 18.35 | E36: 6.33 | F36: 2.63 | G36: 14 | H36: 2.63 | I36: 14 | K36: 1988-89 | L36: 42.78 | M36: 29.91 | N36: 18.35 | O36: 6.33 | P36: 2.63 | Q36: 14 | S36: 3.7 | T36: 16 | U36: 14 | W36: 1988-89 | X36: 42.78 | Y36: 29.91 | Z36: 18.35 | AA36: 6.33
A37: 1993-94 | B37: 42.13 | C37: 26.53 | D37: 21.6 | E37: 7.01 | F37: 2.72 | G37: 16 | H37: 2.72 | I37: 16 | K37: 1993-94 | L37: 42.13 | M37: 26.53 | N37: 21.6 | O37: 7.01 | P37: 2.72 | Q37: 16 | S37: 4.1 | T37: 8 | U37: 23 | W37: 1993-94 | X37: 42.13 | Y37: 26.53 | Z37: 21.6 | AA37: 7.01
A38: 1996-97 | B38: 41.69 | C38: 24.76 | D38: 23.98 | E38: 7 | F38: 2.57 | G38: 18 | H38: 2.57 | I38: 18 | K38: 1996-97 | L38: 41.69 | M38: 24.76 | N38: 23.98 | O38: 7 | P38: 2.57 | Q38: 18 | S38: 5.5 | T38: 14 | U38: 27 | W38: 1996-97 | X38: 41.69 | Y38: 24.76 | Z38: 23.98 | AA38: 7
A39: 1997-98 | B39: 39.39 | C39: 32.02 | D39: 21.6 | E39: 7.01 | F39: 3.36 | G39: 12 | H39: 3.36 | I39: 12 | K39: 1997-98 | L39: 39.39 | M39: 32.02 | N39: 21.6 | O39: 7.01 | P39: 3.36 | Q39: 12 | W39: 1997-98 | X39: 39.39 | Y39: 32.02 | Z39: 21.6 | AA39: 7.01
A40: 1998-99 | B40: 42.13 | C40: 26.53 | D40: 21.6 | E40: 7.01 | F40: 2.72 | G40: 16 | H40: 2.72 | I40: 16 | K40: 1998-99 | L40: 42.13 | M40: 26.53 | N40: 21.6 | O40: 7.01 | P40: 2.72 | Q40: 16 | W40: 1998-99 | X40: 42.13 | Y40: 26.53 | Z40: 21.6 | AA40: 7.01
A41: 1999-00 | B41: 45 | C41: 22 | D41: 26 | E41: 8 | F41: 2 | G41: 20 | H41: 2 | I41: 20 | K41: 1999-00 | L41: 45 | M41: 22 | N41: 26 | O41: 8 | P41: 2 | Q41: 20 | W41: 1999-00 | X41: 45 | Y41: 22 | Z41: 26 | AA41: 8
A42: – en rule for when needed

Sheet Export (hidden)
A1: WK1 | B1: THIS WORKSHEET IS TO BE HIDDEN BEFORE PUBLICATION
C2: ='WK1 - Identification'!C13 -> Council Name: | E2: ='WK1 - Identification'!E13 -> City of Parramatta Council | I2: ='WK1 - Identification'!I13 -> If your councils' name is not in the list, please enter it in cell E14
C3: ='WK1 - Identification'!C14 -> Council Name if not listed: | E3: ='WK1 - Identification'!E14 -> 0
C5: ='WK1 - Identification'!C16 -> Contact Details: | E5: ='WK1 - Identification'!E16 -> 0
C6: ='WK1 - Identification'!C17 -> Name: | E6: ='WK1 - Identification'!E17 -> Todd Cowan
C7: ='WK1 - Identification'!C18 -> Position: | E7: ='WK1 - Identification'!E18 -> Rates & Receivables Manager
C8: ='WK1 - Identification'!C19 -> Telephone: | E8: ='WK1 - Identification'!E19 -> 0
C9: ='WK1 - Identification'!C20 -> Email: | E9: ='WK1 - Identification'!E20 -> 0
C12: ='WK1 - Identification'!C23 -> A. Existing special variations (SVs) | S12: ='WK1 - Identification'!S23 -> DO NOT DELETE
C13: ='WK1 - Identification'!C24 -> 1. Does the council have any existing SV(s) that means it has an increase above the rate peg for any year from 2022-23 (Year 1) onwards? | K13: ='WK1 - Identification'!K24 -> no | S13: ='WK1 - Identification'!S24 -> 2
C15: ='WK1 - Identification'!C26 -> B. Council's Notional General Income
C16: ='WK1 - Identification'!C27 -> 2. Enter Council's NGI for 2021-22 ($ nominal) | K16: ='WK1 - Identification'!K27 -> 159982939
C18: ='WK1 - Identification'!C29 -> C. Council's modelling assumptions
C19: ='WK1 - Identification'!C30 -> 3. Enter Council's assumed rate peg for 2022-23. | K19: ='WK1 - Identification'!K30 -> 0.025
C20: ='WK1 - Identification'!C31 -> 4. Has the 2021-22 LTFP been exhibited or only adopted? | K20: ='WK1 - Identification'!K31 -> Exhibited
C21: ='WK1 - Identification'!C32 -> 5. Enter exhibition date of Council's LTFP. | K21: ='WK1 - Identification'!K32 -> 2018-06-25
C23: ='WK1 - Identification'!C34 -> D. Proposed special variations (SVs)
C25: ='WK1 - Identification'!C36 -> 6. The council is applying for a one-year increase (s508(2)). | K25: ='WK1 - Identification'!K36 -> s508(2)
C26: ='WK1 - Identification'!C37 -> 7. Is the special variation permanent or temporary? | J26: ='WK1 - Identification'!J37 -> select option | K26: ='WK1 - Identification'!K37 -> Permanent
C27: ='WK1 - Identification'!C38 -> If temporary, the number of years before the special variation is due to expire (This is set to 1-year for this application). | K27: ='WK1 - Identification'!K38 -> 1 | S27: ='WK1 - Identification'!S38 -> 1
C28: ='WK1 - Identification'!C39 -> 8. Percentage rate peg for the first year of the SV period (2022-23). This will autofill with the selection of Council. | K28: ='WK1 - Identification'!K39 -> 0.007
C29: ='WK1 - Identification'!C40 -> 9. Enter the percentage above the rate peg the council is applying for in 2022-23. | J29: ='WK1 - Identification'!J40 -> enter % | K29: ='WK1 - Identification'!K40 -> 0.018 | S29: ='WK1 - Identification'!S40 -> DO NOT DELETE
S30: ='WK1 - Identification'!S41 -> 2
C32: ='WK1 - Identification'!C43 -> E. Expiring special variations (SVs) | S32: ='WK1 - Identification'!S43 -> 0
C33: ='WK1 - Identification'!C44 -> 10. Does the council have an expiring variation? If yes, please specify when. | I33: ='WK1 - Identification'!I44 -> 1st Expiring SV | J33: ='WK1 - Identification'!J44 -> select option | K33: ='WK1 - Identification'!K44 -> na
I34: ='WK1 - Identification'!I45 -> 2nd Expiring SV | J34: ='WK1 - Identification'!J45 -> select option | K34: ='WK1 - Identification'!K45 -> na
C36: ='WK1 - Identification'!C47 -> 11. If the council has an expiring variation, enter the $ amount expiring in row 80 below. | S36: ='WK1 - Identification'!S47 -> Total increase must not exceed the lower of the council's assumed 2022-23 rate peg increase and 2.5%.
C38: ='WK1 - Identification'!C49 -> F. Crown Land adjustments, catch ups, valuation objections | K38: ='WK1 - Identification'!K49 -> $ | L38: ='WK1 - Identification'!L49 -> % Y 0 income
C39: ='WK1 - Identification'!C50 -> 12. Enter the amount of any Crown Land adjustments required. | J39: ='WK1 - Identification'!J50 -> enter $ | K39: ='WK1 - Identification'!K50 -> 0 | L39: ='WK1 - Identification'!L50 -> 0
C40: ='WK1 - Identification'!C51 -> 13. Enter the amount for any catch ups or excess adjustments required. | J40: ='WK1 - Identification'!J51 -> enter $ | K40: ='WK1 - Identification'!K51 -> -688430 | L40: ='WK1 - Identification'!L51 -> -0.00430314635
C41: ='WK1 - Identification'!C52 -> 14. Enter any valuation objections required (input as a positive whole number). | J41: ='WK1 - Identification'!J52 -> enter $ | K41: ='WK1 - Identification'!K52 -> 43121 | L41: ='WK1 - Identification'!L52 -> 0.0002695349909
C44: ='WK1 - Identification'!C55 -> G. Requested annual percentage increases and expiring SV amounts
C45: ='WK1 - Identification'!C56 -> A special variation is the total % increase permitted in a council's general income, including the rate peg and Crown land adjustments, before adjustments are made for
C46: ='WK1 - Identification'!C57 -> catch ups/excesses and valuation objections.
C47: ='WK1 - Identification'!C58 -> Note: Approved SV% increases do not change if the actual rate peg turns out to be different from that assumed for a particular year.
C49: ='WK1 - Identification'!C60 -> Table 1 | D49: ='WK1 - Identification'!D60 -> Requested annual percentage increases and expiring SV amounts
F50: ='WK1 - Identification'!F61 -> Year 0 | G50: ='WK1 - Identification'!G61 -> Year 1 | H50: ='WK1 - Identification'!H61 -> Year 2 | I50: ='WK1 - Identification'!I61 -> Year 3 | J50: ='WK1 - Identification'!J61 -> Year 4 | K50: ='WK1 - Identification'!K61 -> Year 5 | L50: ='WK1 - Identification'!L61 -> Year 6 | M50: ='WK1 - Identification'!M61 -> Year 7
C51: ='WK1 - Identification'!C62 -> Financial year | F51: ='WK1 - Identification'!F62 -> 2021-22 | G51: ='WK1 - Identification'!G62 -> 2022-23 | H51: ='WK1 - Identification'!H62 -> 2023-24 | I51: ='WK1 - Identification'!I62 -> 2024-25 | J51: ='WK1 - Identification'!J62 -> 2025-26 | K51: ='WK1 - Identification'!K62 -> 2026-27 | L51: ='WK1 - Identification'!L62 -> 2027-28 | M51: ='WK1 - Identification'!M62 -> 2028-29
C52: ='WK1 - Identification'!C63 -> 1= included in SV period | F52: ='WK1 - Identification'!F63 -> 1 | G52: ='WK1 - Identification'!G63 -> 1 | H52: ='WK1 - Identification'!H63 -> 0 | I52: ='WK1 - Identification'!I63 -> 0 | J52: ='WK1 - Identification'!J63 -> 0 | K52: ='WK1 - Identification'!K63 -> 0 | L52: ='WK1 - Identification'!L63 -> 0 | M52: ='WK1 - Identification'!M63 -> 0
C53: ='WK1 - Identification'!C64 -> 0 = beyond temporary SV period | F53: ='WK1 - Identification'!F64 -> 1 | G53: ='WK1 - Identification'!G64 -> 1 | H53: ='WK1 - Identification'!H64 -> 0 | I53: ='WK1 - Identification'!I64 -> 0 | J53: ='WK1 - Identification'!J64 -> 0 | K53: ='WK1 - Identification'!K64 -> 0 | L53: ='WK1 - Identification'!L64 -> 0 | M53: ='WK1 - Identification'!M64 -> 0
C54: ='WK1 - Identification'!C65 -> Annual % increases
C55: ='WK1 - Identification'!C66 -> na - leave blank | F55: ='WK1 - Identification'!F66 -> 0 | G55: ='WK1 - Identification'!G66 -> 0 | H55: ='WK1 - Identification'!H66 -> 0 | I55: ='WK1 - Identification'!I66 -> 0 | J55: ='WK1 - Identification'!J66 -> 0 | K55: ='WK1 - Identification'!K66 -> 0 | L55: ='WK1 - Identification'!L66 -> 0 | M55: ='WK1 - Identification'!M66 -> 0
C57: ='WK1 - Identification'!C68 -> Rate peg only | F57: ='WK1 - Identification'!F68 -> 0 | G57: ='WK1 - Identification'!G68 -> 0.007 | H57: ='WK1 - Identification'!H68 -> 0 | I57: ='WK1 - Identification'!I68 -> 0 | J57: ='WK1 - Identification'!J68 -> 0.02 | K57: ='WK1 - Identification'!K68 -> 0 | L57: ='WK1 - Identification'!L68 -> 0 | M57: ='WK1 - Identification'!M68 -> 0
C58: ='WK1 - Identification'!C69 -> plus | D58: ='WK1 - Identification'!D69 -> na | F58: ='WK1 - Identification'!F69 -> 0 | G58: ='WK1 - Identification'!G69 -> 0 | H58: ='WK1 - Identification'!H69 -> 0 | I58: ='WK1 - Identification'!I69 -> 0 | J58: ='WK1 - Identification'!J69 -> 0 | K58: ='WK1 - Identification'!K69 -> 0 | L58: ='WK1 - Identification'!L69 -> 0 | M58: ='WK1 - Identification'!M69 -> 0
C59: ='WK1 - Identification'!C70 -> plus | D59: ='WK1 - Identification'!D70 -> percentage above the rate peg | F59: ='WK1 - Identification'!F70 -> 0 | G59: ='WK1 - Identification'!G70 -> 0.018 | H59: ='WK1 - Identification'!H70 -> 0 | I59: ='WK1 - Identification'!I70 -> 0 | J59: ='WK1 - Identification'!J70 -> 0 | K59: ='WK1 - Identification'!K70 -> 0 | L59: ='WK1 - Identification'!L70 -> 0 | M59: ='WK1 - Identification'!M70 -> 0
C61: ='WK1 - Identification'!C72 -> plus | D61: ='WK1 - Identification'!D72 -> Crown Land adjustment | F61: ='WK1 - Identification'!F72 -> 0 | G61: ='WK1 - Identification'!G72 -> 0 | H61: ='WK1 - Identification'!H72 -> 0 | I61: ='WK1 - Identification'!I72 -> 0 | J61: ='WK1 - Identification'!J72 -> 0 | K61: ='WK1 - Identification'!K72 -> 0 | L61: ='WK1 - Identification'!L72 -> 0 | M61: ='WK1 - Identification'!M72 -> 0
C62: ='WK1 - Identification'!C73 -> Proposed SV | F62: ='WK1 - Identification'!F73 -> na | G62: ='WK1 - Identification'!G73 -> 0.025 | H62: ='WK1 - Identification'!H73 -> 0 | I62: ='WK1 - Identification'!I73 -> 0 | J62: ='WK1 - Identification'!J73 -> 0 | K62: ='WK1 - Identification'!K73 -> 0 | L62: ='WK1 - Identification'!L73 -> 0 | M62: ='WK1 - Identification'!M73 -> 0
C63: ='WK1 - Identification'!C74 -> Cumulative % increase
C64: ='WK1 - Identification'!C75 -> Rate peg only | F64: ='WK1 - Identification'!F75 -> 0 | G64: ='WK1 - Identification'!G75 -> 0.007 | H64: ='WK1 - Identification'!H75 -> 0 | I64: ='WK1 - Identification'!I75 -> 0 | J64: ='WK1 - Identification'!J75 -> 0 | K64: ='WK1 - Identification'!K75 -> 0 | L64: ='WK1 - Identification'!L75 -> 0 | M64: ='WK1 - Identification'!M75 -> 0
C65: ='WK1 - Identification'!C76 -> plus | D65: ='WK1 - Identification'!D76 -> additional increases | F65: ='WK1 - Identification'!F76 -> 0 | G65: ='WK1 - Identification'!G76 -> 0.018 | H65: ='WK1 - Identification'!H76 -> 0 | I65: ='WK1 - Identification'!I76 -> 0 | J65: ='WK1 - Identification'!J76 -> 0 | K65: ='WK1 - Identification'!K76 -> 0 | L65: ='WK1 - Identification'!L76 -> 0 | M65: ='WK1 - Identification'!M76 -> 0
C66: ='WK1 - Identification'!C77 -> Proposed SV | F66: ='WK1 - Identification'!F77 -> na | G66: ='WK1 - Identification'!G77 -> 0.025 | H66: ='WK1 - Identification'!H77 -> 0 | I66: ='WK1 - Identification'!I77 -> 0 | J66: ='WK1 - Identification'!J77 -> 0 | K66: ='WK1 - Identification'!K77 -> 0 | L66: ='WK1 - Identification'!L77 -> 0 | M66: ='WK1 - Identification'!M77 -> 0
C68: ='WK1 - Identification'!C79 -> Expiring special variations
C69: ='WK1 - Identification'!C80 -> $ value of expiring special | E69: ='WK1 - Identification'!E80 -> $ (nominal) | F69: ='WK1 - Identification'!F80 -> 0 | G69: ='WK1 - Identification'!G80 -> 0 | H69: ='WK1 - Identification'!H80 -> 0 | I69: ='WK1 - Identification'!I80 -> 0 | J69: ='WK1 - Identification'!J80 -> 0 | K69: ='WK1 - Identification'!K80 -> 0 | L69: ='WK1 - Identification'!L80 -> 0 | M69: ='WK1 - Identification'!M80 -> 0
C70: ='WK1 - Identification'!C81 -> variations (ESV) | E70: ='WK1 - Identification'!E81 -> % value of ESV | F70: ='WK1 - Identification'!F81 -> 0 | G70: ='WK1 - Identification'!G81 -> 0 | H70: ='WK1 - Identification'!H81 -> . | I70: ='WK1 - Identification'!I81 -> . | J70: ='WK1 - Identification'!J81 -> . | K70: ='WK1 - Identification'!K81 -> . | L70: ='WK1 - Identification'!L81 -> . | M70: ='WK1 - Identification'!M81 -> .
A73: WK4
E77: ='WK4 - PGI summary'!E5 -> WORKSHEET 4
E79: ='WK4 - PGI summary'!E7 -> PERMISSIBLE GENERAL INCOME SUMMARY FOR 2022-23
E80: ='WK4 - PGI summary'!E8 -> All dollars in nominal terms
E81: ='WK4 - PGI summary'!E9 -> Please check all income adjustments and expiring variation amounts with OLG
E82: ='WK4 - PGI summary'!E10 -> before submitting the application. | J82: ='WK4 - PGI summary'!J10 -> check = 0
C83: ='WK4 - PGI summary'!C11 -> Prior year Notional General Income
C84: ='WK4 - PGI summary'!C12 -> Less: | D84: ='WK4 - PGI summary'!D12 -> Expiry of a prior special variation | H84: ='WK4 - PGI summary'!H12 -> 0 | J84: ='WK4 - PGI summary'!J12 -> 0
C86: ='WK4 - PGI summary'!C14 -> Adjusted first year Notional General Income | G86: ='WK4 - PGI summary'!G14 -> $ | H86: ='WK4 - PGI summary'!H14 -> 159982939 | J86: ='WK4 - PGI summary'!J14 -> 0
C88: ='WK4 - PGI summary'!C16 -> Plus: | D88: ='WK4 - PGI summary'!D16 -> Rate peg - first year | F88: ='WK4 - PGI summary'!F16 -> 0.007 | G88: ='WK4 - PGI summary'!G16 -> 0 | H88: ='WK4 - PGI summary'!H16 -> 1119880.573 | J88: ='WK4 - PGI summary'!J16 -> 0
C89: ='WK4 - PGI summary'!C17 -> Plus: | D89: ='WK4 - PGI summary'!D17 -> na | F89: ='WK4 - PGI summary'!F17 -> 0 | G89: ='WK4 - PGI summary'!G17 -> 0 | H89: ='WK4 - PGI summary'!H17 -> 0 | J89: ='WK4 - PGI summary'!J17 -> 0
C90: ='WK4 - PGI summary'!C18 -> Plus: | D90: ='WK4 - PGI summary'!D18 -> Additional increase - first year | F90: ='WK4 - PGI summary'!F18 -> 0.018 | G90: ='WK4 - PGI summary'!G18 -> 0 | H90: ='WK4 - PGI summary'!H18 -> 2879692.902 | J90: ='WK4 - PGI summary'!J18 -> 0
C92: ='WK4 - PGI summary'!C20 -> Plus: | D92: ='WK4 - PGI summary'!D20 -> Crown Land adjustment - first year | F92: ='WK4 - PGI summary'!F20 -> 0 | G92: ='WK4 - PGI summary'!G20 -> 0 | H92: ='WK4 - PGI summary'!H20 -> 0 | J92: ='WK4 - PGI summary'!J20 -> 0
D94: ='WK4 - PGI summary'!D22 -> Total special variation - first year | F94: ='WK4 - PGI summary'!F22 -> 0.025 | G94: ='WK4 - PGI summary'!G22 -> $ | H94: ='WK4 - PGI summary'!H22 -> 3999573.475 | J94: ='WK4 - PGI summary'!J22 -> 0
C96: ='WK4 - PGI summary'!C24 -> Other First Year Adjustments:
C97: ='WK4 - PGI summary'!C25 -> Plus/Minus: | D97: ='WK4 - PGI summary'!D25 -> Prior year Catch-up/(Excess) | H97: ='WK4 - PGI summary'!H25 -> -688430
C98: ='WK4 - PGI summary'!C26 -> Minus: | D98: ='WK4 - PGI summary'!D26 -> Valuation Objections claimed in prior year | H98: ='WK4 - PGI summary'!H26 -> -43121
F101: ='WK4 - PGI summary'!F29 -> Total Adjustments | H101: ='WK4 - PGI summary'!H29 -> -731551 | J101: ='WK4 - PGI summary'!J29 -> 0
D103: ='WK4 - PGI summary'!D31 -> First year Permissible General Income | G103: ='WK4 - PGI summary'!G31 -> $ | H103: ='WK4 - PGI summary'!H31 -> 163250961.5 | J103: ='WK4 - PGI summary'!J31 -> 0
B109: ='WK4 - PGI summary'!B37 -> PERMISSABLE GENERAL INCOME (PGI) OVER PROPOSED SV PERIOD ($ nominal)
B110: ='WK4 - PGI summary'!B38 -> 0
F111: ='WK4 - PGI summary'!F39 -> Year 0 | G111: ='WK4 - PGI summary'!G39 -> Year 1 | H111: ='WK4 - PGI summary'!H39 -> Year 2 | I111: ='WK4 - PGI summary'!I39 -> Year 3 | J111: ='WK4 - PGI summary'!J39 -> Year 4 | K111: ='WK4 - PGI summary'!K39 -> Year 5 | L111: ='WK4 - PGI summary'!L39 -> Year 6 | M111: ='WK4 - PGI summary'!M39 -> Year 7 | N111: ='WK4 - PGI summary'!N39 -> Total | O111: ='WK4 - PGI summary'!O39 -> increase
C112: ='WK4 - PGI summary'!C40 -> Financial year | E112: ='WK4 - PGI summary'!E40 -> units | F112: ='WK4 - PGI summary'!F40 -> 2021-22 | G112: ='WK4 - PGI summary'!G40 -> 2022-23 | H112: ='WK4 - PGI summary'!H40 -> 2023-24 | I112: ='WK4 - PGI summary'!I40 -> 2024-25 | J112: ='WK4 - PGI summary'!J40 -> 2025-26 | K112: ='WK4 - PGI summary'!K40 -> 2026-27 | L112: ='WK4 - PGI summary'!L40 -> 2027-28 | M112: ='WK4 - PGI summary'!M40 -> 2028-29 | N112: ='WK4 - PGI summary'!N40 -> $ nominal | O112: ='WK4 - PGI summary'!O40 -> %
G113: ='WK4 - PGI summary'!G41 -> Proposed SV period | H113: ='WK4 - PGI summary'!H41 -> no SV | I113: ='WK4 - PGI summary'!I41 -> no SV | J113: ='WK4 - PGI summary'!J41 -> no SV | K113: ='WK4 - PGI summary'!K41 -> no SV | L113: ='WK4 - PGI summary'!L41 -> no SV | M113: ='WK4 - PGI summary'!M41 -> no SV
C114: ='WK4 - PGI summary'!C42 -> 0 = beyond temporary SV period | F114: ='WK4 - PGI summary'!F42 -> 1 | G114: ='WK4 - PGI summary'!G42 -> 1 | H114: ='WK4 - PGI summary'!H42 -> 0 | I114: ='WK4 - PGI summary'!I42 -> 0 | J114: ='WK4 - PGI summary'!J42 -> 0 | K114: ='WK4 - PGI summary'!K42 -> 0 | L114: ='WK4 - PGI summary'!L42 -> 0 | M114: ='WK4 - PGI summary'!M42 -> 0
C116: ='WK4 - PGI summary'!C44 -> PGI with proposed SV
C117: ='WK4 - PGI summary'!C45 -> Prior year Notional General Income (NGI) | E117: ='WK4 - PGI summary'!E45 -> $ nominal | F117: ='WK4 - PGI summary'!F45 -> 0 | G117: ='WK4 - PGI summary'!G45 -> 159982939 | H117: ='WK4 - PGI summary'!H45 -> 0 | I117: ='WK4 - PGI summary'!I45 -> 0 | J117: ='WK4 - PGI summary'!J45 -> 0 | K117: ='WK4 - PGI summary'!K45 -> 0 | L117: ='WK4 - PGI summary'!L45 -> 0 | M117: ='WK4 - PGI summary'!M45 -> 0
C118: ='WK4 - PGI summary'!C46 -> less | D118: ='WK4 - PGI summary'!D46 -> expiry of a prior special variation | E118: ='WK4 - PGI summary'!E46 -> $ nominal | F118: ='WK4 - PGI summary'!F46 -> 0 | G118: ='WK4 - PGI summary'!G46 -> 0 | H118: ='WK4 - PGI summary'!H46 -> 0 | I118: ='WK4 - PGI summary'!I46 -> 0 | J118: ='WK4 - PGI summary'!J46 -> 0 | K118: ='WK4 - PGI summary'!K46 -> 0 | L118: ='WK4 - PGI summary'!L46 -> 0 | M118: ='WK4 - PGI summary'!M46 -> 0
C119: ='WK4 - PGI summary'!C47 -> Adjusted Notional General income | E119: ='WK4 - PGI summary'!E47 -> $ nominal | F119: ='WK4 - PGI summary'!F47 -> 0 | G119: ='WK4 - PGI summary'!G47 -> 159982939 | H119: ='WK4 - PGI summary'!H47 -> 0 | I119: ='WK4 - PGI summary'!I47 -> 0 | J119: ='WK4 - PGI summary'!J47 -> 0 | K119: ='WK4 - PGI summary'!K47 -> 0 | L119: ='WK4 - PGI summary'!L47 -> 0 | M119: ='WK4 - PGI summary'!M47 -> 0
F120: ='WK4 - PGI summary'!F48 -> 0 | G120: ='WK4 - PGI summary'!G48 -> 0 | H120: ='WK4 - PGI summary'!H48 -> 0 | I120: ='WK4 - PGI summary'!I48 -> 0 | J120: ='WK4 - PGI summary'!J48 -> 0 | K120: ='WK4 - PGI summary'!K48 -> 0 | L120: ='WK4 - PGI summary'!L48 -> 0 | M120: ='WK4 - PGI summary'!M48 -> 0
C121: ='WK4 - PGI summary'!C49 -> plus | D121: ='WK4 - PGI summary'!D49 -> rate peg increase | E121: ='WK4 - PGI summary'!E49 -> $ nominal | F121: ='WK4 - PGI summary'!F49 -> 0 | G121: ='WK4 - PGI summary'!G49 -> 1119880.573 | H121: ='WK4 - PGI summary'!H49 -> 0 | I121: ='WK4 - PGI summary'!I49 -> 0 | J121: ='WK4 - PGI summary'!J49 -> 0 | K121: ='WK4 - PGI summary'!K49 -> 0 | L121: ='WK4 - PGI summary'!L49 -> 0 | M121: ='WK4 - PGI summary'!M49 -> 0
C122: ='WK4 - PGI summary'!C50 -> plus | D122: ='WK4 - PGI summary'!D50 -> na | E122: ='WK4 - PGI summary'!E50 -> $ nominal | F122: ='WK4 - PGI summary'!F50 -> 0 | G122: ='WK4 - PGI summary'!G50 -> 0 | H122: ='WK4 - PGI summary'!H50 -> 0 | I122: ='WK4 - PGI summary'!I50 -> 0 | J122: ='WK4 - PGI summary'!J50 -> 0 | K122: ='WK4 - PGI summary'!K50 -> 0 | L122: ='WK4 - PGI summary'!L50 -> 0 | M122: ='WK4 - PGI summary'!M50 -> 0
C123: ='WK4 - PGI summary'!C51 -> plus | D123: ='WK4 - PGI summary'!D51 -> additional increase | E123: ='WK4 - PGI summary'!E51 -> $ nominal | F123: ='WK4 - PGI summary'!F51 -> 0 | G123: ='WK4 - PGI summary'!G51 -> 2879692.902 | H123: ='WK4 - PGI summary'!H51 -> 0 | I123: ='WK4 - PGI summary'!I51 -> 0 | J123: ='WK4 - PGI summary'!J51 -> 0 | K123: ='WK4 - PGI summary'!K51 -> 0 | L123: ='WK4 - PGI summary'!L51 -> 0 | M123: ='WK4 - PGI summary'!M51 -> 0
C124: ='WK4 - PGI summary'!C52 -> plus | D124: ='WK4 - PGI summary'!D52 -> na | E124: ='WK4 - PGI summary'!E52 -> $ nominal | F124: ='WK4 - PGI summary'!F52 -> 0 | G124: ='WK4 - PGI summary'!G52 -> 0 | H124: ='WK4 - PGI summary'!H52 -> 0 | I124: ='WK4 - PGI summary'!I52 -> 0 | J124: ='WK4 - PGI summary'!J52 -> 0 | K124: ='WK4 - PGI summary'!K52 -> 0 | L124: ='WK4 - PGI summary'!L52 -> 0 | M124: ='WK4 - PGI summary'!M52 -> 0
C125: ='WK4 - PGI summary'!C53 -> plus | D125: ='WK4 - PGI summary'!D53 -> Crown Land adjustment | E125: ='WK4 - PGI summary'!E53 -> $ nominal | F125: ='WK4 - PGI summary'!F53 -> 0 | G125: ='WK4 - PGI summary'!G53 -> 0 | H125: ='WK4 - PGI summary'!H53 -> 0 | I125: ='WK4 - PGI summary'!I53 -> 0 | J125: ='WK4 - PGI summary'!J53 -> 0 | K125: ='WK4 - PGI summary'!K53 -> 0 | L125: ='WK4 - PGI summary'!L53 -> 0 | M125: ='WK4 - PGI summary'!M53 -> 0
C126: ='WK4 - PGI summary'!C54 -> Total proposed SV | E126: ='WK4 - PGI summary'!E54 -> $ nominal | F126: ='WK4 - PGI summary'!F54 -> 0 | G126: ='WK4 - PGI summary'!G54 -> 3999573.475 | H126: ='WK4 - PGI summary'!H54 -> 0 | I126: ='WK4 - PGI summary'!I54 -> 0 | J126: ='WK4 - PGI summary'!J54 -> 0 | K126: ='WK4 - PGI summary'!K54 -> 0 | L126: ='WK4 - PGI summary'!L54 -> 0 | M126: ='WK4 - PGI summary'!M54 -> 0
C128: ='WK4 - PGI summary'!C56 -> Notional General Income after SV applied | E128: ='WK4 - PGI summary'!E56 -> $ nominal | F128: ='WK4 - PGI summary'!F56 -> 0 | G128: ='WK4 - PGI summary'!G56 -> 163982512.5 | H128: ='WK4 - PGI summary'!H56 -> 0 | I128: ='WK4 - PGI summary'!I56 -> 0 | J128: ='WK4 - PGI summary'!J56 -> 0 | K128: ='WK4 - PGI summary'!K56 -> 0 | L128: ='WK4 - PGI summary'!L56 -> 0 | M128: ='WK4 - PGI summary'!M56 -> 0
C129: ='WK4 - PGI summary'!C57 -> plus | D129: ='WK4 - PGI summary'!D57 -> other 1st-year adjustments | E129: ='WK4 - PGI summary'!E57 -> $ nominal | F129: ='WK4 - PGI summary'!F57 -> 0 | G129: ='WK4 - PGI summary'!G57 -> -731551 | H129: ='WK4 - PGI summary'!H57 -> 0 | I129: ='WK4 - PGI summary'!I57 -> 0 | J129: ='WK4 - PGI summary'!J57 -> 0 | K129: ='WK4 - PGI summary'!K57 -> 0 | L129: ='WK4 - PGI summary'!L57 -> 0 | M129: ='WK4 - PGI summary'!M57 -> 0
C130: ='WK4 - PGI summary'!C58 -> PGI with proposed SV | E130: ='WK4 - PGI summary'!E58 -> $ nominal | F130: ='WK4 - PGI summary'!F58 -> 159982939 | G130: ='WK4 - PGI summary'!G58 -> 163250961.5 | H130: ='WK4 - PGI summary'!H58 -> 0 | I130: ='WK4 - PGI summary'!I58 -> 0 | J130: ='WK4 - PGI summary'!J58 -> 0 | K130: ='WK4 - PGI summary'!K58 -> 0 | L130: ='WK4 - PGI summary'!L58 -> 0 | M130: ='WK4 - PGI summary'!M58 -> 0 | N130: ='WK4 - PGI summary'!N58 -> 3268022.475 | O130: ='WK4 - PGI summary'!O58 -> 0.02042731866
C133: ='WK4 - PGI summary'!C61 -> PGI if only the rate peg applied
C134: ='WK4 - PGI summary'!C62 -> Prior year Notional General Income (NGI) | E134: ='WK4 - PGI summary'!E62 -> $ nominal | F134: ='WK4 - PGI summary'!F62 -> 0 | G134: ='WK4 - PGI summary'!G62 -> 159982939 | H134: ='WK4 - PGI summary'!H62 -> 0 | I134: ='WK4 - PGI summary'!I62 -> 0 | J134: ='WK4 - PGI summary'!J62 -> 0 | K134: ='WK4 - PGI summary'!K62 -> 0 | L134: ='WK4 - PGI summary'!L62 -> 0 | M134: ='WK4 - PGI summary'!M62 -> 0
C135: ='WK4 - PGI summary'!C63 -> less | D135: ='WK4 - PGI summary'!D63 -> expiry of a prior special variation | E135: ='WK4 - PGI summary'!E63 -> $ nominal | F135: ='WK4 - PGI summary'!F63 -> 0 | G135: ='WK4 - PGI summary'!G63 -> 0 | H135: ='WK4 - PGI summary'!H63 -> 0 | I135: ='WK4 - PGI summary'!I63 -> 0 | J135: ='WK4 - PGI summary'!J63 -> 0 | K135: ='WK4 - PGI summary'!K63 -> 0 | L135: ='WK4 - PGI summary'!L63 -> 0 | M135: ='WK4 - PGI summary'!M63 -> 0
C136: ='WK4 - PGI summary'!C64 -> Adjusted Notional General income | E136: ='WK4 - PGI summary'!E64 -> $ nominal | F136: ='WK4 - PGI summary'!F64 -> 0 | G136: ='WK4 - PGI summary'!G64 -> 159982939 | H136: ='WK4 - PGI summary'!H64 -> 0 | I136: ='WK4 - PGI summary'!I64 -> 0 | J136: ='WK4 - PGI summary'!J64 -> 0 | K136: ='WK4 - PGI summary'!K64 -> 0 | L136: ='WK4 - PGI summary'!L64 -> 0 | M136: ='WK4 - PGI summary'!M64 -> 0
C137: ='WK4 - PGI summary'!C65 -> plus | D137: ='WK4 - PGI summary'!D65 -> rate peg increase | E137: ='WK4 - PGI summary'!E65 -> $ nominal | F137: ='WK4 - PGI summary'!F65 -> 0 | G137: ='WK4 - PGI summary'!G65 -> 1119880.573 | H137: ='WK4 - PGI summary'!H65 -> 0 | I137: ='WK4 - PGI summary'!I65 -> 0 | J137: ='WK4 - PGI summary'!J65 -> 0 | K137: ='WK4 - PGI summary'!K65 -> 0 | L137: ='WK4 - PGI summary'!L65 -> 0 | M137: ='WK4 - PGI summary'!M65 -> 0
C138: ='WK4 - PGI summary'!C66 -> plus | D138: ='WK4 - PGI summary'!D66 -> na | E138: ='WK4 - PGI summary'!E66 -> $ nominal | F138: ='WK4 - PGI summary'!F66 -> 0 | G138: ='WK4 - PGI summary'!G66 -> 0 | H138: ='WK4 - PGI summary'!H66 -> 0 | I138: ='WK4 - PGI summary'!I66 -> 0 | J138: ='WK4 - PGI summary'!J66 -> 0 | K138: ='WK4 - PGI summary'!K66 -> 0 | L138: ='WK4 - PGI summary'!L66 -> 0 | M138: ='WK4 - PGI summary'!M66 -> 0
C139: ='WK4 - PGI summary'!C67 -> plus | D139: ='WK4 - PGI summary'!D67 -> other 1st-year adjustments | E139: ='WK4 - PGI summary'!E67 -> $ nominal | F139: ='WK4 - PGI summary'!F67 -> 0 | G139: ='WK4 - PGI summary'!G67 -> -731551 | H139: ='WK4 - PGI summary'!H67 -> 0 | I139: ='WK4 - PGI summary'!I67 -> 0 | J139: ='WK4 - PGI summary'!J67 -> 0 | K139: ='WK4 - PGI summary'!K67 -> 0 | L139: ='WK4 - PGI summary'!L67 -> 0 | M139: ='WK4 - PGI summary'!M67 -> 0
C140: ='WK4 - PGI summary'!C68 -> PGI if only the rate peg applied | E140: ='WK4 - PGI summary'!E68 -> $ nominal | F140: ='WK4 - PGI summary'!F68 -> 159982939 | G140: ='WK4 - PGI summary'!G68 -> 160371268.6 | H140: ='WK4 - PGI summary'!H68 -> 0 | I140: ='WK4 - PGI summary'!I68 -> 0 | J140: ='WK4 - PGI summary'!J68 -> 0 | K140: ='WK4 - PGI summary'!K68 -> 0 | L140: ='WK4 - PGI summary'!L68 -> 0 | M140: ='WK4 - PGI summary'!M68 -> 0 | N140: ='WK4 - PGI summary'!N68 -> 388329.573 | O140: ='WK4 - PGI summary'!O68 -> 0.002427318659
C143: ='WK4 - PGI summary'!C71 -> PGI if expiring SV renewed and only rate peg applied
C144: ='WK4 - PGI summary'!C72 -> Prior year Notional General Income (NGI) | E144: ='WK4 - PGI summary'!E72 -> $ nominal | F144: ='WK4 - PGI summary'!F72 -> 0 | G144: ='WK4 - PGI summary'!G72 -> 159982939 | H144: ='WK4 - PGI summary'!H72 -> 0 | I144: ='WK4 - PGI summary'!I72 -> 0 | J144: ='WK4 - PGI summary'!J72 -> 0 | K144: ='WK4 - PGI summary'!K72 -> 0 | L144: ='WK4 - PGI summary'!L72 -> 0 | M144: ='WK4 - PGI summary'!M72 -> 0
C145: ='WK4 - PGI summary'!C73 -> plus | D145: ='WK4 - PGI summary'!D73 -> rate peg increase | E145: ='WK4 - PGI summary'!E73 -> $ nominal | F145: ='WK4 - PGI summary'!F73 -> 0 | G145: ='WK4 - PGI summary'!G73 -> 1119880.573 | H145: ='WK4 - PGI summary'!H73 -> 0 | I145: ='WK4 - PGI summary'!I73 -> 0 | J145: ='WK4 - PGI summary'!J73 -> 0 | K145: ='WK4 - PGI summary'!K73 -> 0 | L145: ='WK4 - PGI summary'!L73 -> 0 | M145: ='WK4 - PGI summary'!M73 -> 0
C146: ='WK4 - PGI summary'!C74 -> plus | D146: ='WK4 - PGI summary'!D74 -> na | E146: ='WK4 - PGI summary'!E74 -> $ nominal | F146: ='WK4 - PGI summary'!F74 -> 0 | G146: ='WK4 - PGI summary'!G74 -> 0 | H146: ='WK4 - PGI summary'!H74 -> 0 | I146: ='WK4 - PGI summary'!I74 -> 0 | J146: ='WK4 - PGI summary'!J74 -> 0 | K146: ='WK4 - PGI summary'!K74 -> 0 | L146: ='WK4 - PGI summary'!L74 -> 0 | M146: ='WK4 - PGI summary'!M74 -> 0
C147: ='WK4 - PGI summary'!C75 -> plus | D147: ='WK4 - PGI summary'!D75 -> other 1st-year adjustments | E147: ='WK4 - PGI summary'!E75 -> $ nominal | F147: ='WK4 - PGI summary'!F75 -> 0 | G147: ='WK4 - PGI summary'!G75 -> -731551 | H147: ='WK4 - PGI summary'!H75 -> 0 | I147: ='WK4 - PGI summary'!I75 -> 0 | J147: ='WK4 - PGI summary'!J75 -> 0 | K147: ='WK4 - PGI summary'!K75 -> 0 | L147: ='WK4 - PGI summary'!L75 -> 0 | M147: ='WK4 - PGI summary'!M75 -> 0
C148: ='WK4 - PGI summary'!C76 -> PGI if expiring SV renewed and only rate peg applied | E148: ='WK4 - PGI summary'!E76 -> $ nominal | F148: ='WK4 - PGI summary'!F76 -> 159982939 | G148: ='WK4 - PGI summary'!G76 -> 160371268.6 | H148: ='WK4 - PGI summary'!H76 -> 0 | I148: ='WK4 - PGI summary'!I76 -> 0 | J148: ='WK4 - PGI summary'!J76 -> 0 | K148: ='WK4 - PGI summary'!K76 -> 0 | L148: ='WK4 - PGI summary'!L76 -> 0 | M148: ='WK4 - PGI summary'!M76 -> 0 | N148: ='WK4 - PGI summary'!N76 -> 388329.573 | O148: ='WK4 - PGI summary'!O76 -> 0.002427318659
B153: ='WK4 - PGI summary'!B81 -> INCREASES IN PERMISSABLE GENERAL INCOME (PGI) OVER PROPOSED SV PERIOD (nominal)
B154: ='WK4 - PGI summary'!B82 -> 0
F155: ='WK4 - PGI summary'!F83 -> Year 0 | G155: ='WK4 - PGI summary'!G83 -> Year 1 | H155: ='WK4 - PGI summary'!H83 -> Year 2 | I155: ='WK4 - PGI summary'!I83 -> Year 3 | J155: ='WK4 - PGI summary'!J83 -> Year 4 | K155: ='WK4 - PGI summary'!K83 -> Year 5 | L155: ='WK4 - PGI summary'!L83 -> Year 6 | M155: ='WK4 - PGI summary'!M83 -> Year 7 | N155: ='WK4 - PGI summary'!N83 -> Total | O155: ='WK4 - PGI summary'!O83 -> increase
C156: ='WK4 - PGI summary'!C84 -> Financial year | F156: ='WK4 - PGI summary'!F84 -> 2021-22 | G156: ='WK4 - PGI summary'!G84 -> 2022-23 | H156: ='WK4 - PGI summary'!H84 -> 2023-24 | I156: ='WK4 - PGI summary'!I84 -> 2024-25 | J156: ='WK4 - PGI summary'!J84 -> 2025-26 | K156: ='WK4 - PGI summary'!K84 -> 2026-27 | L156: ='WK4 - PGI summary'!L84 -> 2027-28 | M156: ='WK4 - PGI summary'!M84 -> 2028-29 | N156: ='WK4 - PGI summary'!N84 -> $ nominal | O156: ='WK4 - PGI summary'!O84 -> %
C158: ='WK4 - PGI summary'!C86 -> Annual % increase in PGI
C159: ='WK4 - PGI summary'!C87 -> PGI with proposed SV | E159: ='WK4 - PGI summary'!E87 -> % | F159: ='WK4 - PGI summary'!F87 -> 0 | G159: ='WK4 - PGI summary'!G87 -> 0.02042731866 | H159: ='WK4 - PGI summary'!H87 -> 0 | I159: ='WK4 - PGI summary'!I87 -> 0 | J159: ='WK4 - PGI summary'!J87 -> 0 | K159: ='WK4 - PGI summary'!K87 -> 0 | L159: ='WK4 - PGI summary'!L87 -> 0 | M159: ='WK4 - PGI summary'!M87 -> 0 | O159: ='WK4 - PGI summary'!O87 -> 0.02042731866
C160: ='WK4 - PGI summary'!C88 -> PGI if only the rate peg applied | E160: ='WK4 - PGI summary'!E88 -> % | F160: ='WK4 - PGI summary'!F88 -> 0 | G160: ='WK4 - PGI summary'!G88 -> 0.002427318659 | H160: ='WK4 - PGI summary'!H88 -> 0 | I160: ='WK4 - PGI summary'!I88 -> 0 | J160: ='WK4 - PGI summary'!J88 -> 0 | K160: ='WK4 - PGI summary'!K88 -> 0 | L160: ='WK4 - PGI summary'!L88 -> 0 | M160: ='WK4 - PGI summary'!M88 -> 0 | O160: ='WK4 - PGI summary'!O88 -> 0.002427318659
C161: ='WK4 - PGI summary'!C89 -> PGI if expiring SV renewed and only rate peg applied | E161: ='WK4 - PGI summary'!E89 -> % | F161: ='WK4 - PGI summary'!F89 -> 0 | G161: ='WK4 - PGI summary'!G89 -> 0.002427318659 | H161: ='WK4 - PGI summary'!H89 -> 0 | I161: ='WK4 - PGI summary'!I89 -> 0 | J161: ='WK4 - PGI summary'!J89 -> 0 | K161: ='WK4 - PGI summary'!K89 -> 0 | L161: ='WK4 - PGI summary'!L89 -> 0 | M161: ='WK4 - PGI summary'!M89 -> 0 | O161: ='WK4 - PGI summary'!O89 -> 0.002427318659
C163: ='WK4 - PGI summary'!C91 -> Annual $ increase in PGI
C164: ='WK4 - PGI summary'!C92 -> PGI with proposed SV | E164: ='WK4 - PGI summary'!E92 -> $ nominal | F164: ='WK4 - PGI summary'!F92 -> 0 | G164: ='WK4 - PGI summary'!G92 -> 3268022.475 | H164: ='WK4 - PGI summary'!H92 -> 0 | I164: ='WK4 - PGI summary'!I92 -> 0 | J164: ='WK4 - PGI summary'!J92 -> 0 | K164: ='WK4 - PGI summary'!K92 -> 0 | L164: ='WK4 - PGI summary'!L92 -> 0 | M164: ='WK4 - PGI summary'!M92 -> 0 | N164: ='WK4 - PGI summary'!N92 -> 3268022.475 | O164: ='WK4 - PGI summary'!O92 -> 0.02042731866
C165: ='WK4 - PGI summary'!C93 -> PGI if only the rate peg applied | E165: ='WK4 - PGI summary'!E93 -> $ nominal | F165: ='WK4 - PGI summary'!F93 -> 0 | G165: ='WK4 - PGI summary'!G93 -> 388329.573 | H165: ='WK4 - PGI summary'!H93 -> 0 | I165: ='WK4 - PGI summary'!I93 -> 0 | J165: ='WK4 - PGI summary'!J93 -> 0 | K165: ='WK4 - PGI summary'!K93 -> 0 | L165: ='WK4 - PGI summary'!L93 -> 0 | M165: ='WK4 - PGI summary'!M93 -> 0 | N165: ='WK4 - PGI summary'!N93 -> 388329.573 | O165: ='WK4 - PGI summary'!O93 -> 0.002427318659
C166: ='WK4 - PGI summary'!C94 -> PGI if expiring SV renewed and only rate peg applied | E166: ='WK4 - PGI summary'!E94 -> $ nominal | F166: ='WK4 - PGI summary'!F94 -> 0 | G166: ='WK4 - PGI summary'!G94 -> 388329.573 | H166: ='WK4 - PGI summary'!H94 -> 0 | I166: ='WK4 - PGI summary'!I94 -> 0 | J166: ='WK4 - PGI summary'!J94 -> 0 | K166: ='WK4 - PGI summary'!K94 -> 0 | L166: ='WK4 - PGI summary'!L94 -> 0 | M166: ='WK4 - PGI summary'!M94 -> 0 | N166: ='WK4 - PGI summary'!N94 -> 388329.573 | O166: ='WK4 - PGI summary'!O94 -> 0.002427318659
C168: ='WK4 - PGI summary'!C96 -> Annual $ increase in PGI with proposed SV more than:
C169: ='WK4 - PGI summary'!C97 -> PGI if only the rate peg applied | E169: ='WK4 - PGI summary'!E97 -> $ nominal | F169: ='WK4 - PGI summary'!F97 -> 0 | G169: ='WK4 - PGI summary'!G97 -> 2879692.902 | H169: ='WK4 - PGI summary'!H97 -> 0 | I169: ='WK4 - PGI summary'!I97 -> 0 | J169: ='WK4 - PGI summary'!J97 -> 0 | K169: ='WK4 - PGI summary'!K97 -> 0 | L169: ='WK4 - PGI summary'!L97 -> 0 | M169: ='WK4 - PGI summary'!M97 -> 0 | N169: ='WK4 - PGI summary'!N97 -> 2879692.902 | O169: ='WK4 - PGI summary'!O97 -> 0.018
C170: ='WK4 - PGI summary'!C98 -> PGI if expiring SV renewed and only rate peg applied | E170: ='WK4 - PGI summary'!E98 -> $ nominal | F170: ='WK4 - PGI summary'!F98 -> 0 | G170: ='WK4 - PGI summary'!G98 -> 2879692.902 | H170: ='WK4 - PGI summary'!H98 -> 0 | I170: ='WK4 - PGI summary'!I98 -> 0 | J170: ='WK4 - PGI summary'!J98 -> 0 | K170: ='WK4 - PGI summary'!K98 -> 0 | L170: ='WK4 - PGI summary'!L98 -> 0 | M170: ='WK4 - PGI summary'!M98 -> 0 | N170: ='WK4 - PGI summary'!N98 -> 2879692.902 | O170: ='WK4 - PGI summary'!O98 -> 0.018
C172: ='WK4 - PGI summary'!C100 -> Cumulative PGI
C173: ='WK4 - PGI summary'!C101 -> PGI with proposed SV | E173: ='WK4 - PGI summary'!E101 -> $ nominal | F173: ='WK4 - PGI summary'!F101 -> 0 | G173: ='WK4 - PGI summary'!G101 -> 163250961.5 | H173: ='WK4 - PGI summary'!H101 -> 0 | I173: ='WK4 - PGI summary'!I101 -> 0 | J173: ='WK4 - PGI summary'!J101 -> 0 | K173: ='WK4 - PGI summary'!K101 -> 0 | L173: ='WK4 - PGI summary'!L101 -> 0 | M173: ='WK4 - PGI summary'!M101 -> 0 | N173: ='WK4 - PGI summary'!N101 -> 163250961.5
C174: ='WK4 - PGI summary'!C102 -> PGI if only the rate peg applied | E174: ='WK4 - PGI summary'!E102 -> $ nominal | F174: ='WK4 - PGI summary'!F102 -> 0 | G174: ='WK4 - PGI summary'!G102 -> 160371268.6 | H174: ='WK4 - PGI summary'!H102 -> 0 | I174: ='WK4 - PGI summary'!I102 -> 0 | J174: ='WK4 - PGI summary'!J102 -> 0 | K174: ='WK4 - PGI summary'!K102 -> 0 | L174: ='WK4 - PGI summary'!L102 -> 0 | M174: ='WK4 - PGI summary'!M102 -> 0 | N174: ='WK4 - PGI summary'!N102 -> 160371268.6
C175: ='WK4 - PGI summary'!C103 -> PGI if expiring SV renewed and only rate peg applied | E175: ='WK4 - PGI summary'!E103 -> $ nominal | F175: ='WK4 - PGI summary'!F103 -> 0 | G175: ='WK4 - PGI summary'!G103 -> 160371268.6 | H175: ='WK4 - PGI summary'!H103 -> 0 | I175: ='WK4 - PGI summary'!I103 -> 0 | J175: ='WK4 - PGI summary'!J103 -> 0 | K175: ='WK4 - PGI summary'!K103 -> 0 | L175: ='WK4 - PGI summary'!L103 -> 0 | M175: ='WK4 - PGI summary'!M103 -> 0 | N175: ='WK4 - PGI summary'!N103 -> 160371268.6
C177: ='WK4 - PGI summary'!C105 -> Increase in cumulative PGI with proposed SV that exceeds the increase in the PGI under
C178: ='WK4 - PGI summary'!C106 -> PGI if only the rate peg applied | E178: ='WK4 - PGI summary'!E106 -> $ nominal | F178: ='WK4 - PGI summary'!F106 -> 0 | G178: ='WK4 - PGI summary'!G106 -> 2879692.902 | H178: ='WK4 - PGI summary'!H106 -> 0 | I178: ='WK4 - PGI summary'!I106 -> 0 | J178: ='WK4 - PGI summary'!J106 -> 0 | K178: ='WK4 - PGI summary'!K106 -> 0 | L178: ='WK4 - PGI summary'!L106 -> 0 | M178: ='WK4 - PGI summary'!M106 -> 0 | N178: ='WK4 - PGI summary'!N106 -> 2879692.902 | O178: ='WK4 - PGI summary'!O106 -> 0.01795641406
C179: ='WK4 - PGI summary'!C107 -> PGI if expiring SV renewed and only rate peg applied | E179: ='WK4 - PGI summary'!E107 -> $ nominal | F179: ='WK4 - PGI summary'!F107 -> 0 | G179: ='WK4 - PGI summary'!G107 -> 2879692.902 | H179: ='WK4 - PGI summary'!H107 -> 0 | I179: ='WK4 - PGI summary'!I107 -> 0 | J179: ='WK4 - PGI summary'!J107 -> 0 | K179: ='WK4 - PGI summary'!K107 -> 0 | L179: ='WK4 - PGI summary'!L107 -> 0 | M179: ='WK4 - PGI summary'!M107 -> 0 | N179: ='WK4 - PGI summary'!N107 -> 2879692.902 | O179: ='WK4 - PGI summary'!O107 -> 0.01795641406
A182: WK8
C183: ='WK8 - LTFP'!C16 -> LTFP Extract - General Fund only (un-adjusted)
F184: ='WK8 - LTFP'!F17 -> Year 0 | G184: ='WK8 - LTFP'!G17 -> Year 1 | H184: ='WK8 - LTFP'!H17 -> Year 2 | I184: ='WK8 - LTFP'!I17 -> Year 3 | J184: ='WK8 - LTFP'!J17 -> Year 4 | K184: ='WK8 - LTFP'!K17 -> Year 5 | L184: ='WK8 - LTFP'!L17 -> Sum of 5 years | N184: ='WK8 - LTFP'!N17 -> Change over 5 years
F185: ='WK8 - LTFP'!F18 -> 2021-22 | G185: ='WK8 - LTFP'!G18 -> 2022-23 | H185: ='WK8 - LTFP'!H18 -> 2023-24 | I185: ='WK8 - LTFP'!I18 -> 2024-25 | J185: ='WK8 - LTFP'!J18 -> 2025-26 | K185: ='WK8 - LTFP'!K18 -> 2026-27 | N185: ='WK8 - LTFP'!N18 -> $ | O185: ='WK8 - LTFP'!O18 -> %
C186: ='WK8 - LTFP'!C19 -> Income from continuing operations | F186: ='WK8 - LTFP'!F19 -> $ nominal per year
C187: ='WK8 - LTFP'!C20 -> Revenue: | F187: ='WK8 - LTFP'!F20 -> 0 | G187: ='WK8 - LTFP'!G20 -> 0 | H187: ='WK8 - LTFP'!H20 -> 0 | I187: ='WK8 - LTFP'!I20 -> 0 | J187: ='WK8 - LTFP'!J20 -> 0 | K187: ='WK8 - LTFP'!K20 -> 0 | L187: ='WK8 - LTFP'!L20 -> 0 | N187: ='WK8 - LTFP'!N20 -> 0 | O187: ='WK8 - LTFP'!O20 -> 0
C188: ='WK8 - LTFP'!C21 -> Rates & Annual Charges | F188: ='WK8 - LTFP'!F21 -> 202190000 | G188: ='WK8 - LTFP'!G21 -> 210355000 | H188: ='WK8 - LTFP'!H21 -> 218803000 | I188: ='WK8 - LTFP'!I21 -> 227544000 | J188: ='WK8 - LTFP'!J21 -> 236585000 | K188: ='WK8 - LTFP'!K21 -> 245938000 | L188: ='WK8 - LTFP'!L21 -> 1139225000 | N188: ='WK8 - LTFP'!N21 -> 43748000 | O188: ='WK8 - LTFP'!O21 -> 0.2163707404
C189: ='WK8 - LTFP'!C22 -> User Charges & Fees | F189: ='WK8 - LTFP'!F22 -> 41728000 | G189: ='WK8 - LTFP'!G22 -> 42771000 | H189: ='WK8 - LTFP'!H22 -> 43840000 | I189: ='WK8 - LTFP'!I22 -> 44936000 | J189: ='WK8 - LTFP'!J22 -> 46060000 | K189: ='WK8 - LTFP'!K22 -> 47211000 | L189: ='WK8 - LTFP'!L22 -> 224818000 | N189: ='WK8 - LTFP'!N22 -> 5483000 | O189: ='WK8 - LTFP'!O22 -> 0.1313985813
C190: ='WK8 - LTFP'!C23 -> Interest & Investment Revenue | F190: ='WK8 - LTFP'!F23 -> 9201000 | G190: ='WK8 - LTFP'!G23 -> 9345000 | H190: ='WK8 - LTFP'!H23 -> 10044000 | I190: ='WK8 - LTFP'!I23 -> 10873000 | J190: ='WK8 - LTFP'!J23 -> 11805000 | K190: ='WK8 - LTFP'!K23 -> 12845000 | L190: ='WK8 - LTFP'!L23 -> 54912000 | N190: ='WK8 - LTFP'!N23 -> 3644000 | O190: ='WK8 - LTFP'!O23 -> 0.3960439083
C191: ='WK8 - LTFP'!C24 -> Other Revenues | F191: ='WK8 - LTFP'!F24 -> 19680000 | G191: ='WK8 - LTFP'!G24 -> 20172000 | H191: ='WK8 - LTFP'!H24 -> 20676000 | I191: ='WK8 - LTFP'!I24 -> 21193000 | J191: ='WK8 - LTFP'!J24 -> 21723000 | K191: ='WK8 - LTFP'!K24 -> 22266000 | L191: ='WK8 - LTFP'!L24 -> 106030000 | N191: ='WK8 - LTFP'!N24 -> 2586000 | O191: ='WK8 - LTFP'!O24 -> 0.131402439
C192: ='WK8 - LTFP'!C25 -> Grants & Contributions Op Purposes | F192: ='WK8 - LTFP'!F25 -> 18083000 | G192: ='WK8 - LTFP'!G25 -> 18535000 | H192: ='WK8 - LTFP'!H25 -> 18999000 | I192: ='WK8 - LTFP'!I25 -> 19473000 | J192: ='WK8 - LTFP'!J25 -> 19960000 | K192: ='WK8 - LTFP'!K25 -> 20459000 | L192: ='WK8 - LTFP'!L25 -> 97426000 | N192: ='WK8 - LTFP'!N25 -> 2376000 | O192: ='WK8 - LTFP'!O25 -> 0.1313941271
C193: ='WK8 - LTFP'!C26 -> Grants & Contributions Capital Purposes | F193: ='WK8 - LTFP'!F26 -> 54962000 | G193: ='WK8 - LTFP'!G26 -> 56336000 | H193: ='WK8 - LTFP'!H26 -> 57744000 | I193: ='WK8 - LTFP'!I26 -> 59188000 | J193: ='WK8 - LTFP'!J26 -> 60668000 | K193: ='WK8 - LTFP'!K26 -> 62184000 | L193: ='WK8 - LTFP'!L26 -> 296120000 | N193: ='WK8 - LTFP'!N26 -> 7222000 | O193: ='WK8 - LTFP'!O26 -> 0.1313998763
C194: ='WK8 - LTFP'!C27 -> <include additional items here> | F194: ='WK8 - LTFP'!F27 -> 0 | G194: ='WK8 - LTFP'!G27 -> 0 | H194: ='WK8 - LTFP'!H27 -> 0 | I194: ='WK8 - LTFP'!I27 -> 0 | J194: ='WK8 - LTFP'!J27 -> 0 | K194: ='WK8 - LTFP'!K27 -> 0 | L194: ='WK8 - LTFP'!L27 -> 0 | N194: ='WK8 - LTFP'!N27 -> 0 | O194: ='WK8 - LTFP'!O27 -> 0
C195: ='WK8 - LTFP'!C28 -> Other Income (items excluded from ratio analysis) | F195: ='WK8 - LTFP'!F28 -> 0 | G195: ='WK8 - LTFP'!G28 -> 0 | H195: ='WK8 - LTFP'!H28 -> 0 | I195: ='WK8 - LTFP'!I28 -> 0 | J195: ='WK8 - LTFP'!J28 -> 0 | K195: ='WK8 - LTFP'!K28 -> 0 | L195: ='WK8 - LTFP'!L28 -> 0 | N195: ='WK8 - LTFP'!N28 -> 0 | O195: ='WK8 - LTFP'!O28 -> 0
C196: ='WK8 - LTFP'!C29 -> Net share of profit on joint ventures | F196: ='WK8 - LTFP'!F29 -> 800000 | G196: ='WK8 - LTFP'!G29 -> 800000 | H196: ='WK8 - LTFP'!H29 -> 800000 | I196: ='WK8 - LTFP'!I29 -> 800000 | J196: ='WK8 - LTFP'!J29 -> 800000 | K196: ='WK8 - LTFP'!K29 -> 800000 | L196: ='WK8 - LTFP'!L29 -> 4000000 | N196: ='WK8 - LTFP'!N29 -> 0 | O196: ='WK8 - LTFP'!O29 -> 0
C197: ='WK8 - LTFP'!C30 -> Fair value gains | F197: ='WK8 - LTFP'!F30 -> 0 | G197: ='WK8 - LTFP'!G30 -> 0 | H197: ='WK8 - LTFP'!H30 -> 0 | I197: ='WK8 - LTFP'!I30 -> 0 | J197: ='WK8 - LTFP'!J30 -> 0 | K197: ='WK8 - LTFP'!K30 -> 0 | L197: ='WK8 - LTFP'!L30 -> 0 | N197: ='WK8 - LTFP'!N30 -> 0 | O197: ='WK8 - LTFP'!O30 -> 0
C198: ='WK8 - LTFP'!C31 -> Net gains from disposal of assets | F198: ='WK8 - LTFP'!F31 -> 0 | G198: ='WK8 - LTFP'!G31 -> 0 | H198: ='WK8 - LTFP'!H31 -> 0 | I198: ='WK8 - LTFP'!I31 -> 0 | J198: ='WK8 - LTFP'!J31 -> 0 | K198: ='WK8 - LTFP'!K31 -> 0 | L198: ='WK8 - LTFP'!L31 -> 0 | N198: ='WK8 - LTFP'!N31 -> 0 | O198: ='WK8 - LTFP'!O31 -> 0
C200: ='WK8 - LTFP'!C33 -> Total Income Continuing Operations | F200: ='WK8 - LTFP'!F33 -> 346644000 | G200: ='WK8 - LTFP'!G33 -> 358314000 | H200: ='WK8 - LTFP'!H33 -> 370906000 | I200: ='WK8 - LTFP'!I33 -> 384007000 | J200: ='WK8 - LTFP'!J33 -> 397601000 | K200: ='WK8 - LTFP'!K33 -> 411703000 | L200: ='WK8 - LTFP'!L33 -> 1922531000 | N200: ='WK8 - LTFP'!N33 -> 65059000 | O200: ='WK8 - LTFP'!O33 -> 0.1876824639
C202: ='WK8 - LTFP'!C35 -> Income excluding capital grants and contributions | F202: ='WK8 - LTFP'!F35 -> 291682000 | G202: ='WK8 - LTFP'!G35 -> 301978000 | H202: ='WK8 - LTFP'!H35 -> 313162000 | I202: ='WK8 - LTFP'!I35 -> 324819000 | J202: ='WK8 - LTFP'!J35 -> 336933000 | K202: ='WK8 - LTFP'!K35 -> 349519000 | L202: ='WK8 - LTFP'!L35 -> 1626411000 | N202: ='WK8 - LTFP'!N35 -> 57837000 | O202: ='WK8 - LTFP'!O35 -> 0.1982878614
C204: ='WK8 - LTFP'!C37 -> Income excluding capital grants and contributions, net gains from asset disposals, profit on joint ventures and fair value gains | F204: ='WK8 - LTFP'!F37 -> 290882000 | G204: ='WK8 - LTFP'!G37 -> 301178000 | H204: ='WK8 - LTFP'!H37 -> 312362000 | I204: ='WK8 - LTFP'!I37 -> 324019000 | J204: ='WK8 - LTFP'!J37 -> 336133000 | K204: ='WK8 - LTFP'!K37 -> 348719000 | L204: ='WK8 - LTFP'!L37 -> 1622411000 | N204: ='WK8 - LTFP'!N37 -> 57837000 | O204: ='WK8 - LTFP'!O37 -> 0.1988332038
C206: ='WK8 - LTFP'!C39 -> Expenses from continuing operations | F206: ='WK8 - LTFP'!F39 -> $ nominal per year
C208: ='WK8 - LTFP'!C41 -> Employee Benefits & On-costs | F208: ='WK8 - LTFP'!F41 -> 127951000 | G208: ='WK8 - LTFP'!G41 -> 132429000 | H208: ='WK8 - LTFP'!H41 -> 137064000 | I208: ='WK8 - LTFP'!I41 -> 141862000 | J208: ='WK8 - LTFP'!J41 -> 146827000 | K208: ='WK8 - LTFP'!K41 -> 151231000 | L208: ='WK8 - LTFP'!L41 -> 709413000 | N208: ='WK8 - LTFP'!N41 -> 23280000 | O208: ='WK8 - LTFP'!O41 -> 0.1819446507
C209: ='WK8 - LTFP'!C42 -> Borrowing Costs (i.e. interest costs) | F209: ='WK8 - LTFP'!F42 -> 886000 | G209: ='WK8 - LTFP'!G42 -> 463000 | H209: ='WK8 - LTFP'!H42 -> 98000 | I209: ='WK8 - LTFP'!I42 -> 24000 | J209: ='WK8 - LTFP'!J42 -> 0 | K209: ='WK8 - LTFP'!K42 -> 0 | L209: ='WK8 - LTFP'!L42 -> 585000 | N209: ='WK8 - LTFP'!N42 -> -886000 | O209: ='WK8 - LTFP'!O42 -> -1
C210: ='WK8 - LTFP'!C43 -> Materials & Contracts | F210: ='WK8 - LTFP'!F43 -> 58780000 | G210: ='WK8 - LTFP'!G43 -> 60250000 | H210: ='WK8 - LTFP'!H43 -> 61756000 | I210: ='WK8 - LTFP'!I43 -> 63300000 | J210: ='WK8 - LTFP'!J43 -> 64882000 | K210: ='WK8 - LTFP'!K43 -> 66504000 | L210: ='WK8 - LTFP'!L43 -> 316692000 | N210: ='WK8 - LTFP'!N43 -> 7724000 | O210: ='WK8 - LTFP'!O43 -> 0.1314052399
C211: ='WK8 - LTFP'!C44 -> Depreciation & Amortisation | F211: ='WK8 - LTFP'!F44 -> 47700000 | G211: ='WK8 - LTFP'!G44 -> 47945000 | H211: ='WK8 - LTFP'!H44 -> 49858000 | I211: ='WK8 - LTFP'!I44 -> 51788000 | J211: ='WK8 - LTFP'!J44 -> 53735000 | K211: ='WK8 - LTFP'!K44 -> 55700000 | L211: ='WK8 - LTFP'!L44 -> 259026000 | N211: ='WK8 - LTFP'!N44 -> 8000000 | O211: ='WK8 - LTFP'!O44 -> 0.1677148847
C212: ='WK8 - LTFP'!C45 -> Other Expenses | F212: ='WK8 - LTFP'!F45 -> 50649000 | G212: ='WK8 - LTFP'!G45 -> 51915000 | H212: ='WK8 - LTFP'!H45 -> 53213000 | I212: ='WK8 - LTFP'!I45 -> 55894000 | J212: ='WK8 - LTFP'!J45 -> 55941000 | K212: ='WK8 - LTFP'!K45 -> 57339000 | L212: ='WK8 - LTFP'!L45 -> 274302000 | N212: ='WK8 - LTFP'!N45 -> 6690000 | O212: ='WK8 - LTFP'!O45 -> 0.1320855298
C213: ='WK8 - LTFP'!C46 -> <include additional items here> | F213: ='WK8 - LTFP'!F46 -> 0 | G213: ='WK8 - LTFP'!G46 -> 0 | H213: ='WK8 - LTFP'!H46 -> 0 | I213: ='WK8 - LTFP'!I46 -> 0 | J213: ='WK8 - LTFP'!J46 -> 0 | K213: ='WK8 - LTFP'!K46 -> 0 | L213: ='WK8 - LTFP'!L46 -> 0 | N213: ='WK8 - LTFP'!N46 -> 0 | O213: ='WK8 - LTFP'!O46 -> 0
C214: ='WK8 - LTFP'!C47 -> Other Expenses (items excluded from ratio analysis) | F214: ='WK8 - LTFP'!F47 -> 0 | G214: ='WK8 - LTFP'!G47 -> 0 | H214: ='WK8 - LTFP'!H47 -> 0 | I214: ='WK8 - LTFP'!I47 -> 0 | J214: ='WK8 - LTFP'!J47 -> 0 | K214: ='WK8 - LTFP'!K47 -> 0 | L214: ='WK8 - LTFP'!L47 -> 0 | N214: ='WK8 - LTFP'!N47 -> 0 | O214: ='WK8 - LTFP'!O47 -> 0
C215: ='WK8 - LTFP'!C48 -> Net loss on joint ventures | F215: ='WK8 - LTFP'!F48 -> 0 | G215: ='WK8 - LTFP'!G48 -> 0 | H215: ='WK8 - LTFP'!H48 -> 0 | I215: ='WK8 - LTFP'!I48 -> 0 | J215: ='WK8 - LTFP'!J48 -> 0 | K215: ='WK8 - LTFP'!K48 -> 0 | L215: ='WK8 - LTFP'!L48 -> 0 | N215: ='WK8 - LTFP'!N48 -> 0 | O215: ='WK8 - LTFP'!O48 -> 0
C216: ='WK8 - LTFP'!C49 -> Fair value losses | F216: ='WK8 - LTFP'!F49 -> 0 | G216: ='WK8 - LTFP'!G49 -> 0 | H216: ='WK8 - LTFP'!H49 -> 0 | I216: ='WK8 - LTFP'!I49 -> 0 | J216: ='WK8 - LTFP'!J49 -> 0 | K216: ='WK8 - LTFP'!K49 -> 0 | L216: ='WK8 - LTFP'!L49 -> 0 | N216: ='WK8 - LTFP'!N49 -> 0 | O216: ='WK8 - LTFP'!O49 -> 0
C217: ='WK8 - LTFP'!C50 -> Net loss from disposal of assets | F217: ='WK8 - LTFP'!F50 -> 2500000 | G217: ='WK8 - LTFP'!G50 -> 2500000 | H217: ='WK8 - LTFP'!H50 -> 2500000 | I217: ='WK8 - LTFP'!I50 -> 2500000 | J217: ='WK8 - LTFP'!J50 -> 2500000 | K217: ='WK8 - LTFP'!K50 -> 2500000 | L217: ='WK8 - LTFP'!L50 -> 12500000 | N217: ='WK8 - LTFP'!N50 -> 0 | O217: ='WK8 - LTFP'!O50 -> 0
C219: ='WK8 - LTFP'!C52 -> Total expenses continuing operations | F219: ='WK8 - LTFP'!F52 -> 288466000 | G219: ='WK8 - LTFP'!G52 -> 295502000 | H219: ='WK8 - LTFP'!H52 -> 304489000 | I219: ='WK8 - LTFP'!I52 -> 315368000 | J219: ='WK8 - LTFP'!J52 -> 323885000 | K219: ='WK8 - LTFP'!K52 -> 333274000 | L219: ='WK8 - LTFP'!L52 -> 1572518000 | N219: ='WK8 - LTFP'!N52 -> 44808000 | O219: ='WK8 - LTFP'!O52 -> 0.1553319975
C221: ='WK8 - LTFP'!C54 -> Total expenses continuing operations excluding net loss from asset disposals, joint ventures and fair value losses | F221: ='WK8 - LTFP'!F54 -> 285966000 | G221: ='WK8 - LTFP'!G54 -> 293002000 | H221: ='WK8 - LTFP'!H54 -> 301989000 | I221: ='WK8 - LTFP'!I54 -> 312868000 | J221: ='WK8 - LTFP'!J54 -> 321385000 | K221: ='WK8 - LTFP'!K54 -> 330774000 | L221: ='WK8 - LTFP'!L54 -> 1560018000 | N221: ='WK8 - LTFP'!N54 -> 44808000 | O221: ='WK8 - LTFP'!O54 -> 0.1566899561
C223: ='WK8 - LTFP'!C56 -> Operating results | F223: ='WK8 - LTFP'!F56 -> $ nominal per year
C225: ='WK8 - LTFP'!C58 -> Operating result from continuing operations | F225: ='WK8 - LTFP'!F58 -> 58178000 | G225: ='WK8 - LTFP'!G58 -> 62812000 | H225: ='WK8 - LTFP'!H58 -> 66417000 | I225: ='WK8 - LTFP'!I58 -> 68639000 | J225: ='WK8 - LTFP'!J58 -> 73716000 | K225: ='WK8 - LTFP'!K58 -> 78429000 | L225: ='WK8 - LTFP'!L58 -> 350013000 | N225: ='WK8 - LTFP'!N58 -> 20251000 | O225: ='WK8 - LTFP'!O58 -> 0.3480869057
C226: ='WK8 - LTFP'!C59 -> Net operating result before capital grants & contributions | F226: ='WK8 - LTFP'!F59 -> 3216000 | G226: ='WK8 - LTFP'!G59 -> 6476000 | H226: ='WK8 - LTFP'!H59 -> 8673000 | I226: ='WK8 - LTFP'!I59 -> 9451000 | J226: ='WK8 - LTFP'!J59 -> 13048000 | K226: ='WK8 - LTFP'!K59 -> 16245000 | L226: ='WK8 - LTFP'!L59 -> 53893000 | N226: ='WK8 - LTFP'!N59 -> 13029000 | O226: ='WK8 - LTFP'!O59 -> 4.05130597
C227: ='WK8 - LTFP'!C60 -> Net operating result before capital grants & contributions, gains/losses on asset disposals, gains/losses on joint ventures and fair value adjustments | F227: ='WK8 - LTFP'!F60 -> 4916000 | G227: ='WK8 - LTFP'!G60 -> 8176000 | H227: ='WK8 - LTFP'!H60 -> 10373000 | I227: ='WK8 - LTFP'!I60 -> 11151000 | J227: ='WK8 - LTFP'!J60 -> 14748000 | K227: ='WK8 - LTFP'!K60 -> 17945000 | L227: ='WK8 - LTFP'!L60 -> 62393000 | N227: ='WK8 - LTFP'!N60 -> 13029000 | O227: ='WK8 - LTFP'!O60 -> 2.650325468
C228: ='WK8 - LTFP'!C61 -> Operating performance ratio | F228: ='WK8 - LTFP'!F61 -> 0.01690032384 | G228: ='WK8 - LTFP'!G61 -> 0.02714673715 | H228: ='WK8 - LTFP'!H61 -> 0.03320826477 | I228: ='WK8 - LTFP'!I61 -> 0.03441464852 | J228: ='WK8 - LTFP'!J61 -> 0.04387548976 | K228: ='WK8 - LTFP'!K61 -> 0.05145977133 | L228: ='WK8 - LTFP'!L61 -> 0 | N228: ='WK8 - LTFP'!N61 -> 0 | O228: ='WK8 - LTFP'!O61 -> 0
C230: ='WK8 - LTFP'!C63 -> Increase in rates and annual charges | F230: ='WK8 - LTFP'!F63 -> 0 | G230: ='WK8 - LTFP'!G63 -> 0 | H230: ='WK8 - LTFP'!H63 -> 0 | I230: ='WK8 - LTFP'!I63 -> 0 | J230: ='WK8 - LTFP'!J63 -> 0 | K230: ='WK8 - LTFP'!K63 -> 0 | L230: ='WK8 - LTFP'!L63 -> 0 | N230: ='WK8 - LTFP'!N63 -> 0 | O230: ='WK8 - LTFP'!O63 -> 0
C232: ='WK8 - LTFP'!C65 -> $ Increase in rates and annual charges | F232: ='WK8 - LTFP'!F65 -> 0 | G232: ='WK8 - LTFP'!G65 -> 8165000 | H232: ='WK8 - LTFP'!H65 -> 8448000 | I232: ='WK8 - LTFP'!I65 -> 8741000 | J232: ='WK8 - LTFP'!J65 -> 9041000 | K232: ='WK8 - LTFP'!K65 -> 9353000 | L232: ='WK8 - LTFP'!L65 -> 43748000
C233: ='WK8 - LTFP'!C66 -> % Increase in rates and annual charges | F233: ='WK8 - LTFP'!F66 -> 0 | G233: ='WK8 - LTFP'!G66 -> 0.04038280825 | H233: ='WK8 - LTFP'!H66 -> 0.04016068075 | I233: ='WK8 - LTFP'!I66 -> 0.03994917803 | J233: ='WK8 - LTFP'!J66 -> 0.03973297472 | K233: ='WK8 - LTFP'!K66 -> 0.0395333601 | L233: ='WK8 - LTFP'!L66 -> 0.2163707404
C234: ='WK8 - LTFP'!C67 -> check = 0 | F234: ='WK8 - LTFP'!F67 -> 0 | G234: ='WK8 - LTFP'!G67 -> 0 | H234: ='WK8 - LTFP'!H67 -> 0 | I234: ='WK8 - LTFP'!I67 -> 0 | J234: ='WK8 - LTFP'!J67 -> 0 | K234: ='WK8 - LTFP'!K67 -> 0 | L234: ='WK8 - LTFP'!L67 -> 0
C237: ='WK8 - LTFP'!C70 -> For councils who's applications are recommending IPART consider assessing against an adjusted OPR, the adjusted LTFP figures that underpin it can be entered into this table.
C238: ='WK8 - LTFP'!C71 -> LTFP Extract - General Fund only (adjusted)
F239: ='WK8 - LTFP'!F72 -> Year 0 | G239: ='WK8 - LTFP'!G72 -> Year 1 | H239: ='WK8 - LTFP'!H72 -> Year 2 | I239: ='WK8 - LTFP'!I72 -> Year 3 | J239: ='WK8 - LTFP'!J72 -> Year 4 | K239: ='WK8 - LTFP'!K72 -> Year 5 | L239: ='WK8 - LTFP'!L72 -> Sum of 5 years | N239: ='WK8 - LTFP'!N72 -> Change over 5 years
F240: ='WK8 - LTFP'!F73 -> 2021-22 | G240: ='WK8 - LTFP'!G73 -> 2022-23 | H240: ='WK8 - LTFP'!H73 -> 2023-24 | I240: ='WK8 - LTFP'!I73 -> 2024-25 | J240: ='WK8 - LTFP'!J73 -> 2025-26 | K240: ='WK8 - LTFP'!K73 -> 2026-27 | N240: ='WK8 - LTFP'!N73 -> $ | O240: ='WK8 - LTFP'!O73 -> %
C241: ='WK8 - LTFP'!C74 -> Income from continuing operations | F241: ='WK8 - LTFP'!F74 -> $ nominal per year
C242: ='WK8 - LTFP'!C75 -> Revenue: | F242: ='WK8 - LTFP'!F75 -> 0 | G242: ='WK8 - LTFP'!G75 -> 0 | H242: ='WK8 - LTFP'!H75 -> 0 | I242: ='WK8 - LTFP'!I75 -> 0 | J242: ='WK8 - LTFP'!J75 -> 0 | K242: ='WK8 - LTFP'!K75 -> 0 | L242: ='WK8 - LTFP'!L75 -> 0 | N242: ='WK8 - LTFP'!N75 -> 0 | O242: ='WK8 - LTFP'!O75 -> 0
C243: ='WK8 - LTFP'!C76 -> Rates & Annual Charges | F243: ='WK8 - LTFP'!F76 -> 203249000 | G243: ='WK8 - LTFP'!G76 -> 208403000 | H243: ='WK8 - LTFP'!H76 -> 212888000 | I243: ='WK8 - LTFP'!I76 -> 217409000 | J243: ='WK8 - LTFP'!J76 -> 221968000 | K243: ='WK8 - LTFP'!K76 -> 228333000 | L243: ='WK8 - LTFP'!L76 -> 1089001000 | N243: ='WK8 - LTFP'!N76 -> 25084000 | O243: ='WK8 - LTFP'!O76 -> 0.1234151214
C244: ='WK8 - LTFP'!C77 -> User Charges & Fees | F244: ='WK8 - LTFP'!F77 -> 25976000 | G244: ='WK8 - LTFP'!G77 -> 34325000 | H244: ='WK8 - LTFP'!H77 -> 41721000 | I244: ='WK8 - LTFP'!I77 -> 43807000 | J244: ='WK8 - LTFP'!J77 -> 45998000 | K244: ='WK8 - LTFP'!K77 -> 48297000 | L244: ='WK8 - LTFP'!L77 -> 214148000 | N244: ='WK8 - LTFP'!N77 -> 22321000 | O244: ='WK8 - LTFP'!O77 -> 0.8592931937
C245: ='WK8 - LTFP'!C78 -> Interest & Investment Revenue | F245: ='WK8 - LTFP'!F78 -> 7011000 | G245: ='WK8 - LTFP'!G78 -> 8581000 | H245: ='WK8 - LTFP'!H78 -> 8795000 | I245: ='WK8 - LTFP'!I78 -> 9015000 | J245: ='WK8 - LTFP'!J78 -> 9241000 | K245: ='WK8 - LTFP'!K78 -> 9472000 | L245: ='WK8 - LTFP'!L78 -> 45104000 | N245: ='WK8 - LTFP'!N78 -> 2461000 | O245: ='WK8 - LTFP'!O78 -> 0.351019826
C246: ='WK8 - LTFP'!C79 -> Other Revenues | F246: ='WK8 - LTFP'!F79 -> 15249000 | G246: ='WK8 - LTFP'!G79 -> 20720000 | H246: ='WK8 - LTFP'!H79 -> 24628000 | I246: ='WK8 - LTFP'!I79 -> 25605000 | J246: ='WK8 - LTFP'!J79 -> 26245000 | K246: ='WK8 - LTFP'!K79 -> 26901000 | L246: ='WK8 - LTFP'!L79 -> 124099000 | N246: ='WK8 - LTFP'!N79 -> 11652000 | O246: ='WK8 - LTFP'!O79 -> 0.7641156797
C247: ='WK8 - LTFP'!C80 -> Grants & Contributions Op Purposes | F247: ='WK8 - LTFP'!F80 -> 25421000 | G247: ='WK8 - LTFP'!G80 -> 23391000 | H247: ='WK8 - LTFP'!H80 -> 23976000 | I247: ='WK8 - LTFP'!I80 -> 24575000 | J247: ='WK8 - LTFP'!J80 -> 25190000 | K247: ='WK8 - LTFP'!K80 -> 25820000 | L247: ='WK8 - LTFP'!L80 -> 122952000 | N247: ='WK8 - LTFP'!N80 -> 399000 | O247: ='WK8 - LTFP'!O80 -> 0.01569568467
C248: ='WK8 - LTFP'!C81 -> Grants & Contributions Capital Purposes | F248: ='WK8 - LTFP'!F81 -> 86230000 | G248: ='WK8 - LTFP'!G81 -> 60626000 | H248: ='WK8 - LTFP'!H81 -> 52919000 | I248: ='WK8 - LTFP'!I81 -> 54242000 | J248: ='WK8 - LTFP'!J81 -> 55598000 | K248: ='WK8 - LTFP'!K81 -> 56988000 | L248: ='WK8 - LTFP'!L81 -> 280373000 | N248: ='WK8 - LTFP'!N81 -> -29242000 | O248: ='WK8 - LTFP'!O81 -> -0.3391163168
C249: ='WK8 - LTFP'!C82 -> <include additional items here> | F249: ='WK8 - LTFP'!F82 -> 0 | G249: ='WK8 - LTFP'!G82 -> 0 | H249: ='WK8 - LTFP'!H82 -> 0 | I249: ='WK8 - LTFP'!I82 -> 0 | J249: ='WK8 - LTFP'!J82 -> 0 | K249: ='WK8 - LTFP'!K82 -> 0 | L249: ='WK8 - LTFP'!L82 -> 0 | N249: ='WK8 - LTFP'!N82 -> 0 | O249: ='WK8 - LTFP'!O82 -> 0
C250: ='WK8 - LTFP'!C83 -> Other Income (items excluded from ratio analysis) | F250: ='WK8 - LTFP'!F83 -> 0 | G250: ='WK8 - LTFP'!G83 -> 0 | H250: ='WK8 - LTFP'!H83 -> 0 | I250: ='WK8 - LTFP'!I83 -> 0 | J250: ='WK8 - LTFP'!J83 -> 0 | K250: ='WK8 - LTFP'!K83 -> 0 | L250: ='WK8 - LTFP'!L83 -> 0 | N250: ='WK8 - LTFP'!N83 -> 0 | O250: ='WK8 - LTFP'!O83 -> 0
C251: ='WK8 - LTFP'!C84 -> Net share of profit on joint ventures | F251: ='WK8 - LTFP'!F84 -> 400000 | G251: ='WK8 - LTFP'!G84 -> 500000 | H251: ='WK8 - LTFP'!H84 -> 513000 | I251: ='WK8 - LTFP'!I84 -> 513000 | J251: ='WK8 - LTFP'!J84 -> 513000 | K251: ='WK8 - LTFP'!K84 -> 513000 | L251: ='WK8 - LTFP'!L84 -> 2552000 | N251: ='WK8 - LTFP'!N84 -> 113000 | O251: ='WK8 - LTFP'!O84 -> 0.2825
C252: ='WK8 - LTFP'!C85 -> Fair value gains | F252: ='WK8 - LTFP'!F85 -> 0 | G252: ='WK8 - LTFP'!G85 -> 0 | H252: ='WK8 - LTFP'!H85 -> 0 | I252: ='WK8 - LTFP'!I85 -> 0 | J252: ='WK8 - LTFP'!J85 -> 0 | K252: ='WK8 - LTFP'!K85 -> 0 | L252: ='WK8 - LTFP'!L85 -> 0 | N252: ='WK8 - LTFP'!N85 -> 0 | O252: ='WK8 - LTFP'!O85 -> 0
C253: ='WK8 - LTFP'!C86 -> Net gains from disposal of assets | F253: ='WK8 - LTFP'!F86 -> 52165000 | G253: ='WK8 - LTFP'!G86 -> 0 | H253: ='WK8 - LTFP'!H86 -> 0 | I253: ='WK8 - LTFP'!I86 -> 0 | J253: ='WK8 - LTFP'!J86 -> 0 | K253: ='WK8 - LTFP'!K86 -> 0 | L253: ='WK8 - LTFP'!L86 -> 0 | N253: ='WK8 - LTFP'!N86 -> -52165000 | O253: ='WK8 - LTFP'!O86 -> -1
C255: ='WK8 - LTFP'!C88 -> Total Income Continuing Operations | F255: ='WK8 - LTFP'!F88 -> 415701000 | G255: ='WK8 - LTFP'!G88 -> 356546000 | H255: ='WK8 - LTFP'!H88 -> 365440000 | I255: ='WK8 - LTFP'!I88 -> 375166000 | J255: ='WK8 - LTFP'!J88 -> 384753000 | K255: ='WK8 - LTFP'!K88 -> 396324000 | L255: ='WK8 - LTFP'!L88 -> 1878229000 | N255: ='WK8 - LTFP'!N88 -> -19377000 | O255: ='WK8 - LTFP'!O88 -> -0.04661282989
C257: ='WK8 - LTFP'!C90 -> Income excluding capital grants and contributions | F257: ='WK8 - LTFP'!F90 -> 329471000 | G257: ='WK8 - LTFP'!G90 -> 295920000 | H257: ='WK8 - LTFP'!H90 -> 312521000 | I257: ='WK8 - LTFP'!I90 -> 320924000 | J257: ='WK8 - LTFP'!J90 -> 329155000 | K257: ='WK8 - LTFP'!K90 -> 339336000 | L257: ='WK8 - LTFP'!L90 -> 1597856000 | N257: ='WK8 - LTFP'!N90 -> 9865000 | O257: ='WK8 - LTFP'!O90 -> 0.02994193723
C259: ='WK8 - LTFP'!C92 -> Income excluding capital grants and contributions, net gains from asset disposals, profit on joint ventures and fair value gains | F259: ='WK8 - LTFP'!F92 -> 276906000 | G259: ='WK8 - LTFP'!G92 -> 295420000 | H259: ='WK8 - LTFP'!H92 -> 312008000 | I259: ='WK8 - LTFP'!I92 -> 320411000 | J259: ='WK8 - LTFP'!J92 -> 328642000 | K259: ='WK8 - LTFP'!K92 -> 338823000 | L259: ='WK8 - LTFP'!L92 -> 1595304000 | N259: ='WK8 - LTFP'!N92 -> 61917000 | O259: ='WK8 - LTFP'!O92 -> 0.2236029555
C261: ='WK8 - LTFP'!C94 -> Expenses from continuing operations | F261: ='WK8 - LTFP'!F94 -> $ nominal per year
C263: ='WK8 - LTFP'!C96 -> Employee Benefits & On-costs | F263: ='WK8 - LTFP'!F96 -> 128320000 | G263: ='WK8 - LTFP'!G96 -> 136764000 | H263: ='WK8 - LTFP'!H96 -> 147280000 | I263: ='WK8 - LTFP'!I96 -> 150737000 | J263: ='WK8 - LTFP'!J96 -> 155259000 | K263: ='WK8 - LTFP'!K96 -> 159917000 | L263: ='WK8 - LTFP'!L96 -> 749957000 | N263: ='WK8 - LTFP'!N96 -> 31597000 | O263: ='WK8 - LTFP'!O96 -> 0.2462359726
C264: ='WK8 - LTFP'!C97 -> Borrowing Costs (i.e. interest costs) | F264: ='WK8 - LTFP'!F97 -> 1116000 | G264: ='WK8 - LTFP'!G97 -> 425000 | H264: ='WK8 - LTFP'!H97 -> 85000 | I264: ='WK8 - LTFP'!I97 -> 16000 | J264: ='WK8 - LTFP'!J97 -> 0 | K264: ='WK8 - LTFP'!K97 -> 0 | L264: ='WK8 - LTFP'!L97 -> 526000 | N264: ='WK8 - LTFP'!N97 -> -1116000 | O264: ='WK8 - LTFP'!O97 -> -1
C265: ='WK8 - LTFP'!C98 -> Materials & Contracts | F265: ='WK8 - LTFP'!F98 -> 62187000 | G265: ='WK8 - LTFP'!G98 -> 60947000 | H265: ='WK8 - LTFP'!H98 -> 62788000 | I265: ='WK8 - LTFP'!I98 -> 64555000 | J265: ='WK8 - LTFP'!J98 -> 66931000 | K265: ='WK8 - LTFP'!K98 -> 69413000 | L265: ='WK8 - LTFP'!L98 -> 324634000 | N265: ='WK8 - LTFP'!N98 -> 7226000 | O265: ='WK8 - LTFP'!O98 -> 0.1161979192
C266: ='WK8 - LTFP'!C99 -> Depreciation & Amortisation | F266: ='WK8 - LTFP'!F99 -> 51640000 | G266: ='WK8 - LTFP'!G99 -> 49652000 | H266: ='WK8 - LTFP'!H99 -> 53476000 | I266: ='WK8 - LTFP'!I99 -> 54813000 | J266: ='WK8 - LTFP'!J99 -> 56183000 | K266: ='WK8 - LTFP'!K99 -> 57588000 | L266: ='WK8 - LTFP'!L99 -> 271712000 | N266: ='WK8 - LTFP'!N99 -> 5948000 | O266: ='WK8 - LTFP'!O99 -> 0.1151820294
C267: ='WK8 - LTFP'!C100 -> Other Expenses | F267: ='WK8 - LTFP'!F100 -> 47014000 | G267: ='WK8 - LTFP'!G100 -> 47357000 | H267: ='WK8 - LTFP'!H100 -> 50451000 | I267: ='WK8 - LTFP'!I100 -> 51643000 | J267: ='WK8 - LTFP'!J100 -> 52934000 | K267: ='WK8 - LTFP'!K100 -> 54257000 | L267: ='WK8 - LTFP'!L100 -> 256642000 | N267: ='WK8 - LTFP'!N100 -> 7243000 | O267: ='WK8 - LTFP'!O100 -> 0.1540604926
C268: ='WK8 - LTFP'!C101 -> Internal Expenses | F268: ='WK8 - LTFP'!F101 -> -285000 | G268: ='WK8 - LTFP'!G101 -> 777000 | H268: ='WK8 - LTFP'!H101 -> 800000 | I268: ='WK8 - LTFP'!I101 -> 824000 | J268: ='WK8 - LTFP'!J101 -> 849000 | K268: ='WK8 - LTFP'!K101 -> 875000 | L268: ='WK8 - LTFP'!L101 -> 4125000 | N268: ='WK8 - LTFP'!N101 -> 1160000 | O268: ='WK8 - LTFP'!O101 -> -4.070175439
C269: ='WK8 - LTFP'!C102 -> Other Expenses (items excluded from ratio analysis) | F269: ='WK8 - LTFP'!F102 -> 0 | G269: ='WK8 - LTFP'!G102 -> 0 | H269: ='WK8 - LTFP'!H102 -> 0 | I269: ='WK8 - LTFP'!I102 -> 0 | J269: ='WK8 - LTFP'!J102 -> 0 | K269: ='WK8 - LTFP'!K102 -> 0 | L269: ='WK8 - LTFP'!L102 -> 0 | N269: ='WK8 - LTFP'!N102 -> 0 | O269: ='WK8 - LTFP'!O102 -> 0
C270: ='WK8 - LTFP'!C103 -> Net loss on joint ventures | F270: ='WK8 - LTFP'!F103 -> 0 | G270: ='WK8 - LTFP'!G103 -> 0 | H270: ='WK8 - LTFP'!H103 -> 0 | I270: ='WK8 - LTFP'!I103 -> 0 | J270: ='WK8 - LTFP'!J103 -> 0 | K270: ='WK8 - LTFP'!K103 -> 0 | L270: ='WK8 - LTFP'!L103 -> 0 | N270: ='WK8 - LTFP'!N103 -> 0 | O270: ='WK8 - LTFP'!O103 -> 0
... 13 more rows

Sheet WK0 - Input data (hidden)
A1: Hide sheet before publishing
B2: This worksheet is for IPART Analyst use only.
B5: Instructions:
B6: ="1. Enter the required information in the blue input cells in Section "&B23 -> 1. Enter the required information in the blue input cells in Section 1. Inputs
B7: ="2. Check the list of council names and update if necessary in Section "&B67 -> 2. Check the list of council names and update if necessary in Section 2. Council Name
B10: Contents | J10: row
B11: =B23 -> 1. Inputs | J11: =ROW(B23) -> 23
B12: =B26 -> Table 1 - Analyst and TSO details | J12: =ROW(B26) -> 26
B13: =B42 -> Table 2 - SV year and rate peg | J13: =ROW(B42) -> 42
B14: =B52 -> Table 3 - SV year, rate peg and units in display format | J14: =ROW(B52) -> 52
B15: =B67 -> 2. Council Name | J15: =ROW(B67) -> 67
B16: =B225 -> 3. Lists for expiring special variations and other questions | J16: =ROW(B225) -> 225
B17: =B227 -> 6. The council is applying for a one-year increase (s508(2)). | J17: =ROW(B227) -> 227
B18: =B231 ->  | J18: =ROW(B231) -> 231
B19: =B242 -> 7. Is the special variation permanent or temporary? | J19: =ROW(B242) -> 242
B20: =B251 -> 10. Does the council have an expiring variation? If yes, please specify when. | J20: =ROW(B251) -> 251
B23: 1. Inputs | C23: Enter the required information in the blue input cells
B26: Table 1 - Analyst and TSO details
B28: Who is the Analyst in charge?
B29: First Name | D29: Edward
B30: Last Name | D30: Jenkins
B31: Email | D31: edward_jenkins@ipart.nsw.gov.au
B32: Phone | D32: (02) 9113 7774
B34: Who is the TSO supporting the Analyst?
B35: First Name | D35: Sacha
B36: Last Name | D36: De Maere
B37: Email | D37: sacha_DeMaere@ipart.nsw.gov.au
B38: Phone | D38: (02) 9113 7730
B42: Table 2 - SV year and rate peg
B44: SV for period commencing 1 July | C44: year | D44: 2022
B45: Financial year | D45: =D44&"-"&RIGHT(D44+1,2) -> 2022-23
B46: Rate pegs
B47: Rate peg for Year 1 | C47: % | D47: =IF(ISBLANK('WK1 - Identification'!$K$39),'WK0 - Input data'!$D$48,'WK1 - Identification'!$K$39) -> 0.007
B48: Rate peg for Year 2 - 7 | C48: % | D48: 0.025
B52: Table 3 - SV year, rate peg and units in display format
B53: Years
B54: Year number | C54: =D54-1 -> -3 | D54: -2 | E54: =F54-1 -> -1 | F54: 0 | G54: =F54+1 -> 1 | H54: 2 | I54: 3 | J54: 4 | K54: 5 | L54: 6 | M54: 7 | N54: 8 | O54: 9 | P54: 10
B55: Year name | C55: ="Hist yr "&-C54 -> Hist yr 3 | D55: Hist yr 2 | E55: ="Hist yr "&-E54 -> Hist yr 1 | F55: ="Year "&F54 -> Year 0 | G55: ="Year "&G54 -> Year 1 | H55: Year 2 | I55: Year 3 | J55: Year 4 | K55: Year 5 | L55: Year 6 | M55: Year 7 | N55: Year 8 | O55: Year 9 | P55: Year 10
B57: Year commencing 1 July | C57: =D57-1 -> 2018 | D57: =E57-1 -> 2019 | E57: =F57-1 -> 2020 | F57: =D44-1 -> 2021 | G57: =D44 -> 2022 | H57: =G57+1 -> 2023 | I57: 2024 | J57: 2025 | K57: 2026 | L57: 2027 | M57: 2028 | N57: 2029 | O57: 2030 | P57: 2031
B58: Financial year | C58: =C57&"-"&RIGHT(C57+1,2) -> 2018-19 | D58: =D57&"-"&RIGHT(D57+1,2) -> 2019-20 | E58: 2020-21 | F58: 2021-22 | G58: 2022-23 | H58: 2023-24 | I58: 2024-25 | J58: 2025-26 | K58: 2026-27 | L58: 2027-28 | M58: 2028-29 | N58: 2029-30 | O58: 2030-31 | P58: 2031-32
B60: Rate peg | G60: =$D$47 -> 0.007 | H60: =$D$48 -> 0.025 | I60: 0.025 | J60: 0.025 | K60: 0.025 | L60: 0.025 | M60: 0.025 | N60: 0.025 | O60: 0.025 | P60: 0.025
B62: Units for labels | C62: $ nominal
C63: =C62&" per year" -> $ nominal per year
B67: 2. Council Name | C67: Check and update the list as necessary
B68: 1 | C68: Albury City Council
B69: =B68+1 -> 2 | C69: Armidale Regional Council
B70: 3 | C70: Ballina Shire Council
B71: 4 | C71: Balranald Shire Council
B72: 5 | C72: Bathurst Regional Council
B73: 6 | C73: Bayside Council
B74: 7 | C74: Bega Valley Shire Council
B75: 8 | C75: Bellingen Shire Council
B76: 9 | C76: Berrigan Shire Council
B77: 10 | C77: Blacktown City Council
B78: 11 | C78: Bland Shire Council
B79: 12 | C79: Blayney Shire Council
B80: 13 | C80: Blue Mountains City Council
B81: 14 | C81: Bogan Shire Council
B82: 15 | C82: Bourke Shire Council
B83: 16 | C83: Brewarrina Shire Council
B84: 17 | C84: Broken Hill City Council
B85: 18 | C85: Burwood Council
B86: 19 | C86: Byron Shire Council
B87: 20 | C87: Cabonne Council
B88: 21 | C88: Camden Council
B89: 22 | C89: Campbelltown City Council
B90: 23 | C90: Canterbury-Bankstown Council
B91: 24 | C91: Carrathool Shire Council
B92: 25 | C92: Central Coast Council
B93: 26 | C93: Central Darling Shire Council
B94: 27 | C94: Cessnock City Council
B95: 28 | C95: City of Canada Bay Council
B96: 29 | C96: City of Parramatta Council
B97: 30 | C97: City of Ryde Council
B98: 31 | C98: City of Sydney Council
B99: 32 | C99: Clarence Valley Council
B100: 33 | C100: Cobar Shire Council
B101: =B100+1 -> 34 | C101: Coffs Harbour City Council
B102: 35 | C102: Coolamon Shire Council
B103: 36 | C103: Coonamble Shire Council
B104: 37 | C104: Cootamundra-Gundagai Council
B105: 38 | C105: Cowra Shire Council
B106: 39 | C106: Cumberland Council
B107: 40 | C107: Dubbo Regional Council
B108: 41 | C108: Dungog Shire Council
B109: 42 | C109: Edward River Council
B110: 43 | C110: Eurobodalla Shire Council
B111: 44 | C111: Fairfield City Council
B112: 45 | C112: Federation Council
B113: 46 | C113: Forbes Shire Council
B114: 47 | C114: Georges River Council
B115: 48 | C115: Gilgandra Shire Council
B116: 49 | C116: Glen Innes Severn Shire Council
B117: 50 | C117: Goulburn Mulwaree Council
B118: 51 | C118: Greater Hume Shire Council
B119: 52 | C119: Griffith City Council
B120: 53 | C120: Gunnedah Shire Council
B121: 54 | C121: Gwydir Shire Council
B122: 55 | C122: Hawkesbury City Council
B123: 56 | C123: Hay Shire Council
B124: 57 | C124: Hills Shire Council, The
B125: 58 | C125: Hilltops Council
B126: 59 | C126: Hornsby, The Council of the Shire of
B127: 60 | C127: Hunters Hill, The Council of the Municipality of
B128: 61 | C128: Inner West Council
B129: 62 | C129: Inverell Shire Council
B130: 63 | C130: Junee Shire Council
B131: 64 | C131: Kempsey Shire Council
B132: 65 | C132: Kiama, The Council of the Municipality of
B133: =B132+1 -> 66 | C133: Ku-ring-gai Municipal Council
B134: 67 | C134: Kyogle Council
B135: 68 | C135: Lachlan Shire Council
B136: 69 | C136: Lake Macquarie City Council
B137: 70 | C137: Lane Cove Council
B138: 71 | C138: Leeton Shire Council
B139: 72 | C139: Lismore City Council
B140: 73 | C140: Lithgow Council, City of
B141: 74 | C141: Liverpool City Council
B142: 75 | C142: Liverpool Plains Shire Council
B143: 76 | C143: Lockhart Shire Council
B144: 77 | C144: Maitland City Council
B145: 78 | C145: MidCoast Council
B146: 79 | C146: Mid-Western Regional Council
B147: 80 | C147: Moree Plains Shire Council
B148: 81 | C148: Mosman Municipal Council
B149: 82 | C149: Murray River Council
B150: 83 | C150: Murrumbidgee Shire Council
B151: 84 | C151: Muswellbrook Shire Council
B152: 85 | C152: Nambucca Shire Council
B153: 86 | C153: Narrabri Shire Council
B154: 87 | C154: Narrandera Shire Council
B155: 88 | C155: Narromine Shire Council
B156: 89 | C156: Newcastle City Council
B157: 90 | C157: Northern Beaches Council
B158: 91 | C158: North Sydney Council
B159: 92 | C159: Oberon Council
B160: 93 | C160: Orange City Council
B161: 94 | C161: Parkes Shire Council
B162: 95 | C162: Penrith City Council
B163: 96 | C163: Port Macquarie-Hastings Council
B164: 97 | C164: Port Stephens Council
B165: =B164+1 -> 98 | C165: Queanbeyan-Palerang Regional Council
B166: 99 | C166: Randwick City Council
B167: 100 | C167: Richmond Valley Council
B168: 101 | C168: Shellharbour City Council
B169: 102 | C169: Shoalhaven City Council
B170: 103 | C170: Singleton Shire Council
B171: 104 | C171: Snowy Monaro Regional Council
B172: 105 | C172: Snowy Valleys Council
B173: 106 | C173: Strathfield Municipal Council
B174: 107 | C174: Sutherland Shire Council
B175: 108 | C175: Tamworth Regional Council
B176: 109 | C176: Temora Shire Council
B177: 110 | C177: Tenterfield Shire Council
B178: 111 | C178: Tweed Shire Council
B179: 112 | C179: Upper Hunter Shire Council
B180: 113 | C180: Upper Lachlan Shire Council
B181: 114 | C181: Uralla Shire Council
B182: 115 | C182: Wagga Wagga City Council
B183: 116 | C183: Walcha Council
B184: 117 | C184: Walgett Shire Council
B185: 118 | C185: Warren Shire Council
B186: 119 | C186: Warrumbungle Shire Council
B187: 120 | C187: Waverley Council
B188: 121 | C188: Weddin Shire Council
B189: 122 | C189: Wentworth Shire Council
B190: 123 | C190: Willoughby City Council
B191: 124 | C191: Wingecarribee Shire Council
B192: 125 | C192: Wollondilly Shire Council
B193: 126 | C193: Wollongong City Council
B194: 127 | C194: Woollahra Municipal Council
B195: 128 | C195: Yass Valley Council
B196: 129
B197: =B196+1 -> 130
B198: 131
B199: 132
B200: 133
B201: 134
B202: 135
B203: 136
B204: 137
B205: 138
B206: 139
B207: 140
B208: 141
B209: 142
B210: 143
B211: 144
B212: 145
B213: 146
B214: 147
B215: 148
B216: 149
B217: 150
B218: 151
B219: 152
B220: 153
B221: 154
B222: 155 | F222: add rows above this one if you need more
B225: 3. Lists for expiring special variations and other questions
... 167 more rows

Sheet Analysis (hidden)
A1: WORKSHEET TO BE HIDDEN - NOT TO BE INCLUDED IN PUBLICATION
B2: ANALYSIS WORKSHEET
B3: NB: The benchmarks I've used here are dummy values set to be the same as the ones in the OLG guidelines. They can be changed to wherever we land.
A5: 1 | B5: ="Table "&A5&" - Demonstration of financial need (first criteria for temporary and permanent applications)" -> Table 1 - Demonstration of financial need (first criteria for temporary and permanent applications)
B7: Unrestricted current ratio benchmark | D7: 1.5
A9: =A5+1 -> 2 | B9: ="Table "&A9&" - Demonstration of financial need (second criteria for permanent applications only)" -> Table 2 - Demonstration of financial need (second criteria for permanent applications only)
B12: Average OPR benchmark | D12: 0.02
F14: ='WK8 - LTFP'!F17 -> Year 0 | G14: ='WK8 - LTFP'!G17 -> Year 1 | H14: ='WK8 - LTFP'!H17 -> Year 2 | I14: ='WK8 - LTFP'!I17 -> Year 3 | J14: ='WK8 - LTFP'!J17 -> Year 4 | K14: ='WK8 - LTFP'!K17 -> Year 5
F15: ='WK8 - LTFP'!F18 -> 2021-22 | G15: ='WK8 - LTFP'!G18 -> 2022-23 | H15: ='WK8 - LTFP'!H18 -> 2023-24 | I15: ='WK8 - LTFP'!I18 -> 2024-25 | J15: ='WK8 - LTFP'!J18 -> 2025-26 | K15: ='WK8 - LTFP'!K18 -> 2026-27
B17: Forecast OPR (un-adjusted) | F17: =IFERROR('WK8 - LTFP'!F60/'WK8 - LTFP'!F37,0) -> 0.01690032384 | G17: =IFERROR('WK8 - LTFP'!G60/'WK8 - LTFP'!G37,0) -> 0.02714673715 | H17: =IFERROR('WK8 - LTFP'!H60/'WK8 - LTFP'!H37,0) -> 0.03320826477 | I17: =IFERROR('WK8 - LTFP'!I60/'WK8 - LTFP'!I37,0) -> 0.03441464852 | J17: =IFERROR('WK8 - LTFP'!J60/'WK8 - LTFP'!J37,0) -> 0.04387548976 | K17: =IFERROR('WK8 - LTFP'!K60/'WK8 - LTFP'!K37,0) -> 0.05145977133
B18: Forecast OPR (adjusted) | F18: =IFERROR('WK8 - LTFP'!F115/'WK8 - LTFP'!F92,0) -> -0.04725791424 | G18: =IFERROR('WK8 - LTFP'!G115/'WK8 - LTFP'!G92,0) -> -0.001699275608 | H18: =IFERROR('WK8 - LTFP'!H115/'WK8 - LTFP'!H92,0) -> -0.009204892182 | I18: =IFERROR('WK8 - LTFP'!I115/'WK8 - LTFP'!I92,0) -> -0.006794398444 | J18: =IFERROR('WK8 - LTFP'!J115/'WK8 - LTFP'!J92,0) -> -0.01069248605 | K18: =IFERROR('WK8 - LTFP'!K115/'WK8 - LTFP'!K92,0) -> -0.009524146826
B22: 5-Year average OPR
B23: =B17 -> Forecast OPR (un-adjusted) | D23: =AVERAGE(G17:K17) -> 0.03802098231
B24: =B18 -> Forecast OPR (adjusted) | D24: =AVERAGE(G18:K18) -> -0.007583039822
B30: Decisions
B32: Is 5-year average OPR above 2% over the next 5 years? | E32: =IF(D23>D12,2,1) -> 2
B36: Warning text
B37: ="" -> 
B38: ="Council has a forecast mean OPR above "&TEXT(D12,"0.0%")&" over the next 5-years (2022-23 to 2026-27). You will need to provide additional information to demonstrate financial need. Please see our information paper for more information." -> Council has a forecast mean OPR above 2.0% over the next 5-years (2022-23 to 2026-27). You will need to provide additional information to demonstrate financial need. Please see our information paper for more information.

Sheet Instructions
H6: THE INDEPENDENT PRICING AND REGULATORY TRIBUNAL OF NSW
H8: APPLICATION FOR A ADDITIONAL SPECIAL VARIATION
H9: 2022-23
H10: TO GENERAL INCOME
H11: under section 508(2) of the Local Government Act 1993
H12: and Office of Local Government circular 22-07 / 6 April 2022 / A815377
H14: SECTION 508(2) APPLICATION FORM
H15: ='WK0 - Input data'!$D$45 -> 2022-23
H17: Before completing this form, you MUST read the Office of Local Government's
I18: 22-07 Circular to Councils - Guidelines for Additional Special Variation (ASV) Process for 2022-23
H21: All dollars in nominal terms
D23: The Guidelines in the circular are available on the Office’s website at www.olg.nsw.gov.au.
H26: Overview
C28: An instrument made under section 508(2) allows a council to increase general income by a percentage that is greater than the rate peg in a single year.
C29: Circular to Councils - Guidelines for Additional Special Variation (ASV) Process for 2022-23 (circular 22-07) applies to applications from councils for the lower value of: 2.5% or the council's assumed 2022-23 rate peg in its 2021-22 Long Term Financial Plan (in each case including population factor)
C32: The application should be submitted to IPART (us) via the Council Portal on our
C33: website at www.ipart.nsw.gov.au.
C35: This application consists of 4 worksheets:
C36: The worksheets are labelled WK1, WK4, and WK8 to maintain consistency with standard part A application worksheet names.
C37: ► | D37: Worksheet 1 (Identification): Identifies your council and a council contact officer, collects information
E38: about your proposed special variation and any existing special variations (SVs).
E39: It also collects information about Crown Land adjustments, catch-ups or excess adjustments
E40: and valuation objections.
C41: ► | D41: Worksheet 4 (PGI): Summarises the council's Permissible General Income based on the 1st year's percentage
E42: for the proposed SV and Crown Land adjustments, plus other income adjustments. It also shows the
E43: the council's PGI over the proposed SV period and the annual and cumulative impacts of the proposed SV.
C44: ► | D44: Worksheet 8 (Long Term Financial Plan): Collects information on your Long Term Financial Plan.
D48: Enquiries regarding the completion of this application should be directed to:
E50: ='WK0 - Input data'!$D$29&" "&'WK0 - Input data'!$D$30 -> Edward Jenkins | H50: ='WK0 - Input data'!D32 -> (02) 9113 7774
H51: ='WK0 - Input data'!D31 -> edward_jenkins@ipart.nsw.gov.au
E53: ='WK0 - Input data'!$D$35&" "&'WK0 - Input data'!$D$36&" (who in "&'WK0 - Input data'!D29&"'s absence, will direct you to the appropriate IPART officer)" -> Sacha De Maere (who in Edward's absence, will direct you to the appropriate IPART officer)
H54: ='WK0 - Input data'!D38 -> (02) 9113 7730
H55: ='WK0 - Input data'!D37 -> sacha_DeMaere@ipart.nsw.gov.au
C61: Colour code
C63: Enter data in the blue input cells
C64: Hard-coded values that should not be changed
C65: Key outputs
C66: Special instructions
C67: Error checks
C68: Double red line indicates a change in formula
I72: Step-by-step instructions on completing the worksheets
C76: Worksheet 1 - Identification
C78: Select council name from the drop down list and enter contact details.
C79: A. | D79: Indicate whether you have any existing SVs by selecting 'yes' or 'no' from the drop down box, where the existing SV
D80: means you have an existing increase(s) above the rate peg for any year from Year 1 onwards.
C81: B. | D81: Provide the council's Notional General Income (NGI) for $2021-22 in nominal dollars.
C82: C. | D82: Provide the value of the assumed 2022-23 rate peg (including population factor) as exhibited in the 2021-22 LTFP.
D83: Provide information on the LTFP and its exhibition/adoption date.
C84: D. | D84: Enter the additional percentage being sought above the rate peg (excluding other adjustments).
C85: E. | D85: Answer the questions about expiring SVs.
D86: * | E86: If the council does not have any SVs due to expire in the period of the proposed SV, leave the
E87: field blank or select 'na'.
D88: =$D$86 -> * | E88: ="Enter the $ value of expiring SVs in Table 1 (row "&ROW('WK1 - Identification'!C80)&")" -> Enter the $ value of expiring SVs in Table 1 (row 80)
C90: F. | D90: Answer the questions about Crown land adjustments, catch ups and valuation objections.
D91: =$D$86 -> * | E91: If the council does not have any adjustments, leave the fields in this section blank
D92: =$D$86 -> * | E92: Note that applications for Crown land adjustments still need to be separately made to OLG.
C93: G. | D93: Enter the requested percentage increases in general income (including the rate peg) for year 1 (Table 1).
D94: =$D$86 -> * | E94: The annual and cumulative increases in the white cells are automatically calculated once the requested
E95: percentage increases have been entered.
D96: =$D$86 -> * | E96: The worksheet automatically assumes a rate peg of 2.5% for each of the forward years (Year 2 and thereafter).
E97: If the rate peg turns out to be different from that assumed, the total % increase in general income with an
E98: approved SV does not change.
C100: Worksheet 4 - Calculation
C102: This worksheet calculates Permissible General Income and the value of the proposed SV after taking into
C103: account various adjustments. Income adjustments and expiring SV amounts are to be verified
C104: by OLG before the application is submitted to us. | M104: Example of PGI calculation for Year 1
C106: NO INPUTS ARE REQUIRED | K106: XYZ Council
M107: WORKSHEET 4
C108: Expiring SV
C109: ="If the council has a SV due to expire on 30 June "&'WK0 - Input data'!$G$57&", " -> If the council has a SV due to expire on 30 June 2022, | M109: PERMISSIBLE GENERAL INCOME SUMMARY FOR 2018-19
C110: Notional General Income must be reduced before | M110: All dollars in nominal terms
C111: ="calculating Permissable General Income in "&'WK0 - Input data'!$G$58&"." -> calculating Permissable General Income in 2022-23. | M111: Please check all income adjustments and expiring variation amounts with OLG
M112: before submitting the application.
C113: Additional percentage increase | K113: Prior year Notional General Income | Q113: 20000000
C114: This is the additional percentage increase being sought | K114: Less: | L114: Expiry of a prior special variation | Q114: 10000
C115: above the rate peg, excluding any other income
C116: adjustments. | K116: Adjusted first year Notional General Income | P116: $ | Q116: =Q113-Q114 -> 19990000
C118: Crown Land Adjustment | K118: Plus: | L118: Rate peg increase - first year | O118: 0.023 | Q118: =ROUND(Q116*O118,9) -> 459770
C119: Crown land claims will increase Permissible General | K119: Plus: | L119: Additional increase - first year | O119: 0.037 | Q119: =ROUND(Q116*O119,9) -> 739630
C120: Income. The $ amount of any Crown land adjustment is | K120: Plus: | L120: Crown Land adjustment - first year | O120: 0.000638253745 | Q120: 10000
C121: converted into a % amount to be included in the final
C122: special variation for consideration by IPART. | L122: Total special variation - first year | O122: =SUM(O118:O120) -> 0.06063825375 | P122: $ | Q122: =SUM(Q118:Q120) -> 1209400
C124: Other adjustments | K124: Other First Year Adjustments:
C125: There are two other possible adjustments that are not included | K125: Plus/Minus: | L125: Prior year Catch-up/(Excess) | Q125: -5000
C126: in the proposed SV % but will affect Permissible General Income: | K126: Minus: | L126: Valuation Objections claimed in prior year | Q126: -30
C127: 1. Prior year result. This is the catch up or excess amount
C128: from the previous year, as advised by OLG. | O128: Total Adjustments | Q128: =SUM(Q125:Q126) -> -5030
C129: 2. Valuation objections: if you successfully claimed valuation
C130: objections in the previous year, PGI must be reduced to | L130: First year Permissible General Income | P130: $ | Q130: =Q116+Q122+Q128 -> 21194370
C131: remove the extra income claimed from the revenue base.
C133: Worksheet 8 - Long Term Financial Plan
C135: This worksheet is designed to show how the council has forecast its Long Term Financial Plan (LTFP) and the resulting Operating Performance Ratio (OPR) from those forecasts over the next 5 years.
C136: Councils must complete the information from the Long Term Financial Plan.
C137: There is an option for councils to submit adjusted LTFP data on this worksheet.
C138: Note: Councils that are submitting an adjusted LTFP must provide additional evidence as to why the OPR resulting from the adjusted LTFP is the appropriate ratio for IPART to use in its analysis.

Sheet WK1 - Identification
E3: APPLICATION FOR ADDITIONAL SPECIAL VARIATION TO GENERAL INCOME | M3: ='WK0 - Input data'!$D$45 -> 2022-23
F5: WORKSHEET 1
D7: Step 1: Fill out council details
D8: Step 2: Fill out any existing variation information
D9: Step 3: Fill out crown land adjustments, catch up & excess, valuation objections
D10: Step 4: Fill out proposed special variation amounts
C11: All dollars in nominal terms
C13: Council Name: | E13: City of Parramatta Council | I13: ="If your councils' name is not in the list, please enter it in cell E"&ROW(C14) -> If your councils' name is not in the list, please enter it in cell E14
C14: Council Name if not listed:
C16: Contact Details:
C17: Name: | E17: Todd Cowan
C18: Position: | E18: Rates & Receivables Manager
C19: Telephone:
C20: Email:
C23: A. Existing special variations (SVs) | S23: DO NOT DELETE
A24: 1 | C24: =A24&". Does the council have any existing SV(s) that means it has an increase above the rate peg for any year from "&G62&" ("&G61&") onwards?" -> 1. Does the council have any existing SV(s) that means it has an increase above the rate peg for any year from 2022-23 (Year 1) onwards? | K24: no | S24: =IF(K24='WK0 - Input data'!B248,1,2) -> 2
C26: B. Council's Notional General Income
A27: =A24+1 -> 2 | C27: =$A27&". Enter Council's NGI for "&'WK0 - Input data'!$F$58&" ($ nominal)" -> 2. Enter Council's NGI for 2021-22 ($ nominal) | K27: 159982939
C29: C. Council's modelling assumptions
A30: =A27+1 -> 3 | C30: =$A30&". Enter Council's assumed rate peg for "&'WK0 - Input data'!G58&"." -> 3. Enter Council's assumed rate peg for 2022-23. | K30: 0.025
A31: =A30+1 -> 4 | C31: =$A31&". Has the 2021-22 LTFP been exhibited or only adopted? " -> 4. Has the 2021-22 LTFP been exhibited or only adopted? | K31: Exhibited
A32: =A31+1 -> 5 | C32: =CHOOSE(S32,S33,S34) -> 5. Enter exhibition date of Council's LTFP. | K32: 2018-06-25 | S32: =IF(K31='WK0 - Input data'!B404,2,IF(K31="",1,1)) -> 2
S33: =$A32&". Enter adoption date of Council's LTFP." -> 5. Enter adoption date of Council's LTFP.
C34: D. Proposed special variations (SVs) | S34: =$A32&". Enter exhibition date of Council's LTFP." -> 5. Enter exhibition date of Council's LTFP.
A36: =A32+1 -> 6 | C36: =A36&". The council is applying for a one-year increase (s508(2))." -> 6. The council is applying for a one-year increase (s508(2)). | K36: s508(2)
A37: =A36+1 -> 7 | C37: =A37&". Is the special variation permanent or temporary?" -> 7. Is the special variation permanent or temporary? | J37: select option | K37: Permanent
C38: If temporary, the number of years before the special variation is due to expire (This is set to 1-year for this application). | K38: 1 | S38: 1
A39: =A37+1 -> 8 | C39: =A39&". Percentage rate peg for the first year of the SV period ("&$M$3&"). This will autofill with the selection of Council." -> 8. Percentage rate peg for the first year of the SV period (2022-23). This will autofill with the selection of Council. | K39: =IF(ISBLANK(E13),'WK0 - Input data'!D48,INDEX('WK0 - Input data'!D271:D398,MATCH('WK1 - Identification'!E13,'WK0 - Input data'!B271:B398,0))) -> 0.007
A40: =A39+1 -> 9 | C40: =CHOOSE($S$24,A40&". Enter the percentage above the existing full SV the council is applying for in 2022-23. ",A40&". Enter the percentage above the rate peg the council is applying for in 2022-23.") -> 9. Enter the percentage above the rate peg the council is applying for in 2022-23. | J40: enter % | K40: 0.018 | L40: ="Note: maximum allowed = "&TEXT(S45,"0.00%") -> Note: maximum allowed = 1.80% | S40: DO NOT DELETE
K41: =IF(S43=1,S47,"") ->  | S41: =IF(K37='WK0 - Input data'!$B$245,1,2) -> 2
C43: E. Expiring special variations (SVs) | S43: =IF(SUM(K39:K40)>MIN(K30,'WK0 - Input data'!D48),1,0) -> 0
A44: =A40+1 -> 10 | C44: =A44&". Does the council have an expiring variation? If yes, please specify when." -> 10. Does the council have an expiring variation? If yes, please specify when. | I44: 1st Expiring SV | J44: select option | K44: na
I45: 2nd Expiring SV | J45: select option | K45: na | S45: =MIN(K30,2.5%)-K39 -> 0.018
A47: =A44+1 -> 11 | C47: =A47&". If the council has an expiring variation, enter the $ amount expiring in row "&ROW(C80)&" below." -> 11. If the council has an expiring variation, enter the $ amount expiring in row 80 below. | S47: ="Total increase must not exceed the lower of the council's assumed "&'WK0 - Input data'!G58&" rate peg increase and 2.5%." -> Total increase must not exceed the lower of the council's assumed 2022-23 rate peg increase and 2.5%.
C49: F. Crown Land adjustments, catch ups, valuation objections | K49: $ | L49: % Y 0 income
A50: =A47+1 -> 12 | C50: =A50&". Enter the amount of any Crown Land adjustments required." -> 12. Enter the amount of any Crown Land adjustments required. | J50: enter $ | K50: 0 | L50: =IF(K$27-$F$80=0,0,K50/(K$27-$F$80)) -> 0
A51: =A50+1 -> 13 | C51: =A51&". Enter the amount for any catch ups or excess adjustments required." -> 13. Enter the amount for any catch ups or excess adjustments required. | J51: =J50 -> enter $ | K51: -688430 | L51: =IF(K$27-$F$80=0,0,K51/(K$27-$F$80)) -> -0.00430314635
A52: =A51+1 -> 14 | C52: =A52&". Enter any valuation objections required (input as a positive whole number)." -> 14. Enter any valuation objections required (input as a positive whole number). | J52: =J51 -> enter $ | K52: 43121 | L52: =IF(K$27-$F$80=0,0,K52/(K$27-$F$80)) -> 0.0002695349909
C55: G. Requested annual percentage increases and expiring SV amounts
C56: A special variation is the total % increase permitted in a council's general income, including the rate peg and Crown land adjustments, before adjustments are made for
C57: catch ups/excesses and valuation objections.
C58: Note: Approved SV% increases do not change if the actual rate peg turns out to be different from that assumed for a particular year.
C60: Table 1 | D60: Requested annual percentage increases and expiring SV amounts
F61: ='WK0 - Input data'!F$55 -> Year 0 | G61: ='WK0 - Input data'!G$55 -> Year 1 | H61: ='WK0 - Input data'!H$55 -> Year 2 | I61: ='WK0 - Input data'!I$55 -> Year 3 | J61: ='WK0 - Input data'!J$55 -> Year 4 | K61: ='WK0 - Input data'!K$55 -> Year 5 | L61: ='WK0 - Input data'!L$55 -> Year 6 | M61: ='WK0 - Input data'!M$55 -> Year 7
C62: ='WK0 - Input data'!B$58 -> Financial year | F62: ='WK0 - Input data'!F$58 -> 2021-22 | G62: ='WK0 - Input data'!G$58 -> 2022-23 | H62: ='WK0 - Input data'!H$58 -> 2023-24 | I62: ='WK0 - Input data'!I$58 -> 2024-25 | J62: ='WK0 - Input data'!J$58 -> 2025-26 | K62: ='WK0 - Input data'!K$58 -> 2026-27 | L62: ='WK0 - Input data'!L$58 -> 2027-28 | M62: ='WK0 - Input data'!M$58 -> 2028-29
C63: 1= included in SV period | F63: =IF(VALUE(RIGHT(F61,1))>$S$38,0,1) -> 1 | G63: 1 | H63: 0 | I63: 0 | J63: 0 | K63: 0 | L63: 0 | M63: 0
C64: 0 = beyond temporary SV period | F64: =IF($K$37='WK0 - Input data'!$B$243,1,IF($K$38<VALUE(RIGHT(F61,1)),0,1)) -> 1 | G64: =IF($K$37='WK0 - Input data'!$B$243,1,IF($K$38<VALUE(RIGHT(G61,1)),0,1)) -> 1 | H64: 0 | I64: 0 | J64: 0 | K64: 0 | L64: 0 | M64: 0
C65: Annual % increases
C66: =CHOOSE($S$24," Enter existing full SV (ie, incl the rate peg) in the years in which it applies","na - leave blank") -> na - leave blank
C68: Rate peg only | G68: =IF(G64=0,0,'WK0 - Input data'!G60) -> 0.007 | H68: =IF(H64=0,0,'WK0 - Input data'!H60) -> 0 | I68: =IF(I64=0,0,'WK0 - Input data'!I60) -> 0 | J68: 0.02 | K68: =IF(K64=0,0,'WK0 - Input data'!K60) -> 0 | L68: =IF(L64=0,0,'WK0 - Input data'!L60) -> 0 | M68: =IF(M64=0,0,'WK0 - Input data'!M60) -> 0
C69: plus | D69: =CHOOSE($S$24,"existing SV above rate peg"," na") -> na | G69: =IF(OR($S$24=2,G66=""),0,G66-G68) -> 0 | H69: 0 | I69: 0 | J69: 0 | K69: =IF(OR($S$24=2,K66=""),0,K66-K68) -> 0 | L69: 0 | M69: 0
C70: plus | D70: percentage above the rate peg | G70: =K40 -> 0.018 | H70: =IF(H63=0,0,MAX(0,H73-H68-H69-CHOOSE($S$41,H71,0))) -> 0 | I70: 0 | J70: 0 | K70: 0 | L70: 0 | M70: 0
C72: =$C$70 -> plus | D72: Crown Land adjustment | G72: =L50 -> 0 | H72: 0 | I72: 0 | J72: 0 | K72: 0 | L72: 0 | M72: 0
C73: =CHOOSE($S$24," Proposed SV (total proposed and existing SV)"," Proposed SV ") -> Proposed SV | F73: na | G73: =SUM(G68:G72) -> 0.025
C74: Cumulative % increase
C75: =CHOOSE($S$24,"Exising full SV (including rate peg) followed by rate peg only","Rate peg only") -> Rate peg only | G75: =SUM(G68:G69) -> 0.007 | H75: =IF(H64=0,0,(1+G75)*(1+H68+H69)-1) -> 0 | I75: 0 | J75: 0 | K75: 0 | L75: 0 | M75: 0
C76: =C70 -> plus | D76: additional increases | G76: =IF(G70=0,".",G70+CHOOSE($S$41,G71,0)) -> 0.018 | H76: =IF(OR(H63=0,H64=0),0,MAX(0,H77-H75)) -> 0 | I76: =IF(I64=0,0,IF(I63=0,0,MAX(0,I77-I75))) -> 0 | J76: =IF(J64=0,0,IF(J63=0,0,MAX(0,J77-J75))) -> 0 | K76: =IF(K64=0,0,IF(K63=0,0,MAX(0,K77-K75))) -> 0 | L76: =IF(L64=0,0,IF(L63=0,0,MAX(0,L77-L75))) -> 0 | M76: =IF(M64=0,0,IF(M63=0,0,MAX(0,M77-M75))) -> 0
C77: =C73 -> Proposed SV | F77: na | G77: =IF(G73=0,".",G73) -> 0.025 | H77: =IF(H64=0,0,IF(H63=0,(1+G77)*(1+H68+H69)-1,(1+G77)*(1+H73)-1)) -> 0 | I77: 0 | J77: 0 | K77: 0 | L77: 0 | M77: 0
C79: Expiring special variations
C80: $ value of expiring special | E80: $ (nominal) | G80: 0
C81: variations (ESV) | E81: % value of ESV | F81: =IF('WK4 - PGI summary'!F58=0,".",F80/'WK4 - PGI summary'!F58) -> 0 | G81: =IF('WK4 - PGI summary'!G58=0,".",G80/'WK4 - PGI summary'!G58) -> 0 | H81: =IF('WK4 - PGI summary'!H58=0,".",H80/'WK4 - PGI summary'!H58) -> . | I81: =IF('WK4 - PGI summary'!I58=0,".",I80/'WK4 - PGI summary'!I58) -> . | J81: =IF('WK4 - PGI summary'!J58=0,".",J80/'WK4 - PGI summary'!J58) -> . | K81: =IF('WK4 - PGI summary'!K58=0,".",K80/'WK4 - PGI summary'!K58) -> . | L81: =IF('WK4 - PGI summary'!L58=0,".",L80/'WK4 - PGI summary'!L58) -> . | M81: =IF('WK4 - PGI summary'!M58=0,".",M80/'WK4 - PGI summary'!M58) -> .

Sheet WK2 - Notional General Income (hidden)
C3: =IF(ISBLANK('WK1 - Identification'!$E$13),'WK1 - Identification'!$E$14,'WK1 - Identification'!$E$13) -> City of Parramatta Council
H5: WORKSHEET 2
H7: ="CALCULATION OF NOTIONAL GENERAL INCOME "&'WK0 - Input data'!$F$58 -> CALCULATION OF NOTIONAL GENERAL INCOME 2021-22
H8: Applicable to the first year of the application
H10: All dollars in nominal terms
H11: This worksheet must reflect the rating structure levied in the previous year
E12: ="NOTE: Valuations used here are to be taken from Council's valuation list on 1 July "&'WK0 - Input data'!$F$57&" and are to include:" -> NOTE: Valuations used here are to be taken from Council's valuation list on 1 July 2021 and are to include:
E13: (i) supplementaries having the same base date and furnished to Council during that year, and
E14: (ii) estimates of increases in valuations provided to the Council under section 513.
H16: Calculation of Notional General Income - Ordinary Rates
C18: Rating Category (s514-518) | D18: Name of sub-category | E18: Number of Assessments | F18: Ad Valorem Rate (cents) | G18: Base Amount $ | H18: Base Amount % | I18: Minimum Amount $ | J18: Number on Minimum | K18: Land Value (see note above) $ | L18: Land Value of Land on Minimum | M18: Notional General Income
C19: Residential | H19: =IF(G19="",".",E19*G19/M19) -> . | M19: =IF(E19="",".",IF(G19<>"",G19*E19+K19*(F19/100),(K19-L19)*(F19/100)+I19*J19)) -> .
C20: Residential | H20: =IF(G20="",".",E20*G20/M20) -> . | M20: .
C21: Residential | H21: . | M21: .
C22: Residential | H22: . | M22: .
C23: Residential | H23: . | M23: =IF(E23="",".",IF(G23<>"",G23*E23+K23*(F23/100),(K23-L23)*(F23/100)+I23*J23)) -> .
C24: Residential | H24: . | M24: .
C25: Residential | H25: . | M25: .
C26: Residential | H26: . | M26: .
C27: Residential | H27: . | M27: .
C28: Residential | H28: . | M28: .
C29: Residential | H29: . | M29: .
C30: Residential | H30: . | M30: .
C31: Residential | H31: . | M31: .
C32: Residential | H32: . | M32: .
C33: Residential | H33: . | M33: .
C34: Residential | H34: . | M34: .
C35: Residential | H35: . | M35: .
C36: Residential | H36: . | M36: .
C37: Residential | H37: . | M37: .
C38: Residential | H38: . | M38: .
D39: Total Residential | E39: =SUM(E19:E38) -> 0 | J39: =SUM(J19:J38) -> 0 | K39: =SUM(K19:K38) -> 0 | L39: =SUM(L19:L38) -> 0 | M39: =SUM(M19:M38) -> 0
C40: Business | H40: . | M40: =IF(E40="",".",IF(G40<>"",G40*E40+K40*(F40/100),(K40-L40)*(F40/100)+I40*J40)) -> .
C41: Business | H41: . | M41: .
C42: Business | H42: . | M42: .
C43: Business | H43: . | M43: .
C44: Business | H44: . | M44: .
C45: Business | H45: . | M45: .
C46: Business | H46: . | M46: .
C47: Business | H47: . | M47: .
C48: Business | H48: . | M48: .
C49: Business | H49: . | M49: .
C50: Business | H50: . | M50: .
C51: Business | H51: . | M51: .
C52: Business | H52: . | M52: .
C53: Business | H53: . | M53: .
C54: Business | H54: . | M54: .
C55: Business | H55: . | M55: .
C56: Business | H56: . | M56: .
C57: Business | H57: . | M57: .
C58: Business | H58: . | M58: .
C59: Business | H59: . | M59: .
C60: Business | H60: . | M60: .
C61: Business | H61: . | M61: .
C62: Business | H62: . | M62: .
C63: Business | H63: . | M63: .
C64: Business | H64: . | M64: .
D65: Total Business | E65: =SUM(E40:E64) -> 0 | J65: =SUM(J40:J64) -> 0 | K65: =SUM(K40:K64) -> 0 | L65: =SUM(L40:L64) -> 0 | M65: =SUM(M40:M64) -> 0
C66: Farmland | H66: . | M66: =IF(E66="",".",IF(G66<>"",G66*E66+K66*(F66/100),(K66-L66)*(F66/100)+I66*J66)) -> .
C67: Farmland | H67: . | M67: .
C68: Farmland | H68: . | M68: .
C69: Farmland | H69: . | M69: .
C70: Farmland | H70: . | M70: .
C71: Farmland | H71: . | M71: .
C72: Farmland | H72: . | M72: .
C73: Farmland | H73: . | M73: .
C74: Farmland | H74: . | M74: .
C75: Farmland | H75: . | M75: =IF(E75="",".",IF(G75<>"",G75*E75+K75*(F75/100),(K75-L75)*(F75/100)+I75*J75)) -> .
D76: Total Farmland | E76: =SUM(E66:E75) -> 0 | J76: =SUM(J66:J75) -> 0 | K76: =SUM(K66:K75) -> 0 | L76: =SUM(L66:L75) -> 0 | M76: =SUM(M66:M75) -> 0
C77: Mining | H77: . | M77: =IF(E77="",".",IF(G77<>"",G77*E77+K77*(F77/100),(K77-L77)*(F77/100)+I77*J77)) -> .
C78: Mining | H78: . | M78: .
C79: Mining | H79: . | M79: .
C80: Mining | H80: . | M80: .
C81: Mining | H81: . | M81: .
C82: Mining | H82: . | M82: .
C83: Mining | H83: . | M83: .
C84: Mining | H84: =IF(G84="",".",E84*G84/M84) -> . | M84: .
C85: Mining | H85: . | M85: .
C86: Mining | H86: . | M86: =IF(E86="",".",IF(G86<>"",G86*E86+K86*(F86/100),(K86-L86)*(F86/100)+I86*J86)) -> .
D87: Total Mining | E87: =SUM(E77:E86) -> 0 | J87: =SUM(J77:J86) -> 0 | K87: =SUM(K77:K86) -> 0 | L87: =SUM(L77:L86) -> 0 | M87: =SUM(M77:M86) -> 0
C88: Total Assessments: | E88: =E39+E65+E76+E87 -> 0 | H88: Total Rateable Land Value: | K88: =K39+K65+K76+K87 -> 0 | L88: Sub-Total: | M88: =M39+M65+M76+M87 -> 0
H91: Calculation of Notional General Income - Special Rates
C93: Rating Category (s514-518) | D93: Name of special rate | E93: Number of Assessments | F93: Ad Valorem Rate | G93: Base Amount $ | H93: Base Amount % | I93: Minimum Amount $ | J93: Number on Minimum | K93: Land Value (see note above) | L93: Land Value of Land on Minimum | M93: Notional Income
C94: Residential | H94: =IF(G94="",".",E94*G94/M94) -> . | M94: =IF(E94="",".",IF(G94<>"",G94*E94+K94*(F94/100),(K94-L94)*(F94/100)+I94*J94)) -> .
C95: Residential | H95: . | M95: .
C96: Residential | H96: . | M96: .
C97: Residential | H97: . | M97: .
C98: Residential | H98: . | M98: .
C99: Residential | H99: . | M99: .
C100: Residential | H100: . | M100: .
C101: Residential | H101: . | M101: .
C102: Residential | H102: . | M102: .
C103: Residential | H103: . | M103: .
C104: Business | H104: . | M104: .
C105: Business | H105: . | M105: .
C106: Business | H106: . | M106: .
C107: Business | H107: . | M107: .
C108: Business | H108: . | M108: .
C109: Business | H109: . | M109: .
C110: Business | H110: . | M110: .
C111: Business | H111: . | M111: .
C112: Business | H112: . | M112: .
C113: Business | H113: . | M113: .
C114: Business | H114: . | M114: .
C115: Business | H115: . | M115: .
C116: Business | H116: . | M116: .
C117: Business | H117: . | M117: .
C118: Business | H118: . | M118: .
C119: Business | H119: . | M119: .
C120: Business | H120: . | M120: .
C121: Business | H121: . | M121: .
C122: Business | H122: . | M122: .
C123: Business | H123: . | M123: .
C124: Farmland | H124: . | M124: .
C125: Farmland | H125: . | M125: .
C126: Farmland | H126: =IF(G126="",".",E126*G126/M126) -> . | M126: .
C127: Farmland | H127: . | M127: .
C128: Farmland | H128: . | M128: .
C129: Farmland | H129: . | M129: .
C130: Farmland | H130: . | M130: .
C131: Farmland | H131: . | M131: .
C132: Farmland | H132: . | M132: .
C133: Farmland | H133: . | M133: .
C134: Mining | H134: . | M134: .
C135: Mining | H135: . | M135: .
C136: Mining | H136: . | M136: .
C137: Mining | H137: . | M137: .
C138: Mining | H138: . | M138: .
C139: Mining | H139: . | M139: .
C140: Mining | H140: . | M140: .
C141: Mining | H141: . | M141: .
C142: Mining | H142: . | M142: .
C143: Mining | H143: . | M143: =IF(E143="",".",IF(G143<>"",G143*E143+K143*(F143/100),(K143-L143)*(F143/100)+I143*J143)) -> .
L144: Sub-Total: | M144: =SUM(M94:M143) -> 0
H147: Calculation of Notional General Income - Annual Charges
C149: Annual Charges (excluding water supply, sewerage and domestic and non-domestic waste management services) | K149: Number of Assessments | L149: Amount of Charge $ | M149: Notional Income
M150: =IF(C150="",".",K150*L150) -> .
M151: =IF(C151="",".",K151*L151) -> .
M152: .
M153: .
M154: .
M155: .
M156: .
M157: .
L158: Sub-Total: | M158: =SUM(M150:M157) -> 0
K161: Total Notional General Income: | M161: =M88+M144+M158 -> 0
C163: Note: Section 505(a) of the Act provides for those rates and charges that are to be included in general income, including certain section 501 annual charges.

Sheet WK3 - Notional GI Yr1 YIELD (hidden)
C3: ='WK2 - Notional General Income'!$C$3 -> City of Parramatta Council
H5: WORKSHEET 3
H7: ="CALCULATION OF NOTIONAL GENERAL INCOME "&'WK0 - Input data'!$G$58 -> CALCULATION OF NOTIONAL GENERAL INCOME 2022-23
H9: All dollars in nominal terms
H11: This worksheet must contain the rating structure proposed for the first year of the special variation application.
H12: Note: A rating structure that does not comply with the legislation may not be approved. It is Council's responsibility to check its rating structure with OLG before submission to IPART.
H14: Calculation of Notional General Income - Ordinary Rates
C18: Rating Category (s514-518) | D18: Name of sub-category | E18: Number of Assessments | F18: Ad valorem rate (cents) | G18: Base Amount $ | H18: Base Amount % | I18: Minimum Amount $ | J18: Number on Minimum | K18: Land Value as at start of year $ | L18: Land Value of Land on Minimum $ | M18: Notional General Income
C19: Residential | D19: =IF('WK2 - Notional General Income'!D19="","",'WK2 - Notional General Income'!D19) ->  | H19: =IF(G19="",".",E19*G19/M19) -> . | M19: =IF(E19="",".",IF(G19<>"",G19*E19+K19*(F19/100),(K19-L19)*(F19/100)+I19*J19)) -> .
C20: Residential | D20: =IF('WK2 - Notional General Income'!D20="","",'WK2 - Notional General Income'!D20) ->  | H20: =IF(G20="",".",E20*G20/M20) -> . | M20: .
C21: Residential | D21: =IF('WK2 - Notional General Income'!D21="","",'WK2 - Notional General Income'!D21) ->  | H21: . | M21: .
C22: Residential | D22: =IF('WK2 - Notional General Income'!D22="","",'WK2 - Notional General Income'!D22) ->  | H22: . | M22: .
C23: Residential | D23: =IF('WK2 - Notional General Income'!D23="","",'WK2 - Notional General Income'!D23) ->  | H23: . | M23: .
C24: Residential | D24: =IF('WK2 - Notional General Income'!D24="","",'WK2 - Notional General Income'!D24) ->  | H24: . | M24: .
C25: Residential | D25: =IF('WK2 - Notional General Income'!D25="","",'WK2 - Notional General Income'!D25) ->  | H25: . | M25: .
C26: Residential | D26: =IF('WK2 - Notional General Income'!D26="","",'WK2 - Notional General Income'!D26) ->  | H26: . | M26: .
C27: Residential | D27: =IF('WK2 - Notional General Income'!D27="","",'WK2 - Notional General Income'!D27) ->  | H27: . | M27: .
C28: Residential | D28: =IF('WK2 - Notional General Income'!D28="","",'WK2 - Notional General Income'!D28) ->  | H28: . | M28: .
C29: Residential | D29: =IF('WK2 - Notional General Income'!D29="","",'WK2 - Notional General Income'!D29) ->  | H29: . | M29: .
C30: Residential | D30: =IF('WK2 - Notional General Income'!D30="","",'WK2 - Notional General Income'!D30) ->  | H30: . | M30: .
C31: Residential | D31: =IF('WK2 - Notional General Income'!D31="","",'WK2 - Notional General Income'!D31) ->  | H31: . | M31: .
C32: Residential | D32: =IF('WK2 - Notional General Income'!D32="","",'WK2 - Notional General Income'!D32) ->  | H32: . | M32: .
C33: Residential | D33: =IF('WK2 - Notional General Income'!D33="","",'WK2 - Notional General Income'!D33) ->  | H33: . | M33: .
C34: Residential | D34: =IF('WK2 - Notional General Income'!D34="","",'WK2 - Notional General Income'!D34) ->  | H34: . | M34: .
C35: Residential | D35: =IF('WK2 - Notional General Income'!D35="","",'WK2 - Notional General Income'!D35) ->  | H35: . | M35: .
C36: Residential | D36: =IF('WK2 - Notional General Income'!D36="","",'WK2 - Notional General Income'!D36) ->  | H36: . | M36: .
C37: Residential | D37: =IF('WK2 - Notional General Income'!D37="","",'WK2 - Notional General Income'!D37) ->  | H37: . | M37: .
C38: Residential | D38: =IF('WK2 - Notional General Income'!D38="","",'WK2 - Notional General Income'!D38) ->  | H38: . | M38: .
D39: Total Residential | E39: =SUM(E19:E38) -> 0 | J39: =SUM(J19:J38) -> 0 | K39: =SUM(K19:K38) -> 0 | L39: =SUM(L19:L38) -> 0 | M39: =SUM(M19:M38) -> 0
C40: Business | D40: =IF('WK2 - Notional General Income'!D40="","",'WK2 - Notional General Income'!D40) ->  | H40: . | M40: =IF(E40="",".",IF(G40<>"",G40*E40+K40*(F40/100),(K40-L40)*(F40/100)+I40*J40)) -> .
C41: Business | D41: =IF('WK2 - Notional General Income'!D41="","",'WK2 - Notional General Income'!D41) ->  | H41: . | M41: .
C42: Business | D42: =IF('WK2 - Notional General Income'!D42="","",'WK2 - Notional General Income'!D42) ->  | H42: . | M42: .
C43: Business | D43: =IF('WK2 - Notional General Income'!D43="","",'WK2 - Notional General Income'!D43) ->  | H43: . | M43: .
C44: Business | D44: =IF('WK2 - Notional General Income'!D44="","",'WK2 - Notional General Income'!D44) ->  | H44: . | M44: .
C45: Business | D45: =IF('WK2 - Notional General Income'!D45="","",'WK2 - Notional General Income'!D45) ->  | H45: . | M45: .
C46: Business | D46: =IF('WK2 - Notional General Income'!D46="","",'WK2 - Notional General Income'!D46) ->  | H46: . | M46: .
C47: Business | D47: =IF('WK2 - Notional General Income'!D47="","",'WK2 - Notional General Income'!D47) ->  | H47: . | M47: .
C48: Business | D48: =IF('WK2 - Notional General Income'!D48="","",'WK2 - Notional General Income'!D48) ->  | H48: . | M48: .
C49: Business | D49: =IF('WK2 - Notional General Income'!D49="","",'WK2 - Notional General Income'!D49) ->  | H49: . | M49: .
C50: Business | D50: =IF('WK2 - Notional General Income'!D50="","",'WK2 - Notional General Income'!D50) ->  | H50: . | M50: .
C51: Business | D51: =IF('WK2 - Notional General Income'!D51="","",'WK2 - Notional General Income'!D51) ->  | H51: . | M51: .
C52: Business | D52: =IF('WK2 - Notional General Income'!D52="","",'WK2 - Notional General Income'!D52) ->  | H52: . | M52: .
C53: Business | D53: =IF('WK2 - Notional General Income'!D53="","",'WK2 - Notional General Income'!D53) ->  | H53: . | M53: .
C54: Business | D54: =IF('WK2 - Notional General Income'!D54="","",'WK2 - Notional General Income'!D54) ->  | H54: . | M54: .
C55: Business | D55: =IF('WK2 - Notional General Income'!D55="","",'WK2 - Notional General Income'!D55) ->  | H55: . | M55: .
C56: Business | D56: =IF('WK2 - Notional General Income'!D56="","",'WK2 - Notional General Income'!D56) ->  | H56: . | M56: .
C57: Business | D57: =IF('WK2 - Notional General Income'!D57="","",'WK2 - Notional General Income'!D57) ->  | H57: . | M57: .
C58: Business | D58: =IF('WK2 - Notional General Income'!D58="","",'WK2 - Notional General Income'!D58) ->  | H58: . | M58: .
C59: Business | D59: =IF('WK2 - Notional General Income'!D59="","",'WK2 - Notional General Income'!D59) ->  | H59: . | M59: .
C60: Business | D60: =IF('WK2 - Notional General Income'!D60="","",'WK2 - Notional General Income'!D60) ->  | H60: . | M60: .
C61: Business | D61: =IF('WK2 - Notional General Income'!D61="","",'WK2 - Notional General Income'!D61) ->  | H61: . | M61: .
C62: Business | D62: =IF('WK2 - Notional General Income'!D62="","",'WK2 - Notional General Income'!D62) ->  | H62: . | M62: .
C63: Business | D63: =IF('WK2 - Notional General Income'!D63="","",'WK2 - Notional General Income'!D63) ->  | H63: . | M63: .
C64: Business | D64: =IF('WK2 - Notional General Income'!D64="","",'WK2 - Notional General Income'!D64) ->  | H64: . | M64: .
D65: Total Business | E65: =SUM(E40:E64) -> 0 | J65: =SUM(J40:J64) -> 0 | K65: =SUM(K40:K64) -> 0 | L65: =SUM(L40:L64) -> 0 | M65: =SUM(M40:M64) -> 0
C66: Farmland | D66: =IF('WK2 - Notional General Income'!D66="","",'WK2 - Notional General Income'!D66) ->  | H66: =IF(G66="",".",E66*G66/M66) -> . | M66: =IF(E66="",".",IF(G66<>"",G66*E66+K66*(F66/100),(K66-L66)*(F66/100)+I66*J66)) -> .
C67: Farmland | D67: =IF('WK2 - Notional General Income'!D67="","",'WK2 - Notional General Income'!D67) ->  | H67: . | M67: .
C68: Farmland | D68: =IF('WK2 - Notional General Income'!D68="","",'WK2 - Notional General Income'!D68) ->  | H68: . | M68: .
C69: Farmland | D69: =IF('WK2 - Notional General Income'!D69="","",'WK2 - Notional General Income'!D69) ->  | H69: . | M69: .
C70: Farmland | D70: =IF('WK2 - Notional General Income'!D70="","",'WK2 - Notional General Income'!D70) ->  | H70: . | M70: .
C71: Farmland | D71: =IF('WK2 - Notional General Income'!D71="","",'WK2 - Notional General Income'!D71) ->  | H71: . | M71: .
C72: Farmland | D72: =IF('WK2 - Notional General Income'!D72="","",'WK2 - Notional General Income'!D72) ->  | H72: . | M72: .
C73: Farmland | D73: =IF('WK2 - Notional General Income'!D73="","",'WK2 - Notional General Income'!D73) ->  | H73: . | M73: .
C74: Farmland | D74: =IF('WK2 - Notional General Income'!D74="","",'WK2 - Notional General Income'!D74) ->  | H74: . | M74: .
C75: Farmland | D75: =IF('WK2 - Notional General Income'!D75="","",'WK2 - Notional General Income'!D75) ->  | H75: . | M75: .
D76: Total Farmland | E76: =SUM(E66:E75) -> 0 | J76: =SUM(J66:J75) -> 0 | K76: =SUM(K66:K75) -> 0 | L76: =SUM(L66:L75) -> 0 | M76: =SUM(M66:M75) -> 0
C77: Mining | D77: =IF('WK2 - Notional General Income'!D77="","",'WK2 - Notional General Income'!D77) ->  | H77: =IF(G77="",".",E77*G77/M77) -> . | M77: =IF(E77="",".",IF(G77<>"",G77*E77+K77*(F77/100),(K77-L77)*(F77/100)+I77*J77)) -> .
C78: Mining | D78: =IF('WK2 - Notional General Income'!D78="","",'WK2 - Notional General Income'!D78) ->  | H78: . | M78: .
C79: Mining | D79: =IF('WK2 - Notional General Income'!D79="","",'WK2 - Notional General Income'!D79) ->  | H79: . | M79: .
C80: Mining | D80: =IF('WK2 - Notional General Income'!D80="","",'WK2 - Notional General Income'!D80) ->  | H80: . | M80: .
C81: Mining | D81: =IF('WK2 - Notional General Income'!D81="","",'WK2 - Notional General Income'!D81) ->  | H81: . | M81: .
C82: Mining | D82: =IF('WK2 - Notional General Income'!D82="","",'WK2 - Notional General Income'!D82) ->  | H82: . | M82: .
C83: Mining | D83: =IF('WK2 - Notional General Income'!D83="","",'WK2 - Notional General Income'!D83) ->  | H83: . | M83: .
C84: Mining | D84: =IF('WK2 - Notional General Income'!D84="","",'WK2 - Notional General Income'!D84) ->  | H84: . | M84: .
C85: Mining | D85: =IF('WK2 - Notional General Income'!D85="","",'WK2 - Notional General Income'!D85) ->  | H85: . | M85: .
C86: Mining | D86: =IF('WK2 - Notional General Income'!D86="","",'WK2 - Notional General Income'!D86) ->  | H86: . | M86: .
D87: Total Mining | E87: =SUM(E77:E86) -> 0 | J87: =SUM(J77:J86) -> 0 | K87: =SUM(K77:K86) -> 0 | L87: =SUM(L77:L86) -> 0 | M87: =SUM(M77:M86) -> 0
C88: Total Assessments: | E88: =E39+E65+E76+E87 -> 0 | H88: Total Rateable Land Value: | K88: =K39+K65+K76+K87 -> 0 | L88: Sub-Total: | M88: =M39+M65+M76+M87 -> 0
H91: Calculation of Notional General Income - Special Rates
C93: Rating Category (s514-518) | D93: Name of special rate | E93: Number of Assessments | F93: Ad Valorem Rate | G93: Base Amount $ | H93: Base Amount % | I93: Minimum Amount $ | J93: Number on Minimum | K93: Land Value as at start of year | L93: Land Value of Land on Minimum | M93: Notional Income
C94: Residential | D94: =IF('WK2 - Notional General Income'!D94="","",'WK2 - Notional General Income'!D94) ->  | H94: =IF(G94="",".",E94*G94/M94) -> . | M94: =IF(E94="",".",IF(G94<>"",G94*E94+K94*(F94/100),(K94-L94)*(F94/100)+I94*J94)) -> .
C95: Residential | D95: =IF('WK2 - Notional General Income'!D95="","",'WK2 - Notional General Income'!D95) ->  | H95: . | M95: .
C96: Residential | D96: =IF('WK2 - Notional General Income'!D96="","",'WK2 - Notional General Income'!D96) ->  | H96: . | M96: .
C97: Residential | D97: =IF('WK2 - Notional General Income'!D97="","",'WK2 - Notional General Income'!D97) ->  | H97: . | M97: .
C98: Residential | D98: =IF('WK2 - Notional General Income'!D98="","",'WK2 - Notional General Income'!D98) ->  | H98: . | M98: .
C99: Residential | D99: =IF('WK2 - Notional General Income'!D99="","",'WK2 - Notional General Income'!D99) ->  | H99: . | M99: .
C100: Residential | D100: =IF('WK2 - Notional General Income'!D100="","",'WK2 - Notional General Income'!D100) ->  | H100: . | M100: .
C101: Residential | D101: =IF('WK2 - Notional General Income'!D101="","",'WK2 - Notional General Income'!D101) ->  | H101: . | M101: .
C102: Residential | D102: =IF('WK2 - Notional General Income'!D102="","",'WK2 - Notional General Income'!D102) ->  | H102: . | M102: .
C103: Residential | D103: =IF('WK2 - Notional General Income'!D103="","",'WK2 - Notional General Income'!D103) ->  | H103: . | M103: .
C104: Business | D104: =IF('WK2 - Notional General Income'!D104="","",'WK2 - Notional General Income'!D104) ->  | H104: . | M104: .
C105: Business | D105: =IF('WK2 - Notional General Income'!D105="","",'WK2 - Notional General Income'!D105) ->  | H105: . | M105: .
C106: Business | D106: =IF('WK2 - Notional General Income'!D106="","",'WK2 - Notional General Income'!D106) ->  | H106: . | M106: .
C107: Business | D107: =IF('WK2 - Notional General Income'!D107="","",'WK2 - Notional General Income'!D107) ->  | H107: . | M107: .
C108: Business | D108: =IF('WK2 - Notional General Income'!D108="","",'WK2 - Notional General Income'!D108) ->  | H108: . | M108: .
C109: Business | D109: =IF('WK2 - Notional General Income'!D109="","",'WK2 - Notional General Income'!D109) ->  | H109: . | M109: .
C110: Business | D110: =IF('WK2 - Notional General Income'!D110="","",'WK2 - Notional General Income'!D110) ->  | H110: . | M110: .
C111: Business | D111: =IF('WK2 - Notional General Income'!D111="","",'WK2 - Notional General Income'!D111) ->  | H111: . | M111: .
C112: Business | D112: =IF('WK2 - Notional General Income'!D112="","",'WK2 - Notional General Income'!D112) ->  | H112: . | M112: .
C113: Business | D113: =IF('WK2 - Notional General Income'!D113="","",'WK2 - Notional General Income'!D113) ->  | H113: . | M113: .
C114: Business | D114: =IF('WK2 - Notional General Income'!D114="","",'WK2 - Notional General Income'!D114) ->  | H114: . | M114: .
C115: Business | D115: =IF('WK2 - Notional General Income'!D115="","",'WK2 - Notional General Income'!D115) ->  | H115: . | M115: .
C116: Business | D116: =IF('WK2 - Notional General Income'!D116="","",'WK2 - Notional General Income'!D116) ->  | H116: . | M116: .
C117: Business | D117: =IF('WK2 - Notional General Income'!D117="","",'WK2 - Notional General Income'!D117) ->  | H117: . | M117: .
C118: Business | D118: =IF('WK2 - Notional General Income'!D118="","",'WK2 - Notional General Income'!D118) ->  | H118: . | M118: .
C119: Business | D119: =IF('WK2 - Notional General Income'!D119="","",'WK2 - Notional General Income'!D119) ->  | H119: . | M119: .
C120: Business | D120: =IF('WK2 - Notional General Income'!D120="","",'WK2 - Notional General Income'!D120) ->  | H120: . | M120: .
C121: Business | D121: =IF('WK2 - Notional General Income'!D121="","",'WK2 - Notional General Income'!D121) ->  | H121: . | M121: .
C122: Business | D122: =IF('WK2 - Notional General Income'!D122="","",'WK2 - Notional General Income'!D122) ->  | H122: . | M122: .
C123: Business | D123: =IF('WK2 - Notional General Income'!D123="","",'WK2 - Notional General Income'!D123) ->  | H123: . | M123: .
C124: Farmland | D124: =IF('WK2 - Notional General Income'!D124="","",'WK2 - Notional General Income'!D124) ->  | H124: . | M124: .
C125: Farmland | D125: =IF('WK2 - Notional General Income'!D125="","",'WK2 - Notional General Income'!D125) ->  | H125: . | M125: .
C126: Farmland | D126: =IF('WK2 - Notional General Income'!D126="","",'WK2 - Notional General Income'!D126) ->  | H126: =IF(G126="",".",E126*G126/M126) -> . | M126: =IF(E126="",".",IF(G126<>"",G126*E126+K126*(F126/100),(K126-L126)*(F126/100)+I126*J126)) -> .
C127: Farmland | D127: =IF('WK2 - Notional General Income'!D127="","",'WK2 - Notional General Income'!D127) ->  | H127: . | M127: .
C128: Farmland | D128: =IF('WK2 - Notional General Income'!D128="","",'WK2 - Notional General Income'!D128) ->  | H128: . | M128: .
C129: Farmland | D129: =IF('WK2 - Notional General Income'!D129="","",'WK2 - Notional General Income'!D129) ->  | H129: . | M129: .
C130: Farmland | D130: =IF('WK2 - Notional General Income'!D130="","",'WK2 - Notional General Income'!D130) ->  | H130: . | M130: .
C131: Farmland | D131: =IF('WK2 - Notional General Income'!D131="","",'WK2 - Notional General Income'!D131) ->  | H131: . | M131: .
C132: Farmland | D132: =IF('WK2 - Notional General Income'!D132="","",'WK2 - Notional General Income'!D132) ->  | H132: . | M132: .
C133: Farmland | D133: =IF('WK2 - Notional General Income'!D133="","",'WK2 - Notional General Income'!D133) ->  | H133: . | M133: .
C134: Mining | D134: =IF('WK2 - Notional General Income'!D134="","",'WK2 - Notional General Income'!D134) ->  | H134: . | M134: .
C135: Mining | D135: =IF('WK2 - Notional General Income'!D135="","",'WK2 - Notional General Income'!D135) ->  | H135: . | M135: .
C136: Mining | D136: =IF('WK2 - Notional General Income'!D136="","",'WK2 - Notional General Income'!D136) ->  | H136: . | M136: .
C137: Mining | D137: =IF('WK2 - Notional General Income'!D137="","",'WK2 - Notional General Income'!D137) ->  | H137: . | M137: .
C138: Mining | D138: =IF('WK2 - Notional General Income'!D138="","",'WK2 - Notional General Income'!D138) ->  | H138: . | M138: .
C139: Mining | D139: =IF('WK2 - Notional General Income'!D139="","",'WK2 - Notional General Income'!D139) ->  | H139: . | M139: .
C140: Mining | D140: =IF('WK2 - Notional General Income'!D140="","",'WK2 - Notional General Income'!D140) ->  | H140: . | M140: .
C141: Mining | D141: =IF('WK2 - Notional General Income'!D141="","",'WK2 - Notional General Income'!D141) ->  | H141: . | M141: .
C142: Mining | D142: =IF('WK2 - Notional General Income'!D142="","",'WK2 - Notional General Income'!D142) ->  | H142: . | M142: .
C143: Mining | D143: =IF('WK2 - Notional General Income'!D143="","",'WK2 - Notional General Income'!D143) ->  | H143: . | M143: .
L144: Sub-Total: | M144: =SUM(M94:M143) -> 0
H147: Calculation of Notional General Income - Annual Charges
C149: Annual Charges (excluding water supply, sewerage and domestic and non-domestic waste management services) | K149: Number of Assessments | L149: Amount of Charge $ | M149: Notional Income
M150: =IF(C150="",".",K150*L150) -> .
M151: .
M152: .
M153: .
M154: .
M155: .
M156: .
M157: .
L158: Sub-Total: | M158: =SUM(M150:M157) -> 0
G161: Total Notional General Income | M161: =M88+M144+M158 -> 0
G163: LESS: Valuation Objection Income | M163: =-'WK1 - Identification'!K52 -> -43121
G165: NET Notional General Income | M165: =M161+M163 -> -43121
C168: Note: Section 505(a) of the Act provides for those rates and charges that are to be included in general income, including certain section 501 annual charges.

Sheet WK4 - PGI summary
C3: ='WK2 - Notional General Income'!$C$3 -> City of Parramatta Council
E5: WORKSHEET 4
E7: ="PERMISSIBLE GENERAL INCOME SUMMARY FOR "&'WK0 - Input data'!$D$45 -> PERMISSIBLE GENERAL INCOME SUMMARY FOR 2022-23
E8: All dollars in nominal terms
E9: Please check all income adjustments and expiring variation amounts with OLG
E10: before submitting the application. | J10: check = 0
C11: Prior year Notional General Income | H11: ='WK1 - Identification'!$K$27 -> 159982939 | J11: =IF(H11=0,0,H11-G45) -> 0
C12: Less: | D12: Expiry of a prior special variation | H12: ='WK1 - Identification'!F80 -> 0 | J12: =IF(H12=0,0,H12-G46) -> 0
C14: Adjusted first year Notional General Income | G14: $ | H14: =H11-H12 -> 159982939
C16: Plus: | D16: Rate peg - first year | F16: ='WK1 - Identification'!G68 -> 0.007 | H16: =H$14*F16 -> 1119880.573 | J16: =IF(H16=0,0,H16-G49) -> 0
C17: Plus: | D17: =CHOOSE('WK1 - Identification'!$S$24,"Existing SV above rate peg - first year","na") -> na | F17: ='WK1 - Identification'!G69 -> 0 | H17: =H$14*F17 -> 0
C18: Plus: | D18: Additional increase - first year | F18: ='WK1 - Identification'!G70 -> 0.018 | H18: 2879692.902 | J18: =IF(H18=0,0,H18-G51) -> 0
C20: Plus: | D20: Crown Land adjustment - first year | F20: =IF(H14=0,0,H20/H14) -> 0 | H20: ='WK1 - Identification'!K50 -> 0 | J20: =IF(H20=0,0,H20-G53) -> 0
D22: Total special variation - first year | F22: =SUM(F16:F20) -> 0.025 | G22: $ | H22: =H14*F22 -> 3999573.475 | J22: =IF(H22=0,0,H22-G54) -> 0
J23: =SUM(H16:H20)-H22 -> 0
C24: Other First Year Adjustments:
C25: Plus/Minus: | D25: Prior year Catch-up/(Excess) | H25: ='WK1 - Identification'!K51 -> -688430
C26: Minus: | D26: Valuation Objections claimed in prior year | H26: =-'WK1 - Identification'!K52 -> -43121
F29: Total Adjustments | H29: =H25+H26 -> -731551 | J29: =H29-G57 -> 0
D31: First year Permissible General Income | G31: $ | H31: =H14+H22+H29 -> 163250961.5 | J31: =IF(H31=0,0,H31-G58) -> 0
B37: ="PERMISSABLE GENERAL INCOME (PGI) OVER PROPOSED SV PERIOD ("&E45&")" -> PERMISSABLE GENERAL INCOME (PGI) OVER PROPOSED SV PERIOD ($ nominal)
F39: ='WK0 - Input data'!F$55 -> Year 0 | G39: ='WK0 - Input data'!G$55 -> Year 1 | H39: ='WK0 - Input data'!H$55 -> Year 2 | I39: ='WK0 - Input data'!I$55 -> Year 3 | J39: ='WK0 - Input data'!J$55 -> Year 4 | K39: ='WK0 - Input data'!K$55 -> Year 5 | L39: ='WK0 - Input data'!L$55 -> Year 6 | M39: ='WK0 - Input data'!M$55 -> Year 7 | N39: Total | O39: increase
C40: ='WK0 - Input data'!B$58 -> Financial year | E40: units | F40: ='WK0 - Input data'!F$58 -> 2021-22 | G40: ='WK0 - Input data'!G$58 -> 2022-23 | H40: ='WK0 - Input data'!H$58 -> 2023-24 | I40: ='WK0 - Input data'!I$58 -> 2024-25 | J40: ='WK0 - Input data'!J$58 -> 2025-26 | K40: ='WK0 - Input data'!K$58 -> 2026-27 | L40: ='WK0 - Input data'!L$58 -> 2027-28 | M40: ='WK0 - Input data'!M$58 -> 2028-29 | N40: =E45 -> $ nominal | O40: %
G41: =IF('WK1 - Identification'!G63=1,"Proposed SV period",IF(AND('WK1 - Identification'!G63=0,'WK1 - Identification'!G66>0),"Existing SV period","no SV")) -> Proposed SV period | H41: =IF('WK1 - Identification'!H63=1,"Proposed SV period",IF(AND('WK1 - Identification'!H63=0,'WK1 - Identification'!H66>0),"Existing SV period","no SV")) -> no SV | I41: =IF('WK1 - Identification'!I63=1,"Proposed SV period",IF(AND('WK1 - Identification'!I63=0,'WK1 - Identification'!I66>0),"Existing SV period","no SV")) -> no SV | J41: =IF('WK1 - Identification'!J63=1,"Proposed SV period",IF(AND('WK1 - Identification'!J63=0,'WK1 - Identification'!J66>0),"Existing SV period","no SV")) -> no SV | K41: =IF('WK1 - Identification'!K63=1,"Proposed SV period",IF(AND('WK1 - Identification'!K63=0,'WK1 - Identification'!K66>0),"Existing SV period","no SV")) -> no SV | L41: =IF('WK1 - Identification'!L63=1,"Proposed SV period",IF(AND('WK1 - Identification'!L63=0,'WK1 - Identification'!L66>0),"Existing SV period","no SV")) -> no SV | M41: =IF('WK1 - Identification'!M63=1,"Proposed SV period",IF(AND('WK1 - Identification'!M63=0,'WK1 - Identification'!M66>0),"Existing SV period","no SV")) -> no SV
C42: ='WK1 - Identification'!C64 -> 0 = beyond temporary SV period | F42: ='WK1 - Identification'!F64 -> 1 | G42: ='WK1 - Identification'!G64 -> 1 | H42: ='WK1 - Identification'!H64 -> 0 | I42: ='WK1 - Identification'!I64 -> 0 | J42: ='WK1 - Identification'!J64 -> 0 | K42: ='WK1 - Identification'!K64 -> 0 | L42: ='WK1 - Identification'!L64 -> 0 | M42: ='WK1 - Identification'!M64 -> 0
C44: PGI with proposed SV
C45: Prior year Notional General Income (NGI) | E45: ='WK0 - Input data'!$C$62 -> $ nominal | G45: ='WK1 - Identification'!K27 -> 159982939 | H45: =IF(H$42=0,0,G58) -> 0 | I45: =IF(I$42=0,0,H58) -> 0 | J45: 0 | K45: 0 | L45: =IF(L$42=0,0,K58) -> 0 | M45: =IF(M$42=0,0,L58) -> 0
C46: less | D46: expiry of a prior special variation | E46: =E45 -> $ nominal | G46: ='WK1 - Identification'!F80 -> 0 | H46: =IF(H$42=0,0,'WK1 - Identification'!G80) -> 0 | I46: =IF(I$42=0,0,'WK1 - Identification'!H80) -> 0 | J46: =IF(J$42=0,0,'WK1 - Identification'!I80) -> 0 | K46: =IF(K$42=0,0,'WK1 - Identification'!J80) -> 0 | L46: =IF(L$42=0,0,'WK1 - Identification'!K80) -> 0 | M46: =IF(M$42=0,0,'WK1 - Identification'!L80) -> 0
C47: Adjusted Notional General income | E47: =E46 -> $ nominal | G47: =G45-G46 -> 159982939 | H47: =H45-H46 -> 0 | I47: 0 | J47: 0 | K47: 0 | L47: =L45-L46 -> 0 | M47: 0
C49: plus | D49: rate peg increase | E49: =$E$45 -> $ nominal | G49: =G$47*'WK1 - Identification'!G68 -> 1119880.573 | H49: =H$47*'WK1 - Identification'!H68 -> 0 | I49: =I$47*'WK1 - Identification'!I68 -> 0 | J49: =J$47*'WK1 - Identification'!J68 -> 0 | K49: =K$47*'WK1 - Identification'!K68 -> 0 | L49: =L$47*'WK1 - Identification'!L68 -> 0 | M49: =M$47*'WK1 - Identification'!M68 -> 0
C50: plus | D50: =CHOOSE('WK1 - Identification'!$S$24,"existing SV above rate peg","na") -> na | E50: =$E$45 -> $ nominal | G50: =G$47*'WK1 - Identification'!G69 -> 0 | H50: =H$47*'WK1 - Identification'!H69 -> 0 | I50: =I$47*'WK1 - Identification'!I69 -> 0 | J50: =J$47*'WK1 - Identification'!J69 -> 0 | K50: =K$47*'WK1 - Identification'!K69 -> 0 | L50: =L$47*'WK1 - Identification'!L69 -> 0 | M50: =M$47*'WK1 - Identification'!M69 -> 0
C51: =C49 -> plus | D51: =CHOOSE('WK1 - Identification'!$S$41,"additional increase that is temporary","additional increase") -> additional increase | E51: =E49 -> $ nominal | G51: =G$47*'WK1 - Identification'!G70 -> 2879692.902 | H51: =H$47*'WK1 - Identification'!H70 -> 0 | I51: =I$47*'WK1 - Identification'!I70 -> 0 | J51: =J$47*'WK1 - Identification'!J70 -> 0 | K51: =K$47*'WK1 - Identification'!K70 -> 0 | L51: =L$47*'WK1 - Identification'!L70 -> 0 | M51: =M$47*'WK1 - Identification'!M70 -> 0
C52: =C50 -> plus | D52: =CHOOSE('WK1 - Identification'!$S$41,"additional increase that is permanent","na") -> na | E52: =E50 -> $ nominal | G52: =G$47*'WK1 - Identification'!G71 -> 0 | H52: =H$47*'WK1 - Identification'!H71 -> 0 | I52: =I$47*'WK1 - Identification'!I71 -> 0 | J52: =J$47*'WK1 - Identification'!J71 -> 0 | K52: =K$47*'WK1 - Identification'!K71 -> 0 | L52: =L$47*'WK1 - Identification'!L71 -> 0 | M52: =M$47*'WK1 - Identification'!M71 -> 0
C53: =C51 -> plus | D53: Crown Land adjustment | E53: $ nominal | G53: =G$47*'WK1 - Identification'!G72 -> 0 | H53: =H$47*'WK1 - Identification'!H72 -> 0 | I53: =I$47*'WK1 - Identification'!I72 -> 0 | J53: =J$47*'WK1 - Identification'!J72 -> 0 | K53: =K$47*'WK1 - Identification'!K72 -> 0 | L53: =L$47*'WK1 - Identification'!L72 -> 0 | M53: =M$47*'WK1 - Identification'!M72 -> 0
C54: Total proposed SV | E54: =E53 -> $ nominal | G54: =SUM(G49:G53) -> 3999573.475 | H54: =SUM(H49:H53) -> 0 | I54: 0 | J54: 0 | K54: 0 | L54: =SUM(L49:L53) -> 0 | M54: 0
C56: Notional General Income after SV applied | E56: =$E$45 -> $ nominal | G56: =G47+G54 -> 163982512.5 | H56: =H47+H54 -> 0 | I56: 0 | J56: 0 | K56: 0 | L56: =L47+L54 -> 0 | M56: 0
C57: =C49 -> plus | D57: other 1st-year adjustments | E57: =E56 -> $ nominal | G57: ='WK1 - Identification'!K51-'WK1 - Identification'!K52 -> -731551 | H57: 0 | I57: 0 | J57: 0 | K57: 0 | L57: 0 | M57: 0
C58: PGI with proposed SV | E58: =E57 -> $ nominal | F58: =G45 -> 159982939 | G58: =G56+G57 -> 163250961.5 | H58: =H56+H57 -> 0 | I58: 0 | J58: 0 | K58: 0 | L58: =L56+L57 -> 0 | M58: 0 | N58: =INDEX(F58:M58,'WK1 - Identification'!$S$38+1)-F58 -> 3268022.475 | O58: =IF(F58=0,0,N58/F58) -> 0.02042731866
C61: =CHOOSE('WK1 - Identification'!$S$24,"PGI if only the existing SV/rate peg applied","PGI if only the rate peg applied") -> PGI if only the rate peg applied
C62: =C45 -> Prior year Notional General Income (NGI) | E62: =$E$45 -> $ nominal | G62: =IF(G$42=0,0,G45) -> 159982939 | H62: =IF(H$42=0,0,G68) -> 0 | I62: 0 | J62: 0 | K62: 0 | L62: 0 | M62: =IF(M$42=0,0,L68) -> 0
C63: =C46 -> less | D63: =D46 -> expiry of a prior special variation | E63: =E62 -> $ nominal | G63: =G46 -> 0 | H63: 0 | I63: 0 | J63: 0 | K63: 0 | L63: 0 | M63: =M46 -> 0
C64: =C47 -> Adjusted Notional General income | E64: =E63 -> $ nominal | G64: =G62-G63 -> 159982939 | H64: 0 | I64: 0 | J64: 0 | K64: 0 | L64: 0 | M64: =M62-M63 -> 0
C65: =C49 -> plus | D65: =D49 -> rate peg increase | E65: =$E$45 -> $ nominal | G65: =IF(G$42=0,0,'WK1 - Identification'!G68*G$64) -> 1119880.573 | H65: =IF(H$42=0,0,'WK1 - Identification'!H68*H$64) -> 0 | I65: =IF(I$42=0,0,'WK1 - Identification'!I68*I$64) -> 0 | J65: =IF(J$42=0,0,'WK1 - Identification'!J68*J$64) -> 0 | K65: =IF(K$42=0,0,'WK1 - Identification'!K68*K$64) -> 0 | L65: =IF(L$42=0,0,'WK1 - Identification'!L68*L$64) -> 0 | M65: =IF(M$42=0,0,'WK1 - Identification'!M68*M$64) -> 0
C66: =C50 -> plus | D66: =D50 -> na | E66: =$E$45 -> $ nominal | G66: ='WK1 - Identification'!G69*G$64 -> 0 | H66: ='WK1 - Identification'!H69*H$64 -> 0 | I66: ='WK1 - Identification'!I69*I$64 -> 0 | J66: ='WK1 - Identification'!J69*J$64 -> 0 | K66: ='WK1 - Identification'!K69*K$64 -> 0 | L66: ='WK1 - Identification'!L69*L$64 -> 0 | M66: ='WK1 - Identification'!M69*M$64 -> 0
C67: =C57 -> plus | D67: =D57 -> other 1st-year adjustments | E67: =E65 -> $ nominal | G67: =G57 -> -731551 | H67: 0 | I67: 0 | J67: 0 | K67: 0 | L67: 0 | M67: =M57 -> 0
C68: =CHOOSE('WK1 - Identification'!$S$24,"PGI if only the existing SV/rate peg applied","PGI if only the rate peg applied") -> PGI if only the rate peg applied | E68: =E67 -> $ nominal | F68: =$G$45 -> 159982939 | G68: =SUM(G64:G67) -> 160371268.6 | H68: 0 | I68: 0 | J68: 0 | K68: 0 | L68: 0 | M68: =SUM(M64:M67) -> 0 | N68: =INDEX(F68:M68,'WK1 - Identification'!$S$38+1)-F68 -> 388329.573 | O68: =IF(F68=0,0,N68/F68) -> 0.002427318659
C71: =CHOOSE('WK1 - Identification'!$S$24,"PGI if expiring SV renewed and only existing SV/rate peg applied","PGI if expiring SV renewed and only rate peg applied") -> PGI if expiring SV renewed and only rate peg applied
C72: =C62 -> Prior year Notional General Income (NGI) | E72: =$E$45 -> $ nominal | G72: =IF(G$42=0,0,G45) -> 159982939 | H72: =IF(H$42=0,0,G76) -> 0 | I72: 0 | J72: 0 | K72: 0 | L72: 0 | M72: =IF(M$42=0,0,L76) -> 0
C73: =C65 -> plus | D73: rate peg increase | E73: =E72 -> $ nominal | G73: =G$72*'WK1 - Identification'!G68 -> 1119880.573 | H73: =H$72*'WK1 - Identification'!H68 -> 0 | I73: =I$72*'WK1 - Identification'!I68 -> 0 | J73: =J$72*'WK1 - Identification'!J68 -> 0 | K73: =K$72*'WK1 - Identification'!K68 -> 0 | L73: =L$72*'WK1 - Identification'!L68 -> 0 | M73: =M$72*'WK1 - Identification'!M68 -> 0
C74: plus | D74: na | E74: =E73 -> $ nominal | G74: =G$72*'WK1 - Identification'!G69 -> 0 | H74: =H$72*'WK1 - Identification'!H69 -> 0 | I74: =I$72*'WK1 - Identification'!I69 -> 0 | J74: =J$72*'WK1 - Identification'!J69 -> 0 | K74: =K$72*'WK1 - Identification'!K69 -> 0 | L74: =L$72*'WK1 - Identification'!L69 -> 0 | M74: =M$72*'WK1 - Identification'!M69 -> 0
C75: plus | D75: other 1st-year adjustments | E75: =E73 -> $ nominal | G75: =G57 -> -731551 | H75: 0 | I75: 0 | J75: 0 | K75: 0 | L75: 0 | M75: =M57 -> 0
C76: =C71 -> PGI if expiring SV renewed and only rate peg applied | E76: =E75 -> $ nominal | F76: =$G$45 -> 159982939 | G76: =SUM(G72:G75) -> 160371268.6 | H76: 0 | I76: 0 | J76: 0 | K76: 0 | L76: 0 | M76: =SUM(M72:M75) -> 0 | N76: =INDEX(F76:M76,'WK1 - Identification'!$S$38+1)-F76 -> 388329.573 | O76: =IF(F76=0,0,N76/F76) -> 0.002427318659
B81: INCREASES IN PERMISSABLE GENERAL INCOME (PGI) OVER PROPOSED SV PERIOD (nominal)
F83: =F$39 -> Year 0 | G83: Year 1 | H83: Year 2 | I83: Year 3 | J83: Year 4 | K83: Year 5 | L83: Year 6 | M83: Year 7 | N83: Total | O83: increase | Q83: check = 0
C84: =C$40 -> Financial year | F84: =F$40 -> 2021-22 | G84: 2022-23 | H84: 2023-24 | I84: 2024-25 | J84: 2025-26 | K84: 2026-27 | L84: 2027-28 | M84: 2028-29 | N84: =E92 -> $ nominal | O84: %
C86: Annual % increase in PGI
C87: =$C$58 -> PGI with proposed SV | E87: % | G87: =IF(F$58=0,0,G92/F$58) -> 0.02042731866 | H87: =IF(G$58=0,0,H92/G$58) -> 0 | I87: =IF(H$58=0,0,I92/H$58) -> 0 | J87: 0 | K87: =IF(J$58=0,0,K92/J$58) -> 0 | L87: =IF(K$58=0,0,L92/K$58) -> 0 | M87: =IF(L$58=0,0,M92/L$58) -> 0 | O87: =O58 -> 0.02042731866
C88: =$C$68 -> PGI if only the rate peg applied | E88: =E87 -> % | G88: =IF(F$58=0,0,G93/F$58) -> 0.002427318659 | H88: =IF(G$68=0,0,H93/G$68) -> 0 | I88: =IF(H$68=0,0,I93/H$68) -> 0 | J88: =IF(I$68=0,0,J93/I$68) -> 0 | K88: =IF(J$68=0,0,K93/J$68) -> 0 | L88: =IF(K$68=0,0,L93/K$68) -> 0 | M88: =IF(L$68=0,0,M93/L$68) -> 0 | O88: =O68 -> 0.002427318659
C89: =C76 -> PGI if expiring SV renewed and only rate peg applied | E89: =E88 -> % | G89: =IF(F$58=0,0,G94/F$58) -> 0.002427318659 | H89: =IF(G$76=0,0,H94/G$76) -> 0 | I89: 0 | J89: 0 | K89: 0 | L89: 0 | M89: 0 | O89: =O76 -> 0.002427318659
C91: Annual $ increase in PGI
C92: =C87 -> PGI with proposed SV | E92: =$E$45 -> $ nominal | G92: =IF(G$42=0,0,G58-F58) -> 3268022.475 | H92: 0 | I92: 0 | J92: 0 | K92: 0 | L92: 0 | M92: 0 | N92: =SUMPRODUCT(G92:M92,'WK1 - Identification'!$G$63:$M$63) -> 3268022.475 | O92: =IF($F$58=0,0,N92/$F$58) -> 0.02042731866 | Q92: =N92-N58 -> 0
C93: =C88 -> PGI if only the rate peg applied | E93: =E92 -> $ nominal | G93: =IF(G$42=0,0,G68-F68) -> 388329.573 | H93: 0 | I93: 0 | J93: 0 | K93: 0 | L93: 0 | M93: =IF(M$42=0,0,M68-L68) -> 0 | N93: =SUMPRODUCT(G93:M93,'WK1 - Identification'!$G$63:$M$63) -> 388329.573 | O93: =IF($F$58=0,0,N93/$F$58) -> 0.002427318659 | Q93: =N93-N68 -> 0
C94: =C89 -> PGI if expiring SV renewed and only rate peg applied | E94: =E93 -> $ nominal | G94: =IF(G$42=0,0,G76-F76) -> 388329.573 | H94: 0 | I94: 0 | J94: 0 | K94: 0 | L94: 0 | M94: =IF(M$42=0,0,M76-L76) -> 0 | N94: =SUMPRODUCT(G94:M94,'WK1 - Identification'!$G$63:$M$63) -> 388329.573 | O94: 0.002427318659 | Q94: =N94-N76 -> 0
C96: Annual $ increase in PGI with proposed SV more than:
C97: =C88 -> PGI if only the rate peg applied | E97: =$E$45 -> $ nominal | G97: =G92-G93 -> 2879692.902 | H97: 0 | I97: 0 | J97: =J92-J93 -> 0 | K97: 0 | L97: 0 | M97: =M92-M93 -> 0 | N97: =SUMPRODUCT(G97:M97,'WK1 - Identification'!$G$63:$M$63) -> 2879692.902 | O97: =O92-O93 -> 0.018 | Q97: =IF(F68=0,0,(N58-N68)/F68-O97) -> 0
C98: =C89 -> PGI if expiring SV renewed and only rate peg applied | E98: =E97 -> $ nominal | G98: =G92-G94 -> 2879692.902 | H98: 0 | I98: 0 | J98: =J92-J94 -> 0 | K98: 0 | L98: 0 | M98: =M92-M94 -> 0 | N98: =SUMPRODUCT(G98:M98,'WK1 - Identification'!$G$63:$M$63) -> 2879692.902 | O98: =O92-O94 -> 0.018 | Q98: =IF(F76=0,0,(N58-N76)/F76-O98) -> 0
Q99: =N93-N92+N97 -> 0
C100: Cumulative PGI | Q100: =N94-N92+N98 -> 0
C101: =$C$58 -> PGI with proposed SV | E101: =E98 -> $ nominal | G101: =IF(G$42=0,0,SUM($G58:G58)) -> 163250961.5 | H101: =IF(H$42=0,0,SUM($G58:H58)) -> 0 | I101: =IF(I$42=0,0,SUM($G58:I58)) -> 0 | J101: =IF(J$42=0,0,SUM($G58:J58)) -> 0 | K101: =IF(K$42=0,0,SUM($G58:K58)) -> 0 | L101: =IF(L$42=0,0,SUM($G58:L58)) -> 0 | M101: =IF(M$42=0,0,SUM($G58:M58)) -> 0 | N101: =SUMPRODUCT(G101:M101,'WK1 - Identification'!$G$63:$M$63) -> 163250961.5
C102: =$C$68 -> PGI if only the rate peg applied | E102: =E101 -> $ nominal | G102: =IF(G$42=0,0,SUM($G68:G68)) -> 160371268.6 | H102: =IF(H$42=0,0,SUM($G68:H68)) -> 0 | I102: =IF(I$42=0,0,SUM($G68:I68)) -> 0 | J102: =IF(J$42=0,0,SUM($G68:J68)) -> 0 | K102: =IF(K$42=0,0,SUM($G68:K68)) -> 0 | L102: =IF(L$42=0,0,SUM($G68:L68)) -> 0 | M102: =IF(M$42=0,0,SUM($G68:M68)) -> 0 | N102: =SUMPRODUCT(G102:M102,'WK1 - Identification'!$G$63:$M$63) -> 160371268.6
C103: =C94 -> PGI if expiring SV renewed and only rate peg applied | E103: =E102 -> $ nominal | G103: =IF(G$42=0,0,SUM($G76:G76)) -> 160371268.6 | H103: =IF(H$42=0,0,SUM($G76:H76)) -> 0 | I103: =IF(I$42=0,0,SUM($G76:I76)) -> 0 | J103: =IF(J$42=0,0,SUM($G76:J76)) -> 0 | K103: =IF(K$42=0,0,SUM($G76:K76)) -> 0 | L103: =IF(L$42=0,0,SUM($G76:L76)) -> 0 | M103: =IF(M$42=0,0,SUM($G76:M76)) -> 0 | N103: =SUMPRODUCT(G103:M103,'WK1 - Identification'!$G$63:$M$63) -> 160371268.6
C105: Increase in cumulative PGI with proposed SV that exceeds the increase in the PGI under
C106: =C88 -> PGI if only the rate peg applied | E106: =$E$45 -> $ nominal | G106: =G$101-G102 -> 2879692.902 | H106: 0 | I106: 0 | J106: 0 | K106: 0 | L106: 0 | M106: =M$101-M102 -> 0 | N106: =SUMPRODUCT(G106:M106,'WK1 - Identification'!$G$63:$M$63) -> 2879692.902 | O106: =IF(N102=0,0,N106/N102) -> 0.01795641406 | Q106: =N101-N102-N106 -> 0
C107: =C89 -> PGI if expiring SV renewed and only rate peg applied | E107: =E106 -> $ nominal | G107: =G$101-G103 -> 2879692.902 | H107: 0 | I107: 0 | J107: 0 | K107: 0 | L107: 0 | M107: =M$101-M103 -> 0 | N107: =SUMPRODUCT(G107:M107,'WK1 - Identification'!$G$63:$M$63) -> 2879692.902 | O107: =IF(N103=0,0,N107/N103) -> 0.01795641406 | Q107: =N101-N103-N107 -> 0

Sheet WK5a - Impact on Rates (hidden)
C3: ='WK2 - Notional General Income'!$C$3 -> City of Parramatta Council
F5: WORKSHEET 5a
F7: IMPACT ON MINIMUM RATES, AVERAGE RATES AND OTHER CHARGES
F8: All dollars in nominal terms
D10: The aim of this sheet is to show the minimum rate increase (if applicable), the average rate increase per sub-category
D11: (inclusive of all relevant rates) and the proposed annual charges in each year of the proposed special variation.
D12: It also aims to compare average rates with and without the proposed special variation.
D13: All ordinary rates and special rates need to be included.
D14: Note: rate estimates should reflect expected minimum or average rates, inclusive of any expiring variations.
F16: Minimum Rates - with proposed special variation
D17: If the council levies minimum rates for any category or sub-category, these rates should be detailed below.
D18: A separate minimum rates application is not necessary if the council is applying for a special variation
D19: that will have the effect of causing a minimum rate to exceed the statutory limit. | S19: Annual and cumulative increases
C21: Minimum Rates - with proposed special variation | H21: ='WK0 - Input data'!$C$63 -> $ nominal per year | O21: Number of assessments | S21: Annual increases (nominal $ per year) | AA21: Annual increases (%) | AI21: Cumulative increases (nominal $ per year) | AQ21: Cumulative increases (%)
C22: Category | D22: Sub-category or Special Rate name | E22: Current Minimum Rate | F22: Minimum Rate Year 1 | G22: Minimum Rate Year 2 | H22: Minimum Rate Year 3 | I22: Minimum Rate Year 4 | J22: Minimum Rate Year 5 | K22: Minimum Rate Year 6 | L22: Minimum Rate Year 7 | O22: (used to calculate average | S22: =C21 -> Minimum Rates - with proposed special variation | AA22: =$S22 -> Minimum Rates - with proposed special variation | AI22: =$S22 -> Minimum Rates - with proposed special variation | AQ22: =$S22 -> Minimum Rates - with proposed special variation
E23: ='WK1 - Identification'!F$62 -> 2021-22 | F23: ='WK1 - Identification'!G$62 -> 2022-23 | G23: ='WK1 - Identification'!H$62 -> 2023-24 | H23: ='WK1 - Identification'!I$62 -> 2024-25 | I23: ='WK1 - Identification'!J$62 -> 2025-26 | J23: ='WK1 - Identification'!K$62 -> 2026-27 | K23: ='WK1 - Identification'!L$62 -> 2027-28 | L23: ='WK1 - Identification'!M$62 -> 2028-29 | O23: rates) | S23: ='WK0 - Input data'!G55 -> Year 1 | T23: ='WK0 - Input data'!H55 -> Year 2 | U23: ='WK0 - Input data'!I55 -> Year 3 | V23: ='WK0 - Input data'!J55 -> Year 4 | W23: ='WK0 - Input data'!K55 -> Year 5 | X23: ='WK0 - Input data'!L55 -> Year 6 | Y23: ='WK0 - Input data'!M55 -> Year 7 | AA23: =AI23 -> Year 1 | AB23: Year 2 | AC23: Year 3 | AD23: Year 4 | AE23: Year 5 | AF23: Year 6 | AG23: Year 7 | AI23: =S23 -> Year 1 | AJ23: =T23 -> Year 2 | AK23: Year 3 | AL23: Year 4 | AM23: Year 5 | AN23: =X23 -> Year 6 | AO23: =Y23 -> Year 7 | AQ23: =AA23 -> Year 1 | AR23: Year 2 | AS23: Year 3 | AT23: Year 4 | AU23: Year 5 | AV23: Year 6 | AW23: Year 7
C24: ='WK3 - Notional GI Yr1 YIELD'!C19 -> Residential | D24: =IF('WK2 - Notional General Income'!D19="","",'WK2 - Notional General Income'!D19) ->  | S24: =IF(F24=0,".",F24-E24) -> . | T24: =IF(G24="",".",G24-F24) -> . | U24: =IF(H24="",".",H24-G24) -> . | V24: =IF(I24="",".",I24-H24) -> . | W24: =IF(J24="",".",J24-I24) -> . | X24: =IF(K24="",".",K24-J24) -> . | Y24: =IF(L24="",".",L24-K24) -> . | AA24: =IFERROR(F24/E24-1,".") -> . | AB24: =IFERROR(G24/F24-1,".") -> . | AC24: =IFERROR(H24/G24-1,".") -> . | AD24: =IFERROR(I24/H24-1,".") -> . | AE24: =IFERROR(J24/I24-1,".") -> . | AF24: =IFERROR(K24/J24-1,".") -> . | AG24: =IFERROR(L24/K24-1,".") -> . | AI24: =IF(S24=".",".",SUM($S24:S24)) -> . | AJ24: =IF(T24=".",".",SUM($S24:T24)) -> . | AK24: =IF(U24=".",".",SUM($S24:U24)) -> . | AL24: =IF(V24=".",".",SUM($S24:V24)) -> . | AM24: =IF(W24=".",".",SUM($S24:W24)) -> . | AN24: =IF(X24=".",".",SUM($S24:X24)) -> . | AO24: =IF(Y24=".",".",SUM($S24:Y24)) -> . | AQ24: =IFERROR(F24/$E24-1,".") -> . | AR24: =IFERROR(G24/$E24-1,".") -> . | AS24: =IFERROR(H24/$E24-1,".") -> . | AT24: =IFERROR(I24/$E24-1,".") -> . | AU24: =IFERROR(J24/$E24-1,".") -> . | AV24: =IFERROR(K24/$E24-1,".") -> . | AW24: =IFERROR(L24/$E24-1,".") -> .
C25: =C24 -> Residential | D25: =IF('WK2 - Notional General Income'!D20="","",'WK2 - Notional General Income'!D20) ->  | S25: =IF(F25="",".",F25-E25) -> . | T25: . | U25: . | V25: . | W25: . | X25: . | Y25: . | AA25: =IFERROR(F25/E25-1,".") -> . | AB25: . | AC25: . | AD25: . | AE25: . | AF25: . | AG25: . | AI25: =IF(S25=".",".",SUM($S25:S25)) -> . | AJ25: =IF(T25=".",".",SUM($S25:T25)) -> . | AK25: =IF(U25=".",".",SUM($S25:U25)) -> . | AL25: =IF(V25=".",".",SUM($S25:V25)) -> . | AM25: =IF(W25=".",".",SUM($S25:W25)) -> . | AN25: =IF(X25=".",".",SUM($S25:X25)) -> . | AO25: =IF(Y25=".",".",SUM($S25:Y25)) -> . | AQ25: =IFERROR(F25/$E25-1,".") -> . | AR25: . | AS25: . | AT25: . | AU25: . | AV25: . | AW25: .
C26: =C25 -> Residential | D26: =IF('WK2 - Notional General Income'!D21="","",'WK2 - Notional General Income'!D21) ->  | S26: =IF(F26="",".",F26-E26) -> . | T26: . | U26: . | V26: . | W26: . | X26: . | Y26: . | AA26: . | AB26: . | AC26: . | AD26: . | AE26: . | AF26: . | AG26: . | AI26: =IF(S26=".",".",SUM($S26:S26)) -> . | AJ26: =IF(T26=".",".",SUM($S26:T26)) -> . | AK26: =IF(U26=".",".",SUM($S26:U26)) -> . | AL26: =IF(V26=".",".",SUM($S26:V26)) -> . | AM26: =IF(W26=".",".",SUM($S26:W26)) -> . | AN26: =IF(X26=".",".",SUM($S26:X26)) -> . | AO26: =IF(Y26=".",".",SUM($S26:Y26)) -> . | AQ26: . | AR26: . | AS26: . | AT26: . | AU26: . | AV26: . | AW26: .
C27: Residential | D27: =IF('WK2 - Notional General Income'!D22="","",'WK2 - Notional General Income'!D22) ->  | S27: . | T27: . | U27: . | V27: . | W27: . | X27: . | Y27: . | AA27: . | AB27: . | AC27: . | AD27: . | AE27: . | AF27: . | AG27: . | AI27: =IF(S27=".",".",SUM($S27:S27)) -> . | AJ27: =IF(T27=".",".",SUM($S27:T27)) -> . | AK27: =IF(U27=".",".",SUM($S27:U27)) -> . | AL27: =IF(V27=".",".",SUM($S27:V27)) -> . | AM27: =IF(W27=".",".",SUM($S27:W27)) -> . | AN27: =IF(X27=".",".",SUM($S27:X27)) -> . | AO27: =IF(Y27=".",".",SUM($S27:Y27)) -> . | AQ27: . | AR27: . | AS27: . | AT27: . | AU27: . | AV27: . | AW27: .
C28: Residential | D28: =IF('WK2 - Notional General Income'!D23="","",'WK2 - Notional General Income'!D23) ->  | S28: . | T28: . | U28: . | V28: . | W28: . | X28: . | Y28: . | AA28: . | AB28: . | AC28: . | AD28: . | AE28: . | AF28: . | AG28: . | AI28: =IF(S28=".",".",SUM($S28:S28)) -> . | AJ28: =IF(T28=".",".",SUM($S28:T28)) -> . | AK28: =IF(U28=".",".",SUM($S28:U28)) -> . | AL28: =IF(V28=".",".",SUM($S28:V28)) -> . | AM28: =IF(W28=".",".",SUM($S28:W28)) -> . | AN28: =IF(X28=".",".",SUM($S28:X28)) -> . | AO28: =IF(Y28=".",".",SUM($S28:Y28)) -> . | AQ28: . | AR28: . | AS28: . | AT28: . | AU28: . | AV28: . | AW28: .
C29: Residential | D29: =IF('WK2 - Notional General Income'!D24="","",'WK2 - Notional General Income'!D24) ->  | S29: =IF(F29="",".",F29-E29) -> . | T29: =IF(G29="",".",G29-F29) -> . | U29: =IF(H29="",".",H29-G29) -> . | V29: =IF(I29="",".",I29-H29) -> . | W29: =IF(J29="",".",J29-I29) -> . | X29: =IF(K29="",".",K29-J29) -> . | Y29: =IF(L29="",".",L29-K29) -> . | AA29: =IFERROR(F29/E29-1,".") -> . | AB29: =IFERROR(G29/F29-1,".") -> . | AC29: =IFERROR(H29/G29-1,".") -> . | AD29: =IFERROR(I29/H29-1,".") -> . | AE29: =IFERROR(J29/I29-1,".") -> . | AF29: =IFERROR(K29/J29-1,".") -> . | AG29: =IFERROR(L29/K29-1,".") -> . | AI29: =IF(S29=".",".",SUM($S29:S29)) -> . | AJ29: =IF(T29=".",".",SUM($S29:T29)) -> . | AK29: =IF(U29=".",".",SUM($S29:U29)) -> . | AL29: =IF(V29=".",".",SUM($S29:V29)) -> . | AM29: =IF(W29=".",".",SUM($S29:W29)) -> . | AN29: =IF(X29=".",".",SUM($S29:X29)) -> . | AO29: =IF(Y29=".",".",SUM($S29:Y29)) -> . | AQ29: =IFERROR(F29/$E29-1,".") -> . | AR29: =IFERROR(G29/$E29-1,".") -> . | AS29: =IFERROR(H29/$E29-1,".") -> . | AT29: =IFERROR(I29/$E29-1,".") -> . | AU29: =IFERROR(J29/$E29-1,".") -> . | AV29: =IFERROR(K29/$E29-1,".") -> . | AW29: =IFERROR(L29/$E29-1,".") -> .
C30: Residential | D30: =IF('WK2 - Notional General Income'!D25="","",'WK2 - Notional General Income'!D25) ->  | S30: . | T30: . | U30: . | V30: . | W30: . | X30: . | Y30: . | AA30: . | AB30: . | AC30: . | AD30: . | AE30: . | AF30: . | AG30: . | AI30: =IF(S30=".",".",SUM($S30:S30)) -> . | AJ30: =IF(T30=".",".",SUM($S30:T30)) -> . | AK30: =IF(U30=".",".",SUM($S30:U30)) -> . | AL30: =IF(V30=".",".",SUM($S30:V30)) -> . | AM30: =IF(W30=".",".",SUM($S30:W30)) -> . | AN30: =IF(X30=".",".",SUM($S30:X30)) -> . | AO30: =IF(Y30=".",".",SUM($S30:Y30)) -> . | AQ30: . | AR30: . | AS30: . | AT30: . | AU30: . | AV30: . | AW30: .
C31: Residential | D31: =IF('WK2 - Notional General Income'!D26="","",'WK2 - Notional General Income'!D26) ->  | S31: . | T31: . | U31: . | V31: . | W31: . | X31: . | Y31: . | AA31: . | AB31: . | AC31: . | AD31: . | AE31: . | AF31: . | AG31: . | AI31: =IF(S31=".",".",SUM($S31:S31)) -> . | AJ31: =IF(T31=".",".",SUM($S31:T31)) -> . | AK31: =IF(U31=".",".",SUM($S31:U31)) -> . | AL31: =IF(V31=".",".",SUM($S31:V31)) -> . | AM31: =IF(W31=".",".",SUM($S31:W31)) -> . | AN31: =IF(X31=".",".",SUM($S31:X31)) -> . | AO31: =IF(Y31=".",".",SUM($S31:Y31)) -> . | AQ31: . | AR31: . | AS31: . | AT31: . | AU31: . | AV31: . | AW31: .
C32: Residential | D32: =IF('WK2 - Notional General Income'!D27="","",'WK2 - Notional General Income'!D27) ->  | S32: . | T32: . | U32: . | V32: . | W32: . | X32: . | Y32: . | AA32: . | AB32: . | AC32: . | AD32: . | AE32: . | AF32: . | AG32: . | AI32: =IF(S32=".",".",SUM($S32:S32)) -> . | AJ32: =IF(T32=".",".",SUM($S32:T32)) -> . | AK32: =IF(U32=".",".",SUM($S32:U32)) -> . | AL32: =IF(V32=".",".",SUM($S32:V32)) -> . | AM32: =IF(W32=".",".",SUM($S32:W32)) -> . | AN32: =IF(X32=".",".",SUM($S32:X32)) -> . | AO32: =IF(Y32=".",".",SUM($S32:Y32)) -> . | AQ32: . | AR32: . | AS32: . | AT32: . | AU32: . | AV32: . | AW32: .
C33: Residential | D33: =IF('WK2 - Notional General Income'!D28="","",'WK2 - Notional General Income'!D28) ->  | S33: . | T33: . | U33: . | V33: . | W33: . | X33: . | Y33: . | AA33: . | AB33: . | AC33: . | AD33: . | AE33: . | AF33: . | AG33: . | AI33: =IF(S33=".",".",SUM($S33:S33)) -> . | AJ33: =IF(T33=".",".",SUM($S33:T33)) -> . | AK33: =IF(U33=".",".",SUM($S33:U33)) -> . | AL33: =IF(V33=".",".",SUM($S33:V33)) -> . | AM33: =IF(W33=".",".",SUM($S33:W33)) -> . | AN33: =IF(X33=".",".",SUM($S33:X33)) -> . | AO33: =IF(Y33=".",".",SUM($S33:Y33)) -> . | AQ33: . | AR33: . | AS33: . | AT33: . | AU33: . | AV33: . | AW33: .
C34: Residential | D34: =IF('WK2 - Notional General Income'!D29="","",'WK2 - Notional General Income'!D29) ->  | S34: . | T34: . | U34: . | V34: . | W34: . | X34: . | Y34: . | AA34: . | AB34: . | AC34: . | AD34: . | AE34: . | AF34: . | AG34: . | AI34: =IF(S34=".",".",SUM($S34:S34)) -> . | AJ34: =IF(T34=".",".",SUM($S34:T34)) -> . | AK34: =IF(U34=".",".",SUM($S34:U34)) -> . | AL34: =IF(V34=".",".",SUM($S34:V34)) -> . | AM34: =IF(W34=".",".",SUM($S34:W34)) -> . | AN34: =IF(X34=".",".",SUM($S34:X34)) -> . | AO34: =IF(Y34=".",".",SUM($S34:Y34)) -> . | AQ34: . | AR34: . | AS34: . | AT34: . | AU34: . | AV34: . | AW34: .
C35: Residential | D35: =IF('WK2 - Notional General Income'!D30="","",'WK2 - Notional General Income'!D30) ->  | S35: . | T35: . | U35: . | V35: . | W35: . | X35: . | Y35: . | AA35: . | AB35: . | AC35: . | AD35: . | AE35: . | AF35: . | AG35: . | AI35: =IF(S35=".",".",SUM($S35:S35)) -> . | AJ35: =IF(T35=".",".",SUM($S35:T35)) -> . | AK35: =IF(U35=".",".",SUM($S35:U35)) -> . | AL35: =IF(V35=".",".",SUM($S35:V35)) -> . | AM35: =IF(W35=".",".",SUM($S35:W35)) -> . | AN35: =IF(X35=".",".",SUM($S35:X35)) -> . | AO35: =IF(Y35=".",".",SUM($S35:Y35)) -> . | AQ35: . | AR35: . | AS35: . | AT35: . | AU35: . | AV35: . | AW35: .
C36: Residential | D36: =IF('WK2 - Notional General Income'!D31="","",'WK2 - Notional General Income'!D31) ->  | S36: . | T36: . | U36: . | V36: . | W36: . | X36: . | Y36: . | AA36: . | AB36: . | AC36: . | AD36: . | AE36: . | AF36: . | AG36: . | AI36: =IF(S36=".",".",SUM($S36:S36)) -> . | AJ36: =IF(T36=".",".",SUM($S36:T36)) -> . | AK36: =IF(U36=".",".",SUM($S36:U36)) -> . | AL36: =IF(V36=".",".",SUM($S36:V36)) -> . | AM36: =IF(W36=".",".",SUM($S36:W36)) -> . | AN36: =IF(X36=".",".",SUM($S36:X36)) -> . | AO36: =IF(Y36=".",".",SUM($S36:Y36)) -> . | AQ36: . | AR36: . | AS36: . | AT36: . | AU36: . | AV36: . | AW36: .
C37: Residential | D37: =IF('WK2 - Notional General Income'!D32="","",'WK2 - Notional General Income'!D32) ->  | S37: . | T37: . | U37: . | V37: . | W37: . | X37: . | Y37: . | AA37: . | AB37: . | AC37: . | AD37: . | AE37: . | AF37: . | AG37: . | AI37: =IF(S37=".",".",SUM($S37:S37)) -> . | AJ37: =IF(T37=".",".",SUM($S37:T37)) -> . | AK37: =IF(U37=".",".",SUM($S37:U37)) -> . | AL37: =IF(V37=".",".",SUM($S37:V37)) -> . | AM37: =IF(W37=".",".",SUM($S37:W37)) -> . | AN37: =IF(X37=".",".",SUM($S37:X37)) -> . | AO37: =IF(Y37=".",".",SUM($S37:Y37)) -> . | AQ37: . | AR37: . | AS37: . | AT37: . | AU37: . | AV37: . | AW37: .
C38: Residential | D38: =IF('WK2 - Notional General Income'!D33="","",'WK2 - Notional General Income'!D33) ->  | S38: . | T38: . | U38: . | V38: . | W38: . | X38: . | Y38: . | AA38: . | AB38: . | AC38: . | AD38: . | AE38: . | AF38: . | AG38: . | AI38: =IF(S38=".",".",SUM($S38:S38)) -> . | AJ38: =IF(T38=".",".",SUM($S38:T38)) -> . | AK38: =IF(U38=".",".",SUM($S38:U38)) -> . | AL38: =IF(V38=".",".",SUM($S38:V38)) -> . | AM38: =IF(W38=".",".",SUM($S38:W38)) -> . | AN38: =IF(X38=".",".",SUM($S38:X38)) -> . | AO38: =IF(Y38=".",".",SUM($S38:Y38)) -> . | AQ38: . | AR38: . | AS38: . | AT38: . | AU38: . | AV38: . | AW38: .
C39: Residential | D39: =IF('WK2 - Notional General Income'!D34="","",'WK2 - Notional General Income'!D34) ->  | S39: . | T39: . | U39: . | V39: . | W39: . | X39: . | Y39: . | AA39: . | AB39: . | AC39: . | AD39: . | AE39: . | AF39: . | AG39: . | AI39: =IF(S39=".",".",SUM($S39:S39)) -> . | AJ39: =IF(T39=".",".",SUM($S39:T39)) -> . | AK39: =IF(U39=".",".",SUM($S39:U39)) -> . | AL39: =IF(V39=".",".",SUM($S39:V39)) -> . | AM39: =IF(W39=".",".",SUM($S39:W39)) -> . | AN39: =IF(X39=".",".",SUM($S39:X39)) -> . | AO39: =IF(Y39=".",".",SUM($S39:Y39)) -> . | AQ39: . | AR39: . | AS39: . | AT39: . | AU39: . | AV39: . | AW39: .
C40: Residential | D40: =IF('WK2 - Notional General Income'!D35="","",'WK2 - Notional General Income'!D35) ->  | S40: . | T40: . | U40: . | V40: . | W40: . | X40: . | Y40: . | AA40: . | AB40: . | AC40: . | AD40: . | AE40: . | AF40: . | AG40: . | AI40: =IF(S40=".",".",SUM($S40:S40)) -> . | AJ40: =IF(T40=".",".",SUM($S40:T40)) -> . | AK40: =IF(U40=".",".",SUM($S40:U40)) -> . | AL40: =IF(V40=".",".",SUM($S40:V40)) -> . | AM40: =IF(W40=".",".",SUM($S40:W40)) -> . | AN40: =IF(X40=".",".",SUM($S40:X40)) -> . | AO40: =IF(Y40=".",".",SUM($S40:Y40)) -> . | AQ40: . | AR40: . | AS40: . | AT40: . | AU40: . | AV40: . | AW40: .
C41: Residential | D41: =IF('WK2 - Notional General Income'!D36="","",'WK2 - Notional General Income'!D36) ->  | S41: . | T41: . | U41: . | V41: . | W41: . | X41: . | Y41: . | AA41: . | AB41: . | AC41: . | AD41: . | AE41: . | AF41: . | AG41: . | AI41: =IF(S41=".",".",SUM($S41:S41)) -> . | AJ41: =IF(T41=".",".",SUM($S41:T41)) -> . | AK41: =IF(U41=".",".",SUM($S41:U41)) -> . | AL41: =IF(V41=".",".",SUM($S41:V41)) -> . | AM41: =IF(W41=".",".",SUM($S41:W41)) -> . | AN41: =IF(X41=".",".",SUM($S41:X41)) -> . | AO41: =IF(Y41=".",".",SUM($S41:Y41)) -> . | AQ41: . | AR41: . | AS41: . | AT41: . | AU41: . | AV41: . | AW41: .
C42: Residential | D42: =IF('WK2 - Notional General Income'!D37="","",'WK2 - Notional General Income'!D37) ->  | S42: . | T42: . | U42: . | V42: . | W42: . | X42: . | Y42: . | AA42: . | AB42: . | AC42: . | AD42: . | AE42: . | AF42: . | AG42: . | AI42: =IF(S42=".",".",SUM($S42:S42)) -> . | AJ42: =IF(T42=".",".",SUM($S42:T42)) -> . | AK42: =IF(U42=".",".",SUM($S42:U42)) -> . | AL42: =IF(V42=".",".",SUM($S42:V42)) -> . | AM42: =IF(W42=".",".",SUM($S42:W42)) -> . | AN42: =IF(X42=".",".",SUM($S42:X42)) -> . | AO42: =IF(Y42=".",".",SUM($S42:Y42)) -> . | AQ42: . | AR42: . | AS42: . | AT42: . | AU42: . | AV42: . | AW42: .
C43: Residential | D43: =IF('WK2 - Notional General Income'!D38="","",'WK2 - Notional General Income'!D38) ->  | S43: . | T43: . | U43: . | V43: . | W43: . | X43: . | Y43: . | AA43: . | AB43: . | AC43: . | AD43: . | AE43: . | AF43: . | AG43: . | AI43: =IF(S43=".",".",SUM($S43:S43)) -> . | AJ43: =IF(T43=".",".",SUM($S43:T43)) -> . | AK43: =IF(U43=".",".",SUM($S43:U43)) -> . | AL43: =IF(V43=".",".",SUM($S43:V43)) -> . | AM43: =IF(W43=".",".",SUM($S43:W43)) -> . | AN43: =IF(X43=".",".",SUM($S43:X43)) -> . | AO43: =IF(Y43=".",".",SUM($S43:Y43)) -> . | AQ43: . | AR43: . | AS43: . | AT43: . | AU43: . | AV43: . | AW43: .
C45: ='WK3 - Notional GI Yr1 YIELD'!C40 -> Business | D45: =IF('WK2 - Notional General Income'!D40="","",'WK2 - Notional General Income'!D40) ->  | S45: . | T45: . | U45: . | V45: . | W45: . | X45: . | Y45: . | AA45: . | AB45: . | AC45: . | AD45: . | AE45: . | AF45: . | AG45: . | AI45: =IF(S45=".",".",SUM($S45:S45)) -> . | AJ45: =IF(T45=".",".",SUM($S45:T45)) -> . | AK45: =IF(U45=".",".",SUM($S45:U45)) -> . | AL45: =IF(V45=".",".",SUM($S45:V45)) -> . | AM45: =IF(W45=".",".",SUM($S45:W45)) -> . | AN45: =IF(X45=".",".",SUM($S45:X45)) -> . | AO45: =IF(Y45=".",".",SUM($S45:Y45)) -> . | AQ45: . | AR45: . | AS45: . | AT45: . | AU45: . | AV45: . | AW45: .
C46: =C45 -> Business | D46: =IF('WK2 - Notional General Income'!D41="","",'WK2 - Notional General Income'!D41) ->  | S46: . | T46: . | U46: . | V46: . | W46: . | X46: . | Y46: . | AA46: . | AB46: . | AC46: . | AD46: . | AE46: . | AF46: . | AG46: . | AI46: =IF(S46=".",".",SUM($S46:S46)) -> . | AJ46: =IF(T46=".",".",SUM($S46:T46)) -> . | AK46: =IF(U46=".",".",SUM($S46:U46)) -> . | AL46: =IF(V46=".",".",SUM($S46:V46)) -> . | AM46: =IF(W46=".",".",SUM($S46:W46)) -> . | AN46: =IF(X46=".",".",SUM($S46:X46)) -> . | AO46: =IF(Y46=".",".",SUM($S46:Y46)) -> . | AQ46: . | AR46: . | AS46: . | AT46: . | AU46: . | AV46: . | AW46: .
C47: =C46 -> Business | D47: =IF('WK2 - Notional General Income'!D42="","",'WK2 - Notional General Income'!D42) ->  | S47: . | T47: . | U47: . | V47: . | W47: . | X47: . | Y47: . | AA47: . | AB47: . | AC47: . | AD47: . | AE47: . | AF47: . | AG47: . | AI47: =IF(S47=".",".",SUM($S47:S47)) -> . | AJ47: =IF(T47=".",".",SUM($S47:T47)) -> . | AK47: =IF(U47=".",".",SUM($S47:U47)) -> . | AL47: =IF(V47=".",".",SUM($S47:V47)) -> . | AM47: =IF(W47=".",".",SUM($S47:W47)) -> . | AN47: =IF(X47=".",".",SUM($S47:X47)) -> . | AO47: =IF(Y47=".",".",SUM($S47:Y47)) -> . | AQ47: . | AR47: . | AS47: . | AT47: . | AU47: . | AV47: . | AW47: .
C48: Business | D48: =IF('WK2 - Notional General Income'!D43="","",'WK2 - Notional General Income'!D43) ->  | S48: . | T48: . | U48: . | V48: . | W48: . | X48: . | Y48: . | AA48: . | AB48: . | AC48: . | AD48: . | AE48: . | AF48: . | AG48: . | AI48: =IF(S48=".",".",SUM($S48:S48)) -> . | AJ48: =IF(T48=".",".",SUM($S48:T48)) -> . | AK48: =IF(U48=".",".",SUM($S48:U48)) -> . | AL48: =IF(V48=".",".",SUM($S48:V48)) -> . | AM48: =IF(W48=".",".",SUM($S48:W48)) -> . | AN48: =IF(X48=".",".",SUM($S48:X48)) -> . | AO48: =IF(Y48=".",".",SUM($S48:Y48)) -> . | AQ48: . | AR48: . | AS48: . | AT48: . | AU48: . | AV48: . | AW48: .
C49: Business | D49: =IF('WK2 - Notional General Income'!D44="","",'WK2 - Notional General Income'!D44) ->  | S49: . | T49: . | U49: . | V49: . | W49: . | X49: . | Y49: . | AA49: . | AB49: . | AC49: . | AD49: . | AE49: . | AF49: . | AG49: . | AI49: =IF(S49=".",".",SUM($S49:S49)) -> . | AJ49: =IF(T49=".",".",SUM($S49:T49)) -> . | AK49: =IF(U49=".",".",SUM($S49:U49)) -> . | AL49: =IF(V49=".",".",SUM($S49:V49)) -> . | AM49: =IF(W49=".",".",SUM($S49:W49)) -> . | AN49: =IF(X49=".",".",SUM($S49:X49)) -> . | AO49: =IF(Y49=".",".",SUM($S49:Y49)) -> . | AQ49: . | AR49: . | AS49: . | AT49: . | AU49: . | AV49: . | AW49: .
C50: Business | D50: =IF('WK2 - Notional General Income'!D45="","",'WK2 - Notional General Income'!D45) ->  | S50: . | T50: . | U50: . | V50: . | W50: . | X50: . | Y50: . | AA50: . | AB50: . | AC50: . | AD50: . | AE50: . | AF50: . | AG50: . | AI50: =IF(S50=".",".",SUM($S50:S50)) -> . | AJ50: =IF(T50=".",".",SUM($S50:T50)) -> . | AK50: =IF(U50=".",".",SUM($S50:U50)) -> . | AL50: =IF(V50=".",".",SUM($S50:V50)) -> . | AM50: =IF(W50=".",".",SUM($S50:W50)) -> . | AN50: =IF(X50=".",".",SUM($S50:X50)) -> . | AO50: =IF(Y50=".",".",SUM($S50:Y50)) -> . | AQ50: . | AR50: . | AS50: . | AT50: . | AU50: . | AV50: . | AW50: .
C51: Business | D51: =IF('WK2 - Notional General Income'!D46="","",'WK2 - Notional General Income'!D46) ->  | S51: . | T51: . | U51: . | V51: . | W51: . | X51: . | Y51: . | AA51: . | AB51: . | AC51: . | AD51: . | AE51: . | AF51: . | AG51: . | AI51: =IF(S51=".",".",SUM($S51:S51)) -> . | AJ51: =IF(T51=".",".",SUM($S51:T51)) -> . | AK51: =IF(U51=".",".",SUM($S51:U51)) -> . | AL51: =IF(V51=".",".",SUM($S51:V51)) -> . | AM51: =IF(W51=".",".",SUM($S51:W51)) -> . | AN51: =IF(X51=".",".",SUM($S51:X51)) -> . | AO51: =IF(Y51=".",".",SUM($S51:Y51)) -> . | AQ51: . | AR51: . | AS51: . | AT51: . | AU51: . | AV51: . | AW51: .
C52: Business | D52: =IF('WK2 - Notional General Income'!D47="","",'WK2 - Notional General Income'!D47) ->  | S52: . | T52: . | U52: . | V52: . | W52: . | X52: . | Y52: . | AA52: . | AB52: . | AC52: . | AD52: . | AE52: . | AF52: . | AG52: . | AI52: =IF(S52=".",".",SUM($S52:S52)) -> . | AJ52: =IF(T52=".",".",SUM($S52:T52)) -> . | AK52: =IF(U52=".",".",SUM($S52:U52)) -> . | AL52: =IF(V52=".",".",SUM($S52:V52)) -> . | AM52: =IF(W52=".",".",SUM($S52:W52)) -> . | AN52: =IF(X52=".",".",SUM($S52:X52)) -> . | AO52: =IF(Y52=".",".",SUM($S52:Y52)) -> . | AQ52: . | AR52: . | AS52: . | AT52: . | AU52: . | AV52: . | AW52: .
C53: Business | D53: =IF('WK2 - Notional General Income'!D48="","",'WK2 - Notional General Income'!D48) ->  | S53: . | T53: . | U53: . | V53: . | W53: . | X53: . | Y53: . | AA53: . | AB53: . | AC53: . | AD53: . | AE53: . | AF53: . | AG53: . | AI53: =IF(S53=".",".",SUM($S53:S53)) -> . | AJ53: =IF(T53=".",".",SUM($S53:T53)) -> . | AK53: =IF(U53=".",".",SUM($S53:U53)) -> . | AL53: =IF(V53=".",".",SUM($S53:V53)) -> . | AM53: =IF(W53=".",".",SUM($S53:W53)) -> . | AN53: =IF(X53=".",".",SUM($S53:X53)) -> . | AO53: =IF(Y53=".",".",SUM($S53:Y53)) -> . | AQ53: . | AR53: . | AS53: . | AT53: . | AU53: . | AV53: . | AW53: .
C54: Business | D54: =IF('WK2 - Notional General Income'!D49="","",'WK2 - Notional General Income'!D49) ->  | S54: . | T54: . | U54: . | V54: . | W54: . | X54: . | Y54: . | AA54: . | AB54: . | AC54: . | AD54: . | AE54: . | AF54: . | AG54: . | AI54: =IF(S54=".",".",SUM($S54:S54)) -> . | AJ54: =IF(T54=".",".",SUM($S54:T54)) -> . | AK54: =IF(U54=".",".",SUM($S54:U54)) -> . | AL54: =IF(V54=".",".",SUM($S54:V54)) -> . | AM54: =IF(W54=".",".",SUM($S54:W54)) -> . | AN54: =IF(X54=".",".",SUM($S54:X54)) -> . | AO54: =IF(Y54=".",".",SUM($S54:Y54)) -> . | AQ54: . | AR54: . | AS54: . | AT54: . | AU54: . | AV54: . | AW54: .
C55: Business | D55: =IF('WK2 - Notional General Income'!D50="","",'WK2 - Notional General Income'!D50) ->  | S55: . | T55: . | U55: . | V55: . | W55: . | X55: . | Y55: . | AA55: . | AB55: . | AC55: . | AD55: . | AE55: . | AF55: . | AG55: . | AI55: =IF(S55=".",".",SUM($S55:S55)) -> . | AJ55: =IF(T55=".",".",SUM($S55:T55)) -> . | AK55: =IF(U55=".",".",SUM($S55:U55)) -> . | AL55: =IF(V55=".",".",SUM($S55:V55)) -> . | AM55: =IF(W55=".",".",SUM($S55:W55)) -> . | AN55: =IF(X55=".",".",SUM($S55:X55)) -> . | AO55: =IF(Y55=".",".",SUM($S55:Y55)) -> . | AQ55: . | AR55: . | AS55: . | AT55: . | AU55: . | AV55: . | AW55: .
C56: Business | D56: =IF('WK2 - Notional General Income'!D51="","",'WK2 - Notional General Income'!D51) ->  | S56: . | T56: . | U56: . | V56: . | W56: . | X56: . | Y56: . | AA56: . | AB56: . | AC56: . | AD56: . | AE56: . | AF56: . | AG56: . | AI56: =IF(S56=".",".",SUM($S56:S56)) -> . | AJ56: =IF(T56=".",".",SUM($S56:T56)) -> . | AK56: =IF(U56=".",".",SUM($S56:U56)) -> . | AL56: =IF(V56=".",".",SUM($S56:V56)) -> . | AM56: =IF(W56=".",".",SUM($S56:W56)) -> . | AN56: =IF(X56=".",".",SUM($S56:X56)) -> . | AO56: =IF(Y56=".",".",SUM($S56:Y56)) -> . | AQ56: . | AR56: . | AS56: . | AT56: . | AU56: . | AV56: . | AW56: .
C57: Business | D57: =IF('WK2 - Notional General Income'!D52="","",'WK2 - Notional General Income'!D52) ->  | S57: . | T57: . | U57: . | V57: . | W57: . | X57: . | Y57: . | AA57: . | AB57: . | AC57: . | AD57: . | AE57: . | AF57: . | AG57: . | AI57: =IF(S57=".",".",SUM($S57:S57)) -> . | AJ57: =IF(T57=".",".",SUM($S57:T57)) -> . | AK57: =IF(U57=".",".",SUM($S57:U57)) -> . | AL57: =IF(V57=".",".",SUM($S57:V57)) -> . | AM57: =IF(W57=".",".",SUM($S57:W57)) -> . | AN57: =IF(X57=".",".",SUM($S57:X57)) -> . | AO57: =IF(Y57=".",".",SUM($S57:Y57)) -> . | AQ57: . | AR57: . | AS57: . | AT57: . | AU57: . | AV57: . | AW57: .
C58: Business | D58: =IF('WK2 - Notional General Income'!D53="","",'WK2 - Notional General Income'!D53) ->  | S58: . | T58: . | U58: . | V58: . | W58: . | X58: . | Y58: . | AA58: . | AB58: . | AC58: . | AD58: . | AE58: . | AF58: . | AG58: . | AI58: =IF(S58=".",".",SUM($S58:S58)) -> . | AJ58: =IF(T58=".",".",SUM($S58:T58)) -> . | AK58: =IF(U58=".",".",SUM($S58:U58)) -> . | AL58: =IF(V58=".",".",SUM($S58:V58)) -> . | AM58: =IF(W58=".",".",SUM($S58:W58)) -> . | AN58: =IF(X58=".",".",SUM($S58:X58)) -> . | AO58: =IF(Y58=".",".",SUM($S58:Y58)) -> . | AQ58: . | AR58: . | AS58: . | AT58: . | AU58: . | AV58: . | AW58: .
C59: Business | D59: =IF('WK2 - Notional General Income'!D54="","",'WK2 - Notional General Income'!D54) ->  | S59: . | T59: . | U59: . | V59: . | W59: . | X59: . | Y59: . | AA59: . | AB59: . | AC59: . | AD59: . | AE59: . | AF59: . | AG59: . | AI59: =IF(S59=".",".",SUM($S59:S59)) -> . | AJ59: =IF(T59=".",".",SUM($S59:T59)) -> . | AK59: =IF(U59=".",".",SUM($S59:U59)) -> . | AL59: =IF(V59=".",".",SUM($S59:V59)) -> . | AM59: =IF(W59=".",".",SUM($S59:W59)) -> . | AN59: =IF(X59=".",".",SUM($S59:X59)) -> . | AO59: =IF(Y59=".",".",SUM($S59:Y59)) -> . | AQ59: . | AR59: . | AS59: . | AT59: . | AU59: . | AV59: . | AW59: .
C60: Business | D60: =IF('WK2 - Notional General Income'!D55="","",'WK2 - Notional General Income'!D55) ->  | S60: . | T60: . | U60: . | V60: . | W60: . | X60: . | Y60: . | AA60: . | AB60: . | AC60: . | AD60: . | AE60: . | AF60: . | AG60: . | AI60: =IF(S60=".",".",SUM($S60:S60)) -> . | AJ60: =IF(T60=".",".",SUM($S60:T60)) -> . | AK60: =IF(U60=".",".",SUM($S60:U60)) -> . | AL60: =IF(V60=".",".",SUM($S60:V60)) -> . | AM60: =IF(W60=".",".",SUM($S60:W60)) -> . | AN60: =IF(X60=".",".",SUM($S60:X60)) -> . | AO60: =IF(Y60=".",".",SUM($S60:Y60)) -> . | AQ60: . | AR60: . | AS60: . | AT60: . | AU60: . | AV60: . | AW60: .
C61: Business | D61: =IF('WK2 - Notional General Income'!D56="","",'WK2 - Notional General Income'!D56) ->  | S61: . | T61: . | U61: . | V61: . | W61: . | X61: . | Y61: . | AA61: . | AB61: . | AC61: . | AD61: . | AE61: . | AF61: . | AG61: . | AI61: =IF(S61=".",".",SUM($S61:S61)) -> . | AJ61: =IF(T61=".",".",SUM($S61:T61)) -> . | AK61: =IF(U61=".",".",SUM($S61:U61)) -> . | AL61: =IF(V61=".",".",SUM($S61:V61)) -> . | AM61: =IF(W61=".",".",SUM($S61:W61)) -> . | AN61: =IF(X61=".",".",SUM($S61:X61)) -> . | AO61: =IF(Y61=".",".",SUM($S61:Y61)) -> . | AQ61: . | AR61: . | AS61: . | AT61: . | AU61: . | AV61: . | AW61: .
C62: Business | D62: =IF('WK2 - Notional General Income'!D57="","",'WK2 - Notional General Income'!D57) ->  | S62: . | T62: . | U62: . | V62: . | W62: . | X62: . | Y62: . | AA62: . | AB62: . | AC62: . | AD62: . | AE62: . | AF62: . | AG62: . | AI62: =IF(S62=".",".",SUM($S62:S62)) -> . | AJ62: =IF(T62=".",".",SUM($S62:T62)) -> . | AK62: =IF(U62=".",".",SUM($S62:U62)) -> . | AL62: =IF(V62=".",".",SUM($S62:V62)) -> . | AM62: =IF(W62=".",".",SUM($S62:W62)) -> . | AN62: =IF(X62=".",".",SUM($S62:X62)) -> . | AO62: =IF(Y62=".",".",SUM($S62:Y62)) -> . | AQ62: . | AR62: . | AS62: . | AT62: . | AU62: . | AV62: . | AW62: .
C63: Business | D63: =IF('WK2 - Notional General Income'!D58="","",'WK2 - Notional General Income'!D58) ->  | S63: . | T63: . | U63: . | V63: . | W63: . | X63: . | Y63: . | AA63: . | AB63: . | AC63: . | AD63: . | AE63: . | AF63: . | AG63: . | AI63: =IF(S63=".",".",SUM($S63:S63)) -> . | AJ63: =IF(T63=".",".",SUM($S63:T63)) -> . | AK63: =IF(U63=".",".",SUM($S63:U63)) -> . | AL63: =IF(V63=".",".",SUM($S63:V63)) -> . | AM63: =IF(W63=".",".",SUM($S63:W63)) -> . | AN63: =IF(X63=".",".",SUM($S63:X63)) -> . | AO63: =IF(Y63=".",".",SUM($S63:Y63)) -> . | AQ63: . | AR63: . | AS63: . | AT63: . | AU63: . | AV63: . | AW63: .
C64: Business | D64: =IF('WK2 - Notional General Income'!D59="","",'WK2 - Notional General Income'!D59) ->  | S64: . | T64: . | U64: . | V64: . | W64: . | X64: . | Y64: . | AA64: . | AB64: . | AC64: . | AD64: . | AE64: . | AF64: . | AG64: . | AI64: =IF(S64=".",".",SUM($S64:S64)) -> . | AJ64: =IF(T64=".",".",SUM($S64:T64)) -> . | AK64: =IF(U64=".",".",SUM($S64:U64)) -> . | AL64: =IF(V64=".",".",SUM($S64:V64)) -> . | AM64: =IF(W64=".",".",SUM($S64:W64)) -> . | AN64: =IF(X64=".",".",SUM($S64:X64)) -> . | AO64: =IF(Y64=".",".",SUM($S64:Y64)) -> . | AQ64: . | AR64: . | AS64: . | AT64: . | AU64: . | AV64: . | AW64: .
C65: Business | D65: =IF('WK2 - Notional General Income'!D60="","",'WK2 - Notional General Income'!D60) ->  | S65: . | T65: . | U65: . | V65: . | W65: . | X65: . | Y65: . | AA65: . | AB65: . | AC65: . | AD65: . | AE65: . | AF65: . | AG65: . | AI65: =IF(S65=".",".",SUM($S65:S65)) -> . | AJ65: =IF(T65=".",".",SUM($S65:T65)) -> . | AK65: =IF(U65=".",".",SUM($S65:U65)) -> . | AL65: =IF(V65=".",".",SUM($S65:V65)) -> . | AM65: =IF(W65=".",".",SUM($S65:W65)) -> . | AN65: =IF(X65=".",".",SUM($S65:X65)) -> . | AO65: =IF(Y65=".",".",SUM($S65:Y65)) -> . | AQ65: . | AR65: . | AS65: . | AT65: . | AU65: . | AV65: . | AW65: .
C66: Business | D66: =IF('WK2 - Notional General Income'!D61="","",'WK2 - Notional General Income'!D61) ->  | S66: . | T66: . | U66: . | V66: . | W66: . | X66: . | Y66: . | AA66: . | AB66: . | AC66: . | AD66: . | AE66: . | AF66: . | AG66: . | AI66: =IF(S66=".",".",SUM($S66:S66)) -> . | AJ66: =IF(T66=".",".",SUM($S66:T66)) -> . | AK66: =IF(U66=".",".",SUM($S66:U66)) -> . | AL66: =IF(V66=".",".",SUM($S66:V66)) -> . | AM66: =IF(W66=".",".",SUM($S66:W66)) -> . | AN66: =IF(X66=".",".",SUM($S66:X66)) -> . | AO66: =IF(Y66=".",".",SUM($S66:Y66)) -> . | AQ66: . | AR66: . | AS66: . | AT66: . | AU66: . | AV66: . | AW66: .
C67: Business | D67: =IF('WK2 - Notional General Income'!D62="","",'WK2 - Notional General Income'!D62) ->  | S67: . | T67: . | U67: . | V67: . | W67: . | X67: . | Y67: . | AA67: . | AB67: . | AC67: . | AD67: . | AE67: . | AF67: . | AG67: . | AI67: =IF(S67=".",".",SUM($S67:S67)) -> . | AJ67: =IF(T67=".",".",SUM($S67:T67)) -> . | AK67: =IF(U67=".",".",SUM($S67:U67)) -> . | AL67: =IF(V67=".",".",SUM($S67:V67)) -> . | AM67: =IF(W67=".",".",SUM($S67:W67)) -> . | AN67: =IF(X67=".",".",SUM($S67:X67)) -> . | AO67: =IF(Y67=".",".",SUM($S67:Y67)) -> . | AQ67: . | AR67: . | AS67: . | AT67: . | AU67: . | AV67: . | AW67: .
C68: Business | D68: =IF('WK2 - Notional General Income'!D63="","",'WK2 - Notional General Income'!D63) ->  | S68: . | T68: . | U68: . | V68: . | W68: . | X68: . | Y68: . | AA68: . | AB68: . | AC68: . | AD68: . | AE68: . | AF68: . | AG68: . | AI68: =IF(S68=".",".",SUM($S68:S68)) -> . | AJ68: =IF(T68=".",".",SUM($S68:T68)) -> . | AK68: =IF(U68=".",".",SUM($S68:U68)) -> . | AL68: =IF(V68=".",".",SUM($S68:V68)) -> . | AM68: =IF(W68=".",".",SUM($S68:W68)) -> . | AN68: =IF(X68=".",".",SUM($S68:X68)) -> . | AO68: =IF(Y68=".",".",SUM($S68:Y68)) -> . | AQ68: . | AR68: . | AS68: . | AT68: . | AU68: . | AV68: . | AW68: .
C69: Business | D69: =IF('WK2 - Notional General Income'!D64="","",'WK2 - Notional General Income'!D64) ->  | S69: . | T69: . | U69: . | V69: . | W69: . | X69: . | Y69: . | AA69: . | AB69: . | AC69: . | AD69: . | AE69: . | AF69: . | AG69: . | AI69: =IF(S69=".",".",SUM($S69:S69)) -> . | AJ69: =IF(T69=".",".",SUM($S69:T69)) -> . | AK69: =IF(U69=".",".",SUM($S69:U69)) -> . | AL69: =IF(V69=".",".",SUM($S69:V69)) -> . | AM69: =IF(W69=".",".",SUM($S69:W69)) -> . | AN69: =IF(X69=".",".",SUM($S69:X69)) -> . | AO69: =IF(Y69=".",".",SUM($S69:Y69)) -> . | AQ69: . | AR69: . | AS69: . | AT69: . | AU69: . | AV69: . | AW69: .
C71: ='WK3 - Notional GI Yr1 YIELD'!C66 -> Farmland | D71: =IF('WK2 - Notional General Income'!D66="","",'WK2 - Notional General Income'!D66) ->  | S71: . | T71: . | U71: . | V71: . | W71: . | X71: . | Y71: . | AA71: . | AB71: . | AC71: . | AD71: . | AE71: . | AF71: . | AG71: . | AI71: =IF(S71=".",".",SUM($S71:S71)) -> . | AJ71: =IF(T71=".",".",SUM($S71:T71)) -> . | AK71: =IF(U71=".",".",SUM($S71:U71)) -> . | AL71: =IF(V71=".",".",SUM($S71:V71)) -> . | AM71: =IF(W71=".",".",SUM($S71:W71)) -> . | AN71: =IF(X71=".",".",SUM($S71:X71)) -> . | AO71: =IF(Y71=".",".",SUM($S71:Y71)) -> . | AQ71: . | AR71: . | AS71: . | AT71: . | AU71: . | AV71: . | AW71: .
C72: =C71 -> Farmland | D72: =IF('WK2 - Notional General Income'!D67="","",'WK2 - Notional General Income'!D67) ->  | S72: . | T72: . | U72: . | V72: . | W72: . | X72: . | Y72: . | AA72: . | AB72: . | AC72: . | AD72: . | AE72: . | AF72: . | AG72: . | AI72: =IF(S72=".",".",SUM($S72:S72)) -> . | AJ72: =IF(T72=".",".",SUM($S72:T72)) -> . | AK72: =IF(U72=".",".",SUM($S72:U72)) -> . | AL72: =IF(V72=".",".",SUM($S72:V72)) -> . | AM72: =IF(W72=".",".",SUM($S72:W72)) -> . | AN72: =IF(X72=".",".",SUM($S72:X72)) -> . | AO72: =IF(Y72=".",".",SUM($S72:Y72)) -> . | AQ72: . | AR72: . | AS72: . | AT72: . | AU72: . | AV72: . | AW72: .
C73: Farmland | D73: =IF('WK2 - Notional General Income'!D68="","",'WK2 - Notional General Income'!D68) ->  | S73: . | T73: . | U73: . | V73: . | W73: . | X73: . | Y73: . | AA73: . | AB73: . | AC73: . | AD73: . | AE73: . | AF73: . | AG73: . | AI73: =IF(S73=".",".",SUM($S73:S73)) -> . | AJ73: =IF(T73=".",".",SUM($S73:T73)) -> . | AK73: =IF(U73=".",".",SUM($S73:U73)) -> . | AL73: =IF(V73=".",".",SUM($S73:V73)) -> . | AM73: =IF(W73=".",".",SUM($S73:W73)) -> . | AN73: =IF(X73=".",".",SUM($S73:X73)) -> . | AO73: =IF(Y73=".",".",SUM($S73:Y73)) -> . | AQ73: . | AR73: . | AS73: . | AT73: . | AU73: . | AV73: . | AW73: .
C74: Farmland | D74: =IF('WK2 - Notional General Income'!D69="","",'WK2 - Notional General Income'!D69) ->  | S74: . | T74: . | U74: . | V74: . | W74: . | X74: . | Y74: . | AA74: . | AB74: . | AC74: . | AD74: . | AE74: . | AF74: . | AG74: . | AI74: =IF(S74=".",".",SUM($S74:S74)) -> . | AJ74: =IF(T74=".",".",SUM($S74:T74)) -> . | AK74: =IF(U74=".",".",SUM($S74:U74)) -> . | AL74: =IF(V74=".",".",SUM($S74:V74)) -> . | AM74: =IF(W74=".",".",SUM($S74:W74)) -> . | AN74: =IF(X74=".",".",SUM($S74:X74)) -> . | AO74: =IF(Y74=".",".",SUM($S74:Y74)) -> . | AQ74: . | AR74: . | AS74: . | AT74: . | AU74: . | AV74: . | AW74: .
C75: Farmland | D75: =IF('WK2 - Notional General Income'!D70="","",'WK2 - Notional General Income'!D70) ->  | S75: . | T75: . | U75: . | V75: . | W75: . | X75: . | Y75: . | AA75: . | AB75: . | AC75: . | AD75: . | AE75: . | AF75: . | AG75: . | AI75: =IF(S75=".",".",SUM($S75:S75)) -> . | AJ75: =IF(T75=".",".",SUM($S75:T75)) -> . | AK75: =IF(U75=".",".",SUM($S75:U75)) -> . | AL75: =IF(V75=".",".",SUM($S75:V75)) -> . | AM75: =IF(W75=".",".",SUM($S75:W75)) -> . | AN75: =IF(X75=".",".",SUM($S75:X75)) -> . | AO75: =IF(Y75=".",".",SUM($S75:Y75)) -> . | AQ75: . | AR75: . | AS75: . | AT75: . | AU75: . | AV75: . | AW75: .
C76: Farmland | D76: =IF('WK2 - Notional General Income'!D71="","",'WK2 - Notional General Income'!D71) ->  | S76: . | T76: . | U76: . | V76: . | W76: . | X76: . | Y76: . | AA76: . | AB76: . | AC76: . | AD76: . | AE76: . | AF76: . | AG76: . | AI76: =IF(S76=".",".",SUM($S76:S76)) -> . | AJ76: =IF(T76=".",".",SUM($S76:T76)) -> . | AK76: =IF(U76=".",".",SUM($S76:U76)) -> . | AL76: =IF(V76=".",".",SUM($S76:V76)) -> . | AM76: =IF(W76=".",".",SUM($S76:W76)) -> . | AN76: =IF(X76=".",".",SUM($S76:X76)) -> . | AO76: =IF(Y76=".",".",SUM($S76:Y76)) -> . | AQ76: . | AR76: . | AS76: . | AT76: . | AU76: . | AV76: . | AW76: .
C77: Farmland | D77: =IF('WK2 - Notional General Income'!D72="","",'WK2 - Notional General Income'!D72) ->  | S77: . | T77: . | U77: . | V77: . | W77: . | X77: . | Y77: . | AA77: . | AB77: . | AC77: . | AD77: . | AE77: . | AF77: . | AG77: . | AI77: =IF(S77=".",".",SUM($S77:S77)) -> . | AJ77: =IF(T77=".",".",SUM($S77:T77)) -> . | AK77: =IF(U77=".",".",SUM($S77:U77)) -> . | AL77: =IF(V77=".",".",SUM($S77:V77)) -> . | AM77: =IF(W77=".",".",SUM($S77:W77)) -> . | AN77: =IF(X77=".",".",SUM($S77:X77)) -> . | AO77: =IF(Y77=".",".",SUM($S77:Y77)) -> . | AQ77: . | AR77: . | AS77: . | AT77: . | AU77: . | AV77: . | AW77: .
C78: Farmland | D78: =IF('WK2 - Notional General Income'!D73="","",'WK2 - Notional General Income'!D73) ->  | S78: . | T78: . | U78: . | V78: . | W78: . | X78: . | Y78: . | AA78: . | AB78: . | AC78: . | AD78: . | AE78: . | AF78: . | AG78: . | AI78: =IF(S78=".",".",SUM($S78:S78)) -> . | AJ78: =IF(T78=".",".",SUM($S78:T78)) -> . | AK78: =IF(U78=".",".",SUM($S78:U78)) -> . | AL78: =IF(V78=".",".",SUM($S78:V78)) -> . | AM78: =IF(W78=".",".",SUM($S78:W78)) -> . | AN78: =IF(X78=".",".",SUM($S78:X78)) -> . | AO78: =IF(Y78=".",".",SUM($S78:Y78)) -> . | AQ78: . | AR78: . | AS78: . | AT78: . | AU78: . | AV78: . | AW78: .
C79: Farmland | D79: =IF('WK2 - Notional General Income'!D74="","",'WK2 - Notional General Income'!D74) ->  | S79: . | T79: . | U79: . | V79: . | W79: . | X79: . | Y79: . | AA79: . | AB79: . | AC79: . | AD79: . | AE79: . | AF79: . | AG79: . | AI79: =IF(S79=".",".",SUM($S79:S79)) -> . | AJ79: =IF(T79=".",".",SUM($S79:T79)) -> . | AK79: =IF(U79=".",".",SUM($S79:U79)) -> . | AL79: =IF(V79=".",".",SUM($S79:V79)) -> . | AM79: =IF(W79=".",".",SUM($S79:W79)) -> . | AN79: =IF(X79=".",".",SUM($S79:X79)) -> . | AO79: =IF(Y79=".",".",SUM($S79:Y79)) -> . | AQ79: . | AR79: . | AS79: . | AT79: . | AU79: . | AV79: . | AW79: .
C80: Farmland | D80: =IF('WK2 - Notional General Income'!D75="","",'WK2 - Notional General Income'!D75) ->  | S80: . | T80: . | U80: . | V80: . | W80: . | X80: . | Y80: . | AA80: . | AB80: . | AC80: . | AD80: . | AE80: . | AF80: . | AG80: . | AI80: =IF(S80=".",".",SUM($S80:S80)) -> . | AJ80: =IF(T80=".",".",SUM($S80:T80)) -> . | AK80: =IF(U80=".",".",SUM($S80:U80)) -> . | AL80: =IF(V80=".",".",SUM($S80:V80)) -> . | AM80: =IF(W80=".",".",SUM($S80:W80)) -> . | AN80: =IF(X80=".",".",SUM($S80:X80)) -> . | AO80: =IF(Y80=".",".",SUM($S80:Y80)) -> . | AQ80: . | AR80: . | AS80: . | AT80: . | AU80: . | AV80: . | AW80: .
C82: ='WK3 - Notional GI Yr1 YIELD'!C77 -> Mining | D82: =IF('WK2 - Notional General Income'!D77="","",'WK2 - Notional General Income'!D77) ->  | S82: . | T82: . | U82: . | V82: . | W82: . | X82: . | Y82: . | AA82: . | AB82: . | AC82: . | AD82: . | AE82: . | AF82: . | AG82: . | AI82: =IF(S82=".",".",SUM($S82:S82)) -> . | AJ82: =IF(T82=".",".",SUM($S82:T82)) -> . | AK82: =IF(U82=".",".",SUM($S82:U82)) -> . | AL82: =IF(V82=".",".",SUM($S82:V82)) -> . | AM82: =IF(W82=".",".",SUM($S82:W82)) -> . | AN82: =IF(X82=".",".",SUM($S82:X82)) -> . | AO82: =IF(Y82=".",".",SUM($S82:Y82)) -> . | AQ82: . | AR82: . | AS82: . | AT82: . | AU82: . | AV82: . | AW82: .
C83: =C82 -> Mining | D83: =IF('WK2 - Notional General Income'!D78="","",'WK2 - Notional General Income'!D78) ->  | S83: . | T83: . | U83: . | V83: . | W83: . | X83: . | Y83: . | AA83: . | AB83: . | AC83: . | AD83: . | AE83: . | AF83: . | AG83: . | AI83: =IF(S83=".",".",SUM($S83:S83)) -> . | AJ83: =IF(T83=".",".",SUM($S83:T83)) -> . | AK83: =IF(U83=".",".",SUM($S83:U83)) -> . | AL83: =IF(V83=".",".",SUM($S83:V83)) -> . | AM83: =IF(W83=".",".",SUM($S83:W83)) -> . | AN83: =IF(X83=".",".",SUM($S83:X83)) -> . | AO83: =IF(Y83=".",".",SUM($S83:Y83)) -> . | AQ83: . | AR83: . | AS83: . | AT83: . | AU83: . | AV83: . | AW83: .
C84: =C83 -> Mining | D84: =IF('WK2 - Notional General Income'!D79="","",'WK2 - Notional General Income'!D79) ->  | S84: . | T84: . | U84: . | V84: . | W84: . | X84: . | Y84: . | AA84: . | AB84: . | AC84: . | AD84: . | AE84: . | AF84: . | AG84: . | AI84: =IF(S84=".",".",SUM($S84:S84)) -> . | AJ84: =IF(T84=".",".",SUM($S84:T84)) -> . | AK84: =IF(U84=".",".",SUM($S84:U84)) -> . | AL84: =IF(V84=".",".",SUM($S84:V84)) -> . | AM84: =IF(W84=".",".",SUM($S84:W84)) -> . | AN84: =IF(X84=".",".",SUM($S84:X84)) -> . | AO84: =IF(Y84=".",".",SUM($S84:Y84)) -> . | AQ84: . | AR84: . | AS84: . | AT84: . | AU84: . | AV84: . | AW84: .
C85: Mining | D85: =IF('WK2 - Notional General Income'!D80="","",'WK2 - Notional General Income'!D80) ->  | S85: . | T85: . | U85: . | V85: . | W85: . | X85: . | Y85: . | AA85: . | AB85: . | AC85: . | AD85: . | AE85: . | AF85: . | AG85: . | AI85: =IF(S85=".",".",SUM($S85:S85)) -> . | AJ85: =IF(T85=".",".",SUM($S85:T85)) -> . | AK85: =IF(U85=".",".",SUM($S85:U85)) -> . | AL85: =IF(V85=".",".",SUM($S85:V85)) -> . | AM85: =IF(W85=".",".",SUM($S85:W85)) -> . | AN85: =IF(X85=".",".",SUM($S85:X85)) -> . | AO85: =IF(Y85=".",".",SUM($S85:Y85)) -> . | AQ85: . | AR85: . | AS85: . | AT85: . | AU85: . | AV85: . | AW85: .
C86: Mining | D86: =IF('WK2 - Notional General Income'!D81="","",'WK2 - Notional General Income'!D81) ->  | S86: . | T86: . | U86: . | V86: . | W86: . | X86: . | Y86: . | AA86: . | AB86: . | AC86: . | AD86: . | AE86: . | AF86: . | AG86: . | AI86: =IF(S86=".",".",SUM($S86:S86)) -> . | AJ86: =IF(T86=".",".",SUM($S86:T86)) -> . | AK86: =IF(U86=".",".",SUM($S86:U86)) -> . | AL86: =IF(V86=".",".",SUM($S86:V86)) -> . | AM86: =IF(W86=".",".",SUM($S86:W86)) -> . | AN86: =IF(X86=".",".",SUM($S86:X86)) -> . | AO86: =IF(Y86=".",".",SUM($S86:Y86)) -> . | AQ86: . | AR86: . | AS86: . | AT86: . | AU86: . | AV86: . | AW86: .
C87: Mining | D87: =IF('WK2 - Notional General Income'!D82="","",'WK2 - Notional General Income'!D82) ->  | S87: . | T87: . | U87: . | V87: . | W87: . | X87: . | Y87: . | AA87: . | AB87: . | AC87: . | AD87: . | AE87: . | AF87: . | AG87: . | AI87: =IF(S87=".",".",SUM($S87:S87)) -> . | AJ87: =IF(T87=".",".",SUM($S87:T87)) -> . | AK87: =IF(U87=".",".",SUM($S87:U87)) -> . | AL87: =IF(V87=".",".",SUM($S87:V87)) -> . | AM87: =IF(W87=".",".",SUM($S87:W87)) -> . | AN87: =IF(X87=".",".",SUM($S87:X87)) -> . | AO87: =IF(Y87=".",".",SUM($S87:Y87)) -> . | AQ87: . | AR87: . | AS87: . | AT87: . | AU87: . | AV87: . | AW87: .
C88: Mining | D88: =IF('WK2 - Notional General Income'!D83="","",'WK2 - Notional General Income'!D83) ->  | S88: . | T88: . | U88: . | V88: . | W88: . | X88: . | Y88: . | AA88: . | AB88: . | AC88: . | AD88: . | AE88: . | AF88: . | AG88: . | AI88: =IF(S88=".",".",SUM($S88:S88)) -> . | AJ88: =IF(T88=".",".",SUM($S88:T88)) -> . | AK88: =IF(U88=".",".",SUM($S88:U88)) -> . | AL88: =IF(V88=".",".",SUM($S88:V88)) -> . | AM88: =IF(W88=".",".",SUM($S88:W88)) -> . | AN88: =IF(X88=".",".",SUM($S88:X88)) -> . | AO88: =IF(Y88=".",".",SUM($S88:Y88)) -> . | AQ88: . | AR88: . | AS88: . | AT88: . | AU88: . | AV88: . | AW88: .
C89: Mining | D89: =IF('WK2 - Notional General Income'!D84="","",'WK2 - Notional General Income'!D84) ->  | S89: . | T89: . | U89: . | V89: . | W89: . | X89: . | Y89: . | AA89: . | AB89: . | AC89: . | AD89: . | AE89: . | AF89: . | AG89: . | AI89: =IF(S89=".",".",SUM($S89:S89)) -> . | AJ89: =IF(T89=".",".",SUM($S89:T89)) -> . | AK89: =IF(U89=".",".",SUM($S89:U89)) -> . | AL89: =IF(V89=".",".",SUM($S89:V89)) -> . | AM89: =IF(W89=".",".",SUM($S89:W89)) -> . | AN89: =IF(X89=".",".",SUM($S89:X89)) -> . | AO89: =IF(Y89=".",".",SUM($S89:Y89)) -> . | AQ89: . | AR89: . | AS89: . | AT89: . | AU89: . | AV89: . | AW89: .
C90: Mining | D90: =IF('WK2 - Notional General Income'!D85="","",'WK2 - Notional General Income'!D85) ->  | S90: . | T90: . | U90: . | V90: . | W90: . | X90: . | Y90: . | AA90: . | AB90: . | AC90: . | AD90: . | AE90: . | AF90: . | AG90: . | AI90: =IF(S90=".",".",SUM($S90:S90)) -> . | AJ90: =IF(T90=".",".",SUM($S90:T90)) -> . | AK90: =IF(U90=".",".",SUM($S90:U90)) -> . | AL90: =IF(V90=".",".",SUM($S90:V90)) -> . | AM90: =IF(W90=".",".",SUM($S90:W90)) -> . | AN90: =IF(X90=".",".",SUM($S90:X90)) -> . | AO90: =IF(Y90=".",".",SUM($S90:Y90)) -> . | AQ90: . | AR90: . | AS90: . | AT90: . | AU90: . | AV90: . | AW90: .
C91: Mining | D91: =IF('WK2 - Notional General Income'!D86="","",'WK2 - Notional General Income'!D86) ->  | S91: . | T91: . | U91: . | V91: . | W91: . | X91: . | Y91: . | AA91: . | AB91: . | AC91: . | AD91: . | AE91: . | AF91: . | AG91: . | AI91: =IF(S91=".",".",SUM($S91:S91)) -> . | AJ91: =IF(T91=".",".",SUM($S91:T91)) -> . | AK91: =IF(U91=".",".",SUM($S91:U91)) -> . | AL91: =IF(V91=".",".",SUM($S91:V91)) -> . | AM91: =IF(W91=".",".",SUM($S91:W91)) -> . | AN91: =IF(X91=".",".",SUM($S91:X91)) -> . | AO91: =IF(Y91=".",".",SUM($S91:Y91)) -> . | AQ91: . | AR91: . | AS91: . | AT91: . | AU91: . | AV91: . | AW91: .
C95: Average Ordinary and Special Rates - with proposed special variation | H95: =$H$21 -> $ nominal per year | S95: =S$21 -> Annual increases (nominal $ per year) | AA95: =AA$21 -> Annual increases (%) | AI95: =AI$21 -> Cumulative increases (nominal $ per year) | AQ95: =AQ$21 -> Cumulative increases (%)
C96: Category | D96: Sub-category or Special Rate name | E96: Current Average Rate | F96: Average Rate Year 1 | G96: Average Rate Year 2 | H96: Average Rate Year 3 | I96: Average Rate Year 4 | J96: Average Rate Year 5 | K96: Average Rate Year 6 | L96: Average Rate Year 7 | O96: ='WK2 - Notional General Income'!$E18 -> Number of Assessments | S96: Average Rates - with proposed special variation | AA96: =$S96 -> Average Rates - with proposed special variation | AI96: =$S96 -> Average Rates - with proposed special variation | AQ96: =$S96 -> Average Rates - with proposed special variation
E97: =E23 -> 2021-22 | F97: 2022-23 | G97: 2023-24 | H97: 2024-25 | I97: 2025-26 | J97: 2026-27 | K97: 2027-28 | L97: 2028-29 | O97: =E97 -> 2021-22 | P97: =F97 -> 2022-23 | S97: =S$23 -> Year 1 | T97: =T$23 -> Year 2 | U97: Year 3 | V97: Year 4 | W97: Year 5 | X97: Year 6 | Y97: Year 7 | AA97: =AA$23 -> Year 1 | AB97: Year 2 | AC97: Year 3 | AD97: Year 4 | AE97: Year 5 | AF97: Year 6 | AG97: Year 7 | AI97: =AI$23 -> Year 1 | AJ97: =AJ$23 -> Year 2 | AK97: Year 3 | AL97: Year 4 | AM97: Year 5 | AN97: Year 6 | AO97: Year 7 | AQ97: =AQ$23 -> Year 1 | AR97: =AR$23 -> Year 2 | AS97: Year 3 | AT97: Year 4 | AU97: Year 5 | AV97: Year 6 | AW97: Year 7
C98: Residential | D98: =IF('WK2 - Notional General Income'!D19="","",'WK2 - Notional General Income'!D19) ->  | E98: =IF('WK2 - Notional General Income'!M19=".",".",'WK2 - Notional General Income'!M19/'WK2 - Notional General Income'!E19) -> . | F98: =IF('WK3 - Notional GI Yr1 YIELD'!M19=".",".",'WK3 - Notional GI Yr1 YIELD'!M19/'WK3 - Notional GI Yr1 YIELD'!E19) -> . | O98: ='WK2 - Notional General Income'!$E19 -> 0 | P98: ='WK3 - Notional GI Yr1 YIELD'!$E19 -> 0 | S98: =IF(OR(E98=".",F98="."),".",F98-E98) -> . | T98: =IF(OR(F98=".",G98="."),".",G98-F98) -> . | U98: =IF(H98="",".",H98-G98) -> . | V98: =IF(I98="",".",I98-H98) -> . | W98: =IF(J98="",".",J98-I98) -> . | X98: =IF(K98="",".",K98-J98) -> . | Y98: =IF(L98="",".",L98-K98) -> . | AA98: =IFERROR(F98/E98-1,".") -> . | AB98: =IFERROR(G98/F98-1,".") -> . | AC98: =IFERROR(H98/G98-1,".") -> . | AD98: =IFERROR(I98/H98-1,".") -> . | AE98: =IFERROR(J98/I98-1,".") -> . | AF98: =IFERROR(K98/J98-1,".") -> . | AG98: =IFERROR(L98/K98-1,".") -> . | AI98: =IF(S98=".",".",SUM($S98:S98)) -> . | AJ98: =IF(T98=".",".",SUM($S98:T98)) -> . | AK98: =IF(U98=".",".",SUM($S98:U98)) -> . | AL98: =IF(V98=".",".",SUM($S98:V98)) -> . | AM98: =IF(W98=".",".",SUM($S98:W98)) -> . | AN98: =IF(X98=".",".",SUM($S98:X98)) -> . | AO98: =IF(Y98=".",".",SUM($S98:Y98)) -> . | AQ98: =IFERROR(F98/$E98-1,".") -> . | AR98: =IFERROR(G98/$E98-1,".") -> . | AS98: =IFERROR(H98/$E98-1,".") -> . | AT98: =IFERROR(I98/$E98-1,".") -> . | AU98: =IFERROR(J98/$E98-1,".") -> . | AV98: =IFERROR(K98/$E98-1,".") -> . | AW98: =IFERROR(L98/$E98-1,".") -> .
C99: Residential | D99: =IF('WK2 - Notional General Income'!D20="","",'WK2 - Notional General Income'!D20) ->  | E99: =IF('WK2 - Notional General Income'!M20=".",".",'WK2 - Notional General Income'!M20/'WK2 - Notional General Income'!E20) -> . | F99: =IF('WK3 - Notional GI Yr1 YIELD'!M20=".",".",'WK3 - Notional GI Yr1 YIELD'!M20/'WK3 - Notional GI Yr1 YIELD'!E20) -> . | O99: ='WK2 - Notional General Income'!$E20 -> 0 | P99: ='WK3 - Notional GI Yr1 YIELD'!$E20 -> 0 | S99: =IF(OR(E99=".",F99="."),".",F99-E99) -> . | T99: . | U99: . | V99: . | W99: . | X99: . | Y99: . | AA99: . | AB99: . | AC99: . | AD99: . | AE99: . | AF99: . | AG99: . | AI99: =IF(S99=".",".",SUM($S99:S99)) -> . | AJ99: =IF(T99=".",".",SUM($S99:T99)) -> . | AK99: =IF(U99=".",".",SUM($S99:U99)) -> . | AL99: =IF(V99=".",".",SUM($S99:V99)) -> . | AM99: =IF(W99=".",".",SUM($S99:W99)) -> . | AN99: =IF(X99=".",".",SUM($S99:X99)) -> . | AO99: =IF(Y99=".",".",SUM($S99:Y99)) -> . | AQ99: =IFERROR(F99/$E99-1,".") -> . | AR99: . | AS99: . | AT99: . | AU99: . | AV99: . | AW99: .
C100: Residential | D100: =IF('WK2 - Notional General Income'!D21="","",'WK2 - Notional General Income'!D21) ->  | E100: =IF('WK2 - Notional General Income'!M21=".",".",'WK2 - Notional General Income'!M21/'WK2 - Notional General Income'!E21) -> . | F100: =IF('WK3 - Notional GI Yr1 YIELD'!M21=".",".",'WK3 - Notional GI Yr1 YIELD'!M21/'WK3 - Notional GI Yr1 YIELD'!E21) -> . | O100: ='WK2 - Notional General Income'!$E21 -> 0 | P100: ='WK3 - Notional GI Yr1 YIELD'!$E21 -> 0 | S100: . | T100: . | U100: . | V100: . | W100: . | X100: . | Y100: . | AA100: . | AB100: . | AC100: . | AD100: . | AE100: . | AF100: . | AG100: . | AI100: =IF(S100=".",".",SUM($S100:S100)) -> . | AJ100: =IF(T100=".",".",SUM($S100:T100)) -> . | AK100: =IF(U100=".",".",SUM($S100:U100)) -> . | AL100: =IF(V100=".",".",SUM($S100:V100)) -> . | AM100: =IF(W100=".",".",SUM($S100:W100)) -> . | AN100: =IF(X100=".",".",SUM($S100:X100)) -> . | AO100: =IF(Y100=".",".",SUM($S100:Y100)) -> . | AQ100: . | AR100: . | AS100: . | AT100: . | AU100: . | AV100: . | AW100: .
C101: Residential | D101: =IF('WK2 - Notional General Income'!D22="","",'WK2 - Notional General Income'!D22) ->  | E101: =IF('WK2 - Notional General Income'!M22=".",".",'WK2 - Notional General Income'!M22/'WK2 - Notional General Income'!E22) -> . | F101: =IF('WK3 - Notional GI Yr1 YIELD'!M22=".",".",'WK3 - Notional GI Yr1 YIELD'!M22/'WK3 - Notional GI Yr1 YIELD'!E22) -> . | O101: ='WK2 - Notional General Income'!$E22 -> 0 | P101: ='WK3 - Notional GI Yr1 YIELD'!$E22 -> 0 | S101: . | T101: . | U101: . | V101: . | W101: . | X101: . | Y101: . | AA101: . | AB101: . | AC101: . | AD101: . | AE101: . | AF101: . | AG101: . | AI101: =IF(S101=".",".",SUM($S101:S101)) -> . | AJ101: =IF(T101=".",".",SUM($S101:T101)) -> . | AK101: =IF(U101=".",".",SUM($S101:U101)) -> . | AL101: =IF(V101=".",".",SUM($S101:V101)) -> . | AM101: =IF(W101=".",".",SUM($S101:W101)) -> . | AN101: =IF(X101=".",".",SUM($S101:X101)) -> . | AO101: =IF(Y101=".",".",SUM($S101:Y101)) -> . | AQ101: . | AR101: . | AS101: . | AT101: . | AU101: . | AV101: . | AW101: .
C102: Residential | D102: =IF('WK2 - Notional General Income'!D23="","",'WK2 - Notional General Income'!D23) ->  | E102: =IF('WK2 - Notional General Income'!M23=".",".",'WK2 - Notional General Income'!M23/'WK2 - Notional General Income'!E23) -> . | F102: =IF('WK3 - Notional GI Yr1 YIELD'!M23=".",".",'WK3 - Notional GI Yr1 YIELD'!M23/'WK3 - Notional GI Yr1 YIELD'!E23) -> . | O102: ='WK2 - Notional General Income'!$E23 -> 0 | P102: ='WK3 - Notional GI Yr1 YIELD'!$E23 -> 0 | S102: . | T102: . | U102: . | V102: . | W102: . | X102: . | Y102: . | AA102: =IFERROR(F102/E102-1,".") -> . | AB102: . | AC102: . | AD102: . | AE102: . | AF102: . | AG102: . | AI102: =IF(S102=".",".",SUM($S102:S102)) -> . | AJ102: =IF(T102=".",".",SUM($S102:T102)) -> . | AK102: =IF(U102=".",".",SUM($S102:U102)) -> . | AL102: =IF(V102=".",".",SUM($S102:V102)) -> . | AM102: =IF(W102=".",".",SUM($S102:W102)) -> . | AN102: =IF(X102=".",".",SUM($S102:X102)) -> . | AO102: =IF(Y102=".",".",SUM($S102:Y102)) -> . | AQ102: . | AR102: . | AS102: . | AT102: . | AU102: . | AV102: . | AW102: .
C103: Residential | D103: =IF('WK2 - Notional General Income'!D24="","",'WK2 - Notional General Income'!D24) ->  | E103: =IF('WK2 - Notional General Income'!M24=".",".",'WK2 - Notional General Income'!M24/'WK2 - Notional General Income'!E24) -> . | F103: =IF('WK3 - Notional GI Yr1 YIELD'!M24=".",".",'WK3 - Notional GI Yr1 YIELD'!M24/'WK3 - Notional GI Yr1 YIELD'!E24) -> . | O103: ='WK2 - Notional General Income'!$E24 -> 0 | P103: ='WK3 - Notional GI Yr1 YIELD'!$E24 -> 0 | S103: . | T103: . | U103: . | V103: . | W103: . | X103: . | Y103: . | AA103: =IFERROR(F103/E103-1,".") -> . | AB103: . | AC103: . | AD103: . | AE103: . | AF103: . | AG103: . | AI103: =IF(S103=".",".",SUM($S103:S103)) -> . | AJ103: =IF(T103=".",".",SUM($S103:T103)) -> . | AK103: =IF(U103=".",".",SUM($S103:U103)) -> . | AL103: =IF(V103=".",".",SUM($S103:V103)) -> . | AM103: =IF(W103=".",".",SUM($S103:W103)) -> . | AN103: =IF(X103=".",".",SUM($S103:X103)) -> . | AO103: =IF(Y103=".",".",SUM($S103:Y103)) -> . | AQ103: . | AR103: . | AS103: . | AT103: . | AU103: . | AV103: . | AW103: .
C104: Residential | D104: =IF('WK2 - Notional General Income'!D25="","",'WK2 - Notional General Income'!D25) ->  | E104: =IF('WK2 - Notional General Income'!M25=".",".",'WK2 - Notional General Income'!M25/'WK2 - Notional General Income'!E25) -> . | F104: =IF('WK3 - Notional GI Yr1 YIELD'!M25=".",".",'WK3 - Notional GI Yr1 YIELD'!M25/'WK3 - Notional GI Yr1 YIELD'!E25) -> . | O104: ='WK2 - Notional General Income'!$E25 -> 0 | P104: ='WK3 - Notional GI Yr1 YIELD'!$E25 -> 0 | S104: . | T104: . | U104: . | V104: . | W104: . | X104: . | Y104: . | AA104: . | AB104: . | AC104: . | AD104: . | AE104: . | AF104: . | AG104: . | AI104: =IF(S104=".",".",SUM($S104:S104)) -> . | AJ104: =IF(T104=".",".",SUM($S104:T104)) -> . | AK104: =IF(U104=".",".",SUM($S104:U104)) -> . | AL104: =IF(V104=".",".",SUM($S104:V104)) -> . | AM104: =IF(W104=".",".",SUM($S104:W104)) -> . | AN104: =IF(X104=".",".",SUM($S104:X104)) -> . | AO104: =IF(Y104=".",".",SUM($S104:Y104)) -> . | AQ104: . | AR104: . | AS104: . | AT104: . | AU104: . | AV104: . | AW104: .
C105: Residential | D105: =IF('WK2 - Notional General Income'!D26="","",'WK2 - Notional General Income'!D26) ->  | E105: =IF('WK2 - Notional General Income'!M26=".",".",'WK2 - Notional General Income'!M26/'WK2 - Notional General Income'!E26) -> . | F105: =IF('WK3 - Notional GI Yr1 YIELD'!M26=".",".",'WK3 - Notional GI Yr1 YIELD'!M26/'WK3 - Notional GI Yr1 YIELD'!E26) -> . | O105: ='WK2 - Notional General Income'!$E26 -> 0 | P105: ='WK3 - Notional GI Yr1 YIELD'!$E26 -> 0 | S105: . | T105: . | U105: . | V105: . | W105: . | X105: . | Y105: . | AA105: . | AB105: . | AC105: . | AD105: . | AE105: . | AF105: . | AG105: . | AI105: =IF(S105=".",".",SUM($S105:S105)) -> . | AJ105: =IF(T105=".",".",SUM($S105:T105)) -> . | AK105: =IF(U105=".",".",SUM($S105:U105)) -> . | AL105: =IF(V105=".",".",SUM($S105:V105)) -> . | AM105: =IF(W105=".",".",SUM($S105:W105)) -> . | AN105: =IF(X105=".",".",SUM($S105:X105)) -> . | AO105: =IF(Y105=".",".",SUM($S105:Y105)) -> . | AQ105: . | AR105: . | AS105: . | AT105: . | AU105: . | AV105: . | AW105: .
C106: Residential | D106: =IF('WK2 - Notional General Income'!D27="","",'WK2 - Notional General Income'!D27) ->  | E106: =IF('WK2 - Notional General Income'!M27=".",".",'WK2 - Notional General Income'!M27/'WK2 - Notional General Income'!E27) -> . | F106: =IF('WK3 - Notional GI Yr1 YIELD'!M27=".",".",'WK3 - Notional GI Yr1 YIELD'!M27/'WK3 - Notional GI Yr1 YIELD'!E27) -> . | O106: ='WK2 - Notional General Income'!$E27 -> 0 | P106: ='WK3 - Notional GI Yr1 YIELD'!$E27 -> 0 | S106: . | T106: . | U106: . | V106: . | W106: . | X106: . | Y106: . | AA106: . | AB106: . | AC106: . | AD106: . | AE106: . | AF106: . | AG106: . | AI106: =IF(S106=".",".",SUM($S106:S106)) -> . | AJ106: =IF(T106=".",".",SUM($S106:T106)) -> . | AK106: =IF(U106=".",".",SUM($S106:U106)) -> . | AL106: =IF(V106=".",".",SUM($S106:V106)) -> . | AM106: =IF(W106=".",".",SUM($S106:W106)) -> . | AN106: =IF(X106=".",".",SUM($S106:X106)) -> . | AO106: =IF(Y106=".",".",SUM($S106:Y106)) -> . | AQ106: . | AR106: . | AS106: . | AT106: . | AU106: . | AV106: . | AW106: .
C107: Residential | D107: =IF('WK2 - Notional General Income'!D28="","",'WK2 - Notional General Income'!D28) ->  | E107: =IF('WK2 - Notional General Income'!M28=".",".",'WK2 - Notional General Income'!M28/'WK2 - Notional General Income'!E28) -> . | F107: =IF('WK3 - Notional GI Yr1 YIELD'!M28=".",".",'WK3 - Notional GI Yr1 YIELD'!M28/'WK3 - Notional GI Yr1 YIELD'!E28) -> . | O107: ='WK2 - Notional General Income'!$E28 -> 0 | P107: ='WK3 - Notional GI Yr1 YIELD'!$E28 -> 0 | S107: . | T107: . | U107: . | V107: . | W107: . | X107: . | Y107: . | AA107: . | AB107: . | AC107: . | AD107: . | AE107: . | AF107: . | AG107: . | AI107: =IF(S107=".",".",SUM($S107:S107)) -> . | AJ107: =IF(T107=".",".",SUM($S107:T107)) -> . | AK107: =IF(U107=".",".",SUM($S107:U107)) -> . | AL107: =IF(V107=".",".",SUM($S107:V107)) -> . | AM107: =IF(W107=".",".",SUM($S107:W107)) -> . | AN107: =IF(X107=".",".",SUM($S107:X107)) -> . | AO107: =IF(Y107=".",".",SUM($S107:Y107)) -> . | AQ107: . | AR107: . | AS107: . | AT107: . | AU107: . | AV107: . | AW107: .
C108: Residential | D108: =IF('WK2 - Notional General Income'!D29="","",'WK2 - Notional General Income'!D29) ->  | E108: =IF('WK2 - Notional General Income'!M29=".",".",'WK2 - Notional General Income'!M29/'WK2 - Notional General Income'!E29) -> . | F108: =IF('WK3 - Notional GI Yr1 YIELD'!M29=".",".",'WK3 - Notional GI Yr1 YIELD'!M29/'WK3 - Notional GI Yr1 YIELD'!E29) -> . | O108: ='WK2 - Notional General Income'!$E29 -> 0 | P108: ='WK3 - Notional GI Yr1 YIELD'!$E29 -> 0 | S108: . | T108: . | U108: . | V108: . | W108: . | X108: . | Y108: . | AA108: . | AB108: . | AC108: . | AD108: . | AE108: . | AF108: . | AG108: . | AI108: =IF(S108=".",".",SUM($S108:S108)) -> . | AJ108: =IF(T108=".",".",SUM($S108:T108)) -> . | AK108: =IF(U108=".",".",SUM($S108:U108)) -> . | AL108: =IF(V108=".",".",SUM($S108:V108)) -> . | AM108: =IF(W108=".",".",SUM($S108:W108)) -> . | AN108: =IF(X108=".",".",SUM($S108:X108)) -> . | AO108: =IF(Y108=".",".",SUM($S108:Y108)) -> . | AQ108: . | AR108: . | AS108: . | AT108: . | AU108: . | AV108: . | AW108: .
C109: Residential | D109: =IF('WK2 - Notional General Income'!D30="","",'WK2 - Notional General Income'!D30) ->  | E109: =IF('WK2 - Notional General Income'!M30=".",".",'WK2 - Notional General Income'!M30/'WK2 - Notional General Income'!E30) -> . | F109: =IF('WK3 - Notional GI Yr1 YIELD'!M30=".",".",'WK3 - Notional GI Yr1 YIELD'!M30/'WK3 - Notional GI Yr1 YIELD'!E30) -> . | O109: ='WK2 - Notional General Income'!$E30 -> 0 | P109: ='WK3 - Notional GI Yr1 YIELD'!$E30 -> 0 | S109: . | T109: . | U109: . | V109: . | W109: . | X109: . | Y109: . | AA109: . | AB109: . | AC109: . | AD109: . | AE109: . | AF109: . | AG109: . | AI109: =IF(S109=".",".",SUM($S109:S109)) -> . | AJ109: =IF(T109=".",".",SUM($S109:T109)) -> . | AK109: =IF(U109=".",".",SUM($S109:U109)) -> . | AL109: =IF(V109=".",".",SUM($S109:V109)) -> . | AM109: =IF(W109=".",".",SUM($S109:W109)) -> . | AN109: =IF(X109=".",".",SUM($S109:X109)) -> . | AO109: =IF(Y109=".",".",SUM($S109:Y109)) -> . | AQ109: . | AR109: . | AS109: . | AT109: . | AU109: . | AV109: . | AW109: .
C110: Residential | D110: =IF('WK2 - Notional General Income'!D31="","",'WK2 - Notional General Income'!D31) ->  | E110: =IF('WK2 - Notional General Income'!M31=".",".",'WK2 - Notional General Income'!M31/'WK2 - Notional General Income'!E31) -> . | F110: =IF('WK3 - Notional GI Yr1 YIELD'!M31=".",".",'WK3 - Notional GI Yr1 YIELD'!M31/'WK3 - Notional GI Yr1 YIELD'!E31) -> . | O110: ='WK2 - Notional General Income'!$E31 -> 0 | P110: ='WK3 - Notional GI Yr1 YIELD'!$E31 -> 0 | S110: . | T110: . | U110: . | V110: . | W110: . | X110: . | Y110: . | AA110: . | AB110: . | AC110: . | AD110: . | AE110: . | AF110: . | AG110: . | AI110: =IF(S110=".",".",SUM($S110:S110)) -> . | AJ110: =IF(T110=".",".",SUM($S110:T110)) -> . | AK110: =IF(U110=".",".",SUM($S110:U110)) -> . | AL110: =IF(V110=".",".",SUM($S110:V110)) -> . | AM110: =IF(W110=".",".",SUM($S110:W110)) -> . | AN110: =IF(X110=".",".",SUM($S110:X110)) -> . | AO110: =IF(Y110=".",".",SUM($S110:Y110)) -> . | AQ110: . | AR110: . | AS110: . | AT110: . | AU110: . | AV110: . | AW110: .
C111: Residential | D111: =IF('WK2 - Notional General Income'!D32="","",'WK2 - Notional General Income'!D32) ->  | E111: =IF('WK2 - Notional General Income'!M32=".",".",'WK2 - Notional General Income'!M32/'WK2 - Notional General Income'!E32) -> . | F111: =IF('WK3 - Notional GI Yr1 YIELD'!M32=".",".",'WK3 - Notional GI Yr1 YIELD'!M32/'WK3 - Notional GI Yr1 YIELD'!E32) -> . | O111: ='WK2 - Notional General Income'!$E32 -> 0 | P111: ='WK3 - Notional GI Yr1 YIELD'!$E32 -> 0 | S111: . | T111: . | U111: . | V111: . | W111: . | X111: . | Y111: . | AA111: =IFERROR(F111/E111-1,".") -> . | AB111: . | AC111: . | AD111: . | AE111: . | AF111: . | AG111: . | AI111: =IF(S111=".",".",SUM($S111:S111)) -> . | AJ111: =IF(T111=".",".",SUM($S111:T111)) -> . | AK111: =IF(U111=".",".",SUM($S111:U111)) -> . | AL111: =IF(V111=".",".",SUM($S111:V111)) -> . | AM111: =IF(W111=".",".",SUM($S111:W111)) -> . | AN111: =IF(X111=".",".",SUM($S111:X111)) -> . | AO111: =IF(Y111=".",".",SUM($S111:Y111)) -> . | AQ111: . | AR111: . | AS111: . | AT111: . | AU111: . | AV111: . | AW111: .
C112: Residential | D112: =IF('WK2 - Notional General Income'!D33="","",'WK2 - Notional General Income'!D33) ->  | E112: =IF('WK2 - Notional General Income'!M33=".",".",'WK2 - Notional General Income'!M33/'WK2 - Notional General Income'!E33) -> . | F112: =IF('WK3 - Notional GI Yr1 YIELD'!M33=".",".",'WK3 - Notional GI Yr1 YIELD'!M33/'WK3 - Notional GI Yr1 YIELD'!E33) -> . | O112: ='WK2 - Notional General Income'!$E33 -> 0 | P112: ='WK3 - Notional GI Yr1 YIELD'!$E33 -> 0 | S112: . | T112: . | U112: . | V112: . | W112: . | X112: . | Y112: . | AA112: . | AB112: . | AC112: . | AD112: . | AE112: . | AF112: . | AG112: . | AI112: =IF(S112=".",".",SUM($S112:S112)) -> . | AJ112: =IF(T112=".",".",SUM($S112:T112)) -> . | AK112: =IF(U112=".",".",SUM($S112:U112)) -> . | AL112: =IF(V112=".",".",SUM($S112:V112)) -> . | AM112: =IF(W112=".",".",SUM($S112:W112)) -> . | AN112: =IF(X112=".",".",SUM($S112:X112)) -> . | AO112: =IF(Y112=".",".",SUM($S112:Y112)) -> . | AQ112: . | AR112: . | AS112: . | AT112: . | AU112: . | AV112: . | AW112: .
C113: Residential | D113: =IF('WK2 - Notional General Income'!D34="","",'WK2 - Notional General Income'!D34) ->  | E113: =IF('WK2 - Notional General Income'!M34=".",".",'WK2 - Notional General Income'!M34/'WK2 - Notional General Income'!E34) -> . | F113: =IF('WK3 - Notional GI Yr1 YIELD'!M34=".",".",'WK3 - Notional GI Yr1 YIELD'!M34/'WK3 - Notional GI Yr1 YIELD'!E34) -> . | O113: ='WK2 - Notional General Income'!$E34 -> 0 | P113: ='WK3 - Notional GI Yr1 YIELD'!$E34 -> 0 | S113: . | T113: . | U113: . | V113: . | W113: . | X113: . | Y113: . | AA113: . | AB113: . | AC113: . | AD113: . | AE113: . | AF113: . | AG113: . | AI113: =IF(S113=".",".",SUM($S113:S113)) -> . | AJ113: =IF(T113=".",".",SUM($S113:T113)) -> . | AK113: =IF(U113=".",".",SUM($S113:U113)) -> . | AL113: =IF(V113=".",".",SUM($S113:V113)) -> . | AM113: =IF(W113=".",".",SUM($S113:W113)) -> . | AN113: =IF(X113=".",".",SUM($S113:X113)) -> . | AO113: =IF(Y113=".",".",SUM($S113:Y113)) -> . | AQ113: . | AR113: . | AS113: . | AT113: . | AU113: . | AV113: . | AW113: .
C114: Residential | D114: =IF('WK2 - Notional General Income'!D35="","",'WK2 - Notional General Income'!D35) ->  | E114: =IF('WK2 - Notional General Income'!M35=".",".",'WK2 - Notional General Income'!M35/'WK2 - Notional General Income'!E35) -> . | F114: =IF('WK3 - Notional GI Yr1 YIELD'!M35=".",".",'WK3 - Notional GI Yr1 YIELD'!M35/'WK3 - Notional GI Yr1 YIELD'!E35) -> . | O114: ='WK2 - Notional General Income'!$E35 -> 0 | P114: ='WK3 - Notional GI Yr1 YIELD'!$E35 -> 0 | S114: . | T114: . | U114: . | V114: . | W114: . | X114: . | Y114: . | AA114: . | AB114: . | AC114: . | AD114: . | AE114: . | AF114: . | AG114: . | AI114: =IF(S114=".",".",SUM($S114:S114)) -> . | AJ114: =IF(T114=".",".",SUM($S114:T114)) -> . | AK114: =IF(U114=".",".",SUM($S114:U114)) -> . | AL114: =IF(V114=".",".",SUM($S114:V114)) -> . | AM114: =IF(W114=".",".",SUM($S114:W114)) -> . | AN114: =IF(X114=".",".",SUM($S114:X114)) -> . | AO114: =IF(Y114=".",".",SUM($S114:Y114)) -> . | AQ114: . | AR114: . | AS114: . | AT114: . | AU114: . | AV114: . | AW114: .
C115: Residential | D115: =IF('WK2 - Notional General Income'!D36="","",'WK2 - Notional General Income'!D36) ->  | E115: =IF('WK2 - Notional General Income'!M36=".",".",'WK2 - Notional General Income'!M36/'WK2 - Notional General Income'!E36) -> . | F115: =IF('WK3 - Notional GI Yr1 YIELD'!M36=".",".",'WK3 - Notional GI Yr1 YIELD'!M36/'WK3 - Notional GI Yr1 YIELD'!E36) -> . | O115: ='WK2 - Notional General Income'!$E36 -> 0 | P115: ='WK3 - Notional GI Yr1 YIELD'!$E36 -> 0 | S115: . | T115: . | U115: . | V115: . | W115: . | X115: . | Y115: . | AA115: . | AB115: . | AC115: . | AD115: . | AE115: . | AF115: . | AG115: . | AI115: =IF(S115=".",".",SUM($S115:S115)) -> . | AJ115: =IF(T115=".",".",SUM($S115:T115)) -> . | AK115: =IF(U115=".",".",SUM($S115:U115)) -> . | AL115: =IF(V115=".",".",SUM($S115:V115)) -> . | AM115: =IF(W115=".",".",SUM($S115:W115)) -> . | AN115: =IF(X115=".",".",SUM($S115:X115)) -> . | AO115: =IF(Y115=".",".",SUM($S115:Y115)) -> . | AQ115: . | AR115: . | AS115: . | AT115: . | AU115: . | AV115: . | AW115: .
C116: Residential | D116: =IF('WK2 - Notional General Income'!D37="","",'WK2 - Notional General Income'!D37) ->  | E116: =IF('WK2 - Notional General Income'!M37=".",".",'WK2 - Notional General Income'!M37/'WK2 - Notional General Income'!E37) -> . | F116: =IF('WK3 - Notional GI Yr1 YIELD'!M37=".",".",'WK3 - Notional GI Yr1 YIELD'!M37/'WK3 - Notional GI Yr1 YIELD'!E37) -> . | O116: ='WK2 - Notional General Income'!$E37 -> 0 | P116: ='WK3 - Notional GI Yr1 YIELD'!$E37 -> 0 | S116: . | T116: . | U116: . | V116: . | W116: . | X116: . | Y116: . | AA116: . | AB116: . | AC116: . | AD116: . | AE116: . | AF116: . | AG116: . | AI116: =IF(S116=".",".",SUM($S116:S116)) -> . | AJ116: =IF(T116=".",".",SUM($S116:T116)) -> . | AK116: =IF(U116=".",".",SUM($S116:U116)) -> . | AL116: =IF(V116=".",".",SUM($S116:V116)) -> . | AM116: =IF(W116=".",".",SUM($S116:W116)) -> . | AN116: =IF(X116=".",".",SUM($S116:X116)) -> . | AO116: =IF(Y116=".",".",SUM($S116:Y116)) -> . | AQ116: . | AR116: . | AS116: . | AT116: . | AU116: . | AV116: . | AW116: .
C117: Residential | D117: =IF('WK2 - Notional General Income'!D38="","",'WK2 - Notional General Income'!D38) ->  | E117: =IF('WK2 - Notional General Income'!M38=".",".",'WK2 - Notional General Income'!M38/'WK2 - Notional General Income'!E38) -> . | F117: =IF('WK3 - Notional GI Yr1 YIELD'!M38=".",".",'WK3 - Notional GI Yr1 YIELD'!M38/'WK3 - Notional GI Yr1 YIELD'!E38) -> . | O117: ='WK2 - Notional General Income'!$E38 -> 0 | P117: ='WK3 - Notional GI Yr1 YIELD'!$E38 -> 0 | S117: . | T117: . | U117: . | V117: . | W117: . | X117: . | Y117: . | AA117: . | AB117: . | AC117: . | AD117: . | AE117: . | AF117: . | AG117: . | AI117: =IF(S117=".",".",SUM($S117:S117)) -> . | AJ117: =IF(T117=".",".",SUM($S117:T117)) -> . | AK117: =IF(U117=".",".",SUM($S117:U117)) -> . | AL117: =IF(V117=".",".",SUM($S117:V117)) -> . | AM117: =IF(W117=".",".",SUM($S117:W117)) -> . | AN117: =IF(X117=".",".",SUM($S117:X117)) -> . | AO117: =IF(Y117=".",".",SUM($S117:Y117)) -> . | AQ117: . | AR117: . | AS117: . | AT117: . | AU117: . | AV117: . | AW117: .
C118: Special rate | D118: =IF('WK2 - Notional General Income'!D94="","",'WK2 - Notional General Income'!D94) ->  | E118: =IF('WK2 - Notional General Income'!M94=".",".",'WK2 - Notional General Income'!M94/'WK2 - Notional General Income'!E94) -> . | F118: =IF('WK3 - Notional GI Yr1 YIELD'!M94=".",".",'WK3 - Notional GI Yr1 YIELD'!M94/'WK3 - Notional GI Yr1 YIELD'!E94) -> . | O118: ='WK2 - Notional General Income'!$E94 -> 0 | P118: ='WK3 - Notional GI Yr1 YIELD'!$E94 -> 0 | S118: . | T118: . | U118: . | V118: . | W118: . | X118: . | Y118: . | AA118: . | AB118: . | AC118: . | AD118: . | AE118: . | AF118: . | AG118: . | AI118: =IF(S118=".",".",SUM($S118:S118)) -> . | AJ118: =IF(T118=".",".",SUM($S118:T118)) -> . | AK118: =IF(U118=".",".",SUM($S118:U118)) -> . | AL118: =IF(V118=".",".",SUM($S118:V118)) -> . | AM118: =IF(W118=".",".",SUM($S118:W118)) -> . | AN118: =IF(X118=".",".",SUM($S118:X118)) -> . | AO118: =IF(Y118=".",".",SUM($S118:Y118)) -> . | AQ118: . | AR118: . | AS118: . | AT118: . | AU118: . | AV118: . | AW118: .
C119: Special rate | D119: =IF('WK2 - Notional General Income'!D95="","",'WK2 - Notional General Income'!D95) ->  | E119: =IF('WK2 - Notional General Income'!M95=".",".",'WK2 - Notional General Income'!M95/'WK2 - Notional General Income'!E95) -> . | F119: =IF('WK3 - Notional GI Yr1 YIELD'!M95=".",".",'WK3 - Notional GI Yr1 YIELD'!M95/'WK3 - Notional GI Yr1 YIELD'!E95) -> . | O119: ='WK2 - Notional General Income'!$E95 -> 0 | P119: ='WK3 - Notional GI Yr1 YIELD'!$E95 -> 0 | S119: . | T119: . | U119: . | V119: . | W119: . | X119: . | Y119: . | AA119: . | AB119: . | AC119: . | AD119: . | AE119: . | AF119: . | AG119: . | AI119: =IF(S119=".",".",SUM($S119:S119)) -> . | AJ119: =IF(T119=".",".",SUM($S119:T119)) -> . | AK119: =IF(U119=".",".",SUM($S119:U119)) -> . | AL119: =IF(V119=".",".",SUM($S119:V119)) -> . | AM119: =IF(W119=".",".",SUM($S119:W119)) -> . | AN119: =IF(X119=".",".",SUM($S119:X119)) -> . | AO119: =IF(Y119=".",".",SUM($S119:Y119)) -> . | AQ119: . | AR119: . | AS119: . | AT119: . | AU119: . | AV119: . | AW119: .
C120: Special rate | D120: =IF('WK2 - Notional General Income'!D96="","",'WK2 - Notional General Income'!D96) ->  | E120: =IF('WK2 - Notional General Income'!M96=".",".",'WK2 - Notional General Income'!M96/'WK2 - Notional General Income'!E96) -> . | F120: =IF('WK3 - Notional GI Yr1 YIELD'!M96=".",".",'WK3 - Notional GI Yr1 YIELD'!M96/'WK3 - Notional GI Yr1 YIELD'!E96) -> . | O120: ='WK2 - Notional General Income'!$E96 -> 0 | P120: ='WK3 - Notional GI Yr1 YIELD'!$E96 -> 0 | S120: . | T120: . | U120: . | V120: . | W120: . | X120: . | Y120: . | AA120: . | AB120: . | AC120: . | AD120: . | AE120: . | AF120: . | AG120: . | AI120: =IF(S120=".",".",SUM($S120:S120)) -> . | AJ120: =IF(T120=".",".",SUM($S120:T120)) -> . | AK120: =IF(U120=".",".",SUM($S120:U120)) -> . | AL120: =IF(V120=".",".",SUM($S120:V120)) -> . | AM120: =IF(W120=".",".",SUM($S120:W120)) -> . | AN120: =IF(X120=".",".",SUM($S120:X120)) -> . | AO120: =IF(Y120=".",".",SUM($S120:Y120)) -> . | AQ120: . | AR120: . | AS120: . | AT120: . | AU120: . | AV120: . | AW120: .
C121: Special rate | D121: =IF('WK2 - Notional General Income'!D97="","",'WK2 - Notional General Income'!D97) ->  | E121: =IF('WK2 - Notional General Income'!M97=".",".",'WK2 - Notional General Income'!M97/'WK2 - Notional General Income'!E97) -> . | F121: =IF('WK3 - Notional GI Yr1 YIELD'!M97=".",".",'WK3 - Notional GI Yr1 YIELD'!M97/'WK3 - Notional GI Yr1 YIELD'!E97) -> . | O121: ='WK2 - Notional General Income'!$E97 -> 0 | P121: ='WK3 - Notional GI Yr1 YIELD'!$E97 -> 0 | S121: . | T121: . | U121: . | V121: . | W121: . | X121: . | Y121: . | AA121: . | AB121: . | AC121: . | AD121: . | AE121: . | AF121: . | AG121: . | AI121: =IF(S121=".",".",SUM($S121:S121)) -> . | AJ121: =IF(T121=".",".",SUM($S121:T121)) -> . | AK121: =IF(U121=".",".",SUM($S121:U121)) -> . | AL121: =IF(V121=".",".",SUM($S121:V121)) -> . | AM121: =IF(W121=".",".",SUM($S121:W121)) -> . | AN121: =IF(X121=".",".",SUM($S121:X121)) -> . | AO121: =IF(Y121=".",".",SUM($S121:Y121)) -> . | AQ121: . | AR121: . | AS121: . | AT121: . | AU121: . | AV121: . | AW121: .
C122: Special rate | D122: =IF('WK2 - Notional General Income'!D98="","",'WK2 - Notional General Income'!D98) ->  | E122: =IF('WK2 - Notional General Income'!M98=".",".",'WK2 - Notional General Income'!M98/'WK2 - Notional General Income'!E98) -> . | F122: =IF('WK3 - Notional GI Yr1 YIELD'!M98=".",".",'WK3 - Notional GI Yr1 YIELD'!M98/'WK3 - Notional GI Yr1 YIELD'!E98) -> . | O122: ='WK2 - Notional General Income'!$E98 -> 0 | P122: ='WK3 - Notional GI Yr1 YIELD'!$E98 -> 0 | S122: . | T122: . | U122: . | V122: . | W122: . | X122: . | Y122: . | AA122: . | AB122: . | AC122: . | AD122: . | AE122: . | AF122: . | AG122: . | AI122: =IF(S122=".",".",SUM($S122:S122)) -> . | AJ122: =IF(T122=".",".",SUM($S122:T122)) -> . | AK122: =IF(U122=".",".",SUM($S122:U122)) -> . | AL122: =IF(V122=".",".",SUM($S122:V122)) -> . | AM122: =IF(W122=".",".",SUM($S122:W122)) -> . | AN122: =IF(X122=".",".",SUM($S122:X122)) -> . | AO122: =IF(Y122=".",".",SUM($S122:Y122)) -> . | AQ122: . | AR122: . | AS122: . | AT122: . | AU122: . | AV122: . | AW122: .
C123: Special rate | D123: =IF('WK2 - Notional General Income'!D99="","",'WK2 - Notional General Income'!D99) ->  | E123: =IF('WK2 - Notional General Income'!M99=".",".",'WK2 - Notional General Income'!M99/'WK2 - Notional General Income'!E99) -> . | F123: =IF('WK3 - Notional GI Yr1 YIELD'!M99=".",".",'WK3 - Notional GI Yr1 YIELD'!M99/'WK3 - Notional GI Yr1 YIELD'!E99) -> . | O123: ='WK2 - Notional General Income'!$E99 -> 0 | P123: ='WK3 - Notional GI Yr1 YIELD'!$E99 -> 0 | S123: . | T123: . | U123: . | V123: . | W123: . | X123: . | Y123: . | AA123: . | AB123: . | AC123: . | AD123: . | AE123: . | AF123: . | AG123: . | AI123: =IF(S123=".",".",SUM($S123:S123)) -> . | AJ123: =IF(T123=".",".",SUM($S123:T123)) -> . | AK123: =IF(U123=".",".",SUM($S123:U123)) -> . | AL123: =IF(V123=".",".",SUM($S123:V123)) -> . | AM123: =IF(W123=".",".",SUM($S123:W123)) -> . | AN123: =IF(X123=".",".",SUM($S123:X123)) -> . | AO123: =IF(Y123=".",".",SUM($S123:Y123)) -> . | AQ123: . | AR123: . | AS123: . | AT123: . | AU123: . | AV123: . | AW123: .
C124: Special rate | D124: =IF('WK2 - Notional General Income'!D100="","",'WK2 - Notional General Income'!D100) ->  | E124: =IF('WK2 - Notional General Income'!M100=".",".",'WK2 - Notional General Income'!M100/'WK2 - Notional General Income'!E100) -> . | F124: =IF('WK3 - Notional GI Yr1 YIELD'!M100=".",".",'WK3 - Notional GI Yr1 YIELD'!M100/'WK3 - Notional GI Yr1 YIELD'!E100) -> . | O124: ='WK2 - Notional General Income'!$E100 -> 0 | P124: ='WK3 - Notional GI Yr1 YIELD'!$E100 -> 0 | S124: . | T124: . | U124: . | V124: . | W124: . | X124: . | Y124: . | AA124: . | AB124: . | AC124: . | AD124: . | AE124: . | AF124: . | AG124: . | AI124: =IF(S124=".",".",SUM($S124:S124)) -> . | AJ124: =IF(T124=".",".",SUM($S124:T124)) -> . | AK124: =IF(U124=".",".",SUM($S124:U124)) -> . | AL124: =IF(V124=".",".",SUM($S124:V124)) -> . | AM124: =IF(W124=".",".",SUM($S124:W124)) -> . | AN124: =IF(X124=".",".",SUM($S124:X124)) -> . | AO124: =IF(Y124=".",".",SUM($S124:Y124)) -> . | AQ124: . | AR124: . | AS124: . | AT124: . | AU124: . | AV124: . | AW124: .
C125: Special rate | D125: =IF('WK2 - Notional General Income'!D101="","",'WK2 - Notional General Income'!D101) ->  | E125: =IF('WK2 - Notional General Income'!M101=".",".",'WK2 - Notional General Income'!M101/'WK2 - Notional General Income'!E101) -> . | F125: =IF('WK3 - Notional GI Yr1 YIELD'!M101=".",".",'WK3 - Notional GI Yr1 YIELD'!M101/'WK3 - Notional GI Yr1 YIELD'!E101) -> . | O125: ='WK2 - Notional General Income'!$E101 -> 0 | P125: ='WK3 - Notional GI Yr1 YIELD'!$E101 -> 0 | S125: . | T125: . | U125: . | V125: . | W125: . | X125: . | Y125: . | AA125: . | AB125: . | AC125: . | AD125: . | AE125: . | AF125: . | AG125: . | AI125: =IF(S125=".",".",SUM($S125:S125)) -> . | AJ125: =IF(T125=".",".",SUM($S125:T125)) -> . | AK125: =IF(U125=".",".",SUM($S125:U125)) -> . | AL125: =IF(V125=".",".",SUM($S125:V125)) -> . | AM125: =IF(W125=".",".",SUM($S125:W125)) -> . | AN125: =IF(X125=".",".",SUM($S125:X125)) -> . | AO125: =IF(Y125=".",".",SUM($S125:Y125)) -> . | AQ125: . | AR125: . | AS125: . | AT125: . | AU125: . | AV125: . | AW125: .
C126: Special rate | D126: =IF('WK2 - Notional General Income'!D102="","",'WK2 - Notional General Income'!D102) ->  | E126: =IF('WK2 - Notional General Income'!M102=".",".",'WK2 - Notional General Income'!M102/'WK2 - Notional General Income'!E102) -> . | F126: =IF('WK3 - Notional GI Yr1 YIELD'!M102=".",".",'WK3 - Notional GI Yr1 YIELD'!M102/'WK3 - Notional GI Yr1 YIELD'!E102) -> . | O126: ='WK2 - Notional General Income'!$E102 -> 0 | P126: ='WK3 - Notional GI Yr1 YIELD'!$E102 -> 0 | S126: . | T126: . | U126: . | V126: . | W126: . | X126: . | Y126: . | AA126: . | AB126: . | AC126: . | AD126: . | AE126: . | AF126: . | AG126: . | AI126: =IF(S126=".",".",SUM($S126:S126)) -> . | AJ126: =IF(T126=".",".",SUM($S126:T126)) -> . | AK126: =IF(U126=".",".",SUM($S126:U126)) -> . | AL126: =IF(V126=".",".",SUM($S126:V126)) -> . | AM126: =IF(W126=".",".",SUM($S126:W126)) -> . | AN126: =IF(X126=".",".",SUM($S126:X126)) -> . | AO126: =IF(Y126=".",".",SUM($S126:Y126)) -> . | AQ126: . | AR126: . | AS126: . | AT126: . | AU126: . | AV126: . | AW126: .
C127: Special rate | D127: =IF('WK2 - Notional General Income'!D103="","",'WK2 - Notional General Income'!D103) ->  | E127: =IF('WK2 - Notional General Income'!M103=".",".",'WK2 - Notional General Income'!M103/'WK2 - Notional General Income'!E103) -> . | F127: =IF('WK3 - Notional GI Yr1 YIELD'!M103=".",".",'WK3 - Notional GI Yr1 YIELD'!M103/'WK3 - Notional GI Yr1 YIELD'!E103) -> . | O127: ='WK2 - Notional General Income'!$E103 -> 0 | P127: ='WK3 - Notional GI Yr1 YIELD'!$E103 -> 0 | S127: . | T127: . | U127: . | V127: . | W127: . | X127: . | Y127: . | AA127: . | AB127: . | AC127: . | AD127: . | AE127: . | AF127: . | AG127: . | AI127: =IF(S127=".",".",SUM($S127:S127)) -> . | AJ127: =IF(T127=".",".",SUM($S127:T127)) -> . | AK127: =IF(U127=".",".",SUM($S127:U127)) -> . | AL127: =IF(V127=".",".",SUM($S127:V127)) -> . | AM127: =IF(W127=".",".",SUM($S127:W127)) -> . | AN127: =IF(X127=".",".",SUM($S127:X127)) -> . | AO127: =IF(Y127=".",".",SUM($S127:Y127)) -> . | AQ127: . | AR127: . | AS127: . | AT127: . | AU127: . | AV127: . | AW127: .
D128: TOTAL AVERAGE | E128: =IF($O128=0,".",SUMPRODUCT(E98:E127,$O98:$O127)/$O128) -> . | F128: =IF($P128=0,".",SUMPRODUCT(F98:F127,$P98:$P127)/$P128) -> . | G128: . | H128: . | I128: . | J128: . | K128: . | L128: . | O128: =SUM(O98:O117) -> 0 | P128: =SUM(P98:P117) -> 0 | S128: . | T128: . | U128: =IF(H128=".",".",H128-G128) -> . | V128: . | W128: . | X128: . | Y128: . | AA128: . | AB128: . | AC128: . | AD128: . | AE128: . | AF128: . | AG128: . | AI128: =IF(S128=".",".",SUM($S128:S128)) -> . | AJ128: =IF(T128=".",".",SUM($S128:T128)) -> . | AK128: =IF(U128=".",".",SUM($S128:U128)) -> . | AL128: =IF(V128=".",".",SUM($S128:V128)) -> . | AM128: =IF(W128=".",".",SUM($S128:W128)) -> . | AN128: =IF(X128=".",".",SUM($S128:X128)) -> . | AO128: =IF(Y128=".",".",SUM($S128:Y128)) -> . | AQ128: . | AR128: . | AS128: . | AT128: . | AU128: . | AV128: . | AW128: .
C129: Business | D129: =IF('WK2 - Notional General Income'!D40="","",'WK2 - Notional General Income'!D40) ->  | E129: =IF('WK2 - Notional General Income'!M40=".",".",'WK2 - Notional General Income'!M40/'WK2 - Notional General Income'!E40) -> . | F129: =IF('WK3 - Notional GI Yr1 YIELD'!M40=".",".",'WK3 - Notional GI Yr1 YIELD'!M40/'WK3 - Notional GI Yr1 YIELD'!E40) -> . | O129: ='WK2 - Notional General Income'!$E40 -> 0 | P129: ='WK3 - Notional GI Yr1 YIELD'!$E40 -> 0 | S129: . | T129: . | U129: . | V129: . | W129: . | X129: . | Y129: . | AA129: =IFERROR(F129/E129-1,".") -> . | AB129: . | AC129: =IFERROR(H129/G129-1,".") -> . | AD129: . | AE129: . | AF129: . | AG129: . | AI129: =IF(S129=".",".",SUM($S129:S129)) -> . | AJ129: =IF(T129=".",".",SUM($S129:T129)) -> . | AK129: =IF(U129=".",".",SUM($S129:U129)) -> . | AL129: =IF(V129=".",".",SUM($S129:V129)) -> . | AM129: =IF(W129=".",".",SUM($S129:W129)) -> . | AN129: =IF(X129=".",".",SUM($S129:X129)) -> . | AO129: =IF(Y129=".",".",SUM($S129:Y129)) -> . | AQ129: . | AR129: . | AS129: . | AT129: . | AU129: . | AV129: . | AW129: .
C130: Business | D130: =IF('WK2 - Notional General Income'!D41="","",'WK2 - Notional General Income'!D41) ->  | E130: =IF('WK2 - Notional General Income'!M41=".",".",'WK2 - Notional General Income'!M41/'WK2 - Notional General Income'!E41) -> . | F130: =IF('WK3 - Notional GI Yr1 YIELD'!M41=".",".",'WK3 - Notional GI Yr1 YIELD'!M41/'WK3 - Notional GI Yr1 YIELD'!E41) -> . | O130: ='WK2 - Notional General Income'!$E41 -> 0 | P130: ='WK3 - Notional GI Yr1 YIELD'!$E41 -> 0 | S130: . | T130: . | U130: =IF(H130="",".",H130-G130) -> . | V130: =IF(I130="",".",I130-H130) -> . | W130: =IF(J130="",".",J130-I130) -> . | X130: =IF(K130="",".",K130-J130) -> . | Y130: =IF(L130="",".",L130-K130) -> . | AA130: . | AB130: . | AC130: . | AD130: . | AE130: . | AF130: . | AG130: . | AI130: =IF(S130=".",".",SUM($S130:S130)) -> . | AJ130: =IF(T130=".",".",SUM($S130:T130)) -> . | AK130: =IF(U130=".",".",SUM($S130:U130)) -> . | AL130: =IF(V130=".",".",SUM($S130:V130)) -> . | AM130: =IF(W130=".",".",SUM($S130:W130)) -> . | AN130: =IF(X130=".",".",SUM($S130:X130)) -> . | AO130: =IF(Y130=".",".",SUM($S130:Y130)) -> . | AQ130: . | AR130: . | AS130: . | AT130: . | AU130: . | AV130: . | AW130: .
C131: Business | D131: =IF('WK2 - Notional General Income'!D42="","",'WK2 - Notional General Income'!D42) ->  | E131: =IF('WK2 - Notional General Income'!M42=".",".",'WK2 - Notional General Income'!M42/'WK2 - Notional General Income'!E42) -> . | F131: =IF('WK3 - Notional GI Yr1 YIELD'!M42=".",".",'WK3 - Notional GI Yr1 YIELD'!M42/'WK3 - Notional GI Yr1 YIELD'!E42) -> . | O131: ='WK2 - Notional General Income'!$E42 -> 0 | P131: ='WK3 - Notional GI Yr1 YIELD'!$E42 -> 0 | S131: . | T131: . | U131: . | V131: . | W131: . | X131: . | Y131: . | AA131: . | AB131: . | AC131: . | AD131: . | AE131: . | AF131: . | AG131: . | AI131: =IF(S131=".",".",SUM($S131:S131)) -> . | AJ131: =IF(T131=".",".",SUM($S131:T131)) -> . | AK131: =IF(U131=".",".",SUM($S131:U131)) -> . | AL131: =IF(V131=".",".",SUM($S131:V131)) -> . | AM131: =IF(W131=".",".",SUM($S131:W131)) -> . | AN131: =IF(X131=".",".",SUM($S131:X131)) -> . | AO131: =IF(Y131=".",".",SUM($S131:Y131)) -> . | AQ131: . | AR131: . | AS131: . | AT131: . | AU131: . | AV131: . | AW131: .
C132: Business | D132: =IF('WK2 - Notional General Income'!D43="","",'WK2 - Notional General Income'!D43) ->  | E132: =IF('WK2 - Notional General Income'!M43=".",".",'WK2 - Notional General Income'!M43/'WK2 - Notional General Income'!E43) -> . | F132: =IF('WK3 - Notional GI Yr1 YIELD'!M43=".",".",'WK3 - Notional GI Yr1 YIELD'!M43/'WK3 - Notional GI Yr1 YIELD'!E43) -> . | O132: ='WK2 - Notional General Income'!$E43 -> 0 | P132: ='WK3 - Notional GI Yr1 YIELD'!$E43 -> 0 | S132: . | T132: . | U132: . | V132: . | W132: . | X132: . | Y132: . | AA132: . | AB132: . | AC132: . | AD132: . | AE132: . | AF132: . | AG132: . | AI132: =IF(S132=".",".",SUM($S132:S132)) -> . | AJ132: =IF(T132=".",".",SUM($S132:T132)) -> . | AK132: =IF(U132=".",".",SUM($S132:U132)) -> . | AL132: =IF(V132=".",".",SUM($S132:V132)) -> . | AM132: =IF(W132=".",".",SUM($S132:W132)) -> . | AN132: =IF(X132=".",".",SUM($S132:X132)) -> . | AO132: =IF(Y132=".",".",SUM($S132:Y132)) -> . | AQ132: . | AR132: . | AS132: . | AT132: . | AU132: . | AV132: . | AW132: .
C133: Business | D133: =IF('WK2 - Notional General Income'!D44="","",'WK2 - Notional General Income'!D44) ->  | E133: =IF('WK2 - Notional General Income'!M44=".",".",'WK2 - Notional General Income'!M44/'WK2 - Notional General Income'!E44) -> . | F133: =IF('WK3 - Notional GI Yr1 YIELD'!M44=".",".",'WK3 - Notional GI Yr1 YIELD'!M44/'WK3 - Notional GI Yr1 YIELD'!E44) -> . | O133: ='WK2 - Notional General Income'!$E44 -> 0 | P133: ='WK3 - Notional GI Yr1 YIELD'!$E44 -> 0 | S133: . | T133: . | U133: . | V133: . | W133: . | X133: . | Y133: . | AA133: . | AB133: . | AC133: . | AD133: . | AE133: . | AF133: . | AG133: . | AI133: =IF(S133=".",".",SUM($S133:S133)) -> . | AJ133: =IF(T133=".",".",SUM($S133:T133)) -> . | AK133: =IF(U133=".",".",SUM($S133:U133)) -> . | AL133: =IF(V133=".",".",SUM($S133:V133)) -> . | AM133: =IF(W133=".",".",SUM($S133:W133)) -> . | AN133: =IF(X133=".",".",SUM($S133:X133)) -> . | AO133: =IF(Y133=".",".",SUM($S133:Y133)) -> . | AQ133: . | AR133: . | AS133: . | AT133: . | AU133: . | AV133: . | AW133: .
C134: Business | D134: =IF('WK2 - Notional General Income'!D45="","",'WK2 - Notional General Income'!D45) ->  | E134: =IF('WK2 - Notional General Income'!M45=".",".",'WK2 - Notional General Income'!M45/'WK2 - Notional General Income'!E45) -> . | F134: =IF('WK3 - Notional GI Yr1 YIELD'!M45=".",".",'WK3 - Notional GI Yr1 YIELD'!M45/'WK3 - Notional GI Yr1 YIELD'!E45) -> . | O134: ='WK2 - Notional General Income'!$E45 -> 0 | P134: ='WK3 - Notional GI Yr1 YIELD'!$E45 -> 0 | S134: . | T134: . | U134: . | V134: . | W134: . | X134: . | Y134: . | AA134: . | AB134: . | AC134: . | AD134: . | AE134: . | AF134: . | AG134: . | AI134: =IF(S134=".",".",SUM($S134:S134)) -> . | AJ134: =IF(T134=".",".",SUM($S134:T134)) -> . | AK134: =IF(U134=".",".",SUM($S134:U134)) -> . | AL134: =IF(V134=".",".",SUM($S134:V134)) -> . | AM134: =IF(W134=".",".",SUM($S134:W134)) -> . | AN134: =IF(X134=".",".",SUM($S134:X134)) -> . | AO134: =IF(Y134=".",".",SUM($S134:Y134)) -> . | AQ134: . | AR134: . | AS134: . | AT134: . | AU134: . | AV134: . | AW134: .
C135: Business | D135: =IF('WK2 - Notional General Income'!D46="","",'WK2 - Notional General Income'!D46) ->  | E135: =IF('WK2 - Notional General Income'!M46=".",".",'WK2 - Notional General Income'!M46/'WK2 - Notional General Income'!E46) -> . | F135: =IF('WK3 - Notional GI Yr1 YIELD'!M46=".",".",'WK3 - Notional GI Yr1 YIELD'!M46/'WK3 - Notional GI Yr1 YIELD'!E46) -> . | O135: ='WK2 - Notional General Income'!$E46 -> 0 | P135: ='WK3 - Notional GI Yr1 YIELD'!$E46 -> 0 | S135: . | T135: . | U135: . | V135: . | W135: . | X135: . | Y135: . | AA135: . | AB135: . | AC135: . | AD135: . | AE135: . | AF135: . | AG135: . | AI135: =IF(S135=".",".",SUM($S135:S135)) -> . | AJ135: =IF(T135=".",".",SUM($S135:T135)) -> . | AK135: =IF(U135=".",".",SUM($S135:U135)) -> . | AL135: =IF(V135=".",".",SUM($S135:V135)) -> . | AM135: =IF(W135=".",".",SUM($S135:W135)) -> . | AN135: =IF(X135=".",".",SUM($S135:X135)) -> . | AO135: =IF(Y135=".",".",SUM($S135:Y135)) -> . | AQ135: . | AR135: . | AS135: . | AT135: . | AU135: . | AV135: . | AW135: .
C136: Business | D136: =IF('WK2 - Notional General Income'!D47="","",'WK2 - Notional General Income'!D47) ->  | E136: =IF('WK2 - Notional General Income'!M47=".",".",'WK2 - Notional General Income'!M47/'WK2 - Notional General Income'!E47) -> . | F136: =IF('WK3 - Notional GI Yr1 YIELD'!M47=".",".",'WK3 - Notional GI Yr1 YIELD'!M47/'WK3 - Notional GI Yr1 YIELD'!E47) -> . | O136: ='WK2 - Notional General Income'!$E47 -> 0 | P136: ='WK3 - Notional GI Yr1 YIELD'!$E47 -> 0 | S136: . | T136: . | U136: . | V136: . | W136: . | X136: . | Y136: . | AA136: . | AB136: . | AC136: . | AD136: . | AE136: . | AF136: . | AG136: . | AI136: =IF(S136=".",".",SUM($S136:S136)) -> . | AJ136: =IF(T136=".",".",SUM($S136:T136)) -> . | AK136: =IF(U136=".",".",SUM($S136:U136)) -> . | AL136: =IF(V136=".",".",SUM($S136:V136)) -> . | AM136: =IF(W136=".",".",SUM($S136:W136)) -> . | AN136: =IF(X136=".",".",SUM($S136:X136)) -> . | AO136: =IF(Y136=".",".",SUM($S136:Y136)) -> . | AQ136: . | AR136: . | AS136: . | AT136: . | AU136: . | AV136: . | AW136: .
C137: Business | D137: =IF('WK2 - Notional General Income'!D48="","",'WK2 - Notional General Income'!D48) ->  | E137: =IF('WK2 - Notional General Income'!M48=".",".",'WK2 - Notional General Income'!M48/'WK2 - Notional General Income'!E48) -> . | F137: =IF('WK3 - Notional GI Yr1 YIELD'!M48=".",".",'WK3 - Notional GI Yr1 YIELD'!M48/'WK3 - Notional GI Yr1 YIELD'!E48) -> . | O137: ='WK2 - Notional General Income'!$E48 -> 0 | P137: ='WK3 - Notional GI Yr1 YIELD'!$E48 -> 0 | S137: . | T137: . | U137: . | V137: . | W137: . | X137: . | Y137: . | AA137: . | AB137: . | AC137: . | AD137: . | AE137: . | AF137: . | AG137: . | AI137: =IF(S137=".",".",SUM($S137:S137)) -> . | AJ137: =IF(T137=".",".",SUM($S137:T137)) -> . | AK137: =IF(U137=".",".",SUM($S137:U137)) -> . | AL137: =IF(V137=".",".",SUM($S137:V137)) -> . | AM137: =IF(W137=".",".",SUM($S137:W137)) -> . | AN137: =IF(X137=".",".",SUM($S137:X137)) -> . | AO137: =IF(Y137=".",".",SUM($S137:Y137)) -> . | AQ137: . | AR137: . | AS137: . | AT137: . | AU137: . | AV137: . | AW137: .
C138: Business | D138: =IF('WK2 - Notional General Income'!D49="","",'WK2 - Notional General Income'!D49) ->  | E138: =IF('WK2 - Notional General Income'!M49=".",".",'WK2 - Notional General Income'!M49/'WK2 - Notional General Income'!E49) -> . | F138: =IF('WK3 - Notional GI Yr1 YIELD'!M49=".",".",'WK3 - Notional GI Yr1 YIELD'!M49/'WK3 - Notional GI Yr1 YIELD'!E49) -> . | O138: ='WK2 - Notional General Income'!$E49 -> 0 | P138: ='WK3 - Notional GI Yr1 YIELD'!$E49 -> 0 | S138: . | T138: . | U138: . | V138: . | W138: . | X138: . | Y138: . | AA138: . | AB138: . | AC138: . | AD138: . | AE138: . | AF138: . | AG138: . | AI138: =IF(S138=".",".",SUM($S138:S138)) -> . | AJ138: =IF(T138=".",".",SUM($S138:T138)) -> . | AK138: =IF(U138=".",".",SUM($S138:U138)) -> . | AL138: =IF(V138=".",".",SUM($S138:V138)) -> . | AM138: =IF(W138=".",".",SUM($S138:W138)) -> . | AN138: =IF(X138=".",".",SUM($S138:X138)) -> . | AO138: =IF(Y138=".",".",SUM($S138:Y138)) -> . | AQ138: . | AR138: . | AS138: . | AT138: . | AU138: . | AV138: . | AW138: .
C139: Business | D139: =IF('WK2 - Notional General Income'!D50="","",'WK2 - Notional General Income'!D50) ->  | E139: =IF('WK2 - Notional General Income'!M50=".",".",'WK2 - Notional General Income'!M50/'WK2 - Notional General Income'!E50) -> . | F139: =IF('WK3 - Notional GI Yr1 YIELD'!M50=".",".",'WK3 - Notional GI Yr1 YIELD'!M50/'WK3 - Notional GI Yr1 YIELD'!E50) -> . | O139: ='WK2 - Notional General Income'!$E50 -> 0 | P139: ='WK3 - Notional GI Yr1 YIELD'!$E50 -> 0 | S139: . | T139: . | U139: . | V139: . | W139: . | X139: . | Y139: . | AA139: . | AB139: . | AC139: . | AD139: . | AE139: . | AF139: . | AG139: . | AI139: =IF(S139=".",".",SUM($S139:S139)) -> . | AJ139: =IF(T139=".",".",SUM($S139:T139)) -> . | AK139: =IF(U139=".",".",SUM($S139:U139)) -> . | AL139: =IF(V139=".",".",SUM($S139:V139)) -> . | AM139: =IF(W139=".",".",SUM($S139:W139)) -> . | AN139: =IF(X139=".",".",SUM($S139:X139)) -> . | AO139: =IF(Y139=".",".",SUM($S139:Y139)) -> . | AQ139: . | AR139: . | AS139: . | AT139: . | AU139: . | AV139: . | AW139: .
C140: Business | D140: =IF('WK2 - Notional General Income'!D51="","",'WK2 - Notional General Income'!D51) ->  | E140: =IF('WK2 - Notional General Income'!M51=".",".",'WK2 - Notional General Income'!M51/'WK2 - Notional General Income'!E51) -> . | F140: =IF('WK3 - Notional GI Yr1 YIELD'!M51=".",".",'WK3 - Notional GI Yr1 YIELD'!M51/'WK3 - Notional GI Yr1 YIELD'!E51) -> . | O140: ='WK2 - Notional General Income'!$E51 -> 0 | P140: ='WK3 - Notional GI Yr1 YIELD'!$E51 -> 0 | S140: . | T140: . | U140: . | V140: . | W140: . | X140: . | Y140: . | AA140: . | AB140: . | AC140: . | AD140: . | AE140: . | AF140: . | AG140: . | AI140: =IF(S140=".",".",SUM($S140:S140)) -> . | AJ140: =IF(T140=".",".",SUM($S140:T140)) -> . | AK140: =IF(U140=".",".",SUM($S140:U140)) -> . | AL140: =IF(V140=".",".",SUM($S140:V140)) -> . | AM140: =IF(W140=".",".",SUM($S140:W140)) -> . | AN140: =IF(X140=".",".",SUM($S140:X140)) -> . | AO140: =IF(Y140=".",".",SUM($S140:Y140)) -> . | AQ140: . | AR140: . | AS140: . | AT140: . | AU140: . | AV140: . | AW140: .
C141: Business | D141: =IF('WK2 - Notional General Income'!D52="","",'WK2 - Notional General Income'!D52) ->  | E141: =IF('WK2 - Notional General Income'!M52=".",".",'WK2 - Notional General Income'!M52/'WK2 - Notional General Income'!E52) -> . | F141: =IF('WK3 - Notional GI Yr1 YIELD'!M52=".",".",'WK3 - Notional GI Yr1 YIELD'!M52/'WK3 - Notional GI Yr1 YIELD'!E52) -> . | O141: ='WK2 - Notional General Income'!$E52 -> 0 | P141: ='WK3 - Notional GI Yr1 YIELD'!$E52 -> 0 | S141: . | T141: . | U141: . | V141: . | W141: . | X141: . | Y141: . | AA141: . | AB141: . | AC141: . | AD141: . | AE141: . | AF141: . | AG141: . | AI141: =IF(S141=".",".",SUM($S141:S141)) -> . | AJ141: =IF(T141=".",".",SUM($S141:T141)) -> . | AK141: =IF(U141=".",".",SUM($S141:U141)) -> . | AL141: =IF(V141=".",".",SUM($S141:V141)) -> . | AM141: =IF(W141=".",".",SUM($S141:W141)) -> . | AN141: =IF(X141=".",".",SUM($S141:X141)) -> . | AO141: =IF(Y141=".",".",SUM($S141:Y141)) -> . | AQ141: . | AR141: . | AS141: . | AT141: . | AU141: . | AV141: . | AW141: .
C142: Business | D142: =IF('WK2 - Notional General Income'!D53="","",'WK2 - Notional General Income'!D53) ->  | E142: =IF('WK2 - Notional General Income'!M53=".",".",'WK2 - Notional General Income'!M53/'WK2 - Notional General Income'!E53) -> . | F142: =IF('WK3 - Notional GI Yr1 YIELD'!M53=".",".",'WK3 - Notional GI Yr1 YIELD'!M53/'WK3 - Notional GI Yr1 YIELD'!E53) -> . | O142: ='WK2 - Notional General Income'!$E53 -> 0 | P142: ='WK3 - Notional GI Yr1 YIELD'!$E53 -> 0 | S142: . | T142: . | U142: . | V142: . | W142: . | X142: . | Y142: . | AA142: . | AB142: . | AC142: . | AD142: . | AE142: . | AF142: . | AG142: . | AI142: =IF(S142=".",".",SUM($S142:S142)) -> . | AJ142: =IF(T142=".",".",SUM($S142:T142)) -> . | AK142: =IF(U142=".",".",SUM($S142:U142)) -> . | AL142: =IF(V142=".",".",SUM($S142:V142)) -> . | AM142: =IF(W142=".",".",SUM($S142:W142)) -> . | AN142: =IF(X142=".",".",SUM($S142:X142)) -> . | AO142: =IF(Y142=".",".",SUM($S142:Y142)) -> . | AQ142: . | AR142: . | AS142: . | AT142: . | AU142: . | AV142: . | AW142: .
C143: Business | D143: =IF('WK2 - Notional General Income'!D54="","",'WK2 - Notional General Income'!D54) ->  | E143: =IF('WK2 - Notional General Income'!M54=".",".",'WK2 - Notional General Income'!M54/'WK2 - Notional General Income'!E54) -> . | F143: =IF('WK3 - Notional GI Yr1 YIELD'!M54=".",".",'WK3 - Notional GI Yr1 YIELD'!M54/'WK3 - Notional GI Yr1 YIELD'!E54) -> . | O143: ='WK2 - Notional General Income'!$E54 -> 0 | P143: ='WK3 - Notional GI Yr1 YIELD'!$E54 -> 0 | S143: . | T143: . | U143: . | V143: . | W143: . | X143: . | Y143: . | AA143: . | AB143: . | AC143: . | AD143: . | AE143: . | AF143: . | AG143: . | AI143: =IF(S143=".",".",SUM($S143:S143)) -> . | AJ143: =IF(T143=".",".",SUM($S143:T143)) -> . | AK143: =IF(U143=".",".",SUM($S143:U143)) -> . | AL143: =IF(V143=".",".",SUM($S143:V143)) -> . | AM143: =IF(W143=".",".",SUM($S143:W143)) -> . | AN143: =IF(X143=".",".",SUM($S143:X143)) -> . | AO143: =IF(Y143=".",".",SUM($S143:Y143)) -> . | AQ143: . | AR143: . | AS143: . | AT143: . | AU143: . | AV143: . | AW143: .
C144: Business | D144: =IF('WK2 - Notional General Income'!D55="","",'WK2 - Notional General Income'!D55) ->  | E144: =IF('WK2 - Notional General Income'!M55=".",".",'WK2 - Notional General Income'!M55/'WK2 - Notional General Income'!E55) -> . | F144: =IF('WK3 - Notional GI Yr1 YIELD'!M55=".",".",'WK3 - Notional GI Yr1 YIELD'!M55/'WK3 - Notional GI Yr1 YIELD'!E55) -> . | O144: ='WK2 - Notional General Income'!$E55 -> 0 | P144: ='WK3 - Notional GI Yr1 YIELD'!$E55 -> 0 | S144: . | T144: . | U144: . | V144: . | W144: . | X144: . | Y144: . | AA144: . | AB144: . | AC144: . | AD144: . | AE144: . | AF144: . | AG144: . | AI144: =IF(S144=".",".",SUM($S144:S144)) -> . | AJ144: =IF(T144=".",".",SUM($S144:T144)) -> . | AK144: =IF(U144=".",".",SUM($S144:U144)) -> . | AL144: =IF(V144=".",".",SUM($S144:V144)) -> . | AM144: =IF(W144=".",".",SUM($S144:W144)) -> . | AN144: =IF(X144=".",".",SUM($S144:X144)) -> . | AO144: =IF(Y144=".",".",SUM($S144:Y144)) -> . | AQ144: . | AR144: . | AS144: . | AT144: . | AU144: . | AV144: . | AW144: .
C145: Business | D145: =IF('WK2 - Notional General Income'!D56="","",'WK2 - Notional General Income'!D56) ->  | E145: =IF('WK2 - Notional General Income'!M56=".",".",'WK2 - Notional General Income'!M56/'WK2 - Notional General Income'!E56) -> . | F145: =IF('WK3 - Notional GI Yr1 YIELD'!M56=".",".",'WK3 - Notional GI Yr1 YIELD'!M56/'WK3 - Notional GI Yr1 YIELD'!E56) -> . | O145: ='WK2 - Notional General Income'!$E56 -> 0 | P145: ='WK3 - Notional GI Yr1 YIELD'!$E56 -> 0 | S145: . | T145: . | U145: . | V145: . | W145: . | X145: . | Y145: . | AA145: . | AB145: . | AC145: . | AD145: . | AE145: . | AF145: . | AG145: . | AI145: =IF(S145=".",".",SUM($S145:S145)) -> . | AJ145: =IF(T145=".",".",SUM($S145:T145)) -> . | AK145: =IF(U145=".",".",SUM($S145:U145)) -> . | AL145: =IF(V145=".",".",SUM($S145:V145)) -> . | AM145: =IF(W145=".",".",SUM($S145:W145)) -> . | AN145: =IF(X145=".",".",SUM($S145:X145)) -> . | AO145: =IF(Y145=".",".",SUM($S145:Y145)) -> . | AQ145: . | AR145: . | AS145: . | AT145: . | AU145: . | AV145: . | AW145: .
C146: Business | D146: =IF('WK2 - Notional General Income'!D57="","",'WK2 - Notional General Income'!D57) ->  | E146: =IF('WK2 - Notional General Income'!M57=".",".",'WK2 - Notional General Income'!M57/'WK2 - Notional General Income'!E57) -> . | F146: =IF('WK3 - Notional GI Yr1 YIELD'!M57=".",".",'WK3 - Notional GI Yr1 YIELD'!M57/'WK3 - Notional GI Yr1 YIELD'!E57) -> . | O146: ='WK2 - Notional General Income'!$E57 -> 0 | P146: ='WK3 - Notional GI Yr1 YIELD'!$E57 -> 0 | S146: . | T146: . | U146: . | V146: . | W146: . | X146: . | Y146: . | AA146: . | AB146: . | AC146: . | AD146: . | AE146: . | AF146: . | AG146: . | AI146: =IF(S146=".",".",SUM($S146:S146)) -> . | AJ146: =IF(T146=".",".",SUM($S146:T146)) -> . | AK146: =IF(U146=".",".",SUM($S146:U146)) -> . | AL146: =IF(V146=".",".",SUM($S146:V146)) -> . | AM146: =IF(W146=".",".",SUM($S146:W146)) -> . | AN146: =IF(X146=".",".",SUM($S146:X146)) -> . | AO146: =IF(Y146=".",".",SUM($S146:Y146)) -> . | AQ146: . | AR146: . | AS146: . | AT146: . | AU146: . | AV146: . | AW146: .
C147: Business | D147: =IF('WK2 - Notional General Income'!D58="","",'WK2 - Notional General Income'!D58) ->  | E147: =IF('WK2 - Notional General Income'!M58=".",".",'WK2 - Notional General Income'!M58/'WK2 - Notional General Income'!E58) -> . | F147: =IF('WK3 - Notional GI Yr1 YIELD'!M58=".",".",'WK3 - Notional GI Yr1 YIELD'!M58/'WK3 - Notional GI Yr1 YIELD'!E58) -> . | O147: ='WK2 - Notional General Income'!$E58 -> 0 | P147: ='WK3 - Notional GI Yr1 YIELD'!$E58 -> 0 | S147: . | T147: . | U147: . | V147: . | W147: . | X147: . | Y147: . | AA147: . | AB147: . | AC147: . | AD147: . | AE147: . | AF147: . | AG147: . | AI147: =IF(S147=".",".",SUM($S147:S147)) -> . | AJ147: =IF(T147=".",".",SUM($S147:T147)) -> . | AK147: =IF(U147=".",".",SUM($S147:U147)) -> . | AL147: =IF(V147=".",".",SUM($S147:V147)) -> . | AM147: =IF(W147=".",".",SUM($S147:W147)) -> . | AN147: =IF(X147=".",".",SUM($S147:X147)) -> . | AO147: =IF(Y147=".",".",SUM($S147:Y147)) -> . | AQ147: . | AR147: . | AS147: . | AT147: . | AU147: . | AV147: . | AW147: .
C148: Business | D148: =IF('WK2 - Notional General Income'!D59="","",'WK2 - Notional General Income'!D59) ->  | E148: =IF('WK2 - Notional General Income'!M59=".",".",'WK2 - Notional General Income'!M59/'WK2 - Notional General Income'!E59) -> . | F148: =IF('WK3 - Notional GI Yr1 YIELD'!M59=".",".",'WK3 - Notional GI Yr1 YIELD'!M59/'WK3 - Notional GI Yr1 YIELD'!E59) -> . | O148: ='WK2 - Notional General Income'!$E59 -> 0 | P148: ='WK3 - Notional GI Yr1 YIELD'!$E59 -> 0 | S148: . | T148: . | U148: . | V148: . | W148: . | X148: . | Y148: . | AA148: . | AB148: . | AC148: . | AD148: . | AE148: . | AF148: . | AG148: . | AI148: =IF(S148=".",".",SUM($S148:S148)) -> . | AJ148: =IF(T148=".",".",SUM($S148:T148)) -> . | AK148: =IF(U148=".",".",SUM($S148:U148)) -> . | AL148: =IF(V148=".",".",SUM($S148:V148)) -> . | AM148: =IF(W148=".",".",SUM($S148:W148)) -> . | AN148: =IF(X148=".",".",SUM($S148:X148)) -> . | AO148: =IF(Y148=".",".",SUM($S148:Y148)) -> . | AQ148: . | AR148: . | AS148: . | AT148: . | AU148: . | AV148: . | AW148: .
C149: Business | D149: =IF('WK2 - Notional General Income'!D60="","",'WK2 - Notional General Income'!D60) ->  | E149: =IF('WK2 - Notional General Income'!M60=".",".",'WK2 - Notional General Income'!M60/'WK2 - Notional General Income'!E60) -> . | F149: =IF('WK3 - Notional GI Yr1 YIELD'!M60=".",".",'WK3 - Notional GI Yr1 YIELD'!M60/'WK3 - Notional GI Yr1 YIELD'!E60) -> . | O149: ='WK2 - Notional General Income'!$E60 -> 0 | P149: ='WK3 - Notional GI Yr1 YIELD'!$E60 -> 0 | S149: . | T149: . | U149: . | V149: . | W149: . | X149: . | Y149: . | AA149: . | AB149: . | AC149: . | AD149: . | AE149: . | AF149: . | AG149: . | AI149: =IF(S149=".",".",SUM($S149:S149)) -> . | AJ149: =IF(T149=".",".",SUM($S149:T149)) -> . | AK149: =IF(U149=".",".",SUM($S149:U149)) -> . | AL149: =IF(V149=".",".",SUM($S149:V149)) -> . | AM149: =IF(W149=".",".",SUM($S149:W149)) -> . | AN149: =IF(X149=".",".",SUM($S149:X149)) -> . | AO149: =IF(Y149=".",".",SUM($S149:Y149)) -> . | AQ149: . | AR149: . | AS149: . | AT149: . | AU149: . | AV149: . | AW149: .
C150: Business | D150: =IF('WK2 - Notional General Income'!D61="","",'WK2 - Notional General Income'!D61) ->  | E150: =IF('WK2 - Notional General Income'!M61=".",".",'WK2 - Notional General Income'!M61/'WK2 - Notional General Income'!E61) -> . | F150: =IF('WK3 - Notional GI Yr1 YIELD'!M61=".",".",'WK3 - Notional GI Yr1 YIELD'!M61/'WK3 - Notional GI Yr1 YIELD'!E61) -> . | O150: ='WK2 - Notional General Income'!$E61 -> 0 | P150: ='WK3 - Notional GI Yr1 YIELD'!$E61 -> 0 | S150: . | T150: . | U150: . | V150: . | W150: . | X150: . | Y150: . | AA150: . | AB150: . | AC150: . | AD150: . | AE150: . | AF150: . | AG150: . | AI150: =IF(S150=".",".",SUM($S150:S150)) -> . | AJ150: =IF(T150=".",".",SUM($S150:T150)) -> . | AK150: =IF(U150=".",".",SUM($S150:U150)) -> . | AL150: =IF(V150=".",".",SUM($S150:V150)) -> . | AM150: =IF(W150=".",".",SUM($S150:W150)) -> . | AN150: =IF(X150=".",".",SUM($S150:X150)) -> . | AO150: =IF(Y150=".",".",SUM($S150:Y150)) -> . | AQ150: . | AR150: . | AS150: . | AT150: . | AU150: . | AV150: . | AW150: .
C151: Business | D151: =IF('WK2 - Notional General Income'!D62="","",'WK2 - Notional General Income'!D62) ->  | E151: =IF('WK2 - Notional General Income'!M62=".",".",'WK2 - Notional General Income'!M62/'WK2 - Notional General Income'!E62) -> . | F151: =IF('WK3 - Notional GI Yr1 YIELD'!M62=".",".",'WK3 - Notional GI Yr1 YIELD'!M62/'WK3 - Notional GI Yr1 YIELD'!E62) -> . | O151: ='WK2 - Notional General Income'!$E62 -> 0 | P151: ='WK3 - Notional GI Yr1 YIELD'!$E62 -> 0 | S151: . | T151: . | U151: . | V151: . | W151: . | X151: . | Y151: . | AA151: . | AB151: . | AC151: . | AD151: . | AE151: . | AF151: . | AG151: . | AI151: =IF(S151=".",".",SUM($S151:S151)) -> . | AJ151: =IF(T151=".",".",SUM($S151:T151)) -> . | AK151: =IF(U151=".",".",SUM($S151:U151)) -> . | AL151: =IF(V151=".",".",SUM($S151:V151)) -> . | AM151: =IF(W151=".",".",SUM($S151:W151)) -> . | AN151: =IF(X151=".",".",SUM($S151:X151)) -> . | AO151: =IF(Y151=".",".",SUM($S151:Y151)) -> . | AQ151: . | AR151: . | AS151: . | AT151: . | AU151: . | AV151: . | AW151: .
C152: Business | D152: =IF('WK2 - Notional General Income'!D63="","",'WK2 - Notional General Income'!D63) ->  | E152: =IF('WK2 - Notional General Income'!M63=".",".",'WK2 - Notional General Income'!M63/'WK2 - Notional General Income'!E63) -> . | F152: =IF('WK3 - Notional GI Yr1 YIELD'!M63=".",".",'WK3 - Notional GI Yr1 YIELD'!M63/'WK3 - Notional GI Yr1 YIELD'!E63) -> . | O152: ='WK2 - Notional General Income'!$E63 -> 0 | P152: ='WK3 - Notional GI Yr1 YIELD'!$E63 -> 0 | S152: . | T152: . | U152: . | V152: . | W152: . | X152: . | Y152: . | AA152: . | AB152: . | AC152: . | AD152: . | AE152: . | AF152: . | AG152: . | AI152: =IF(S152=".",".",SUM($S152:S152)) -> . | AJ152: =IF(T152=".",".",SUM($S152:T152)) -> . | AK152: =IF(U152=".",".",SUM($S152:U152)) -> . | AL152: =IF(V152=".",".",SUM($S152:V152)) -> . | AM152: =IF(W152=".",".",SUM($S152:W152)) -> . | AN152: =IF(X152=".",".",SUM($S152:X152)) -> . | AO152: =IF(Y152=".",".",SUM($S152:Y152)) -> . | AQ152: . | AR152: . | AS152: . | AT152: . | AU152: . | AV152: . | AW152: .
C153: Business | D153: =IF('WK2 - Notional General Income'!D64="","",'WK2 - Notional General Income'!D64) ->  | E153: =IF('WK2 - Notional General Income'!M64=".",".",'WK2 - Notional General Income'!M64/'WK2 - Notional General Income'!E64) -> . | F153: =IF('WK3 - Notional GI Yr1 YIELD'!M64=".",".",'WK3 - Notional GI Yr1 YIELD'!M64/'WK3 - Notional GI Yr1 YIELD'!E64) -> . | O153: ='WK2 - Notional General Income'!$E64 -> 0 | P153: ='WK3 - Notional GI Yr1 YIELD'!$E64 -> 0 | S153: . | T153: . | U153: . | V153: . | W153: . | X153: . | Y153: . | AA153: . | AB153: . | AC153: . | AD153: . | AE153: . | AF153: . | AG153: . | AI153: =IF(S153=".",".",SUM($S153:S153)) -> . | AJ153: =IF(T153=".",".",SUM($S153:T153)) -> . | AK153: =IF(U153=".",".",SUM($S153:U153)) -> . | AL153: =IF(V153=".",".",SUM($S153:V153)) -> . | AM153: =IF(W153=".",".",SUM($S153:W153)) -> . | AN153: =IF(X153=".",".",SUM($S153:X153)) -> . | AO153: =IF(Y153=".",".",SUM($S153:Y153)) -> . | AQ153: . | AR153: . | AS153: . | AT153: . | AU153: . | AV153: . | AW153: .
C154: Special rate | D154: =IF('WK2 - Notional General Income'!D104="","",'WK2 - Notional General Income'!D104) ->  | E154: =IF('WK2 - Notional General Income'!M104=".",".",'WK2 - Notional General Income'!M104/'WK2 - Notional General Income'!E104) -> . | F154: =IF('WK3 - Notional GI Yr1 YIELD'!M104=".",".",'WK3 - Notional GI Yr1 YIELD'!M104/'WK3 - Notional GI Yr1 YIELD'!E104) -> . | O154: ='WK2 - Notional General Income'!$E104 -> 0 | P154: ='WK3 - Notional GI Yr1 YIELD'!$E104 -> 0 | S154: . | T154: . | U154: . | V154: . | W154: . | X154: . | Y154: . | AA154: . | AB154: . | AC154: . | AD154: . | AE154: . | AF154: . | AG154: . | AI154: =IF(S154=".",".",SUM($S154:S154)) -> . | AJ154: =IF(T154=".",".",SUM($S154:T154)) -> . | AK154: =IF(U154=".",".",SUM($S154:U154)) -> . | AL154: =IF(V154=".",".",SUM($S154:V154)) -> . | AM154: =IF(W154=".",".",SUM($S154:W154)) -> . | AN154: =IF(X154=".",".",SUM($S154:X154)) -> . | AO154: =IF(Y154=".",".",SUM($S154:Y154)) -> . | AQ154: . | AR154: . | AS154: . | AT154: . | AU154: . | AV154: . | AW154: .
C155: Special rate | D155: =IF('WK2 - Notional General Income'!D105="","",'WK2 - Notional General Income'!D105) ->  | E155: =IF('WK2 - Notional General Income'!M105=".",".",'WK2 - Notional General Income'!M105/'WK2 - Notional General Income'!E105) -> . | F155: =IF('WK3 - Notional GI Yr1 YIELD'!M105=".",".",'WK3 - Notional GI Yr1 YIELD'!M105/'WK3 - Notional GI Yr1 YIELD'!E105) -> . | O155: ='WK2 - Notional General Income'!$E105 -> 0 | P155: ='WK3 - Notional GI Yr1 YIELD'!$E105 -> 0 | S155: . | T155: . | U155: . | V155: . | W155: . | X155: . | Y155: . | AA155: . | AB155: . | AC155: . | AD155: . | AE155: . | AF155: . | AG155: . | AI155: =IF(S155=".",".",SUM($S155:S155)) -> . | AJ155: =IF(T155=".",".",SUM($S155:T155)) -> . | AK155: =IF(U155=".",".",SUM($S155:U155)) -> . | AL155: =IF(V155=".",".",SUM($S155:V155)) -> . | AM155: =IF(W155=".",".",SUM($S155:W155)) -> . | AN155: =IF(X155=".",".",SUM($S155:X155)) -> . | AO155: =IF(Y155=".",".",SUM($S155:Y155)) -> . | AQ155: . | AR155: . | AS155: . | AT155: . | AU155: . | AV155: . | AW155: .
C156: Special rate | D156: =IF('WK2 - Notional General Income'!D106="","",'WK2 - Notional General Income'!D106) ->  | E156: =IF('WK2 - Notional General Income'!M106=".",".",'WK2 - Notional General Income'!M106/'WK2 - Notional General Income'!E106) -> . | F156: =IF('WK3 - Notional GI Yr1 YIELD'!M106=".",".",'WK3 - Notional GI Yr1 YIELD'!M106/'WK3 - Notional GI Yr1 YIELD'!E106) -> . | O156: ='WK2 - Notional General Income'!$E106 -> 0 | P156: ='WK3 - Notional GI Yr1 YIELD'!$E106 -> 0 | S156: . | T156: . | U156: . | V156: . | W156: . | X156: . | Y156: . | AA156: . | AB156: . | AC156: . | AD156: . | AE156: . | AF156: . | AG156: . | AI156: =IF(S156=".",".",SUM($S156:S156)) -> . | AJ156: =IF(T156=".",".",SUM($S156:T156)) -> . | AK156: =IF(U156=".",".",SUM($S156:U156)) -> . | AL156: =IF(V156=".",".",SUM($S156:V156)) -> . | AM156: =IF(W156=".",".",SUM($S156:W156)) -> . | AN156: =IF(X156=".",".",SUM($S156:X156)) -> . | AO156: =IF(Y156=".",".",SUM($S156:Y156)) -> . | AQ156: . | AR156: . | AS156: . | AT156: . | AU156: . | AV156: . | AW156: .
C157: Special rate | D157: =IF('WK2 - Notional General Income'!D107="","",'WK2 - Notional General Income'!D107) ->  | E157: =IF('WK2 - Notional General Income'!M107=".",".",'WK2 - Notional General Income'!M107/'WK2 - Notional General Income'!E107) -> . | F157: =IF('WK3 - Notional GI Yr1 YIELD'!M107=".",".",'WK3 - Notional GI Yr1 YIELD'!M107/'WK3 - Notional GI Yr1 YIELD'!E107) -> . | O157: ='WK2 - Notional General Income'!$E107 -> 0 | P157: ='WK3 - Notional GI Yr1 YIELD'!$E107 -> 0 | S157: . | T157: . | U157: . | V157: . | W157: . | X157: . | Y157: . | AA157: . | AB157: . | AC157: . | AD157: . | AE157: . | AF157: . | AG157: . | AI157: =IF(S157=".",".",SUM($S157:S157)) -> . | AJ157: =IF(T157=".",".",SUM($S157:T157)) -> . | AK157: =IF(U157=".",".",SUM($S157:U157)) -> . | AL157: =IF(V157=".",".",SUM($S157:V157)) -> . | AM157: =IF(W157=".",".",SUM($S157:W157)) -> . | AN157: =IF(X157=".",".",SUM($S157:X157)) -> . | AO157: =IF(Y157=".",".",SUM($S157:Y157)) -> . | AQ157: . | AR157: . | AS157: . | AT157: . | AU157: . | AV157: . | AW157: .
C158: Special rate | D158: =IF('WK2 - Notional General Income'!D108="","",'WK2 - Notional General Income'!D108) ->  | E158: =IF('WK2 - Notional General Income'!M108=".",".",'WK2 - Notional General Income'!M108/'WK2 - Notional General Income'!E108) -> . | F158: =IF('WK3 - Notional GI Yr1 YIELD'!M108=".",".",'WK3 - Notional GI Yr1 YIELD'!M108/'WK3 - Notional GI Yr1 YIELD'!E108) -> . | O158: ='WK2 - Notional General Income'!$E108 -> 0 | P158: ='WK3 - Notional GI Yr1 YIELD'!$E108 -> 0 | S158: . | T158: . | U158: . | V158: . | W158: . | X158: . | Y158: . | AA158: . | AB158: . | AC158: . | AD158: . | AE158: . | AF158: . | AG158: . | AI158: =IF(S158=".",".",SUM($S158:S158)) -> . | AJ158: =IF(T158=".",".",SUM($S158:T158)) -> . | AK158: =IF(U158=".",".",SUM($S158:U158)) -> . | AL158: =IF(V158=".",".",SUM($S158:V158)) -> . | AM158: =IF(W158=".",".",SUM($S158:W158)) -> . | AN158: =IF(X158=".",".",SUM($S158:X158)) -> . | AO158: =IF(Y158=".",".",SUM($S158:Y158)) -> . | AQ158: . | AR158: . | AS158: . | AT158: . | AU158: . | AV158: . | AW158: .
C159: Special rate | D159: =IF('WK2 - Notional General Income'!D109="","",'WK2 - Notional General Income'!D109) ->  | E159: =IF('WK2 - Notional General Income'!M109=".",".",'WK2 - Notional General Income'!M109/'WK2 - Notional General Income'!E109) -> . | F159: =IF('WK3 - Notional GI Yr1 YIELD'!M109=".",".",'WK3 - Notional GI Yr1 YIELD'!M109/'WK3 - Notional GI Yr1 YIELD'!E109) -> . | O159: ='WK2 - Notional General Income'!$E109 -> 0 | P159: ='WK3 - Notional GI Yr1 YIELD'!$E109 -> 0 | S159: . | T159: . | U159: . | V159: . | W159: . | X159: . | Y159: . | AA159: . | AB159: . | AC159: . | AD159: . | AE159: . | AF159: . | AG159: . | AI159: =IF(S159=".",".",SUM($S159:S159)) -> . | AJ159: =IF(T159=".",".",SUM($S159:T159)) -> . | AK159: =IF(U159=".",".",SUM($S159:U159)) -> . | AL159: =IF(V159=".",".",SUM($S159:V159)) -> . | AM159: =IF(W159=".",".",SUM($S159:W159)) -> . | AN159: =IF(X159=".",".",SUM($S159:X159)) -> . | AO159: =IF(Y159=".",".",SUM($S159:Y159)) -> . | AQ159: . | AR159: . | AS159: . | AT159: . | AU159: . | AV159: . | AW159: .
C160: Special rate | D160: =IF('WK2 - Notional General Income'!D110="","",'WK2 - Notional General Income'!D110) ->  | E160: =IF('WK2 - Notional General Income'!M110=".",".",'WK2 - Notional General Income'!M110/'WK2 - Notional General Income'!E110) -> . | F160: =IF('WK3 - Notional GI Yr1 YIELD'!M110=".",".",'WK3 - Notional GI Yr1 YIELD'!M110/'WK3 - Notional GI Yr1 YIELD'!E110) -> . | O160: ='WK2 - Notional General Income'!$E110 -> 0 | P160: ='WK3 - Notional GI Yr1 YIELD'!$E110 -> 0 | S160: . | T160: . | U160: . | V160: . | W160: . | X160: . | Y160: . | AA160: . | AB160: . | AC160: . | AD160: . | AE160: . | AF160: . | AG160: . | AI160: =IF(S160=".",".",SUM($S160:S160)) -> . | AJ160: =IF(T160=".",".",SUM($S160:T160)) -> . | AK160: =IF(U160=".",".",SUM($S160:U160)) -> . | AL160: =IF(V160=".",".",SUM($S160:V160)) -> . | AM160: =IF(W160=".",".",SUM($S160:W160)) -> . | AN160: =IF(X160=".",".",SUM($S160:X160)) -> . | AO160: =IF(Y160=".",".",SUM($S160:Y160)) -> . | AQ160: . | AR160: . | AS160: . | AT160: . | AU160: . | AV160: . | AW160: .
C161: Special rate | D161: =IF('WK2 - Notional General Income'!D111="","",'WK2 - Notional General Income'!D111) ->  | E161: =IF('WK2 - Notional General Income'!M111=".",".",'WK2 - Notional General Income'!M111/'WK2 - Notional General Income'!E111) -> . | F161: =IF('WK3 - Notional GI Yr1 YIELD'!M111=".",".",'WK3 - Notional GI Yr1 YIELD'!M111/'WK3 - Notional GI Yr1 YIELD'!E111) -> . | O161: ='WK2 - Notional General Income'!$E111 -> 0 | P161: ='WK3 - Notional GI Yr1 YIELD'!$E111 -> 0 | S161: . | T161: . | U161: . | V161: . | W161: . | X161: . | Y161: . | AA161: . | AB161: . | AC161: . | AD161: . | AE161: . | AF161: . | AG161: . | AI161: =IF(S161=".",".",SUM($S161:S161)) -> . | AJ161: =IF(T161=".",".",SUM($S161:T161)) -> . | AK161: =IF(U161=".",".",SUM($S161:U161)) -> . | AL161: =IF(V161=".",".",SUM($S161:V161)) -> . | AM161: =IF(W161=".",".",SUM($S161:W161)) -> . | AN161: =IF(X161=".",".",SUM($S161:X161)) -> . | AO161: =IF(Y161=".",".",SUM($S161:Y161)) -> . | AQ161: . | AR161: . | AS161: . | AT161: . | AU161: . | AV161: . | AW161: .
C162: Special rate | D162: =IF('WK2 - Notional General Income'!D112="","",'WK2 - Notional General Income'!D112) ->  | E162: =IF('WK2 - Notional General Income'!M112=".",".",'WK2 - Notional General Income'!M112/'WK2 - Notional General Income'!E112) -> . | F162: =IF('WK3 - Notional GI Yr1 YIELD'!M112=".",".",'WK3 - Notional GI Yr1 YIELD'!M112/'WK3 - Notional GI Yr1 YIELD'!E112) -> . | O162: ='WK2 - Notional General Income'!$E112 -> 0 | P162: ='WK3 - Notional GI Yr1 YIELD'!$E112 -> 0 | S162: . | T162: =IF(OR(F162=".",G162="."),".",G162-F162) -> . | U162: =IF(H162="",".",H162-G162) -> . | V162: =IF(I162="",".",I162-H162) -> . | W162: =IF(J162="",".",J162-I162) -> . | X162: =IF(K162="",".",K162-J162) -> . | Y162: =IF(L162="",".",L162-K162) -> . | AA162: . | AB162: =IFERROR(G162/F162-1,".") -> . | AC162: . | AD162: =IFERROR(I162/H162-1,".") -> . | AE162: =IFERROR(J162/I162-1,".") -> . | AF162: =IFERROR(K162/J162-1,".") -> . | AG162: =IFERROR(L162/K162-1,".") -> . | AI162: =IF(S162=".",".",SUM($S162:S162)) -> . | AJ162: =IF(T162=".",".",SUM($S162:T162)) -> . | AK162: =IF(U162=".",".",SUM($S162:U162)) -> . | AL162: =IF(V162=".",".",SUM($S162:V162)) -> . | AM162: =IF(W162=".",".",SUM($S162:W162)) -> . | AN162: =IF(X162=".",".",SUM($S162:X162)) -> . | AO162: =IF(Y162=".",".",SUM($S162:Y162)) -> . | AQ162: . | AR162: =IFERROR(G162/$E162-1,".") -> . | AS162: =IFERROR(H162/$E162-1,".") -> . | AT162: =IFERROR(I162/$E162-1,".") -> . | AU162: =IFERROR(J162/$E162-1,".") -> . | AV162: =IFERROR(K162/$E162-1,".") -> . | AW162: =IFERROR(L162/$E162-1,".") -> .
C163: Special rate | D163: =IF('WK2 - Notional General Income'!D113="","",'WK2 - Notional General Income'!D113) ->  | E163: =IF('WK2 - Notional General Income'!M113=".",".",'WK2 - Notional General Income'!M113/'WK2 - Notional General Income'!E113) -> . | F163: =IF('WK3 - Notional GI Yr1 YIELD'!M113=".",".",'WK3 - Notional GI Yr1 YIELD'!M113/'WK3 - Notional GI Yr1 YIELD'!E113) -> . | O163: ='WK2 - Notional General Income'!$E113 -> 0 | P163: ='WK3 - Notional GI Yr1 YIELD'!$E113 -> 0 | S163: =IF(OR(E163=".",F163="."),".",F163-E163) -> . | T163: . | U163: . | V163: . | W163: . | X163: . | Y163: . | AA163: . | AB163: . | AC163: . | AD163: . | AE163: . | AF163: . | AG163: . | AI163: =IF(S163=".",".",SUM($S163:S163)) -> . | AJ163: =IF(T163=".",".",SUM($S163:T163)) -> . | AK163: =IF(U163=".",".",SUM($S163:U163)) -> . | AL163: =IF(V163=".",".",SUM($S163:V163)) -> . | AM163: =IF(W163=".",".",SUM($S163:W163)) -> . | AN163: =IF(X163=".",".",SUM($S163:X163)) -> . | AO163: =IF(Y163=".",".",SUM($S163:Y163)) -> . | AQ163: =IFERROR(F163/$E163-1,".") -> . | AR163: . | AS163: . | AT163: . | AU163: . | AV163: . | AW163: .
C164: Special rate | D164: =IF('WK2 - Notional General Income'!D114="","",'WK2 - Notional General Income'!D114) ->  | E164: =IF('WK2 - Notional General Income'!M114=".",".",'WK2 - Notional General Income'!M114/'WK2 - Notional General Income'!E114) -> . | F164: =IF('WK3 - Notional GI Yr1 YIELD'!M114=".",".",'WK3 - Notional GI Yr1 YIELD'!M114/'WK3 - Notional GI Yr1 YIELD'!E114) -> . | O164: ='WK2 - Notional General Income'!$E114 -> 0 | P164: ='WK3 - Notional GI Yr1 YIELD'!$E114 -> 0 | S164: . | T164: . | U164: . | V164: . | W164: . | X164: . | Y164: . | AA164: . | AB164: . | AC164: . | AD164: . | AE164: . | AF164: . | AG164: . | AI164: =IF(S164=".",".",SUM($S164:S164)) -> . | AJ164: =IF(T164=".",".",SUM($S164:T164)) -> . | AK164: =IF(U164=".",".",SUM($S164:U164)) -> . | AL164: =IF(V164=".",".",SUM($S164:V164)) -> . | AM164: =IF(W164=".",".",SUM($S164:W164)) -> . | AN164: =IF(X164=".",".",SUM($S164:X164)) -> . | AO164: =IF(Y164=".",".",SUM($S164:Y164)) -> . | AQ164: . | AR164: . | AS164: . | AT164: . | AU164: . | AV164: . | AW164: .
C165: Special rate | D165: =IF('WK2 - Notional General Income'!D115="","",'WK2 - Notional General Income'!D115) ->  | E165: =IF('WK2 - Notional General Income'!M115=".",".",'WK2 - Notional General Income'!M115/'WK2 - Notional General Income'!E115) -> . | F165: =IF('WK3 - Notional GI Yr1 YIELD'!M115=".",".",'WK3 - Notional GI Yr1 YIELD'!M115/'WK3 - Notional GI Yr1 YIELD'!E115) -> . | O165: ='WK2 - Notional General Income'!$E115 -> 0 | P165: ='WK3 - Notional GI Yr1 YIELD'!$E115 -> 0 | S165: . | T165: . | U165: . | V165: . | W165: . | X165: . | Y165: . | AA165: . | AB165: . | AC165: . | AD165: . | AE165: . | AF165: . | AG165: . | AI165: =IF(S165=".",".",SUM($S165:S165)) -> . | AJ165: =IF(T165=".",".",SUM($S165:T165)) -> . | AK165: =IF(U165=".",".",SUM($S165:U165)) -> . | AL165: =IF(V165=".",".",SUM($S165:V165)) -> . | AM165: =IF(W165=".",".",SUM($S165:W165)) -> . | AN165: =IF(X165=".",".",SUM($S165:X165)) -> . | AO165: =IF(Y165=".",".",SUM($S165:Y165)) -> . | AQ165: . | AR165: . | AS165: . | AT165: . | AU165: . | AV165: . | AW165: .
C166: Special rate | D166: =IF('WK2 - Notional General Income'!D116="","",'WK2 - Notional General Income'!D116) ->  | E166: =IF('WK2 - Notional General Income'!M116=".",".",'WK2 - Notional General Income'!M116/'WK2 - Notional General Income'!E116) -> . | F166: =IF('WK3 - Notional GI Yr1 YIELD'!M116=".",".",'WK3 - Notional GI Yr1 YIELD'!M116/'WK3 - Notional GI Yr1 YIELD'!E116) -> . | O166: ='WK2 - Notional General Income'!$E116 -> 0 | P166: ='WK3 - Notional GI Yr1 YIELD'!$E116 -> 0 | S166: . | T166: . | U166: . | V166: . | W166: . | X166: . | Y166: . | AA166: . | AB166: . | AC166: . | AD166: . | AE166: . | AF166: . | AG166: . | AI166: =IF(S166=".",".",SUM($S166:S166)) -> . | AJ166: =IF(T166=".",".",SUM($S166:T166)) -> . | AK166: =IF(U166=".",".",SUM($S166:U166)) -> . | AL166: =IF(V166=".",".",SUM($S166:V166)) -> . | AM166: =IF(W166=".",".",SUM($S166:W166)) -> . | AN166: =IF(X166=".",".",SUM($S166:X166)) -> . | AO166: =IF(Y166=".",".",SUM($S166:Y166)) -> . | AQ166: . | AR166: . | AS166: . | AT166: . | AU166: . | AV166: . | AW166: .
C167: Special rate | D167: =IF('WK2 - Notional General Income'!D117="","",'WK2 - Notional General Income'!D117) ->  | E167: =IF('WK2 - Notional General Income'!M117=".",".",'WK2 - Notional General Income'!M117/'WK2 - Notional General Income'!E117) -> . | F167: =IF('WK3 - Notional GI Yr1 YIELD'!M117=".",".",'WK3 - Notional GI Yr1 YIELD'!M117/'WK3 - Notional GI Yr1 YIELD'!E117) -> . | O167: ='WK2 - Notional General Income'!$E117 -> 0 | P167: ='WK3 - Notional GI Yr1 YIELD'!$E117 -> 0 | S167: . | T167: . | U167: . | V167: . | W167: . | X167: . | Y167: . | AA167: . | AB167: . | AC167: . | AD167: . | AE167: . | AF167: . | AG167: . | AI167: =IF(S167=".",".",SUM($S167:S167)) -> . | AJ167: =IF(T167=".",".",SUM($S167:T167)) -> . | AK167: =IF(U167=".",".",SUM($S167:U167)) -> . | AL167: =IF(V167=".",".",SUM($S167:V167)) -> . | AM167: =IF(W167=".",".",SUM($S167:W167)) -> . | AN167: =IF(X167=".",".",SUM($S167:X167)) -> . | AO167: =IF(Y167=".",".",SUM($S167:Y167)) -> . | AQ167: . | AR167: . | AS167: . | AT167: . | AU167: . | AV167: . | AW167: .
C168: Special rate | D168: =IF('WK2 - Notional General Income'!D118="","",'WK2 - Notional General Income'!D118) ->  | E168: =IF('WK2 - Notional General Income'!M118=".",".",'WK2 - Notional General Income'!M118/'WK2 - Notional General Income'!E118) -> . | F168: =IF('WK3 - Notional GI Yr1 YIELD'!M118=".",".",'WK3 - Notional GI Yr1 YIELD'!M118/'WK3 - Notional GI Yr1 YIELD'!E118) -> . | O168: ='WK2 - Notional General Income'!$E118 -> 0 | P168: ='WK3 - Notional GI Yr1 YIELD'!$E118 -> 0 | S168: . | T168: . | U168: . | V168: . | W168: . | X168: . | Y168: . | AA168: . | AB168: . | AC168: . | AD168: . | AE168: . | AF168: . | AG168: . | AI168: =IF(S168=".",".",SUM($S168:S168)) -> . | AJ168: =IF(T168=".",".",SUM($S168:T168)) -> . | AK168: =IF(U168=".",".",SUM($S168:U168)) -> . | AL168: =IF(V168=".",".",SUM($S168:V168)) -> . | AM168: =IF(W168=".",".",SUM($S168:W168)) -> . | AN168: =IF(X168=".",".",SUM($S168:X168)) -> . | AO168: =IF(Y168=".",".",SUM($S168:Y168)) -> . | AQ168: . | AR168: . | AS168: . | AT168: . | AU168: . | AV168: . | AW168: .
C169: Special rate | D169: =IF('WK2 - Notional General Income'!D119="","",'WK2 - Notional General Income'!D119) ->  | E169: =IF('WK2 - Notional General Income'!M119=".",".",'WK2 - Notional General Income'!M119/'WK2 - Notional General Income'!E119) -> . | F169: =IF('WK3 - Notional GI Yr1 YIELD'!M119=".",".",'WK3 - Notional GI Yr1 YIELD'!M119/'WK3 - Notional GI Yr1 YIELD'!E119) -> . | O169: ='WK2 - Notional General Income'!$E119 -> 0 | P169: ='WK3 - Notional GI Yr1 YIELD'!$E119 -> 0 | S169: . | T169: . | U169: . | V169: . | W169: . | X169: . | Y169: . | AA169: . | AB169: . | AC169: . | AD169: . | AE169: . | AF169: . | AG169: . | AI169: =IF(S169=".",".",SUM($S169:S169)) -> . | AJ169: =IF(T169=".",".",SUM($S169:T169)) -> . | AK169: =IF(U169=".",".",SUM($S169:U169)) -> . | AL169: =IF(V169=".",".",SUM($S169:V169)) -> . | AM169: =IF(W169=".",".",SUM($S169:W169)) -> . | AN169: =IF(X169=".",".",SUM($S169:X169)) -> . | AO169: =IF(Y169=".",".",SUM($S169:Y169)) -> . | AQ169: . | AR169: . | AS169: . | AT169: . | AU169: . | AV169: . | AW169: .
C170: Special rate | D170: =IF('WK2 - Notional General Income'!D120="","",'WK2 - Notional General Income'!D120) ->  | E170: =IF('WK2 - Notional General Income'!M120=".",".",'WK2 - Notional General Income'!M120/'WK2 - Notional General Income'!E120) -> . | F170: =IF('WK3 - Notional GI Yr1 YIELD'!M120=".",".",'WK3 - Notional GI Yr1 YIELD'!M120/'WK3 - Notional GI Yr1 YIELD'!E120) -> . | O170: ='WK2 - Notional General Income'!$E120 -> 0 | P170: ='WK3 - Notional GI Yr1 YIELD'!$E120 -> 0 | S170: . | T170: . | U170: . | V170: . | W170: . | X170: . | Y170: . | AA170: . | AB170: . | AC170: . | AD170: . | AE170: . | AF170: . | AG170: . | AI170: =IF(S170=".",".",SUM($S170:S170)) -> . | AJ170: =IF(T170=".",".",SUM($S170:T170)) -> . | AK170: =IF(U170=".",".",SUM($S170:U170)) -> . | AL170: =IF(V170=".",".",SUM($S170:V170)) -> . | AM170: =IF(W170=".",".",SUM($S170:W170)) -> . | AN170: =IF(X170=".",".",SUM($S170:X170)) -> . | AO170: =IF(Y170=".",".",SUM($S170:Y170)) -> . | AQ170: . | AR170: . | AS170: . | AT170: . | AU170: . | AV170: . | AW170: .
C171: Special rate | D171: =IF('WK2 - Notional General Income'!D121="","",'WK2 - Notional General Income'!D121) ->  | E171: =IF('WK2 - Notional General Income'!M121=".",".",'WK2 - Notional General Income'!M121/'WK2 - Notional General Income'!E121) -> . | F171: =IF('WK3 - Notional GI Yr1 YIELD'!M121=".",".",'WK3 - Notional GI Yr1 YIELD'!M121/'WK3 - Notional GI Yr1 YIELD'!E121) -> . | O171: ='WK2 - Notional General Income'!$E121 -> 0 | P171: ='WK3 - Notional GI Yr1 YIELD'!$E121 -> 0 | S171: . | T171: . | U171: . | V171: . | W171: . | X171: . | Y171: . | AA171: . | AB171: . | AC171: . | AD171: . | AE171: . | AF171: . | AG171: . | AI171: =IF(S171=".",".",SUM($S171:S171)) -> . | AJ171: =IF(T171=".",".",SUM($S171:T171)) -> . | AK171: =IF(U171=".",".",SUM($S171:U171)) -> . | AL171: =IF(V171=".",".",SUM($S171:V171)) -> . | AM171: =IF(W171=".",".",SUM($S171:W171)) -> . | AN171: =IF(X171=".",".",SUM($S171:X171)) -> . | AO171: =IF(Y171=".",".",SUM($S171:Y171)) -> . | AQ171: . | AR171: . | AS171: . | AT171: . | AU171: . | AV171: . | AW171: .
C172: Special rate | D172: =IF('WK2 - Notional General Income'!D122="","",'WK2 - Notional General Income'!D122) ->  | E172: =IF('WK2 - Notional General Income'!M122=".",".",'WK2 - Notional General Income'!M122/'WK2 - Notional General Income'!E122) -> . | F172: =IF('WK3 - Notional GI Yr1 YIELD'!M122=".",".",'WK3 - Notional GI Yr1 YIELD'!M122/'WK3 - Notional GI Yr1 YIELD'!E122) -> . | O172: ='WK2 - Notional General Income'!$E122 -> 0 | P172: ='WK3 - Notional GI Yr1 YIELD'!$E122 -> 0 | S172: . | T172: . | U172: . | V172: . | W172: . | X172: . | Y172: . | AA172: . | AB172: . | AC172: . | AD172: . | AE172: . | AF172: . | AG172: . | AI172: =IF(S172=".",".",SUM($S172:S172)) -> . | AJ172: =IF(T172=".",".",SUM($S172:T172)) -> . | AK172: =IF(U172=".",".",SUM($S172:U172)) -> . | AL172: =IF(V172=".",".",SUM($S172:V172)) -> . | AM172: =IF(W172=".",".",SUM($S172:W172)) -> . | AN172: =IF(X172=".",".",SUM($S172:X172)) -> . | AO172: =IF(Y172=".",".",SUM($S172:Y172)) -> . | AQ172: . | AR172: . | AS172: . | AT172: . | AU172: . | AV172: . | AW172: .
C173: Special rate | D173: =IF('WK2 - Notional General Income'!D123="","",'WK2 - Notional General Income'!D123) ->  | E173: =IF('WK2 - Notional General Income'!M123=".",".",'WK2 - Notional General Income'!M123/'WK2 - Notional General Income'!E123) -> . | F173: =IF('WK3 - Notional GI Yr1 YIELD'!M123=".",".",'WK3 - Notional GI Yr1 YIELD'!M123/'WK3 - Notional GI Yr1 YIELD'!E123) -> . | O173: ='WK2 - Notional General Income'!$E123 -> 0 | P173: ='WK3 - Notional GI Yr1 YIELD'!$E123 -> 0 | S173: . | T173: . | U173: . | V173: . | W173: . | X173: . | Y173: . | AA173: . | AB173: . | AC173: . | AD173: . | AE173: . | AF173: . | AG173: . | AI173: =IF(S173=".",".",SUM($S173:S173)) -> . | AJ173: =IF(T173=".",".",SUM($S173:T173)) -> . | AK173: =IF(U173=".",".",SUM($S173:U173)) -> . | AL173: =IF(V173=".",".",SUM($S173:V173)) -> . | AM173: =IF(W173=".",".",SUM($S173:W173)) -> . | AN173: =IF(X173=".",".",SUM($S173:X173)) -> . | AO173: =IF(Y173=".",".",SUM($S173:Y173)) -> . | AQ173: . | AR173: . | AS173: . | AT173: . | AU173: . | AV173: . | AW173: .
D174: TOTAL AVERAGE | E174: =IF($O174=0,".",SUMPRODUCT(E129:E173,$O129:$O173)/$O174) -> . | F174: =IF($P174=0,".",SUMPRODUCT(F129:F173,$P129:$P173)/$P174) -> . | G174: . | H174: . | I174: . | J174: . | K174: . | L174: . | O174: =SUM(O129:O153) -> 0 | P174: =SUM(P129:P153) -> 0 | S174: . | T174: . | U174: =IF(H174=".",".",H174-G174) -> . | V174: . | W174: . | X174: . | Y174: . | AA174: . | AB174: . | AC174: . | AD174: . | AE174: . | AF174: . | AG174: . | AI174: =IF(S174=".",".",SUM($S174:S174)) -> . | AJ174: =IF(T174=".",".",SUM($S174:T174)) -> . | AK174: =IF(U174=".",".",SUM($S174:U174)) -> . | AL174: =IF(V174=".",".",SUM($S174:V174)) -> . | AM174: =IF(W174=".",".",SUM($S174:W174)) -> . | AN174: =IF(X174=".",".",SUM($S174:X174)) -> . | AO174: =IF(Y174=".",".",SUM($S174:Y174)) -> . | AQ174: . | AR174: . | AS174: . | AT174: . | AU174: . | AV174: . | AW174: .
C175: Farmland | D175: =IF('WK2 - Notional General Income'!D66="","",'WK2 - Notional General Income'!D66) ->  | E175: =IF('WK2 - Notional General Income'!M66=".",".",'WK2 - Notional General Income'!M66/'WK2 - Notional General Income'!E66) -> . | F175: =IF('WK3 - Notional GI Yr1 YIELD'!M66=".",".",'WK3 - Notional GI Yr1 YIELD'!M66/'WK3 - Notional GI Yr1 YIELD'!E66) -> . | O175: ='WK2 - Notional General Income'!$E66 -> 0 | P175: ='WK3 - Notional GI Yr1 YIELD'!$E66 -> 0 | S175: . | T175: . | U175: . | V175: . | W175: . | X175: . | Y175: . | AA175: =IFERROR(F175/E175-1,".") -> . | AB175: =IFERROR(G175/F175-1,".") -> . | AC175: =IFERROR(H175/G175-1,".") -> . | AD175: . | AE175: . | AF175: . | AG175: . | AI175: =IF(S175=".",".",SUM($S175:S175)) -> . | AJ175: =IF(T175=".",".",SUM($S175:T175)) -> . | AK175: =IF(U175=".",".",SUM($S175:U175)) -> . | AL175: =IF(V175=".",".",SUM($S175:V175)) -> . | AM175: =IF(W175=".",".",SUM($S175:W175)) -> . | AN175: =IF(X175=".",".",SUM($S175:X175)) -> . | AO175: =IF(Y175=".",".",SUM($S175:Y175)) -> . | AQ175: . | AR175: . | AS175: . | AT175: . | AU175: . | AV175: . | AW175: .
C176: Farmland | D176: =IF('WK2 - Notional General Income'!D67="","",'WK2 - Notional General Income'!D67) ->  | E176: =IF('WK2 - Notional General Income'!M67=".",".",'WK2 - Notional General Income'!M67/'WK2 - Notional General Income'!E67) -> . | F176: =IF('WK3 - Notional GI Yr1 YIELD'!M67=".",".",'WK3 - Notional GI Yr1 YIELD'!M67/'WK3 - Notional GI Yr1 YIELD'!E67) -> . | O176: ='WK2 - Notional General Income'!$E67 -> 0 | P176: ='WK3 - Notional GI Yr1 YIELD'!$E67 -> 0 | S176: . | T176: . | U176: . | V176: . | W176: . | X176: . | Y176: . | AA176: . | AB176: . | AC176: . | AD176: . | AE176: . | AF176: . | AG176: . | AI176: =IF(S176=".",".",SUM($S176:S176)) -> . | AJ176: =IF(T176=".",".",SUM($S176:T176)) -> . | AK176: =IF(U176=".",".",SUM($S176:U176)) -> . | AL176: =IF(V176=".",".",SUM($S176:V176)) -> . | AM176: =IF(W176=".",".",SUM($S176:W176)) -> . | AN176: =IF(X176=".",".",SUM($S176:X176)) -> . | AO176: =IF(Y176=".",".",SUM($S176:Y176)) -> . | AQ176: . | AR176: . | AS176: . | AT176: . | AU176: . | AV176: . | AW176: .
C177: Farmland | D177: =IF('WK2 - Notional General Income'!D68="","",'WK2 - Notional General Income'!D68) ->  | E177: =IF('WK2 - Notional General Income'!M68=".",".",'WK2 - Notional General Income'!M68/'WK2 - Notional General Income'!E68) -> . | F177: =IF('WK3 - Notional GI Yr1 YIELD'!M68=".",".",'WK3 - Notional GI Yr1 YIELD'!M68/'WK3 - Notional GI Yr1 YIELD'!E68) -> . | O177: ='WK2 - Notional General Income'!$E68 -> 0 | P177: ='WK3 - Notional GI Yr1 YIELD'!$E68 -> 0 | S177: . | T177: . | U177: . | V177: . | W177: . | X177: . | Y177: . | AA177: . | AB177: . | AC177: . | AD177: . | AE177: . | AF177: . | AG177: . | AI177: =IF(S177=".",".",SUM($S177:S177)) -> . | AJ177: =IF(T177=".",".",SUM($S177:T177)) -> . | AK177: =IF(U177=".",".",SUM($S177:U177)) -> . | AL177: =IF(V177=".",".",SUM($S177:V177)) -> . | AM177: =IF(W177=".",".",SUM($S177:W177)) -> . | AN177: =IF(X177=".",".",SUM($S177:X177)) -> . | AO177: =IF(Y177=".",".",SUM($S177:Y177)) -> . | AQ177: . | AR177: . | AS177: . | AT177: . | AU177: . | AV177: . | AW177: .
C178: Farmland | D178: =IF('WK2 - Notional General Income'!D69="","",'WK2 - Notional General Income'!D69) ->  | E178: =IF('WK2 - Notional General Income'!M69=".",".",'WK2 - Notional General Income'!M69/'WK2 - Notional General Income'!E69) -> . | F178: =IF('WK3 - Notional GI Yr1 YIELD'!M69=".",".",'WK3 - Notional GI Yr1 YIELD'!M69/'WK3 - Notional GI Yr1 YIELD'!E69) -> . | O178: ='WK2 - Notional General Income'!$E69 -> 0 | P178: ='WK3 - Notional GI Yr1 YIELD'!$E69 -> 0 | S178: . | T178: . | U178: . | V178: . | W178: . | X178: . | Y178: . | AA178: . | AB178: . | AC178: . | AD178: =IFERROR(I178/H178-1,".") -> . | AE178: =IFERROR(J178/I178-1,".") -> . | AF178: =IFERROR(K178/J178-1,".") -> . | AG178: . | AI178: =IF(S178=".",".",SUM($S178:S178)) -> . | AJ178: =IF(T178=".",".",SUM($S178:T178)) -> . | AK178: =IF(U178=".",".",SUM($S178:U178)) -> . | AL178: =IF(V178=".",".",SUM($S178:V178)) -> . | AM178: =IF(W178=".",".",SUM($S178:W178)) -> . | AN178: =IF(X178=".",".",SUM($S178:X178)) -> . | AO178: =IF(Y178=".",".",SUM($S178:Y178)) -> . | AQ178: . | AR178: . | AS178: . | AT178: . | AU178: . | AV178: . | AW178: .
C179: Farmland | D179: =IF('WK2 - Notional General Income'!D70="","",'WK2 - Notional General Income'!D70) ->  | E179: =IF('WK2 - Notional General Income'!M70=".",".",'WK2 - Notional General Income'!M70/'WK2 - Notional General Income'!E70) -> . | F179: =IF('WK3 - Notional GI Yr1 YIELD'!M70=".",".",'WK3 - Notional GI Yr1 YIELD'!M70/'WK3 - Notional GI Yr1 YIELD'!E70) -> . | O179: ='WK2 - Notional General Income'!$E70 -> 0 | P179: ='WK3 - Notional GI Yr1 YIELD'!$E70 -> 0 | S179: . | T179: . | U179: . | V179: . | W179: . | X179: . | Y179: . | AA179: . | AB179: . | AC179: . | AD179: . | AE179: . | AF179: . | AG179: . | AI179: =IF(S179=".",".",SUM($S179:S179)) -> . | AJ179: =IF(T179=".",".",SUM($S179:T179)) -> . | AK179: =IF(U179=".",".",SUM($S179:U179)) -> . | AL179: =IF(V179=".",".",SUM($S179:V179)) -> . | AM179: =IF(W179=".",".",SUM($S179:W179)) -> . | AN179: =IF(X179=".",".",SUM($S179:X179)) -> . | AO179: =IF(Y179=".",".",SUM($S179:Y179)) -> . | AQ179: . | AR179: . | AS179: . | AT179: . | AU179: . | AV179: . | AW179: .
C180: Farmland | D180: =IF('WK2 - Notional General Income'!D71="","",'WK2 - Notional General Income'!D71) ->  | E180: =IF('WK2 - Notional General Income'!M71=".",".",'WK2 - Notional General Income'!M71/'WK2 - Notional General Income'!E71) -> . | F180: =IF('WK3 - Notional GI Yr1 YIELD'!M71=".",".",'WK3 - Notional GI Yr1 YIELD'!M71/'WK3 - Notional GI Yr1 YIELD'!E71) -> . | O180: ='WK2 - Notional General Income'!$E71 -> 0 | P180: ='WK3 - Notional GI Yr1 YIELD'!$E71 -> 0 | S180: . | T180: . | U180: . | V180: . | W180: . | X180: . | Y180: . | AA180: . | AB180: . | AC180: . | AD180: . | AE180: . | AF180: . | AG180: . | AI180: =IF(S180=".",".",SUM($S180:S180)) -> . | AJ180: =IF(T180=".",".",SUM($S180:T180)) -> . | AK180: =IF(U180=".",".",SUM($S180:U180)) -> . | AL180: =IF(V180=".",".",SUM($S180:V180)) -> . | AM180: =IF(W180=".",".",SUM($S180:W180)) -> . | AN180: =IF(X180=".",".",SUM($S180:X180)) -> . | AO180: =IF(Y180=".",".",SUM($S180:Y180)) -> . | AQ180: . | AR180: . | AS180: . | AT180: . | AU180: . | AV180: . | AW180: .
C181: Farmland | D181: =IF('WK2 - Notional General Income'!D72="","",'WK2 - Notional General Income'!D72) ->  | E181: =IF('WK2 - Notional General Income'!M72=".",".",'WK2 - Notional General Income'!M72/'WK2 - Notional General Income'!E72) -> . | F181: =IF('WK3 - Notional GI Yr1 YIELD'!M72=".",".",'WK3 - Notional GI Yr1 YIELD'!M72/'WK3 - Notional GI Yr1 YIELD'!E72) -> . | O181: ='WK2 - Notional General Income'!$E72 -> 0 | P181: ='WK3 - Notional GI Yr1 YIELD'!$E72 -> 0 | S181: . | T181: . | U181: . | V181: . | W181: . | X181: . | Y181: . | AA181: . | AB181: . | AC181: . | AD181: . | AE181: . | AF181: . | AG181: . | AI181: =IF(S181=".",".",SUM($S181:S181)) -> . | AJ181: =IF(T181=".",".",SUM($S181:T181)) -> . | AK181: =IF(U181=".",".",SUM($S181:U181)) -> . | AL181: =IF(V181=".",".",SUM($S181:V181)) -> . | AM181: =IF(W181=".",".",SUM($S181:W181)) -> . | AN181: =IF(X181=".",".",SUM($S181:X181)) -> . | AO181: =IF(Y181=".",".",SUM($S181:Y181)) -> . | AQ181: . | AR181: . | AS181: . | AT181: . | AU181: . | AV181: . | AW181: .
C182: Farmland | D182: =IF('WK2 - Notional General Income'!D73="","",'WK2 - Notional General Income'!D73) ->  | E182: =IF('WK2 - Notional General Income'!M73=".",".",'WK2 - Notional General Income'!M73/'WK2 - Notional General Income'!E73) -> . | F182: =IF('WK3 - Notional GI Yr1 YIELD'!M73=".",".",'WK3 - Notional GI Yr1 YIELD'!M73/'WK3 - Notional GI Yr1 YIELD'!E73) -> . | O182: ='WK2 - Notional General Income'!$E73 -> 0 | P182: ='WK3 - Notional GI Yr1 YIELD'!$E73 -> 0 | S182: . | T182: . | U182: . | V182: . | W182: . | X182: . | Y182: . | AA182: . | AB182: . | AC182: . | AD182: . | AE182: . | AF182: . | AG182: . | AI182: =IF(S182=".",".",SUM($S182:S182)) -> . | AJ182: =IF(T182=".",".",SUM($S182:T182)) -> . | AK182: =IF(U182=".",".",SUM($S182:U182)) -> . | AL182: =IF(V182=".",".",SUM($S182:V182)) -> . | AM182: =IF(W182=".",".",SUM($S182:W182)) -> . | AN182: =IF(X182=".",".",SUM($S182:X182)) -> . | AO182: =IF(Y182=".",".",SUM($S182:Y182)) -> . | AQ182: . | AR182: . | AS182: . | AT182: . | AU182: . | AV182: . | AW182: .
C183: Farmland | D183: =IF('WK2 - Notional General Income'!D74="","",'WK2 - Notional General Income'!D74) ->  | E183: =IF('WK2 - Notional General Income'!M74=".",".",'WK2 - Notional General Income'!M74/'WK2 - Notional General Income'!E74) -> . | F183: =IF('WK3 - Notional GI Yr1 YIELD'!M74=".",".",'WK3 - Notional GI Yr1 YIELD'!M74/'WK3 - Notional GI Yr1 YIELD'!E74) -> . | O183: ='WK2 - Notional General Income'!$E74 -> 0 | P183: ='WK3 - Notional GI Yr1 YIELD'!$E74 -> 0 | S183: . | T183: . | U183: . | V183: . | W183: . | X183: . | Y183: . | AA183: . | AB183: . | AC183: . | AD183: . | AE183: . | AF183: . | AG183: . | AI183: =IF(S183=".",".",SUM($S183:S183)) -> . | AJ183: =IF(T183=".",".",SUM($S183:T183)) -> . | AK183: =IF(U183=".",".",SUM($S183:U183)) -> . | AL183: =IF(V183=".",".",SUM($S183:V183)) -> . | AM183: =IF(W183=".",".",SUM($S183:W183)) -> . | AN183: =IF(X183=".",".",SUM($S183:X183)) -> . | AO183: =IF(Y183=".",".",SUM($S183:Y183)) -> . | AQ183: . | AR183: . | AS183: . | AT183: . | AU183: . | AV183: . | AW183: .
C184: Farmland | D184: =IF('WK2 - Notional General Income'!D75="","",'WK2 - Notional General Income'!D75) ->  | E184: =IF('WK2 - Notional General Income'!M75=".",".",'WK2 - Notional General Income'!M75/'WK2 - Notional General Income'!E75) -> . | F184: =IF('WK3 - Notional GI Yr1 YIELD'!M75=".",".",'WK3 - Notional GI Yr1 YIELD'!M75/'WK3 - Notional GI Yr1 YIELD'!E75) -> . | O184: ='WK2 - Notional General Income'!$E75 -> 0 | P184: ='WK3 - Notional GI Yr1 YIELD'!$E75 -> 0 | S184: . | T184: . | U184: . | V184: . | W184: . | X184: . | Y184: . | AA184: . | AB184: . | AC184: . | AD184: . | AE184: . | AF184: . | AG184: . | AI184: =IF(S184=".",".",SUM($S184:S184)) -> . | AJ184: =IF(T184=".",".",SUM($S184:T184)) -> . | AK184: =IF(U184=".",".",SUM($S184:U184)) -> . | AL184: =IF(V184=".",".",SUM($S184:V184)) -> . | AM184: =IF(W184=".",".",SUM($S184:W184)) -> . | AN184: =IF(X184=".",".",SUM($S184:X184)) -> . | AO184: =IF(Y184=".",".",SUM($S184:Y184)) -> . | AQ184: . | AR184: . | AS184: . | AT184: . | AU184: . | AV184: . | AW184: .
C185: Special rate | D185: =IF('WK2 - Notional General Income'!D124="","",'WK2 - Notional General Income'!D124) ->  | E185: =IF('WK2 - Notional General Income'!M124=".",".",'WK2 - Notional General Income'!M124/'WK2 - Notional General Income'!E124) -> . | F185: =IF('WK3 - Notional GI Yr1 YIELD'!M124=".",".",'WK3 - Notional GI Yr1 YIELD'!M124/'WK3 - Notional GI Yr1 YIELD'!E124) -> . | O185: ='WK2 - Notional General Income'!$E124 -> 0 | P185: ='WK3 - Notional GI Yr1 YIELD'!$E124 -> 0 | S185: . | T185: . | U185: . | V185: . | W185: . | X185: . | Y185: . | AA185: . | AB185: . | AC185: . | AD185: . | AE185: . | AF185: . | AG185: . | AI185: =IF(S185=".",".",SUM($S185:S185)) -> . | AJ185: =IF(T185=".",".",SUM($S185:T185)) -> . | AK185: =IF(U185=".",".",SUM($S185:U185)) -> . | AL185: =IF(V185=".",".",SUM($S185:V185)) -> . | AM185: =IF(W185=".",".",SUM($S185:W185)) -> . | AN185: =IF(X185=".",".",SUM($S185:X185)) -> . | AO185: =IF(Y185=".",".",SUM($S185:Y185)) -> . | AQ185: . | AR185: . | AS185: . | AT185: . | AU185: . | AV185: . | AW185: .
C186: Special rate | D186: =IF('WK2 - Notional General Income'!D125="","",'WK2 - Notional General Income'!D125) ->  | E186: =IF('WK2 - Notional General Income'!M125=".",".",'WK2 - Notional General Income'!M125/'WK2 - Notional General Income'!E125) -> . | F186: =IF('WK3 - Notional GI Yr1 YIELD'!M125=".",".",'WK3 - Notional GI Yr1 YIELD'!M125/'WK3 - Notional GI Yr1 YIELD'!E125) -> . | O186: ='WK2 - Notional General Income'!$E125 -> 0 | P186: ='WK3 - Notional GI Yr1 YIELD'!$E125 -> 0 | S186: . | T186: . | U186: . | V186: . | W186: . | X186: . | Y186: . | AA186: . | AB186: . | AC186: . | AD186: . | AE186: . | AF186: . | AG186: . | AI186: =IF(S186=".",".",SUM($S186:S186)) -> . | AJ186: =IF(T186=".",".",SUM($S186:T186)) -> . | AK186: =IF(U186=".",".",SUM($S186:U186)) -> . | AL186: =IF(V186=".",".",SUM($S186:V186)) -> . | AM186: =IF(W186=".",".",SUM($S186:W186)) -> . | AN186: =IF(X186=".",".",SUM($S186:X186)) -> . | AO186: =IF(Y186=".",".",SUM($S186:Y186)) -> . | AQ186: . | AR186: . | AS186: . | AT186: . | AU186: . | AV186: . | AW186: .
C187: Special rate | D187: =IF('WK2 - Notional General Income'!D126="","",'WK2 - Notional General Income'!D126) ->  | E187: =IF('WK2 - Notional General Income'!M126=".",".",'WK2 - Notional General Income'!M126/'WK2 - Notional General Income'!E126) -> . | F187: =IF('WK3 - Notional GI Yr1 YIELD'!M126=".",".",'WK3 - Notional GI Yr1 YIELD'!M126/'WK3 - Notional GI Yr1 YIELD'!E126) -> . | O187: ='WK2 - Notional General Income'!$E126 -> 0 | P187: ='WK3 - Notional GI Yr1 YIELD'!$E126 -> 0 | S187: . | T187: . | U187: . | V187: . | W187: . | X187: . | Y187: . | AA187: . | AB187: . | AC187: . | AD187: . | AE187: . | AF187: . | AG187: . | AI187: =IF(S187=".",".",SUM($S187:S187)) -> . | AJ187: =IF(T187=".",".",SUM($S187:T187)) -> . | AK187: =IF(U187=".",".",SUM($S187:U187)) -> . | AL187: =IF(V187=".",".",SUM($S187:V187)) -> . | AM187: =IF(W187=".",".",SUM($S187:W187)) -> . | AN187: =IF(X187=".",".",SUM($S187:X187)) -> . | AO187: =IF(Y187=".",".",SUM($S187:Y187)) -> . | AQ187: . | AR187: . | AS187: . | AT187: . | AU187: . | AV187: . | AW187: .
C188: Special rate | D188: =IF('WK2 - Notional General Income'!D127="","",'WK2 - Notional General Income'!D127) ->  | E188: =IF('WK2 - Notional General Income'!M127=".",".",'WK2 - Notional General Income'!M127/'WK2 - Notional General Income'!E127) -> . | F188: =IF('WK3 - Notional GI Yr1 YIELD'!M127=".",".",'WK3 - Notional GI Yr1 YIELD'!M127/'WK3 - Notional GI Yr1 YIELD'!E127) -> . | O188: ='WK2 - Notional General Income'!$E127 -> 0 | P188: ='WK3 - Notional GI Yr1 YIELD'!$E127 -> 0 | S188: . | T188: . | U188: . | V188: . | W188: . | X188: . | Y188: . | AA188: . | AB188: . | AC188: . | AD188: . | AE188: . | AF188: . | AG188: . | AI188: =IF(S188=".",".",SUM($S188:S188)) -> . | AJ188: =IF(T188=".",".",SUM($S188:T188)) -> . | AK188: =IF(U188=".",".",SUM($S188:U188)) -> . | AL188: =IF(V188=".",".",SUM($S188:V188)) -> . | AM188: =IF(W188=".",".",SUM($S188:W188)) -> . | AN188: =IF(X188=".",".",SUM($S188:X188)) -> . | AO188: =IF(Y188=".",".",SUM($S188:Y188)) -> . | AQ188: . | AR188: . | AS188: . | AT188: . | AU188: . | AV188: . | AW188: .
C189: Special rate | D189: =IF('WK2 - Notional General Income'!D128="","",'WK2 - Notional General Income'!D128) ->  | E189: =IF('WK2 - Notional General Income'!M128=".",".",'WK2 - Notional General Income'!M128/'WK2 - Notional General Income'!E128) -> . | F189: =IF('WK3 - Notional GI Yr1 YIELD'!M128=".",".",'WK3 - Notional GI Yr1 YIELD'!M128/'WK3 - Notional GI Yr1 YIELD'!E128) -> . | O189: ='WK2 - Notional General Income'!$E128 -> 0 | P189: ='WK3 - Notional GI Yr1 YIELD'!$E128 -> 0 | S189: . | T189: . | U189: . | V189: . | W189: . | X189: . | Y189: . | AA189: . | AB189: . | AC189: . | AD189: . | AE189: . | AF189: . | AG189: . | AI189: =IF(S189=".",".",SUM($S189:S189)) -> . | AJ189: =IF(T189=".",".",SUM($S189:T189)) -> . | AK189: =IF(U189=".",".",SUM($S189:U189)) -> . | AL189: =IF(V189=".",".",SUM($S189:V189)) -> . | AM189: =IF(W189=".",".",SUM($S189:W189)) -> . | AN189: =IF(X189=".",".",SUM($S189:X189)) -> . | AO189: =IF(Y189=".",".",SUM($S189:Y189)) -> . | AQ189: . | AR189: . | AS189: . | AT189: . | AU189: . | AV189: . | AW189: .
C190: Special rate | D190: =IF('WK2 - Notional General Income'!D129="","",'WK2 - Notional General Income'!D129) ->  | E190: =IF('WK2 - Notional General Income'!M129=".",".",'WK2 - Notional General Income'!M129/'WK2 - Notional General Income'!E129) -> . | F190: =IF('WK3 - Notional GI Yr1 YIELD'!M129=".",".",'WK3 - Notional GI Yr1 YIELD'!M129/'WK3 - Notional GI Yr1 YIELD'!E129) -> . | O190: ='WK2 - Notional General Income'!$E129 -> 0 | P190: ='WK3 - Notional GI Yr1 YIELD'!$E129 -> 0 | S190: . | T190: . | U190: . | V190: . | W190: . | X190: . | Y190: . | AA190: . | AB190: . | AC190: . | AD190: . | AE190: . | AF190: . | AG190: . | AI190: =IF(S190=".",".",SUM($S190:S190)) -> . | AJ190: =IF(T190=".",".",SUM($S190:T190)) -> . | AK190: =IF(U190=".",".",SUM($S190:U190)) -> . | AL190: =IF(V190=".",".",SUM($S190:V190)) -> . | AM190: =IF(W190=".",".",SUM($S190:W190)) -> . | AN190: =IF(X190=".",".",SUM($S190:X190)) -> . | AO190: =IF(Y190=".",".",SUM($S190:Y190)) -> . | AQ190: . | AR190: . | AS190: . | AT190: . | AU190: . | AV190: . | AW190: .
C191: Special rate | D191: =IF('WK2 - Notional General Income'!D130="","",'WK2 - Notional General Income'!D130) ->  | E191: =IF('WK2 - Notional General Income'!M130=".",".",'WK2 - Notional General Income'!M130/'WK2 - Notional General Income'!E130) -> . | F191: =IF('WK3 - Notional GI Yr1 YIELD'!M130=".",".",'WK3 - Notional GI Yr1 YIELD'!M130/'WK3 - Notional GI Yr1 YIELD'!E130) -> . | O191: ='WK2 - Notional General Income'!$E130 -> 0 | P191: ='WK3 - Notional GI Yr1 YIELD'!$E130 -> 0 | S191: . | T191: . | U191: . | V191: . | W191: . | X191: . | Y191: . | AA191: . | AB191: . | AC191: . | AD191: . | AE191: . | AF191: . | AG191: . | AI191: =IF(S191=".",".",SUM($S191:S191)) -> . | AJ191: =IF(T191=".",".",SUM($S191:T191)) -> . | AK191: =IF(U191=".",".",SUM($S191:U191)) -> . | AL191: =IF(V191=".",".",SUM($S191:V191)) -> . | AM191: =IF(W191=".",".",SUM($S191:W191)) -> . | AN191: =IF(X191=".",".",SUM($S191:X191)) -> . | AO191: =IF(Y191=".",".",SUM($S191:Y191)) -> . | AQ191: . | AR191: . | AS191: . | AT191: . | AU191: . | AV191: . | AW191: .
C192: Special rate | D192: =IF('WK2 - Notional General Income'!D131="","",'WK2 - Notional General Income'!D131) ->  | E192: =IF('WK2 - Notional General Income'!M131=".",".",'WK2 - Notional General Income'!M131/'WK2 - Notional General Income'!E131) -> . | F192: =IF('WK3 - Notional GI Yr1 YIELD'!M131=".",".",'WK3 - Notional GI Yr1 YIELD'!M131/'WK3 - Notional GI Yr1 YIELD'!E131) -> . | O192: ='WK2 - Notional General Income'!$E131 -> 0 | P192: ='WK3 - Notional GI Yr1 YIELD'!$E131 -> 0 | S192: . | T192: . | U192: . | V192: . | W192: . | X192: . | Y192: . | AA192: . | AB192: . | AC192: . | AD192: . | AE192: . | AF192: . | AG192: . | AI192: =IF(S192=".",".",SUM($S192:S192)) -> . | AJ192: =IF(T192=".",".",SUM($S192:T192)) -> . | AK192: =IF(U192=".",".",SUM($S192:U192)) -> . | AL192: =IF(V192=".",".",SUM($S192:V192)) -> . | AM192: =IF(W192=".",".",SUM($S192:W192)) -> . | AN192: =IF(X192=".",".",SUM($S192:X192)) -> . | AO192: =IF(Y192=".",".",SUM($S192:Y192)) -> . | AQ192: . | AR192: . | AS192: . | AT192: . | AU192: . | AV192: . | AW192: .
C193: Special rate | D193: =IF('WK2 - Notional General Income'!D132="","",'WK2 - Notional General Income'!D132) ->  | E193: =IF('WK2 - Notional General Income'!M132=".",".",'WK2 - Notional General Income'!M132/'WK2 - Notional General Income'!E132) -> . | F193: =IF('WK3 - Notional GI Yr1 YIELD'!M132=".",".",'WK3 - Notional GI Yr1 YIELD'!M132/'WK3 - Notional GI Yr1 YIELD'!E132) -> . | O193: ='WK2 - Notional General Income'!$E132 -> 0 | P193: ='WK3 - Notional GI Yr1 YIELD'!$E132 -> 0 | S193: . | T193: . | U193: . | V193: . | W193: . | X193: . | Y193: . | AA193: . | AB193: . | AC193: . | AD193: . | AE193: . | AF193: . | AG193: . | AI193: =IF(S193=".",".",SUM($S193:S193)) -> . | AJ193: =IF(T193=".",".",SUM($S193:T193)) -> . | AK193: =IF(U193=".",".",SUM($S193:U193)) -> . | AL193: =IF(V193=".",".",SUM($S193:V193)) -> . | AM193: =IF(W193=".",".",SUM($S193:W193)) -> . | AN193: =IF(X193=".",".",SUM($S193:X193)) -> . | AO193: =IF(Y193=".",".",SUM($S193:Y193)) -> . | AQ193: . | AR193: . | AS193: . | AT193: . | AU193: . | AV193: . | AW193: .
C194: Special rate | D194: =IF('WK2 - Notional General Income'!D133="","",'WK2 - Notional General Income'!D133) ->  | E194: =IF('WK2 - Notional General Income'!M133=".",".",'WK2 - Notional General Income'!M133/'WK2 - Notional General Income'!E133) -> . | F194: =IF('WK3 - Notional GI Yr1 YIELD'!M133=".",".",'WK3 - Notional GI Yr1 YIELD'!M133/'WK3 - Notional GI Yr1 YIELD'!E133) -> . | O194: ='WK2 - Notional General Income'!$E133 -> 0 | P194: ='WK3 - Notional GI Yr1 YIELD'!$E133 -> 0 | S194: . | T194: . | U194: =IF(H194="",".",H194-G194) -> . | V194: =IF(I194="",".",I194-H194) -> . | W194: =IF(J194="",".",J194-I194) -> . | X194: =IF(K194="",".",K194-J194) -> . | Y194: =IF(L194="",".",L194-K194) -> . | AA194: . | AB194: . | AC194: . | AD194: . | AE194: . | AF194: . | AG194: . | AI194: =IF(S194=".",".",SUM($S194:S194)) -> . | AJ194: =IF(T194=".",".",SUM($S194:T194)) -> . | AK194: =IF(U194=".",".",SUM($S194:U194)) -> . | AL194: =IF(V194=".",".",SUM($S194:V194)) -> . | AM194: =IF(W194=".",".",SUM($S194:W194)) -> . | AN194: =IF(X194=".",".",SUM($S194:X194)) -> . | AO194: =IF(Y194=".",".",SUM($S194:Y194)) -> . | AQ194: . | AR194: . | AS194: . | AT194: . | AU194: . | AV194: . | AW194: .
D195: TOTAL AVERAGE | E195: =IF($O195=0,".",SUMPRODUCT(E175:E194,$O175:$O194)/$O195) -> . | F195: =IF($P195=0,".",SUMPRODUCT(F175:F194,$P175:$P194)/$P195) -> . | G195: . | H195: . | I195: . | J195: . | K195: . | L195: . | O195: =SUM(O175:O184) -> 0 | P195: =SUM(P175:P184) -> 0 | S195: . | T195: . | U195: =IF(H195=".",".",H195-G195) -> . | V195: . | W195: . | X195: . | Y195: . | AA195: . | AB195: . | AC195: . | AD195: . | AE195: . | AF195: . | AG195: . | AI195: =IF(S195=".",".",SUM($S195:S195)) -> . | AJ195: =IF(T195=".",".",SUM($S195:T195)) -> . | AK195: =IF(U195=".",".",SUM($S195:U195)) -> . | AL195: =IF(V195=".",".",SUM($S195:V195)) -> . | AM195: =IF(W195=".",".",SUM($S195:W195)) -> . | AN195: =IF(X195=".",".",SUM($S195:X195)) -> . | AO195: =IF(Y195=".",".",SUM($S195:Y195)) -> . | AQ195: . | AR195: . | AS195: . | AT195: . | AU195: . | AV195: . | AW195: .
C196: Mining | D196: =IF('WK2 - Notional General Income'!D77="","",'WK2 - Notional General Income'!D77) ->  | E196: =IF('WK2 - Notional General Income'!M77=".",".",'WK2 - Notional General Income'!M77/'WK2 - Notional General Income'!E77) -> . | F196: =IF('WK3 - Notional GI Yr1 YIELD'!M77=".",".",'WK3 - Notional GI Yr1 YIELD'!M77/'WK3 - Notional GI Yr1 YIELD'!E77) -> . | O196: ='WK2 - Notional General Income'!$E77 -> 0 | P196: ='WK3 - Notional GI Yr1 YIELD'!$E77 -> 0 | S196: . | T196: . | U196: . | V196: . | W196: . | X196: . | Y196: . | AA196: . | AB196: . | AC196: . | AD196: . | AE196: . | AF196: . | AG196: . | AI196: =IF(S196=".",".",SUM($S196:S196)) -> . | AJ196: =IF(T196=".",".",SUM($S196:T196)) -> . | AK196: =IF(U196=".",".",SUM($S196:U196)) -> . | AL196: =IF(V196=".",".",SUM($S196:V196)) -> . | AM196: =IF(W196=".",".",SUM($S196:W196)) -> . | AN196: =IF(X196=".",".",SUM($S196:X196)) -> . | AO196: =IF(Y196=".",".",SUM($S196:Y196)) -> . | AQ196: . | AR196: . | AS196: . | AT196: . | AU196: . | AV196: . | AW196: .
C197: Mining | D197: =IF('WK2 - Notional General Income'!D78="","",'WK2 - Notional General Income'!D78) ->  | E197: =IF('WK2 - Notional General Income'!M78=".",".",'WK2 - Notional General Income'!M78/'WK2 - Notional General Income'!E78) -> . | F197: =IF('WK3 - Notional GI Yr1 YIELD'!M78=".",".",'WK3 - Notional GI Yr1 YIELD'!M78/'WK3 - Notional GI Yr1 YIELD'!E78) -> . | O197: ='WK2 - Notional General Income'!$E78 -> 0 | P197: ='WK3 - Notional GI Yr1 YIELD'!$E78 -> 0 | S197: . | T197: . | U197: . | V197: . | W197: . | X197: . | Y197: . | AA197: . | AB197: . | AC197: . | AD197: . | AE197: . | AF197: . | AG197: . | AI197: =IF(S197=".",".",SUM($S197:S197)) -> . | AJ197: =IF(T197=".",".",SUM($S197:T197)) -> . | AK197: =IF(U197=".",".",SUM($S197:U197)) -> . | AL197: =IF(V197=".",".",SUM($S197:V197)) -> . | AM197: =IF(W197=".",".",SUM($S197:W197)) -> . | AN197: =IF(X197=".",".",SUM($S197:X197)) -> . | AO197: =IF(Y197=".",".",SUM($S197:Y197)) -> . | AQ197: . | AR197: . | AS197: . | AT197: . | AU197: . | AV197: . | AW197: .
C198: Mining | D198: =IF('WK2 - Notional General Income'!D79="","",'WK2 - Notional General Income'!D79) ->  | E198: =IF('WK2 - Notional General Income'!M79=".",".",'WK2 - Notional General Income'!M79/'WK2 - Notional General Income'!E79) -> . | F198: =IF('WK3 - Notional GI Yr1 YIELD'!M79=".",".",'WK3 - Notional GI Yr1 YIELD'!M79/'WK3 - Notional GI Yr1 YIELD'!E79) -> . | O198: ='WK2 - Notional General Income'!$E79 -> 0 | P198: ='WK3 - Notional GI Yr1 YIELD'!$E79 -> 0 | S198: . | T198: . | U198: . | V198: . | W198: . | X198: . | Y198: . | AA198: . | AB198: . | AC198: . | AD198: . | AE198: . | AF198: . | AG198: . | AI198: =IF(S198=".",".",SUM($S198:S198)) -> . | AJ198: =IF(T198=".",".",SUM($S198:T198)) -> . | AK198: =IF(U198=".",".",SUM($S198:U198)) -> . | AL198: =IF(V198=".",".",SUM($S198:V198)) -> . | AM198: =IF(W198=".",".",SUM($S198:W198)) -> . | AN198: =IF(X198=".",".",SUM($S198:X198)) -> . | AO198: =IF(Y198=".",".",SUM($S198:Y198)) -> . | AQ198: . | AR198: . | AS198: . | AT198: . | AU198: . | AV198: . | AW198: .
C199: Mining | D199: =IF('WK2 - Notional General Income'!D80="","",'WK2 - Notional General Income'!D80) ->  | E199: =IF('WK2 - Notional General Income'!M80=".",".",'WK2 - Notional General Income'!M80/'WK2 - Notional General Income'!E80) -> . | F199: =IF('WK3 - Notional GI Yr1 YIELD'!M80=".",".",'WK3 - Notional GI Yr1 YIELD'!M80/'WK3 - Notional GI Yr1 YIELD'!E80) -> . | O199: ='WK2 - Notional General Income'!$E80 -> 0 | P199: ='WK3 - Notional GI Yr1 YIELD'!$E80 -> 0 | S199: . | T199: . | U199: . | V199: . | W199: . | X199: . | Y199: . | AA199: . | AB199: . | AC199: . | AD199: . | AE199: . | AF199: . | AG199: . | AI199: =IF(S199=".",".",SUM($S199:S199)) -> . | AJ199: =IF(T199=".",".",SUM($S199:T199)) -> . | AK199: =IF(U199=".",".",SUM($S199:U199)) -> . | AL199: =IF(V199=".",".",SUM($S199:V199)) -> . | AM199: =IF(W199=".",".",SUM($S199:W199)) -> . | AN199: =IF(X199=".",".",SUM($S199:X199)) -> . | AO199: =IF(Y199=".",".",SUM($S199:Y199)) -> . | AQ199: . | AR199: . | AS199: . | AT199: . | AU199: . | AV199: . | AW199: .
C200: Mining | D200: =IF('WK2 - Notional General Income'!D81="","",'WK2 - Notional General Income'!D81) ->  | E200: =IF('WK2 - Notional General Income'!M81=".",".",'WK2 - Notional General Income'!M81/'WK2 - Notional General Income'!E81) -> . | F200: =IF('WK3 - Notional GI Yr1 YIELD'!M81=".",".",'WK3 - Notional GI Yr1 YIELD'!M81/'WK3 - Notional GI Yr1 YIELD'!E81) -> . | O200: ='WK2 - Notional General Income'!$E81 -> 0 | P200: ='WK3 - Notional GI Yr1 YIELD'!$E81 -> 0 | S200: . | T200: . | U200: . | V200: . | W200: . | X200: . | Y200: . | AA200: . | AB200: . | AC200: . | AD200: . | AE200: . | AF200: . | AG200: . | AI200: =IF(S200=".",".",SUM($S200:S200)) -> . | AJ200: =IF(T200=".",".",SUM($S200:T200)) -> . | AK200: =IF(U200=".",".",SUM($S200:U200)) -> . | AL200: =IF(V200=".",".",SUM($S200:V200)) -> . | AM200: =IF(W200=".",".",SUM($S200:W200)) -> . | AN200: =IF(X200=".",".",SUM($S200:X200)) -> . | AO200: =IF(Y200=".",".",SUM($S200:Y200)) -> . | AQ200: . | AR200: . | AS200: . | AT200: . | AU200: . | AV200: . | AW200: .
C201: Mining | D201: =IF('WK2 - Notional General Income'!D82="","",'WK2 - Notional General Income'!D82) ->  | E201: =IF('WK2 - Notional General Income'!M82=".",".",'WK2 - Notional General Income'!M82/'WK2 - Notional General Income'!E82) -> . | F201: =IF('WK3 - Notional GI Yr1 YIELD'!M82=".",".",'WK3 - Notional GI Yr1 YIELD'!M82/'WK3 - Notional GI Yr1 YIELD'!E82) -> . | O201: ='WK2 - Notional General Income'!$E82 -> 0 | P201: ='WK3 - Notional GI Yr1 YIELD'!$E82 -> 0 | S201: . | T201: . | U201: . | V201: . | W201: . | X201: . | Y201: . | AA201: . | AB201: . | AC201: . | AD201: . | AE201: . | AF201: . | AG201: . | AI201: =IF(S201=".",".",SUM($S201:S201)) -> . | AJ201: =IF(T201=".",".",SUM($S201:T201)) -> . | AK201: =IF(U201=".",".",SUM($S201:U201)) -> . | AL201: =IF(V201=".",".",SUM($S201:V201)) -> . | AM201: =IF(W201=".",".",SUM($S201:W201)) -> . | AN201: =IF(X201=".",".",SUM($S201:X201)) -> . | AO201: =IF(Y201=".",".",SUM($S201:Y201)) -> . | AQ201: . | AR201: . | AS201: . | AT201: . | AU201: . | AV201: . | AW201: .
C202: Mining | D202: =IF('WK2 - Notional General Income'!D83="","",'WK2 - Notional General Income'!D83) ->  | E202: =IF('WK2 - Notional General Income'!M83=".",".",'WK2 - Notional General Income'!M83/'WK2 - Notional General Income'!E83) -> . | F202: =IF('WK3 - Notional GI Yr1 YIELD'!M83=".",".",'WK3 - Notional GI Yr1 YIELD'!M83/'WK3 - Notional GI Yr1 YIELD'!E83) -> . | O202: ='WK2 - Notional General Income'!$E83 -> 0 | P202: ='WK3 - Notional GI Yr1 YIELD'!$E83 -> 0 | S202: . | T202: . | U202: . | V202: . | W202: . | X202: . | Y202: . | AA202: . | AB202: . | AC202: . | AD202: . | AE202: . | AF202: . | AG202: . | AI202: =IF(S202=".",".",SUM($S202:S202)) -> . | AJ202: =IF(T202=".",".",SUM($S202:T202)) -> . | AK202: =IF(U202=".",".",SUM($S202:U202)) -> . | AL202: =IF(V202=".",".",SUM($S202:V202)) -> . | AM202: =IF(W202=".",".",SUM($S202:W202)) -> . | AN202: =IF(X202=".",".",SUM($S202:X202)) -> . | AO202: =IF(Y202=".",".",SUM($S202:Y202)) -> . | AQ202: . | AR202: . | AS202: . | AT202: . | AU202: . | AV202: . | AW202: .
C203: Mining | D203: =IF('WK2 - Notional General Income'!D84="","",'WK2 - Notional General Income'!D84) ->  | E203: =IF('WK2 - Notional General Income'!M84=".",".",'WK2 - Notional General Income'!M84/'WK2 - Notional General Income'!E84) -> . | F203: =IF('WK3 - Notional GI Yr1 YIELD'!M84=".",".",'WK3 - Notional GI Yr1 YIELD'!M84/'WK3 - Notional GI Yr1 YIELD'!E84) -> . | O203: ='WK2 - Notional General Income'!$E84 -> 0 | P203: ='WK3 - Notional GI Yr1 YIELD'!$E84 -> 0 | S203: . | T203: . | U203: . | V203: . | W203: . | X203: . | Y203: . | AA203: . | AB203: . | AC203: . | AD203: . | AE203: . | AF203: . | AG203: . | AI203: =IF(S203=".",".",SUM($S203:S203)) -> . | AJ203: =IF(T203=".",".",SUM($S203:T203)) -> . | AK203: =IF(U203=".",".",SUM($S203:U203)) -> . | AL203: =IF(V203=".",".",SUM($S203:V203)) -> . | AM203: =IF(W203=".",".",SUM($S203:W203)) -> . | AN203: =IF(X203=".",".",SUM($S203:X203)) -> . | AO203: =IF(Y203=".",".",SUM($S203:Y203)) -> . | AQ203: . | AR203: . | AS203: . | AT203: . | AU203: . | AV203: . | AW203: .
C204: Mining | D204: =IF('WK2 - Notional General Income'!D85="","",'WK2 - Notional General Income'!D85) ->  | E204: =IF('WK2 - Notional General Income'!M85=".",".",'WK2 - Notional General Income'!M85/'WK2 - Notional General Income'!E85) -> . | F204: =IF('WK3 - Notional GI Yr1 YIELD'!M85=".",".",'WK3 - Notional GI Yr1 YIELD'!M85/'WK3 - Notional GI Yr1 YIELD'!E85) -> . | O204: ='WK2 - Notional General Income'!$E85 -> 0 | P204: ='WK3 - Notional GI Yr1 YIELD'!$E85 -> 0 | S204: . | T204: . | U204: . | V204: . | W204: . | X204: . | Y204: . | AA204: . | AB204: . | AC204: . | AD204: . | AE204: . | AF204: . | AG204: . | AI204: =IF(S204=".",".",SUM($S204:S204)) -> . | AJ204: =IF(T204=".",".",SUM($S204:T204)) -> . | AK204: =IF(U204=".",".",SUM($S204:U204)) -> . | AL204: =IF(V204=".",".",SUM($S204:V204)) -> . | AM204: =IF(W204=".",".",SUM($S204:W204)) -> . | AN204: =IF(X204=".",".",SUM($S204:X204)) -> . | AO204: =IF(Y204=".",".",SUM($S204:Y204)) -> . | AQ204: . | AR204: . | AS204: . | AT204: . | AU204: . | AV204: . | AW204: .
C205: Mining | D205: =IF('WK2 - Notional General Income'!D86="","",'WK2 - Notional General Income'!D86) ->  | E205: =IF('WK2 - Notional General Income'!M86=".",".",'WK2 - Notional General Income'!M86/'WK2 - Notional General Income'!E86) -> . | F205: =IF('WK3 - Notional GI Yr1 YIELD'!M86=".",".",'WK3 - Notional GI Yr1 YIELD'!M86/'WK3 - Notional GI Yr1 YIELD'!E86) -> . | O205: ='WK2 - Notional General Income'!$E86 -> 0 | P205: ='WK3 - Notional GI Yr1 YIELD'!$E86 -> 0 | S205: . | T205: . | U205: . | V205: . | W205: . | X205: . | Y205: . | AA205: . | AB205: . | AC205: . | AD205: . | AE205: . | AF205: . | AG205: . | AI205: =IF(S205=".",".",SUM($S205:S205)) -> . | AJ205: =IF(T205=".",".",SUM($S205:T205)) -> . | AK205: =IF(U205=".",".",SUM($S205:U205)) -> . | AL205: =IF(V205=".",".",SUM($S205:V205)) -> . | AM205: =IF(W205=".",".",SUM($S205:W205)) -> . | AN205: =IF(X205=".",".",SUM($S205:X205)) -> . | AO205: =IF(Y205=".",".",SUM($S205:Y205)) -> . | AQ205: . | AR205: . | AS205: . | AT205: . | AU205: . | AV205: . | AW205: .
C206: Special rate | D206: =IF('WK2 - Notional General Income'!D134="","",'WK2 - Notional General Income'!D134) ->  | E206: =IF('WK2 - Notional General Income'!M134=".",".",'WK2 - Notional General Income'!M134/'WK2 - Notional General Income'!E134) -> . | F206: =IF('WK3 - Notional GI Yr1 YIELD'!M134=".",".",'WK3 - Notional GI Yr1 YIELD'!M134/'WK3 - Notional GI Yr1 YIELD'!E134) -> . | O206: ='WK2 - Notional General Income'!$E134 -> 0 | P206: ='WK3 - Notional GI Yr1 YIELD'!$E134 -> 0 | S206: . | T206: . | U206: . | V206: . | W206: . | X206: . | Y206: . | AA206: . | AB206: . | AC206: . | AD206: . | AE206: . | AF206: . | AG206: . | AI206: =IF(S206=".",".",SUM($S206:S206)) -> . | AJ206: =IF(T206=".",".",SUM($S206:T206)) -> . | AK206: =IF(U206=".",".",SUM($S206:U206)) -> . | AL206: =IF(V206=".",".",SUM($S206:V206)) -> . | AM206: =IF(W206=".",".",SUM($S206:W206)) -> . | AN206: =IF(X206=".",".",SUM($S206:X206)) -> . | AO206: =IF(Y206=".",".",SUM($S206:Y206)) -> . | AQ206: . | AR206: . | AS206: . | AT206: . | AU206: . | AV206: . | AW206: .
